Workbook

Sheet ACCUEILPRO
A1: Accueil
F7: =ACCUEIL!F7 -> 2021-03-07

Sheet ACCUEILPREM
A1: Accueil
F7: =ACCUEIL!F7 -> 2021-03-07

Sheet ACCUEILGP
A1: Accueil
F7: =ACCUEIL!F7 -> 2021-03-07

Sheet ACCUEIL
F7: 2021-03-07

Sheet Accueilagence
A1: Accueil
E7: =ACCUEIL!F7 -> 2021-03-07

Sheet Accueilsecteur
A1: Accueil
E7: =ACCUEIL!F7 -> 2021-03-07

Sheet AccueilDircom
A1: Accueil
E7: =ACCUEIL!F7 -> 2021-03-07

Sheet DC_FICHE
A1: Accueil
A2: BAROMETRE BDD
A4: UNITE: | B4: DIRECTION REGIONALE | E4: ETP perf : | F4: =VLOOKUP(A5,'RECAP DIRCOM'!$G$6:$I$12,3,FALSE) -> 268.24
A5: =VLOOKUP(B5,LISTES!$M$6:$N$12,2,FALSE) -> 262 | B5: BAS-RHIN
C6: Coefficient du critére | E6: Résultats | I6: Ecart au 1ier | M6: Evolution | O6: Rang
E7: du 1ier | G7: DIRECTION | I7: Du mois | K7: Au 31/12/2019
A9: RANG au CLASSEMENT GENERAL | K9: =VLOOKUP($A$5,'RECAP DIRCOM AN'!$G$6:$FS$312,168,FALSE) -> 6 | M9: =+K9-O9 ->  | O9: =VLOOKUP($A$5,'RECAP DIRCOM'!$G$6:$DG$312,168,FALSE) -> 
A11: CRITERE CLIENTS | C11: 15% | O11: =VLOOKUP($A$5,'RECAP DIRCOM'!$G$6:$DG$312,23,FALSE) -> 8.414194393
B12: PNB Evolution nette Clients BP | C12: 4% | E12: ='RECAP DIRCOM'!#REF! ->  | G12: =VLOOKUP($A$5,'RECAP DIRCOM'!$G$6:$DG$312,6,FALSE) -> 0.5 | I12: =VLOOKUP($A$5,'RECAP DIRCOM'!$G$6:$DG$312,7,FALSE) -> 600% | K12: =VLOOKUP($A$5,'RECAP DIRCOM AN'!$G$6:$FS$312,7,FALSE) -> 130% | M12: =+K12-I12 -> -470% | O12: =VLOOKUP($A$5,'RECAP DIRCOM'!$G$6:$DG$312,8,FALSE) -> 0.4968651572
B13: PNB Evolution nette Clients PREMIUM | C13: 5% | E13: ='RECAP DIRCOM'!#REF! ->  | G13: =VLOOKUP($A$5,'RECAP DIRCOM'!$G$6:$DG$312,10,FALSE) -> 6.0 | I13: =VLOOKUP($A$5,'RECAP DIRCOM'!$G$6:$DG$312,11,FALSE) -> 38% | K13: =VLOOKUP($A$5,'RECAP DIRCOM AN'!$G$6:$FS$312,11,FALSE) -> 1% | M13: =+K13-I13 -> -37% | O13: =VLOOKUP($A$5,'RECAP DIRCOM'!$G$6:$DG$312,12,FALSE) -> 0.3608800573
B14: PNB Evolution nette Clients Jeunes Equipés | C14: 3% | E14: ='RECAP DIRCOM'!#REF! ->  | G14: =VLOOKUP($A$5,'RECAP DIRCOM'!$G$6:$DG$312,14,FALSE) -> 0.0 | I14: =VLOOKUP($A$5,'RECAP DIRCOM'!$G$6:$DG$312,15,FALSE) -> 0% | K14: =VLOOKUP($A$5,'RECAP DIRCOM AN'!$G$6:$FS$312,15,FALSE) -> 69% | M14: =+K14-I14 -> 69% | O14: =VLOOKUP($A$5,'RECAP DIRCOM'!$G$6:$DG$312,16,FALSE) -> 0
B15: PNB Evolution nette Clients Pro Actifs Equipés | C15: 3% | E15: ='RECAP DIRCOM'!W4 -> 0.0 | G15: =VLOOKUP($A$5,'RECAP DIRCOM'!$G$6:$DG$312,18,FALSE) -> 3597.5 | I15: =VLOOKUP($A$5,'RECAP DIRCOM'!$G$6:$DG$312,19,FALSE) -> 1341% | K15: =VLOOKUP($A$5,'RECAP DIRCOM AN'!$G$6:$FS$312,19,FALSE) -> 0% | M15: =+K15-I15 -> -1341% | O15: =VLOOKUP($A$5,'RECAP DIRCOM'!$G$6:$DG$312,20,FALSE) -> 0
A17: CRITERE BANCARISATION | C17: 15% | O17: =VLOOKUP($A$5,'RECAP DIRCOM'!$G$6:$DG$312,48,FALSE) -> 2
B18: PNB Ventes nettes forfaits | C18: 4% | E18: ='RECAP DIRCOM'!X4 -> 13.4 | G18: =VLOOKUP($A$5,'RECAP DIRCOM'!$G$6:$DG$312,31,FALSE) -> -0.4 | I18: =VLOOKUP($A$5,'RECAP DIRCOM'!$G$6:$DG$312,32,FALSE) -> 43% | K18: =VLOOKUP($A$5,'RECAP DIRCOM AN'!$G$6:$FS$312,32,FALSE) -> 126% | M18: =+K18-I18 -> 83% | O18: =VLOOKUP($A$5,'RECAP DIRCOM'!$G$6:$DG$312,33,FALSE) -> 7
B19: PNB Ventes nettes IZICARTES Débit Différé | C19: 4% | E19: ='RECAP DIRCOM'!AB4 -> 10.0 | G19: =VLOOKUP($A$5,'RECAP DIRCOM'!$G$6:$DG$312,35,FALSE) -> 0.0 | I19: =VLOOKUP($A$5,'RECAP DIRCOM'!$G$6:$DG$312,36,FALSE) -> 200% | K19: =VLOOKUP($A$5,'RECAP DIRCOM AN'!$G$6:$FS$312,36,FALSE) -> 0% | M19: =+K19-I19 -> -200% | O19: =VLOOKUP($A$5,'RECAP DIRCOM'!$G$6:$DG$312,37,FALSE) -> 0
B20: PNB Ventes nettes cartes HDG Débit Différé | C20: 4% | E20: ='RECAP DIRCOM'!AF4 -> 2.7 | G20: =VLOOKUP($A$5,'RECAP DIRCOM'!$G$6:$DG$312,39,FALSE) -> 0.0 | I20: =VLOOKUP($A$5,'RECAP DIRCOM'!$G$6:$DG$312,40,FALSE) -> 0% | K20: =VLOOKUP($A$5,'RECAP DIRCOM AN'!$G$6:$FS$312,40,FALSE) -> 0% | M20: =+K20-I20 -> 0% | O20: =VLOOKUP($A$5,'RECAP DIRCOM'!$G$6:$DG$312,41,FALSE) -> 51791.44248
B21: PNB Ventes nettes Forfaits Pro, Carte pro | C21: 3% | E21: ='RECAP DIRCOM'!AJ4 -> -0.2 | G21: =VLOOKUP($A$5,'RECAP DIRCOM'!$G$6:$DG$312,43,FALSE) -> 0.0 | I21: =VLOOKUP($A$5,'RECAP DIRCOM'!$G$6:$DG$312,44,FALSE) -> 100% | K21: =VLOOKUP($A$5,'RECAP DIRCOM AN'!$G$6:$FS$312,44,FALSE) -> 44% | M21: =+K21-I21 -> -56% | O21: =VLOOKUP($A$5,'RECAP DIRCOM'!$G$6:$DG$312,45,FALSE) -> 1424
A23: CRITERE EPARGNE | C23: 10% | O23: =VLOOKUP($A$5,'RECAP DIRCOM'!$G$6:$DG$312,69,FALSE) -> 0.3090274978
B24: PNB Epargne Liquide | C24: 3% | E24: ='RECAP DIRCOM'!AU4 -> 193.1 | G24: =VLOOKUP($A$5,'RECAP DIRCOM'!$G$6:$DG$312,56,FALSE) -> 6553.6 | I24: =VLOOKUP($A$5,'RECAP DIRCOM'!$G$6:$DG$312,57,FALSE) -> 2443% | K24: =VLOOKUP($A$5,'RECAP DIRCOM AN'!$G$6:$FS$312,57,FALSE) -> 23% | M24: =+K24-I24 -> -2420% | O24: =VLOOKUP($A$5,'RECAP DIRCOM'!$G$6:$DG$312,58,FALSE) -> 0.4903472365
B25: PNB CA UC + arbitrage | C25: 4% | E25: ='RECAP DIRCOM'!AY4 -> 6.0 | G25: =VLOOKUP($A$5,'RECAP DIRCOM'!$G$6:$DG$312,60,FALSE) -> 3210.4 | I25: =VLOOKUP($A$5,'RECAP DIRCOM'!$G$6:$DG$312,61,FALSE) -> 1197% | K25: =VLOOKUP($A$5,'RECAP DIRCOM AN'!$G$6:$FS$312,61,FALSE) -> 0% | M25: =+K25-I25 -> -1197% | O25: =VLOOKUP($A$5,'RECAP DIRCOM'!$G$6:$DG$312,62,FALSE) -> 0.0779797169
B26: PNB Excédent assurance vie | C26: 3% | E26: ='RECAP DIRCOM'!#REF! ->  | G26: =VLOOKUP($A$5,'RECAP DIRCOM'!$G$6:$DG$312,64,FALSE) -> 733.0 | I26: =VLOOKUP($A$5,'RECAP DIRCOM'!$G$6:$DG$312,65,FALSE) -> 273% | K26: =VLOOKUP($A$5,'RECAP DIRCOM AN'!$G$6:$FS$312,65,FALSE) -> 63% | M26: =+K26-I26 -> -210% | O26: =VLOOKUP($A$5,'RECAP DIRCOM'!$G$6:$DG$312,66,FALSE) -> 0.3640163849
A28: CRITERE CREDITS | C28: 15% | O28: =VLOOKUP($A$5,'RECAP DIRCOM'!$G$6:$DG$312,102,FALSE) -> 0.146880965
B29: PNB crédit conso | C29: 4% | E29: ='RECAP DIRCOM'!BJ4 -> 47.9 | G29: =VLOOKUP($A$5,'RECAP DIRCOM'!$G$6:$DG$312,77,FALSE) -> 0.0 | I29: =VLOOKUP($A$5,'RECAP DIRCOM'!$G$6:$DG$312,78,FALSE) -> 200% | K29: =VLOOKUP($A$5,'RECAP DIRCOM AN'!$G$6:$FS$312,78,FALSE) -> 29% | M29: =+K29-I29 -> -171% | O29: =VLOOKUP($A$5,'RECAP DIRCOM'!$G$6:$DG$312,79,FALSE) -> 2177
B30: PNB ADE crédit conso | C30: 1% | E30: ='RECAP DIRCOM'!#REF! ->  | G30: =VLOOKUP($A$5,'RECAP DIRCOM'!$G$6:$DG$312,81,FALSE) -> 0.1 | I30: =VLOOKUP($A$5,'RECAP DIRCOM'!$G$6:$DG$312,82,FALSE) -> 200% | K30: =VLOOKUP($A$5,'RECAP DIRCOM AN'!$G$6:$FS$312,82,FALSE) -> 29% | M30: -171% | O30: =VLOOKUP($A$5,'RECAP DIRCOM'!$G$6:$DG$312,83,FALSE) -> 0.04456203245
B31: PNB crédit immo | C31: 4% | E31: ='RECAP DIRCOM'!BN4 -> 13.0 | G31: =VLOOKUP($A$5,'RECAP DIRCOM'!$G$6:$DG$312,85,FALSE) -> 2.0 | I31: =VLOOKUP($A$5,'RECAP DIRCOM'!$G$6:$DG$312,86,FALSE) -> 0% | K31: =VLOOKUP($A$5,'RECAP DIRCOM AN'!$G$6:$FS$312,86,FALSE) -> 33% | M31: 33% | O31: =VLOOKUP($A$5,'RECAP DIRCOM'!$G$6:$DG$312,87,FALSE) -> 0
B32: PNB ADE crédit immo | C32: 2% | E32: ='RECAP DIRCOM'!#REF! ->  | G32: =VLOOKUP($A$5,'RECAP DIRCOM'!$G$6:$DG$312,89,FALSE) -> 0.0 | I32: =VLOOKUP($A$5,'RECAP DIRCOM'!$G$6:$DG$312,90,FALSE) -> 0% | K32: =VLOOKUP($A$5,'RECAP DIRCOM AN'!$G$6:$FS$312,90,FALSE) -> 47% | M32: 47% | O32: =VLOOKUP($A$5,'RECAP DIRCOM'!$G$6:$DG$312,91,FALSE) -> 0
B33: PNB SACCEF | C33: 2% | E33: ='RECAP DIRCOM'!#REF! ->  | G33: =VLOOKUP($A$5,'RECAP DIRCOM'!$G$6:$DG$312,93,FALSE) -> 0.0 | I33: =VLOOKUP($A$5,'RECAP DIRCOM'!$G$6:$DG$312,94,FALSE) -> 0% | K33: =VLOOKUP($A$5,'RECAP DIRCOM AN'!$G$6:$FS$312,94,FALSE) -> 36% | M33: 36% | O33: =VLOOKUP($A$5,'RECAP DIRCOM'!$G$6:$DG$312,95,FALSE) -> 0
B34: PNB Crédit MLT + Crédit Bail | C34: 2% | E34: ='RECAP DIRCOM'!BR4 -> 4.3 | G34: =VLOOKUP($A$5,'RECAP DIRCOM'!$G$6:$DG$312,97,FALSE) -> 0.0 | I34: =VLOOKUP($A$5,'RECAP DIRCOM'!$G$6:$DG$312,98,FALSE) -> 0% | K34: =VLOOKUP($A$5,'RECAP DIRCOM AN'!$G$6:$FS$312,98,FALSE) -> 0% | M34: 0% | O34: =VLOOKUP($A$5,'RECAP DIRCOM'!$G$6:$DG$312,99,FALSE) -> 0
A36: CRITERE IARD PREVOYANCE | C36: 15% | O36: =VLOOKUP($A$5,'RECAP DIRCOM'!$G$6:$DG$312,119,FALSE) -> 
B37: PNB Ventes nettes IARD | C37: 9% | E37: ='RECAP DIRCOM'!CC4 -> 50.0 | G37: =VLOOKUP($A$5,'RECAP DIRCOM'!$G$6:$DG$312,110,FALSE) ->  | I37: =VLOOKUP($A$5,'RECAP DIRCOM'!$G$6:$DG$312,111,FALSE) ->  | K37: =VLOOKUP($A$5,'RECAP DIRCOM AN'!$G$6:$FS$312,111,FALSE) -> 69% | M37: =+K37-I37 ->  | O37: =VLOOKUP($A$5,'RECAP DIRCOM'!$G$6:$DG$312,112,FALSE) -> 
B38: PNB Ventes nettes Prévoyance | C38: 6% | E38: ='RECAP DIRCOM'!CG4 -> 9.3 | G38: =VLOOKUP($A$5,'RECAP DIRCOM'!$G$6:$DG$312,114,FALSE) ->  | I38: =VLOOKUP($A$5,'RECAP DIRCOM'!$G$6:$DG$312,115,FALSE) ->  | K38: =VLOOKUP($A$5,'RECAP DIRCOM AN'!$G$6:$FS$312,115,FALSE) -> 42% | M38: =+K38-I38 ->  | O38: =VLOOKUP($A$5,'RECAP DIRCOM'!$G$6:$DG$312,116,FALSE) -> 
A40: CRITERE ACCELERATEURS PNB | C40: 15% | O40: =VLOOKUP($A$5,'RECAP DIRCOM'!$G$6:$DG$312,144,FALSE) -> 
B41: PNB Ventes brutes SED Finalisées | C41: 6% | E41: ='RECAP DIRCOM'!#REF! ->  | G41: =VLOOKUP($A$5,'RECAP DIRCOM'!$G$6:$DG$312,127,FALSE) ->  | I41: =VLOOKUP($A$5,'RECAP DIRCOM'!$G$6:$DG$312,128,FALSE) ->  | K41: =VLOOKUP($A$5,'RECAP DIRCOM AN'!$G$6:$FS$312,128,FALSE) -> 11% | M41: =+K41-I41 ->  | O41: =VLOOKUP($A$5,'RECAP DIRCOM'!$G$6:$DG$312,129,FALSE) -> 
B42: PNB clients équipés E documents | C42: 3% | E42: ='RECAP DIRCOM'!#REF! ->  | G42: =VLOOKUP($A$5,'RECAP DIRCOM'!$G$6:$DG$312,131,FALSE) ->  | I42: =VLOOKUP($A$5,'RECAP DIRCOM'!$G$6:$DG$312,132,FALSE) ->  | K42: =VLOOKUP($A$5,'RECAP DIRCOM AN'!$G$6:$FS$312,132,FALSE) -> 0% | M42: =+K42-I42 ->  | O42: =VLOOKUP($A$5,'RECAP DIRCOM'!$G$6:$DG$312,133,FALSE) -> 
B43: Economie opt'in | C43: 3% | E43: ='RECAP DIRCOM'!#REF! ->  | G43: =VLOOKUP($A$5,'RECAP DIRCOM'!$G$6:$DG$312,135,FALSE) ->  | I43: =VLOOKUP($A$5,'RECAP DIRCOM'!$G$6:$DG$312,136,FALSE) ->  | K43: =VLOOKUP($A$5,'RECAP DIRCOM AN'!$G$6:$FS$312,136,FALSE) -> 2% | M43: =+K43-I43 ->  | O43: =VLOOKUP($A$5,'RECAP DIRCOM'!$G$6:$DG$312,137,FALSE) -> 
B44: Remises commerciales | C44: 3% | E44: ='RECAP DIRCOM'!#REF! ->  | G44: =VLOOKUP($A$5,'RECAP DIRCOM'!$G$6:$DG$312,139,FALSE) ->  | I44: =VLOOKUP($A$5,'RECAP DIRCOM'!$G$6:$DG$312,140,FALSE) ->  | K44: =VLOOKUP($A$5,'RECAP DIRCOM AN'!$G$6:$FS$312,140,FALSE) -> 17% | M44: =+K44-I44 ->  | O44: =VLOOKUP($A$5,'RECAP DIRCOM'!$G$6:$DG$312,141,FALSE) -> 
A46: CRITERE Qualité-Satisfaction Clients | C46: 15% | O46: =VLOOKUP($A$5,'RECAP DIRCOM'!$G$6:$DG$312,159,FALSE) -> 
B47: Objectifs NPS* | C47: 8% | E47: ='RECAP DIRCOM'!K4 -> 17 | G47: =VLOOKUP($A$5,'RECAP DIRCOM'!$G$6:$DG$312,151,FALSE) ->  | I47: =VLOOKUP($A$5,'RECAP DIRCOM'!$G$6:$DG$312,152,FALSE) ->  | K47: =VLOOKUP($A$5,'RECAP DIRCOM AN'!$G$6:$FS$312,152,FALSE) -> 150% | M47: =+K47-I47 ->  | O47: =VLOOKUP($A$5,'RECAP DIRCOM'!$G$6:$DG$312,153,FALSE) -> 
B48: Enquête Qualité Haute Définition | C48: 7% | E48: ='RECAP DIRCOM'!N4 -> 64% | G48: =VLOOKUP($A$5,'RECAP DIRCOM'!$G$6:$DG$312,154,FALSE) ->  | I48: =VLOOKUP($A$5,'RECAP DIRCOM'!$G$6:$DG$312,155,FALSE) ->  | K48: =VLOOKUP($A$5,'RECAP DIRCOM AN'!$G$6:$FS$312,155,FALSE) -> 8% | M48: =+K48-I48 ->  | O48: =VLOOKUP($A$5,'RECAP DIRCOM'!$G$6:$DG$312,156,FALSE) -> 

Sheet DC_TOTAL
B1: Accueil | D1: BAROMETRE BDD - DIRECTIONS REGIONALES
D2: TOTAL GENERAL
D3: =ACCUEIL!F7 -> 2021-03-07
D7: TOTAL GENERAL | G7: Total Satisfaction Clients | J7: Total Bancarisation | M7: Total Epargne | P7: Total IARD Prévoyance | S7: Total Crédits
E8: coef | F8: 100% | H8: coef | I8: =DC_SATISFACTION!L8 -> 20% | K8: coef | L8: =DC_BANCA!V8 -> 20% | N8: coef | O8: =DC_EPARGNE!N8 -> 20% | Q8: coef | R8: =DC_IARD!N8 -> 20% | T8: coef | U8: =DC_CREDIT!R8 -> 20%
A9: eds | B9: Direction | C9: ="ETP perf "&DATEMAJ!$C$28 -> ETP perf 31-janv | D9: Moyenne ecart au 1er | E9: % Ecart au 1er | F9: Rang CEGEE | G9: Moyenne ecart au 1er | H9: % Ecart au 1er | I9: Rang CEGEE | J9: Moyenne ecart au 1er | K9: % Ecart au 1er | L9: Rang CEGEE | M9: Moyenne ecart au 1er | N9: % Ecart au 1er | O9: Rang CEGEE | P9: Moyenne ecart au 1er | Q9: % Ecart au 1er | R9: Rang CEGEE | S9: Moyenne ecart au 1er | T9: % Ecart au 1er | U9: Rang CEGEE
A10: 50 | B10: Meurthe et Moselle Meuse | C10: 249 | D10: 9% | E10: 0% | F10: 1 | G10: 23% | H10: 21% | I10: 4 | J10: 15% | K10: 0% | L10: 1 | M10: 26% | N10: 22% | O10: 4 | P10: 0% | Q10: 0% | R10: 1 | S10: 2% | T10: 0% | U10: 1
A11: 262 | B11: Vosges | C11: 137 | D11: 15% | E11: 6% | F11: 2 | G11: 2% | H11: 0% | I11: 1 | J11: 35% | K11: 20% | L11: 6 | M11: 15% | N11: 12% | O11: 2 | P11: 9% | Q11: 9% | R11: 3 | S11: 34% | T11: 32% | U11: 6
A12: 264 | B12: Bas-Rhin | C12: 268 | D12: 15% | E12: 6% | F12: 3 | G12: 38% | H12: 36% | I12: 6 | J12: 17% | K12: 2% | L12: 2 | M12: 3% | N12: 0% | O12: 1 | P12: 4% | Q12: 4% | R12: 2 | S12: 33% | T12: 31% | U12: 4
A13: 30 | B13: Moselle | C13: 280 | D13: 20% | E13: 12% | F13: 4 | G13: 31% | H13: 30% | I13: 5 | J13: 28% | K13: 14% | L13: 5 | M13: 22% | N13: 19% | O13: 3 | P13: 15% | Q13: 15% | R13: 4 | S13: 26% | T13: 24% | U13: 3
A14: 110 | B14: Marne-Ardennes | C14: 232 | D14: 21% | E14: 13% | F14: 5 | G14: 15% | H14: 13% | I14: 2 | J14: 19% | K14: 4% | L14: 3 | M14: 43% | N14: 40% | O14: 6 | P14: 35% | Q14: 35% | R14: 7 | S14: 16% | T14: 14% | U14: 2
A15: 160 | B15: Aube Haute Marne | C15: 132 | D15: 28% | E15: 19% | F15: 6 | G15: 19% | H15: 17% | I15: 3 | J15: 26% | K15: 12% | L15: 4 | M15: 54% | N15: 51% | O15: 7 | P15: 29% | Q15: 29% | R15: 5 | S15: 33% | T15: 31% | U15: 5
A16: 80 | B16: Haut-Rhin | C16: 162 | D16: 42% | E16: 33% | F16: 7 | G16: 53% | H16: 51% | I16: 7 | J16: 57% | K16: 42% | L16: 7 | M16: 40% | N16: 36% | O16: 5 | P16: 29% | Q16: 29% | R16: 6 | S16: 50% | T16: 48% | U16: 7
B17: Total CEGEE Directions Régionales | C17: =SUM(C10:C16) -> 1460

Sheet DC_BANCA
B1: Accueil | D1: BAROMETRE BDD - DIRECTIONS REGIONALES
D2: BANCARISATION
D3: =ACCUEIL!F7 -> 2021-03-07
D7: Ventes Nettes produits pondérés | H7: Ventes sur client non détenteur de l’univers | L7: Mobilité Macron | P7: Remises commerciales | T7: Total Bancarisation
D8: =DATEMAJ!C8 -> au 07/03 | F8: coef | G8: ='RECAP DIRCOM'!AA4 -> 10% | H8: =DATEMAJ!C9 -> au 07/03 | J8: coef | K8: ='RECAP DIRCOM'!AE4 -> 4% | L8: =DATEMAJ!C10 -> au 07/03 | N8: coef | O8: ='RECAP DIRCOM'!AI4 -> 3% | P8: =DATEMAJ!C11 -> au 31/01 | R8: coef | S8: ='RECAP DIRCOM'!AM4 -> 3% | U8: coef | V8: ='RECAP DIRCOM'!AP4 -> 20%
B9: Direction | C9: ="ETP perf "&DATEMAJ!$C$28 -> ETP perf 31-janv | D9: VN | E9: VN / ETP | F9: % Ecart au 1er | G9: Rang | H9: VB | I9: VB / ETP | J9: % Ecart au 1er | K9: Rang | L9: Nb | M9: Nb / ETP | N9: % Ecart au 1er | O9: Rang | P9: Montant | Q9: Montant / ETP | R9: % Ecart au 1er | S9: Rang | T9: Moyenne ecart au 1er | U9: % Ecart au 1er | V9: Rang CEGEE
A10: 50 | B10: Aube Haute Marne | C10: =VLOOKUP($A10,'RECAP DIRCOM'!$G$6:$DC$12,3,FALSE) -> 132 | D10: =VLOOKUP($A10,'RECAP DIRCOM'!$G$6:$DC$12,18,FALSE) -> 1,293 | E10: =VLOOKUP($A10,'RECAP DIRCOM'!$G$6:$DC$12,19,FALSE) -> 9.82 | F10: =VLOOKUP($A10,'RECAP DIRCOM'!$G$6:$DC$12,20,FALSE) -> 27% | G10: =VLOOKUP($A10,'RECAP DIRCOM'!$G$6:$DC$12,21,FALSE) -> 5 | H10: =VLOOKUP($A10,'RECAP DIRCOM'!$G$6:$DC$12,22,FALSE) -> 1,043 | I10: =VLOOKUP($A10,'RECAP DIRCOM'!$G$6:$DC$12,23,FALSE) -> 7.92 | J10: =VLOOKUP($A10,'RECAP DIRCOM'!$G$6:$DC$12,24,FALSE) -> 21% | K10: =VLOOKUP($A10,'RECAP DIRCOM'!$G$6:$DC$12,25,FALSE) -> 4 | L10: =VLOOKUP($A10,'RECAP DIRCOM'!$G$6:$DC$12,26,FALSE) -> 147 | M10: =VLOOKUP($A10,'RECAP DIRCOM'!$G$6:$DC$12,27,FALSE) -> 1.12 | N10: =VLOOKUP($A10,'RECAP DIRCOM'!$G$6:$DC$12,28,FALSE) -> 59% | O10: =VLOOKUP($A10,'RECAP DIRCOM'!$G$6:$DC$12,29,FALSE) -> 5 | P10: =VLOOKUP($A10,'RECAP DIRCOM'!$G$6:$DC$12,30,FALSE) -> -32 | Q10: =VLOOKUP($A10,'RECAP DIRCOM'!$G$6:$DC$12,31,FALSE) -> -0.25 | R10: =VLOOKUP($A10,'RECAP DIRCOM'!$G$6:$DC$12,32,FALSE) -> 0% | S10: =VLOOKUP($A10,'RECAP DIRCOM'!$G$6:$DC$12,33,FALSE) -> 1 | T10: =VLOOKUP($A10,'RECAP DIRCOM'!$G$6:$DC$12,34,FALSE) -> 26% | U10: =VLOOKUP($A10,'RECAP DIRCOM'!$G$6:$DC$12,35,FALSE) -> 12% | V10: =VLOOKUP($A10,'RECAP DIRCOM'!$G$6:$DC$12,36,FALSE) -> 4
A11: 262 | B11: Bas-Rhin | C11: =VLOOKUP($A11,'RECAP DIRCOM'!$G$6:$DC$12,3,FALSE) -> 268 | D11: =VLOOKUP($A11,'RECAP DIRCOM'!$G$6:$DC$12,18,FALSE) -> 3,598 | E11: =VLOOKUP($A11,'RECAP DIRCOM'!$G$6:$DC$12,19,FALSE) -> 13.41 | F11: =VLOOKUP($A11,'RECAP DIRCOM'!$G$6:$DC$12,20,FALSE) -> 0% | G11: =VLOOKUP($A11,'RECAP DIRCOM'!$G$6:$DC$12,21,FALSE) -> 1 | H11: =VLOOKUP($A11,'RECAP DIRCOM'!$G$6:$DC$12,22,FALSE) -> 2,257 | I11: =VLOOKUP($A11,'RECAP DIRCOM'!$G$6:$DC$12,23,FALSE) -> 8.41 | J11: =VLOOKUP($A11,'RECAP DIRCOM'!$G$6:$DC$12,24,FALSE) -> 16% | K11: =VLOOKUP($A11,'RECAP DIRCOM'!$G$6:$DC$12,25,FALSE) -> 3 | L11: =VLOOKUP($A11,'RECAP DIRCOM'!$G$6:$DC$12,26,FALSE) -> 383 | M11: =VLOOKUP($A11,'RECAP DIRCOM'!$G$6:$DC$12,27,FALSE) -> 1.43 | N11: =VLOOKUP($A11,'RECAP DIRCOM'!$G$6:$DC$12,28,FALSE) -> 48% | O11: =VLOOKUP($A11,'RECAP DIRCOM'!$G$6:$DC$12,29,FALSE) -> 3 | P11: =VLOOKUP($A11,'RECAP DIRCOM'!$G$6:$DC$12,30,FALSE) -> -94 | Q11: =VLOOKUP($A11,'RECAP DIRCOM'!$G$6:$DC$12,31,FALSE) -> -0.35 | R11: =VLOOKUP($A11,'RECAP DIRCOM'!$G$6:$DC$12,32,FALSE) -> 43% | S11: =VLOOKUP($A11,'RECAP DIRCOM'!$G$6:$DC$12,33,FALSE) -> 7 | T11: =VLOOKUP($A11,'RECAP DIRCOM'!$G$6:$DC$12,34,FALSE) -> 17% | U11: =VLOOKUP($A11,'RECAP DIRCOM'!$G$6:$DC$12,35,FALSE) -> 2% | V11: =VLOOKUP($A11,'RECAP DIRCOM'!$G$6:$DC$12,36,FALSE) -> 2
A12: 264 | B12: Haut-Rhin | C12: =VLOOKUP($A12,'RECAP DIRCOM'!$G$6:$DC$12,3,FALSE) -> 162 | D12: =VLOOKUP($A12,'RECAP DIRCOM'!$G$6:$DC$12,18,FALSE) -> 644 | E12: =VLOOKUP($A12,'RECAP DIRCOM'!$G$6:$DC$12,19,FALSE) -> 3.98 | F12: =VLOOKUP($A12,'RECAP DIRCOM'!$G$6:$DC$12,20,FALSE) -> 70% | G12: =VLOOKUP($A12,'RECAP DIRCOM'!$G$6:$DC$12,21,FALSE) -> 7 | H12: =VLOOKUP($A12,'RECAP DIRCOM'!$G$6:$DC$12,22,FALSE) -> 994 | I12: =VLOOKUP($A12,'RECAP DIRCOM'!$G$6:$DC$12,23,FALSE) -> 6.15 | J12: =VLOOKUP($A12,'RECAP DIRCOM'!$G$6:$DC$12,24,FALSE) -> 39% | K12: =VLOOKUP($A12,'RECAP DIRCOM'!$G$6:$DC$12,25,FALSE) -> 7 | L12: =VLOOKUP($A12,'RECAP DIRCOM'!$G$6:$DC$12,26,FALSE) -> 90 | M12: =VLOOKUP($A12,'RECAP DIRCOM'!$G$6:$DC$12,27,FALSE) -> 0.56 | N12: =VLOOKUP($A12,'RECAP DIRCOM'!$G$6:$DC$12,28,FALSE) -> 80% | O12: =VLOOKUP($A12,'RECAP DIRCOM'!$G$6:$DC$12,29,FALSE) -> 7 | P12: =VLOOKUP($A12,'RECAP DIRCOM'!$G$6:$DC$12,30,FALSE) -> -45 | Q12: =VLOOKUP($A12,'RECAP DIRCOM'!$G$6:$DC$12,31,FALSE) -> -0.28 | R12: =VLOOKUP($A12,'RECAP DIRCOM'!$G$6:$DC$12,32,FALSE) -> 13% | S12: =VLOOKUP($A12,'RECAP DIRCOM'!$G$6:$DC$12,33,FALSE) -> 3 | T12: =VLOOKUP($A12,'RECAP DIRCOM'!$G$6:$DC$12,34,FALSE) -> 57% | U12: =VLOOKUP($A12,'RECAP DIRCOM'!$G$6:$DC$12,35,FALSE) -> 42% | V12: =VLOOKUP($A12,'RECAP DIRCOM'!$G$6:$DC$12,36,FALSE) -> 7
A13: 30 | B13: Marne-Ardennes | C13: =VLOOKUP($A13,'RECAP DIRCOM'!$G$6:$DC$12,3,FALSE) -> 232 | D13: =VLOOKUP($A13,'RECAP DIRCOM'!$G$6:$DC$12,18,FALSE) -> 2,361 | E13: =VLOOKUP($A13,'RECAP DIRCOM'!$G$6:$DC$12,19,FALSE) -> 10.17 | F13: =VLOOKUP($A13,'RECAP DIRCOM'!$G$6:$DC$12,20,FALSE) -> 24% | G13: =VLOOKUP($A13,'RECAP DIRCOM'!$G$6:$DC$12,21,FALSE) -> 3 | H13: =VLOOKUP($A13,'RECAP DIRCOM'!$G$6:$DC$12,22,FALSE) -> 2,119 | I13: =VLOOKUP($A13,'RECAP DIRCOM'!$G$6:$DC$12,23,FALSE) -> 9.13 | J13: =VLOOKUP($A13,'RECAP DIRCOM'!$G$6:$DC$12,24,FALSE) -> 9% | K13: =VLOOKUP($A13,'RECAP DIRCOM'!$G$6:$DC$12,25,FALSE) -> 2 | L13: =VLOOKUP($A13,'RECAP DIRCOM'!$G$6:$DC$12,26,FALSE) -> 569 | M13: =VLOOKUP($A13,'RECAP DIRCOM'!$G$6:$DC$12,27,FALSE) -> 2.45 | N13: =VLOOKUP($A13,'RECAP DIRCOM'!$G$6:$DC$12,28,FALSE) -> 10% | O13: =VLOOKUP($A13,'RECAP DIRCOM'!$G$6:$DC$12,29,FALSE) -> 2 | P13: =VLOOKUP($A13,'RECAP DIRCOM'!$G$6:$DC$12,30,FALSE) -> -72 | Q13: =VLOOKUP($A13,'RECAP DIRCOM'!$G$6:$DC$12,31,FALSE) -> -0.31 | R13: =VLOOKUP($A13,'RECAP DIRCOM'!$G$6:$DC$12,32,FALSE) -> 25% | S13: =VLOOKUP($A13,'RECAP DIRCOM'!$G$6:$DC$12,33,FALSE) -> 6 | T13: =VLOOKUP($A13,'RECAP DIRCOM'!$G$6:$DC$12,34,FALSE) -> 19% | U13: =VLOOKUP($A13,'RECAP DIRCOM'!$G$6:$DC$12,35,FALSE) -> 4% | V13: =VLOOKUP($A13,'RECAP DIRCOM'!$G$6:$DC$12,36,FALSE) -> 3
A14: 110 | B14: Meurthe et Moselle Meuse | C14: =VLOOKUP($A14,'RECAP DIRCOM'!$G$6:$DC$12,3,FALSE) -> 249 | D14: =VLOOKUP($A14,'RECAP DIRCOM'!$G$6:$DC$12,18,FALSE) -> 2,591 | E14: =VLOOKUP($A14,'RECAP DIRCOM'!$G$6:$DC$12,19,FALSE) -> 10.40 | F14: =VLOOKUP($A14,'RECAP DIRCOM'!$G$6:$DC$12,20,FALSE) -> 22% | G14: =VLOOKUP($A14,'RECAP DIRCOM'!$G$6:$DC$12,21,FALSE) -> 2 | H14: =VLOOKUP($A14,'RECAP DIRCOM'!$G$6:$DC$12,22,FALSE) -> 2,505 | I14: =VLOOKUP($A14,'RECAP DIRCOM'!$G$6:$DC$12,23,FALSE) -> 10.05 | J14: =VLOOKUP($A14,'RECAP DIRCOM'!$G$6:$DC$12,24,FALSE) -> 0% | K14: =VLOOKUP($A14,'RECAP DIRCOM'!$G$6:$DC$12,25,FALSE) -> 1 | L14: =VLOOKUP($A14,'RECAP DIRCOM'!$G$6:$DC$12,26,FALSE) -> 678 | M14: =VLOOKUP($A14,'RECAP DIRCOM'!$G$6:$DC$12,27,FALSE) -> 2.72 | N14: =VLOOKUP($A14,'RECAP DIRCOM'!$G$6:$DC$12,28,FALSE) -> 0% | O14: =VLOOKUP($A14,'RECAP DIRCOM'!$G$6:$DC$12,29,FALSE) -> 1 | P14: =VLOOKUP($A14,'RECAP DIRCOM'!$G$6:$DC$12,30,FALSE) -> -76 | Q14: =VLOOKUP($A14,'RECAP DIRCOM'!$G$6:$DC$12,31,FALSE) -> -0.30 | R14: =VLOOKUP($A14,'RECAP DIRCOM'!$G$6:$DC$12,32,FALSE) -> 24% | S14: =VLOOKUP($A14,'RECAP DIRCOM'!$G$6:$DC$12,33,FALSE) -> 5 | T14: =VLOOKUP($A14,'RECAP DIRCOM'!$G$6:$DC$12,34,FALSE) -> 15% | U14: =VLOOKUP($A14,'RECAP DIRCOM'!$G$6:$DC$12,35,FALSE) -> 0% | V14: =VLOOKUP($A14,'RECAP DIRCOM'!$G$6:$DC$12,36,FALSE) -> 1
A15: 160 | B15: Moselle | C15: =VLOOKUP($A15,'RECAP DIRCOM'!$G$6:$DC$12,3,FALSE) -> 280 | D15: =VLOOKUP($A15,'RECAP DIRCOM'!$G$6:$DC$12,18,FALSE) -> 2,775 | E15: =VLOOKUP($A15,'RECAP DIRCOM'!$G$6:$DC$12,19,FALSE) -> 9.93 | F15: =VLOOKUP($A15,'RECAP DIRCOM'!$G$6:$DC$12,20,FALSE) -> 26% | G15: =VLOOKUP($A15,'RECAP DIRCOM'!$G$6:$DC$12,21,FALSE) -> 4 | H15: =VLOOKUP($A15,'RECAP DIRCOM'!$G$6:$DC$12,22,FALSE) -> 2,182 | I15: =VLOOKUP($A15,'RECAP DIRCOM'!$G$6:$DC$12,23,FALSE) -> 7.80 | J15: =VLOOKUP($A15,'RECAP DIRCOM'!$G$6:$DC$12,24,FALSE) -> 22% | K15: =VLOOKUP($A15,'RECAP DIRCOM'!$G$6:$DC$12,25,FALSE) -> 5 | L15: =VLOOKUP($A15,'RECAP DIRCOM'!$G$6:$DC$12,26,FALSE) -> 288 | M15: =VLOOKUP($A15,'RECAP DIRCOM'!$G$6:$DC$12,27,FALSE) -> 1.03 | N15: =VLOOKUP($A15,'RECAP DIRCOM'!$G$6:$DC$12,28,FALSE) -> 62% | O15: =VLOOKUP($A15,'RECAP DIRCOM'!$G$6:$DC$12,29,FALSE) -> 6 | P15: =VLOOKUP($A15,'RECAP DIRCOM'!$G$6:$DC$12,30,FALSE) -> -76 | Q15: =VLOOKUP($A15,'RECAP DIRCOM'!$G$6:$DC$12,31,FALSE) -> -0.27 | R15: =VLOOKUP($A15,'RECAP DIRCOM'!$G$6:$DC$12,32,FALSE) -> 10% | S15: =VLOOKUP($A15,'RECAP DIRCOM'!$G$6:$DC$12,33,FALSE) -> 2 | T15: =VLOOKUP($A15,'RECAP DIRCOM'!$G$6:$DC$12,34,FALSE) -> 28% | U15: =VLOOKUP($A15,'RECAP DIRCOM'!$G$6:$DC$12,35,FALSE) -> 14% | V15: =VLOOKUP($A15,'RECAP DIRCOM'!$G$6:$DC$12,36,FALSE) -> 5
A16: 80 | B16: Vosges | C16: =VLOOKUP($A16,'RECAP DIRCOM'!$G$6:$DC$12,3,FALSE) -> 137 | D16: =VLOOKUP($A16,'RECAP DIRCOM'!$G$6:$DC$12,18,FALSE) -> 1,162 | E16: =VLOOKUP($A16,'RECAP DIRCOM'!$G$6:$DC$12,19,FALSE) -> 8.47 | F16: =VLOOKUP($A16,'RECAP DIRCOM'!$G$6:$DC$12,20,FALSE) -> 37% | G16: =VLOOKUP($A16,'RECAP DIRCOM'!$G$6:$DC$12,21,FALSE) -> 6 | H16: =VLOOKUP($A16,'RECAP DIRCOM'!$G$6:$DC$12,22,FALSE) -> 1,032 | I16: =VLOOKUP($A16,'RECAP DIRCOM'!$G$6:$DC$12,23,FALSE) -> 7.52 | J16: =VLOOKUP($A16,'RECAP DIRCOM'!$G$6:$DC$12,24,FALSE) -> 25% | K16: =VLOOKUP($A16,'RECAP DIRCOM'!$G$6:$DC$12,25,FALSE) -> 6 | L16: =VLOOKUP($A16,'RECAP DIRCOM'!$G$6:$DC$12,26,FALSE) -> 160 | M16: =VLOOKUP($A16,'RECAP DIRCOM'!$G$6:$DC$12,27,FALSE) -> 1.17 | N16: =VLOOKUP($A16,'RECAP DIRCOM'!$G$6:$DC$12,28,FALSE) -> 57% | O16: =VLOOKUP($A16,'RECAP DIRCOM'!$G$6:$DC$12,29,FALSE) -> 4 | P16: =VLOOKUP($A16,'RECAP DIRCOM'!$G$6:$DC$12,30,FALSE) -> -41 | Q16: =VLOOKUP($A16,'RECAP DIRCOM'!$G$6:$DC$12,31,FALSE) -> -0.30 | R16: =VLOOKUP($A16,'RECAP DIRCOM'!$G$6:$DC$12,32,FALSE) -> 22% | S16: =VLOOKUP($A16,'RECAP DIRCOM'!$G$6:$DC$12,33,FALSE) -> 4 | T16: =VLOOKUP($A16,'RECAP DIRCOM'!$G$6:$DC$12,34,FALSE) -> 35% | U16: =VLOOKUP($A16,'RECAP DIRCOM'!$G$6:$DC$12,35,FALSE) -> 20% | V16: =VLOOKUP($A16,'RECAP DIRCOM'!$G$6:$DC$12,36,FALSE) -> 6
B17: Total CEGEE Directions Régionales | C17: =SUM(C10:C16) -> 1460

Sheet DC_EPARGNE
B1: Accueil | D1: BAROMETRE BDD - DIRECTIONS REGIONALES
D2: EPARGNE
D3: =ACCUEIL!F7 -> 2021-03-07
D7: Excédent Epargne y/c DAV pondéré | H7: Ventes sur client non détenteur de l’univers | L7: Total Epargne
D8: =DATEMAJ!C14 -> au 07/03 | F8: coef | G8: ='RECAP DIRCOM'!AX4 -> 14% | H8: =DATEMAJ!C15 -> au 07/03 | J8: coef | K8: ='RECAP DIRCOM'!BB4 -> 6% | M8: coef | N8: ='RECAP DIRCOM'!BE4 -> 20%
B9: Direction | C9: ="ETP perf "&DATEMAJ!$C$28 -> ETP perf 31-janv | D9: Excédent | E9: Excédent / ETP | F9: % Ecart au 1er | G9: Rang | H9: VB | I9: VB / ETP | J9: % Ecart au 1er | K9: Rang | L9: Moyenne ecart au 1er | M9: % Ecart au 1er | N9: Rang CEGEE
A10: 50 | B10: Aube Haute Marne | C10: =VLOOKUP($A10,'RECAP DIRCOM'!$G$6:$DC$12,3,FALSE) -> 132 | D10: =VLOOKUP($A10,'RECAP DIRCOM'!$G$6:$DC$12,41,FALSE) -> 8,289 | E10: =VLOOKUP($A10,'RECAP DIRCOM'!$G$6:$DC$12,42,FALSE) -> 62.95 | F10: =VLOOKUP($A10,'RECAP DIRCOM'!$G$6:$DC$12,43,FALSE) -> 67% | G10: =VLOOKUP($A10,'RECAP DIRCOM'!$G$6:$DC$12,44,FALSE) -> 7 | H10: =VLOOKUP($A10,'RECAP DIRCOM'!$G$6:$DC$12,45,FALSE) -> 600 | I10: =VLOOKUP($A10,'RECAP DIRCOM'!$G$6:$DC$12,46,FALSE) -> 4.56 | J10: =VLOOKUP($A10,'RECAP DIRCOM'!$G$6:$DC$12,47,FALSE) -> 23% | K10: =VLOOKUP($A10,'RECAP DIRCOM'!$G$6:$DC$12,48,FALSE) -> 6 | L10: =VLOOKUP($A10,'RECAP DIRCOM'!$G$6:$DC$12,49,FALSE) -> 54% | M10: =VLOOKUP($A10,'RECAP DIRCOM'!$G$6:$DC$12,50,FALSE) -> 51% | N10: =VLOOKUP($A10,'RECAP DIRCOM'!$G$6:$DC$12,51,FALSE) -> 7
A11: 262 | B11: Bas-Rhin | C11: =VLOOKUP($A11,'RECAP DIRCOM'!$G$6:$DC$12,3,FALSE) -> 268 | D11: =VLOOKUP($A11,'RECAP DIRCOM'!$G$6:$DC$12,41,FALSE) -> 51,791 | E11: =VLOOKUP($A11,'RECAP DIRCOM'!$G$6:$DC$12,42,FALSE) -> 193.08 | F11: =VLOOKUP($A11,'RECAP DIRCOM'!$G$6:$DC$12,43,FALSE) -> 0% | G11: =VLOOKUP($A11,'RECAP DIRCOM'!$G$6:$DC$12,44,FALSE) -> 1 | H11: =VLOOKUP($A11,'RECAP DIRCOM'!$G$6:$DC$12,45,FALSE) -> 1,424 | I11: =VLOOKUP($A11,'RECAP DIRCOM'!$G$6:$DC$12,46,FALSE) -> 5.31 | J11: =VLOOKUP($A11,'RECAP DIRCOM'!$G$6:$DC$12,47,FALSE) -> 11% | K11: =VLOOKUP($A11,'RECAP DIRCOM'!$G$6:$DC$12,48,FALSE) -> 2 | L11: =VLOOKUP($A11,'RECAP DIRCOM'!$G$6:$DC$12,49,FALSE) -> 3% | M11: =VLOOKUP($A11,'RECAP DIRCOM'!$G$6:$DC$12,50,FALSE) -> 0% | N11: =VLOOKUP($A11,'RECAP DIRCOM'!$G$6:$DC$12,51,FALSE) -> 1
A12: 264 | B12: Haut-Rhin | C12: =VLOOKUP($A12,'RECAP DIRCOM'!$G$6:$DC$12,3,FALSE) -> 162 | D12: =VLOOKUP($A12,'RECAP DIRCOM'!$G$6:$DC$12,41,FALSE) -> 16,410 | E12: =VLOOKUP($A12,'RECAP DIRCOM'!$G$6:$DC$12,42,FALSE) -> 101.56 | F12: =VLOOKUP($A12,'RECAP DIRCOM'!$G$6:$DC$12,43,FALSE) -> 47% | G12: =VLOOKUP($A12,'RECAP DIRCOM'!$G$6:$DC$12,44,FALSE) -> 5 | H12: =VLOOKUP($A12,'RECAP DIRCOM'!$G$6:$DC$12,45,FALSE) -> 754 | I12: =VLOOKUP($A12,'RECAP DIRCOM'!$G$6:$DC$12,46,FALSE) -> 4.67 | J12: =VLOOKUP($A12,'RECAP DIRCOM'!$G$6:$DC$12,47,FALSE) -> 22% | K12: =VLOOKUP($A12,'RECAP DIRCOM'!$G$6:$DC$12,48,FALSE) -> 5 | L12: =VLOOKUP($A12,'RECAP DIRCOM'!$G$6:$DC$12,49,FALSE) -> 40% | M12: =VLOOKUP($A12,'RECAP DIRCOM'!$G$6:$DC$12,50,FALSE) -> 36% | N12: =VLOOKUP($A12,'RECAP DIRCOM'!$G$6:$DC$12,51,FALSE) -> 5
A13: 30 | B13: Marne-Ardennes | C13: =VLOOKUP($A13,'RECAP DIRCOM'!$G$6:$DC$12,3,FALSE) -> 232 | D13: =VLOOKUP($A13,'RECAP DIRCOM'!$G$6:$DC$12,41,FALSE) -> 17,332 | E13: =VLOOKUP($A13,'RECAP DIRCOM'!$G$6:$DC$12,42,FALSE) -> 74.66 | F13: =VLOOKUP($A13,'RECAP DIRCOM'!$G$6:$DC$12,43,FALSE) -> 61% | G13: =VLOOKUP($A13,'RECAP DIRCOM'!$G$6:$DC$12,44,FALSE) -> 6 | H13: =VLOOKUP($A13,'RECAP DIRCOM'!$G$6:$DC$12,45,FALSE) -> 1,382 | I13: =VLOOKUP($A13,'RECAP DIRCOM'!$G$6:$DC$12,46,FALSE) -> 5.95 | J13: =VLOOKUP($A13,'RECAP DIRCOM'!$G$6:$DC$12,47,FALSE) -> 0% | K13: =VLOOKUP($A13,'RECAP DIRCOM'!$G$6:$DC$12,48,FALSE) -> 1 | L13: =VLOOKUP($A13,'RECAP DIRCOM'!$G$6:$DC$12,49,FALSE) -> 43% | M13: =VLOOKUP($A13,'RECAP DIRCOM'!$G$6:$DC$12,50,FALSE) -> 40% | N13: =VLOOKUP($A13,'RECAP DIRCOM'!$G$6:$DC$12,51,FALSE) -> 6
A14: 110 | B14: Meurthe et Moselle Meuse | C14: =VLOOKUP($A14,'RECAP DIRCOM'!$G$6:$DC$12,3,FALSE) -> 249 | D14: =VLOOKUP($A14,'RECAP DIRCOM'!$G$6:$DC$12,41,FALSE) -> 33,073 | E14: =VLOOKUP($A14,'RECAP DIRCOM'!$G$6:$DC$12,42,FALSE) -> 132.68 | F14: =VLOOKUP($A14,'RECAP DIRCOM'!$G$6:$DC$12,43,FALSE) -> 31% | G14: =VLOOKUP($A14,'RECAP DIRCOM'!$G$6:$DC$12,44,FALSE) -> 4 | H14: =VLOOKUP($A14,'RECAP DIRCOM'!$G$6:$DC$12,45,FALSE) -> 1,303 | I14: =VLOOKUP($A14,'RECAP DIRCOM'!$G$6:$DC$12,46,FALSE) -> 5.23 | J14: =VLOOKUP($A14,'RECAP DIRCOM'!$G$6:$DC$12,47,FALSE) -> 12% | K14: =VLOOKUP($A14,'RECAP DIRCOM'!$G$6:$DC$12,48,FALSE) -> 3 | L14: =VLOOKUP($A14,'RECAP DIRCOM'!$G$6:$DC$12,49,FALSE) -> 26% | M14: =VLOOKUP($A14,'RECAP DIRCOM'!$G$6:$DC$12,50,FALSE) -> 22% | N14: =VLOOKUP($A14,'RECAP DIRCOM'!$G$6:$DC$12,51,FALSE) -> 4
A15: 160 | B15: Moselle | C15: =VLOOKUP($A15,'RECAP DIRCOM'!$G$6:$DC$12,3,FALSE) -> 280 | D15: =VLOOKUP($A15,'RECAP DIRCOM'!$G$6:$DC$12,41,FALSE) -> 41,752 | E15: =VLOOKUP($A15,'RECAP DIRCOM'!$G$6:$DC$12,42,FALSE) -> 149.33 | F15: =VLOOKUP($A15,'RECAP DIRCOM'!$G$6:$DC$12,43,FALSE) -> 23% | G15: =VLOOKUP($A15,'RECAP DIRCOM'!$G$6:$DC$12,44,FALSE) -> 3 | H15: =VLOOKUP($A15,'RECAP DIRCOM'!$G$6:$DC$12,45,FALSE) -> 1,318 | I15: =VLOOKUP($A15,'RECAP DIRCOM'!$G$6:$DC$12,46,FALSE) -> 4.71 | J15: =VLOOKUP($A15,'RECAP DIRCOM'!$G$6:$DC$12,47,FALSE) -> 21% | K15: =VLOOKUP($A15,'RECAP DIRCOM'!$G$6:$DC$12,48,FALSE) -> 4 | L15: =VLOOKUP($A15,'RECAP DIRCOM'!$G$6:$DC$12,49,FALSE) -> 22% | M15: =VLOOKUP($A15,'RECAP DIRCOM'!$G$6:$DC$12,50,FALSE) -> 19% | N15: =VLOOKUP($A15,'RECAP DIRCOM'!$G$6:$DC$12,51,FALSE) -> 3
A16: 80 | B16: Vosges | C16: =VLOOKUP($A16,'RECAP DIRCOM'!$G$6:$DC$12,3,FALSE) -> 137 | D16: =VLOOKUP($A16,'RECAP DIRCOM'!$G$6:$DC$12,41,FALSE) -> 25,552 | E16: =VLOOKUP($A16,'RECAP DIRCOM'!$G$6:$DC$12,42,FALSE) -> 186.27 | F16: =VLOOKUP($A16,'RECAP DIRCOM'!$G$6:$DC$12,43,FALSE) -> 4% | G16: =VLOOKUP($A16,'RECAP DIRCOM'!$G$6:$DC$12,44,FALSE) -> 2 | H16: =VLOOKUP($A16,'RECAP DIRCOM'!$G$6:$DC$12,45,FALSE) -> 479 | I16: =VLOOKUP($A16,'RECAP DIRCOM'!$G$6:$DC$12,46,FALSE) -> 3.49 | J16: =VLOOKUP($A16,'RECAP DIRCOM'!$G$6:$DC$12,47,FALSE) -> 41% | K16: =VLOOKUP($A16,'RECAP DIRCOM'!$G$6:$DC$12,48,FALSE) -> 7 | L16: =VLOOKUP($A16,'RECAP DIRCOM'!$G$6:$DC$12,49,FALSE) -> 15% | M16: =VLOOKUP($A16,'RECAP DIRCOM'!$G$6:$DC$12,50,FALSE) -> 12% | N16: =VLOOKUP($A16,'RECAP DIRCOM'!$G$6:$DC$12,51,FALSE) -> 2
B17: Total CEGEE Directions Régionales | C17: =SUM(C10:C16) -> 1460

Sheet DC_CREDIT
B1: Accueil | D1: BAROMETRE BDD - DIRECTIONS REGIONALES
D2: CREDITS
D3: =ACCUEIL!F7 -> 2021-03-07
D7: Engagements et ventes accessoires pondérés Immo | H7: Engagements et ventes accessoires pondérés Conso | L7: Ventes sur client non détenteur de l’univers | P7: Total Crédits
D8: =DATEMAJ!C18 -> au 07/03 | F8: coef | G8: ='RECAP DIRCOM'!BM4 -> 8% | H8: =DATEMAJ!C19 -> au 07/03 | J8: coef | K8: ='RECAP DIRCOM'!BQ4 -> 6% | L8: =DATEMAJ!C20 -> au 07/03 | N8: coef | O8: ='RECAP DIRCOM'!BU4 -> 6% | Q8: coef | R8: ='RECAP DIRCOM'!BX4 -> 20%
B9: Direction | C9: ="ETP perf "&DATEMAJ!$C$28 -> ETP perf 31-janv | D9: PNB | E9: PNB / ETP | F9: % Ecart au 1er | G9: Rang | H9: PNB | I9: PNB / ETP | J9: % Ecart au 1er | K9: Rang | L9: VB | M9: VB / ETP | N9: % Ecart au 1er | O9: Rang | P9: Moyenne ecart au 1er | Q9: % Ecart au 1er | R9: Rang CEGEE
A10: 50 | B10: Aube Haute Marne | C10: =VLOOKUP($A10,'RECAP DIRCOM'!$G$6:$DC$12,3,FALSE) -> 132 | D10: =VLOOKUP($A10,'RECAP DIRCOM'!$G$6:$DC$12,56,FALSE) -> 2,667 | E10: =VLOOKUP($A10,'RECAP DIRCOM'!$G$6:$DC$12,57,FALSE) -> 20.25 | F10: =VLOOKUP($A10,'RECAP DIRCOM'!$G$6:$DC$12,58,FALSE) -> 58% | G10: =VLOOKUP($A10,'RECAP DIRCOM'!$G$6:$DC$12,59,FALSE) -> 6 | H10: =VLOOKUP($A10,'RECAP DIRCOM'!$G$6:$DC$12,60,FALSE) -> 1,681 | I10: =VLOOKUP($A10,'RECAP DIRCOM'!$G$6:$DC$12,61,FALSE) -> 12.77 | J10: =VLOOKUP($A10,'RECAP DIRCOM'!$G$6:$DC$12,62,FALSE) -> 2% | K10: =VLOOKUP($A10,'RECAP DIRCOM'!$G$6:$DC$12,63,FALSE) -> 2 | L10: =VLOOKUP($A10,'RECAP DIRCOM'!$G$6:$DC$12,64,FALSE) -> 385 | M10: =VLOOKUP($A10,'RECAP DIRCOM'!$G$6:$DC$12,65,FALSE) -> 2.92 | N10: =VLOOKUP($A10,'RECAP DIRCOM'!$G$6:$DC$12,66,FALSE) -> 32% | O10: =VLOOKUP($A10,'RECAP DIRCOM'!$G$6:$DC$12,67,FALSE) -> 5 | P10: =VLOOKUP($A10,'RECAP DIRCOM'!$G$6:$DC$12,68,FALSE) -> 33% | Q10: =VLOOKUP($A10,'RECAP DIRCOM'!$G$6:$DC$12,69,FALSE) -> 31% | R10: =VLOOKUP($A10,'RECAP DIRCOM'!$G$6:$DC$12,70,FALSE) -> 5
A11: 262 | B11: Bas-Rhin | C11: =VLOOKUP($A11,'RECAP DIRCOM'!$G$6:$DC$12,3,FALSE) -> 268 | D11: =VLOOKUP($A11,'RECAP DIRCOM'!$G$6:$DC$12,56,FALSE) -> 6,554 | E11: =VLOOKUP($A11,'RECAP DIRCOM'!$G$6:$DC$12,57,FALSE) -> 24.43 | F11: =VLOOKUP($A11,'RECAP DIRCOM'!$G$6:$DC$12,58,FALSE) -> 49% | G11: =VLOOKUP($A11,'RECAP DIRCOM'!$G$6:$DC$12,59,FALSE) -> 4 | H11: =VLOOKUP($A11,'RECAP DIRCOM'!$G$6:$DC$12,60,FALSE) -> 3,210 | I11: =VLOOKUP($A11,'RECAP DIRCOM'!$G$6:$DC$12,61,FALSE) -> 11.97 | J11: =VLOOKUP($A11,'RECAP DIRCOM'!$G$6:$DC$12,62,FALSE) -> 8% | K11: =VLOOKUP($A11,'RECAP DIRCOM'!$G$6:$DC$12,63,FALSE) -> 4 | L11: =VLOOKUP($A11,'RECAP DIRCOM'!$G$6:$DC$12,64,FALSE) -> 733 | M11: =VLOOKUP($A11,'RECAP DIRCOM'!$G$6:$DC$12,65,FALSE) -> 2.73 | N11: =VLOOKUP($A11,'RECAP DIRCOM'!$G$6:$DC$12,66,FALSE) -> 36% | O11: =VLOOKUP($A11,'RECAP DIRCOM'!$G$6:$DC$12,67,FALSE) -> 6 | P11: =VLOOKUP($A11,'RECAP DIRCOM'!$G$6:$DC$12,68,FALSE) -> 33% | Q11: =VLOOKUP($A11,'RECAP DIRCOM'!$G$6:$DC$12,69,FALSE) -> 31% | R11: =VLOOKUP($A11,'RECAP DIRCOM'!$G$6:$DC$12,70,FALSE) -> 4
A12: 264 | B12: Haut-Rhin | C12: =VLOOKUP($A12,'RECAP DIRCOM'!$G$6:$DC$12,3,FALSE) -> 162 | D12: =VLOOKUP($A12,'RECAP DIRCOM'!$G$6:$DC$12,56,FALSE) -> 1,896 | E12: =VLOOKUP($A12,'RECAP DIRCOM'!$G$6:$DC$12,57,FALSE) -> 11.74 | F12: =VLOOKUP($A12,'RECAP DIRCOM'!$G$6:$DC$12,58,FALSE) -> 76% | G12: =VLOOKUP($A12,'RECAP DIRCOM'!$G$6:$DC$12,59,FALSE) -> 7 | H12: =VLOOKUP($A12,'RECAP DIRCOM'!$G$6:$DC$12,60,FALSE) -> 1,808 | I12: =VLOOKUP($A12,'RECAP DIRCOM'!$G$6:$DC$12,61,FALSE) -> 11.19 | J12: =VLOOKUP($A12,'RECAP DIRCOM'!$G$6:$DC$12,62,FALSE) -> 14% | K12: =VLOOKUP($A12,'RECAP DIRCOM'!$G$6:$DC$12,63,FALSE) -> 5 | L12: =VLOOKUP($A12,'RECAP DIRCOM'!$G$6:$DC$12,64,FALSE) -> 325 | M12: =VLOOKUP($A12,'RECAP DIRCOM'!$G$6:$DC$12,65,FALSE) -> 2.01 | N12: =VLOOKUP($A12,'RECAP DIRCOM'!$G$6:$DC$12,66,FALSE) -> 53% | O12: =VLOOKUP($A12,'RECAP DIRCOM'!$G$6:$DC$12,67,FALSE) -> 7 | P12: =VLOOKUP($A12,'RECAP DIRCOM'!$G$6:$DC$12,68,FALSE) -> 50% | Q12: =VLOOKUP($A12,'RECAP DIRCOM'!$G$6:$DC$12,69,FALSE) -> 48% | R12: =VLOOKUP($A12,'RECAP DIRCOM'!$G$6:$DC$12,70,FALSE) -> 7
A13: 30 | B13: Marne-Ardennes | C13: =VLOOKUP($A13,'RECAP DIRCOM'!$G$6:$DC$12,3,FALSE) -> 232 | D13: =VLOOKUP($A13,'RECAP DIRCOM'!$G$6:$DC$12,56,FALSE) -> 9,413 | E13: =VLOOKUP($A13,'RECAP DIRCOM'!$G$6:$DC$12,57,FALSE) -> 40.55 | F13: =VLOOKUP($A13,'RECAP DIRCOM'!$G$6:$DC$12,58,FALSE) -> 15% | G13: =VLOOKUP($A13,'RECAP DIRCOM'!$G$6:$DC$12,59,FALSE) -> 2 | H13: =VLOOKUP($A13,'RECAP DIRCOM'!$G$6:$DC$12,60,FALSE) -> 2,567 | I13: =VLOOKUP($A13,'RECAP DIRCOM'!$G$6:$DC$12,61,FALSE) -> 11.06 | J13: =VLOOKUP($A13,'RECAP DIRCOM'!$G$6:$DC$12,62,FALSE) -> 15% | K13: =VLOOKUP($A13,'RECAP DIRCOM'!$G$6:$DC$12,63,FALSE) -> 6 | L13: =VLOOKUP($A13,'RECAP DIRCOM'!$G$6:$DC$12,64,FALSE) -> 826 | M13: =VLOOKUP($A13,'RECAP DIRCOM'!$G$6:$DC$12,65,FALSE) -> 3.56 | N13: =VLOOKUP($A13,'RECAP DIRCOM'!$G$6:$DC$12,66,FALSE) -> 17% | O13: =VLOOKUP($A13,'RECAP DIRCOM'!$G$6:$DC$12,67,FALSE) -> 2 | P13: =VLOOKUP($A13,'RECAP DIRCOM'!$G$6:$DC$12,68,FALSE) -> 16% | Q13: =VLOOKUP($A13,'RECAP DIRCOM'!$G$6:$DC$12,69,FALSE) -> 14% | R13: =VLOOKUP($A13,'RECAP DIRCOM'!$G$6:$DC$12,70,FALSE) -> 2
A14: 110 | B14: Meurthe et Moselle Meuse | C14: =VLOOKUP($A14,'RECAP DIRCOM'!$G$6:$DC$12,3,FALSE) -> 249 | D14: =VLOOKUP($A14,'RECAP DIRCOM'!$G$6:$DC$12,56,FALSE) -> 11,949 | E14: =VLOOKUP($A14,'RECAP DIRCOM'!$G$6:$DC$12,57,FALSE) -> 47.94 | F14: =VLOOKUP($A14,'RECAP DIRCOM'!$G$6:$DC$12,58,FALSE) -> 0% | G14: =VLOOKUP($A14,'RECAP DIRCOM'!$G$6:$DC$12,59,FALSE) -> 1 | H14: =VLOOKUP($A14,'RECAP DIRCOM'!$G$6:$DC$12,60,FALSE) -> 3,023 | I14: =VLOOKUP($A14,'RECAP DIRCOM'!$G$6:$DC$12,61,FALSE) -> 12.13 | J14: =VLOOKUP($A14,'RECAP DIRCOM'!$G$6:$DC$12,62,FALSE) -> 7% | K14: =VLOOKUP($A14,'RECAP DIRCOM'!$G$6:$DC$12,63,FALSE) -> 3 | L14: =VLOOKUP($A14,'RECAP DIRCOM'!$G$6:$DC$12,64,FALSE) -> 1,071 | M14: =VLOOKUP($A14,'RECAP DIRCOM'!$G$6:$DC$12,65,FALSE) -> 4.30 | N14: =VLOOKUP($A14,'RECAP DIRCOM'!$G$6:$DC$12,66,FALSE) -> 0% | O14: =VLOOKUP($A14,'RECAP DIRCOM'!$G$6:$DC$12,67,FALSE) -> 1 | P14: =VLOOKUP($A14,'RECAP DIRCOM'!$G$6:$DC$12,68,FALSE) -> 2% | Q14: =VLOOKUP($A14,'RECAP DIRCOM'!$G$6:$DC$12,69,FALSE) -> 0% | R14: =VLOOKUP($A14,'RECAP DIRCOM'!$G$6:$DC$12,70,FALSE) -> 1
A15: 160 | B15: Moselle | C15: =VLOOKUP($A15,'RECAP DIRCOM'!$G$6:$DC$12,3,FALSE) -> 280 | D15: =VLOOKUP($A15,'RECAP DIRCOM'!$G$6:$DC$12,56,FALSE) -> 7,825 | E15: =VLOOKUP($A15,'RECAP DIRCOM'!$G$6:$DC$12,57,FALSE) -> 27.99 | F15: =VLOOKUP($A15,'RECAP DIRCOM'!$G$6:$DC$12,58,FALSE) -> 42% | G15: =VLOOKUP($A15,'RECAP DIRCOM'!$G$6:$DC$12,59,FALSE) -> 3 | H15: =VLOOKUP($A15,'RECAP DIRCOM'!$G$6:$DC$12,60,FALSE) -> 3,629 | I15: =VLOOKUP($A15,'RECAP DIRCOM'!$G$6:$DC$12,61,FALSE) -> 12.98 | J15: =VLOOKUP($A15,'RECAP DIRCOM'!$G$6:$DC$12,62,FALSE) -> 0% | K15: =VLOOKUP($A15,'RECAP DIRCOM'!$G$6:$DC$12,63,FALSE) -> 1 | L15: =VLOOKUP($A15,'RECAP DIRCOM'!$G$6:$DC$12,64,FALSE) -> 824 | M15: =VLOOKUP($A15,'RECAP DIRCOM'!$G$6:$DC$12,65,FALSE) -> 2.95 | N15: =VLOOKUP($A15,'RECAP DIRCOM'!$G$6:$DC$12,66,FALSE) -> 31% | O15: =VLOOKUP($A15,'RECAP DIRCOM'!$G$6:$DC$12,67,FALSE) -> 4 | P15: =VLOOKUP($A15,'RECAP DIRCOM'!$G$6:$DC$12,68,FALSE) -> 26% | Q15: =VLOOKUP($A15,'RECAP DIRCOM'!$G$6:$DC$12,69,FALSE) -> 24% | R15: =VLOOKUP($A15,'RECAP DIRCOM'!$G$6:$DC$12,70,FALSE) -> 3
A16: 80 | B16: Vosges | C16: =VLOOKUP($A16,'RECAP DIRCOM'!$G$6:$DC$12,3,FALSE) -> 137 | D16: =VLOOKUP($A16,'RECAP DIRCOM'!$G$6:$DC$12,56,FALSE) -> 3,268 | E16: =VLOOKUP($A16,'RECAP DIRCOM'!$G$6:$DC$12,57,FALSE) -> 23.83 | F16: =VLOOKUP($A16,'RECAP DIRCOM'!$G$6:$DC$12,58,FALSE) -> 50% | G16: =VLOOKUP($A16,'RECAP DIRCOM'!$G$6:$DC$12,59,FALSE) -> 5 | H16: =VLOOKUP($A16,'RECAP DIRCOM'!$G$6:$DC$12,60,FALSE) -> 1,504 | I16: =VLOOKUP($A16,'RECAP DIRCOM'!$G$6:$DC$12,61,FALSE) -> 10.96 | J16: =VLOOKUP($A16,'RECAP DIRCOM'!$G$6:$DC$12,62,FALSE) -> 16% | K16: =VLOOKUP($A16,'RECAP DIRCOM'!$G$6:$DC$12,63,FALSE) -> 7 | L16: =VLOOKUP($A16,'RECAP DIRCOM'!$G$6:$DC$12,64,FALSE) -> 409 | M16: =VLOOKUP($A16,'RECAP DIRCOM'!$G$6:$DC$12,65,FALSE) -> 2.98 | N16: =VLOOKUP($A16,'RECAP DIRCOM'!$G$6:$DC$12,66,FALSE) -> 31% | O16: =VLOOKUP($A16,'RECAP DIRCOM'!$G$6:$DC$12,67,FALSE) -> 3 | P16: =VLOOKUP($A16,'RECAP DIRCOM'!$G$6:$DC$12,68,FALSE) -> 34% | Q16: =VLOOKUP($A16,'RECAP DIRCOM'!$G$6:$DC$12,69,FALSE) -> 32% | R16: =VLOOKUP($A16,'RECAP DIRCOM'!$G$6:$DC$12,70,FALSE) -> 6
B17: Total CEGEE Directions Régionales | C17: =SUM(C10:C16) -> 1460

Sheet DC_IARD
B1: Accueil | D1: BAROMETRE BDD - DIRECTIONS REGIONALES
D2: IARD ET PREVOYANCE
D3: =ACCUEIL!F7 -> 2021-03-07
D7: Ventes Nettes produits pondérés | H7: Ventes sur client non détenteur de l’univers | L7: Total IARD Prévoyance
D8: =DATEMAJ!C23 -> au 07/03 | F8: coef | G8: ='RECAP DIRCOM'!CF4 -> 14% | H8: =DATEMAJ!C24 -> au 07/03 | J8: coef | K8: ='RECAP DIRCOM'!CJ4 -> 6% | M8: coef | N8: ='RECAP DIRCOM'!CM4 -> 20%
B9: Direction | C9: ="ETP perf "&DATEMAJ!$C$28 -> ETP perf 31-janv | D9: VN | E9: VN / ETP | F9: % Ecart au 1er | G9: Rang | H9: VB | I9: VB / ETP | J9: % Ecart au 1er | K9: Rang | L9: Moyenne ecart au 1er | M9: % Ecart au 1er | N9: Rang CEGEE
A10: 50 | B10: Aube Haute Marne | C10: =VLOOKUP($A10,'RECAP DIRCOM'!$G$6:$DC$12,3,FALSE) -> 132 | D10: =VLOOKUP($A10,'RECAP DIRCOM'!$G$6:$DC$12,75,FALSE) -> 4,462 | E10: =VLOOKUP($A10,'RECAP DIRCOM'!$G$6:$DC$12,76,FALSE) -> 33.88 | F10: =VLOOKUP($A10,'RECAP DIRCOM'!$G$6:$DC$12,77,FALSE) -> 32% | G10: =VLOOKUP($A10,'RECAP DIRCOM'!$G$6:$DC$12,78,FALSE) -> 6 | H10: =VLOOKUP($A10,'RECAP DIRCOM'!$G$6:$DC$12,79,FALSE) -> 960 | I10: =VLOOKUP($A10,'RECAP DIRCOM'!$G$6:$DC$12,80,FALSE) -> 7.29 | J10: =VLOOKUP($A10,'RECAP DIRCOM'!$G$6:$DC$12,81,FALSE) -> 22% | K10: =VLOOKUP($A10,'RECAP DIRCOM'!$G$6:$DC$12,82,FALSE) -> 4 | L10: =VLOOKUP($A10,'RECAP DIRCOM'!$G$6:$DC$12,83,FALSE) -> 29% | M10: =VLOOKUP($A10,'RECAP DIRCOM'!$G$6:$DC$12,84,FALSE) -> 29% | N10: =VLOOKUP($A10,'RECAP DIRCOM'!$G$6:$DC$12,85,FALSE) -> 5
A11: 262 | B11: Bas-Rhin | C11: =VLOOKUP($A11,'RECAP DIRCOM'!$G$6:$DC$12,3,FALSE) -> 268 | D11: =VLOOKUP($A11,'RECAP DIRCOM'!$G$6:$DC$12,75,FALSE) -> 13,307 | E11: =VLOOKUP($A11,'RECAP DIRCOM'!$G$6:$DC$12,76,FALSE) -> 49.61 | F11: =VLOOKUP($A11,'RECAP DIRCOM'!$G$6:$DC$12,77,FALSE) -> 1% | G11: =VLOOKUP($A11,'RECAP DIRCOM'!$G$6:$DC$12,78,FALSE) -> 2 | H11: =VLOOKUP($A11,'RECAP DIRCOM'!$G$6:$DC$12,79,FALSE) -> 2,177 | I11: =VLOOKUP($A11,'RECAP DIRCOM'!$G$6:$DC$12,80,FALSE) -> 8.12 | J11: =VLOOKUP($A11,'RECAP DIRCOM'!$G$6:$DC$12,81,FALSE) -> 13% | K11: =VLOOKUP($A11,'RECAP DIRCOM'!$G$6:$DC$12,82,FALSE) -> 2 | L11: =VLOOKUP($A11,'RECAP DIRCOM'!$G$6:$DC$12,83,FALSE) -> 4% | M11: =VLOOKUP($A11,'RECAP DIRCOM'!$G$6:$DC$12,84,FALSE) -> 4% | N11: =VLOOKUP($A11,'RECAP DIRCOM'!$G$6:$DC$12,85,FALSE) -> 2
A12: 264 | B12: Haut-Rhin | C12: =VLOOKUP($A12,'RECAP DIRCOM'!$G$6:$DC$12,3,FALSE) -> 162 | D12: =VLOOKUP($A12,'RECAP DIRCOM'!$G$6:$DC$12,75,FALSE) -> 5,766 | E12: =VLOOKUP($A12,'RECAP DIRCOM'!$G$6:$DC$12,76,FALSE) -> 35.69 | F12: =VLOOKUP($A12,'RECAP DIRCOM'!$G$6:$DC$12,77,FALSE) -> 29% | G12: =VLOOKUP($A12,'RECAP DIRCOM'!$G$6:$DC$12,78,FALSE) -> 5 | H12: =VLOOKUP($A12,'RECAP DIRCOM'!$G$6:$DC$12,79,FALSE) -> 1,035 | I12: =VLOOKUP($A12,'RECAP DIRCOM'!$G$6:$DC$12,80,FALSE) -> 6.41 | J12: =VLOOKUP($A12,'RECAP DIRCOM'!$G$6:$DC$12,81,FALSE) -> 31% | K12: =VLOOKUP($A12,'RECAP DIRCOM'!$G$6:$DC$12,82,FALSE) -> 7 | L12: =VLOOKUP($A12,'RECAP DIRCOM'!$G$6:$DC$12,83,FALSE) -> 29% | M12: =VLOOKUP($A12,'RECAP DIRCOM'!$G$6:$DC$12,84,FALSE) -> 29% | N12: =VLOOKUP($A12,'RECAP DIRCOM'!$G$6:$DC$12,85,FALSE) -> 6
A13: 30 | B13: Marne-Ardennes | C13: =VLOOKUP($A13,'RECAP DIRCOM'!$G$6:$DC$12,3,FALSE) -> 232 | D13: =VLOOKUP($A13,'RECAP DIRCOM'!$G$6:$DC$12,75,FALSE) -> 7,047 | E13: =VLOOKUP($A13,'RECAP DIRCOM'!$G$6:$DC$12,76,FALSE) -> 30.35 | F13: =VLOOKUP($A13,'RECAP DIRCOM'!$G$6:$DC$12,77,FALSE) -> 39% | G13: =VLOOKUP($A13,'RECAP DIRCOM'!$G$6:$DC$12,78,FALSE) -> 7 | H13: =VLOOKUP($A13,'RECAP DIRCOM'!$G$6:$DC$12,79,FALSE) -> 1,592 | I13: =VLOOKUP($A13,'RECAP DIRCOM'!$G$6:$DC$12,80,FALSE) -> 6.86 | J13: =VLOOKUP($A13,'RECAP DIRCOM'!$G$6:$DC$12,81,FALSE) -> 27% | K13: =VLOOKUP($A13,'RECAP DIRCOM'!$G$6:$DC$12,82,FALSE) -> 6 | L13: =VLOOKUP($A13,'RECAP DIRCOM'!$G$6:$DC$12,83,FALSE) -> 35% | M13: =VLOOKUP($A13,'RECAP DIRCOM'!$G$6:$DC$12,84,FALSE) -> 35% | N13: =VLOOKUP($A13,'RECAP DIRCOM'!$G$6:$DC$12,85,FALSE) -> 7
A14: 110 | B14: Meurthe et Moselle Meuse | C14: =VLOOKUP($A14,'RECAP DIRCOM'!$G$6:$DC$12,3,FALSE) -> 249 | D14: =VLOOKUP($A14,'RECAP DIRCOM'!$G$6:$DC$12,75,FALSE) -> 12,461 | E14: =VLOOKUP($A14,'RECAP DIRCOM'!$G$6:$DC$12,76,FALSE) -> 49.99 | F14: =VLOOKUP($A14,'RECAP DIRCOM'!$G$6:$DC$12,77,FALSE) -> 0% | G14: =VLOOKUP($A14,'RECAP DIRCOM'!$G$6:$DC$12,78,FALSE) -> 1 | H14: =VLOOKUP($A14,'RECAP DIRCOM'!$G$6:$DC$12,79,FALSE) -> 2,327 | I14: =VLOOKUP($A14,'RECAP DIRCOM'!$G$6:$DC$12,80,FALSE) -> 9.34 | J14: =VLOOKUP($A14,'RECAP DIRCOM'!$G$6:$DC$12,81,FALSE) -> 0% | K14: =VLOOKUP($A14,'RECAP DIRCOM'!$G$6:$DC$12,82,FALSE) -> 1 | L14: =VLOOKUP($A14,'RECAP DIRCOM'!$G$6:$DC$12,83,FALSE) -> 0% | M14: =VLOOKUP($A14,'RECAP DIRCOM'!$G$6:$DC$12,84,FALSE) -> 0% | N14: =VLOOKUP($A14,'RECAP DIRCOM'!$G$6:$DC$12,85,FALSE) -> 1
A15: 160 | B15: Moselle | C15: =VLOOKUP($A15,'RECAP DIRCOM'!$G$6:$DC$12,3,FALSE) -> 280 | D15: =VLOOKUP($A15,'RECAP DIRCOM'!$G$6:$DC$12,75,FALSE) -> 12,177 | E15: =VLOOKUP($A15,'RECAP DIRCOM'!$G$6:$DC$12,76,FALSE) -> 43.55 | F15: =VLOOKUP($A15,'RECAP DIRCOM'!$G$6:$DC$12,77,FALSE) -> 13% | G15: =VLOOKUP($A15,'RECAP DIRCOM'!$G$6:$DC$12,78,FALSE) -> 4 | H15: =VLOOKUP($A15,'RECAP DIRCOM'!$G$6:$DC$12,79,FALSE) -> 2,091 | I15: =VLOOKUP($A15,'RECAP DIRCOM'!$G$6:$DC$12,80,FALSE) -> 7.48 | J15: =VLOOKUP($A15,'RECAP DIRCOM'!$G$6:$DC$12,81,FALSE) -> 20% | K15: =VLOOKUP($A15,'RECAP DIRCOM'!$G$6:$DC$12,82,FALSE) -> 3 | L15: =VLOOKUP($A15,'RECAP DIRCOM'!$G$6:$DC$12,83,FALSE) -> 15% | M15: =VLOOKUP($A15,'RECAP DIRCOM'!$G$6:$DC$12,84,FALSE) -> 15% | N15: =VLOOKUP($A15,'RECAP DIRCOM'!$G$6:$DC$12,85,FALSE) -> 4
A16: 80 | B16: Vosges | C16: =VLOOKUP($A16,'RECAP DIRCOM'!$G$6:$DC$12,3,FALSE) -> 137 | D16: =VLOOKUP($A16,'RECAP DIRCOM'!$G$6:$DC$12,75,FALSE) -> 6,734 | E16: =VLOOKUP($A16,'RECAP DIRCOM'!$G$6:$DC$12,76,FALSE) -> 49.09 | F16: =VLOOKUP($A16,'RECAP DIRCOM'!$G$6:$DC$12,77,FALSE) -> 2% | G16: =VLOOKUP($A16,'RECAP DIRCOM'!$G$6:$DC$12,78,FALSE) -> 3 | H16: =VLOOKUP($A16,'RECAP DIRCOM'!$G$6:$DC$12,79,FALSE) -> 944 | I16: =VLOOKUP($A16,'RECAP DIRCOM'!$G$6:$DC$12,80,FALSE) -> 6.88 | J16: =VLOOKUP($A16,'RECAP DIRCOM'!$G$6:$DC$12,81,FALSE) -> 26% | K16: =VLOOKUP($A16,'RECAP DIRCOM'!$G$6:$DC$12,82,FALSE) -> 5 | L16: =VLOOKUP($A16,'RECAP DIRCOM'!$G$6:$DC$12,83,FALSE) -> 9% | M16: =VLOOKUP($A16,'RECAP DIRCOM'!$G$6:$DC$12,84,FALSE) -> 9% | N16: =VLOOKUP($A16,'RECAP DIRCOM'!$G$6:$DC$12,85,FALSE) -> 3
B17: Total CEGEE Directions Régionales | C17: =SUM(C10:C16) -> 1460

Sheet DC_SATISFACTION
B1: Accueil | D1: BAROMETRE BDD - DIRECTIONS REGIONALES
D2: SATISFACTION
D3: =ACCUEIL!F7 -> 2021-03-07
D7: NPS à froid (SAE) | G7: NPS à chaud (QHD) | J7: Total Satisfaction Clients
D8: =DATEMAJ!E4 -> au 28/02 | E8: coef | F8: ='RECAP DIRCOM'!M4 -> 10% | G8: =DATEMAJ!C5 -> au 31/01 | H8: coef | I8: ='RECAP DIRCOM'!P4 -> 10% | K8: coef | L8: ='RECAP DIRCOM'!S4 -> 20%
B9: Direction | C9: ="ETP perf "&DATEMAJ!$C$28 -> ETP perf 31-janv | E9: % Ecart au 1er | F9: Rang | H9: % Ecart au 1er | I9: Rang | J9: Moyenne ecart au 1er | K9: % Ecart au 1er | L9: Rang CEGEE
A10: 50 | B10: Aube Haute Marne | C10: =VLOOKUP($A10,'RECAP DIRCOM'!$G$6:$DC$12,3,FALSE) -> 132 | D10: =VLOOKUP($A10,'RECAP DIRCOM'!$G$6:$DC$12,5,FALSE) -> 14 | E10: =VLOOKUP($A10,'RECAP DIRCOM'!$G$6:$DC$12,6,FALSE) -> 18% | F10: =VLOOKUP($A10,'RECAP DIRCOM'!$G$6:$DC$12,7,FALSE) -> 2 | G10: =VLOOKUP($A10,'RECAP DIRCOM'!$G$6:$DC$12,8,FALSE) -> 51% | H10: =VLOOKUP($A10,'RECAP DIRCOM'!$G$6:$DC$12,9,FALSE) -> 20% | I10: =VLOOKUP($A10,'RECAP DIRCOM'!$G$6:$DC$12,10,FALSE) -> 5 | J10: =VLOOKUP($A10,'RECAP DIRCOM'!$G$6:$DC$12,11,FALSE) -> 19% | K10: =VLOOKUP($A10,'RECAP DIRCOM'!$G$6:$DC$12,12,FALSE) -> 17% | L10: =VLOOKUP($A10,'RECAP DIRCOM'!$G$6:$DC$12,13,FALSE) -> 3
A11: 262 | B11: Bas-Rhin | C11: =VLOOKUP($A11,'RECAP DIRCOM'!$G$6:$DC$12,3,FALSE) -> 268 | D11: =VLOOKUP($A11,'RECAP DIRCOM'!$G$6:$DC$12,5,FALSE) -> 8 | E11: =VLOOKUP($A11,'RECAP DIRCOM'!$G$6:$DC$12,6,FALSE) -> 53% | F11: =VLOOKUP($A11,'RECAP DIRCOM'!$G$6:$DC$12,7,FALSE) -> 6 | G11: =VLOOKUP($A11,'RECAP DIRCOM'!$G$6:$DC$12,8,FALSE) -> 50% | H11: =VLOOKUP($A11,'RECAP DIRCOM'!$G$6:$DC$12,9,FALSE) -> 22% | I11: =VLOOKUP($A11,'RECAP DIRCOM'!$G$6:$DC$12,10,FALSE) -> 6 | J11: =VLOOKUP($A11,'RECAP DIRCOM'!$G$6:$DC$12,11,FALSE) -> 38% | K11: =VLOOKUP($A11,'RECAP DIRCOM'!$G$6:$DC$12,12,FALSE) -> 36% | L11: =VLOOKUP($A11,'RECAP DIRCOM'!$G$6:$DC$12,13,FALSE) -> 6
A12: 264 | B12: Haut-Rhin | C12: =VLOOKUP($A12,'RECAP DIRCOM'!$G$6:$DC$12,3,FALSE) -> 162 | D12: =VLOOKUP($A12,'RECAP DIRCOM'!$G$6:$DC$12,5,FALSE) -> 4 | E12: =VLOOKUP($A12,'RECAP DIRCOM'!$G$6:$DC$12,6,FALSE) -> 76% | F12: =VLOOKUP($A12,'RECAP DIRCOM'!$G$6:$DC$12,7,FALSE) -> 7 | G12: =VLOOKUP($A12,'RECAP DIRCOM'!$G$6:$DC$12,8,FALSE) -> 45% | H12: =VLOOKUP($A12,'RECAP DIRCOM'!$G$6:$DC$12,9,FALSE) -> 29% | I12: =VLOOKUP($A12,'RECAP DIRCOM'!$G$6:$DC$12,10,FALSE) -> 7 | J12: =VLOOKUP($A12,'RECAP DIRCOM'!$G$6:$DC$12,11,FALSE) -> 53% | K12: =VLOOKUP($A12,'RECAP DIRCOM'!$G$6:$DC$12,12,FALSE) -> 51% | L12: =VLOOKUP($A12,'RECAP DIRCOM'!$G$6:$DC$12,13,FALSE) -> 7
A13: 30 | B13: Marne-Ardennes | C13: =VLOOKUP($A13,'RECAP DIRCOM'!$G$6:$DC$12,3,FALSE) -> 232 | D13: =VLOOKUP($A13,'RECAP DIRCOM'!$G$6:$DC$12,5,FALSE) -> 12 | E13: =VLOOKUP($A13,'RECAP DIRCOM'!$G$6:$DC$12,6,FALSE) -> 29% | F13: =VLOOKUP($A13,'RECAP DIRCOM'!$G$6:$DC$12,7,FALSE) -> 3 | G13: =VLOOKUP($A13,'RECAP DIRCOM'!$G$6:$DC$12,8,FALSE) -> 64% | H13: =VLOOKUP($A13,'RECAP DIRCOM'!$G$6:$DC$12,9,FALSE) -> 0% | I13: =VLOOKUP($A13,'RECAP DIRCOM'!$G$6:$DC$12,10,FALSE) -> 1 | J13: =VLOOKUP($A13,'RECAP DIRCOM'!$G$6:$DC$12,11,FALSE) -> 15% | K13: =VLOOKUP($A13,'RECAP DIRCOM'!$G$6:$DC$12,12,FALSE) -> 13% | L13: =VLOOKUP($A13,'RECAP DIRCOM'!$G$6:$DC$12,13,FALSE) -> 2
A14: 110 | B14: Meurthe et Moselle Meuse | C14: =VLOOKUP($A14,'RECAP DIRCOM'!$G$6:$DC$12,3,FALSE) -> 249 | D14: =VLOOKUP($A14,'RECAP DIRCOM'!$G$6:$DC$12,5,FALSE) -> 11 | E14: =VLOOKUP($A14,'RECAP DIRCOM'!$G$6:$DC$12,6,FALSE) -> 35% | F14: =VLOOKUP($A14,'RECAP DIRCOM'!$G$6:$DC$12,7,FALSE) -> 4 | G14: =VLOOKUP($A14,'RECAP DIRCOM'!$G$6:$DC$12,8,FALSE) -> 58% | H14: =VLOOKUP($A14,'RECAP DIRCOM'!$G$6:$DC$12,9,FALSE) -> 10% | I14: =VLOOKUP($A14,'RECAP DIRCOM'!$G$6:$DC$12,10,FALSE) -> 3 | J14: =VLOOKUP($A14,'RECAP DIRCOM'!$G$6:$DC$12,11,FALSE) -> 23% | K14: =VLOOKUP($A14,'RECAP DIRCOM'!$G$6:$DC$12,12,FALSE) -> 21% | L14: =VLOOKUP($A14,'RECAP DIRCOM'!$G$6:$DC$12,13,FALSE) -> 4
A15: 160 | B15: Moselle | C15: =VLOOKUP($A15,'RECAP DIRCOM'!$G$6:$DC$12,3,FALSE) -> 280 | D15: =VLOOKUP($A15,'RECAP DIRCOM'!$G$6:$DC$12,5,FALSE) -> 9 | E15: =VLOOKUP($A15,'RECAP DIRCOM'!$G$6:$DC$12,6,FALSE) -> 47% | F15: =VLOOKUP($A15,'RECAP DIRCOM'!$G$6:$DC$12,7,FALSE) -> 5 | G15: =VLOOKUP($A15,'RECAP DIRCOM'!$G$6:$DC$12,8,FALSE) -> 54% | H15: =VLOOKUP($A15,'RECAP DIRCOM'!$G$6:$DC$12,9,FALSE) -> 16% | I15: =VLOOKUP($A15,'RECAP DIRCOM'!$G$6:$DC$12,10,FALSE) -> 4 | J15: =VLOOKUP($A15,'RECAP DIRCOM'!$G$6:$DC$12,11,FALSE) -> 31% | K15: =VLOOKUP($A15,'RECAP DIRCOM'!$G$6:$DC$12,12,FALSE) -> 30% | L15: =VLOOKUP($A15,'RECAP DIRCOM'!$G$6:$DC$12,13,FALSE) -> 5
A16: 80 | B16: Vosges | C16: =VLOOKUP($A16,'RECAP DIRCOM'!$G$6:$DC$12,3,FALSE) -> 137 | D16: =VLOOKUP($A16,'RECAP DIRCOM'!$G$6:$DC$12,5,FALSE) -> 17 | E16: =VLOOKUP($A16,'RECAP DIRCOM'!$G$6:$DC$12,6,FALSE) -> 0% | F16: =VLOOKUP($A16,'RECAP DIRCOM'!$G$6:$DC$12,7,FALSE) -> 1 | G16: =VLOOKUP($A16,'RECAP DIRCOM'!$G$6:$DC$12,8,FALSE) -> 62% | H16: =VLOOKUP($A16,'RECAP DIRCOM'!$G$6:$DC$12,9,FALSE) -> 3% | I16: =VLOOKUP($A16,'RECAP DIRCOM'!$G$6:$DC$12,10,FALSE) -> 2 | J16: =VLOOKUP($A16,'RECAP DIRCOM'!$G$6:$DC$12,11,FALSE) -> 2% | K16: =VLOOKUP($A16,'RECAP DIRCOM'!$G$6:$DC$12,12,FALSE) -> 0% | L16: =VLOOKUP($A16,'RECAP DIRCOM'!$G$6:$DC$12,13,FALSE) -> 1
B17: Total CEGEE Directions Régionales | C17: =SUM(C10:C16) -> 1460

Sheet SE_FICHE
A1: Accueil
A2: BAROMETRE BDD
A4: UNITE: | B4: TERRITOIRE | E4: ETP perf : | F4: =VLOOKUP(A5,'RECAP SECT'!$G$6:$I$23,3,FALSE) -> 65.10
A5: =VLOOKUP(B5,LISTES!$H$6:$I$23,2,FALSE) -> 5130 | B5: COLMAR
C6: Coefficient du critére | E6: Résultats | I6: Ecart au 1ier | M6: Evolution | O6: Rang
E7: du 1ier | G7: du territoire | I7: Du mois | K7: Au 31/12/2019
A9: RANG au CLASSEMENT GENERAL | K9: =VLOOKUP($A$5,'RECAP SECT AN'!$G$6:$FS$312,168,FALSE) -> 17 | M9: =+K9-O9 ->  | O9: =VLOOKUP($A$5,'RECAP SECT'!$G$6:$DG$312,168,FALSE) ->  | S9: =VLOOKUP($A$5,'RECAP SECT AN'!$G$6:$FE$312,154,FALSE) -> 1 | U9: =+S9-O9 -> 
A11: CRITERE CONQUETE | C11: 15% | O11: =VLOOKUP($A$5,'RECAP SECT'!$G$6:$DG$312,23,FALSE) -> 7.495955903
B12: PNB Evolution nette Clients BP | C12: 4% | E12: ='RECAP SECT'!#REF! ->  | G12: =VLOOKUP($A$5,'RECAP SECT'!$G$6:$DG$312,6,FALSE) -> 0.5 | I12: =VLOOKUP($A$5,'RECAP SECT'!$G$6:$DG$312,7,FALSE) -> 900% | K12: =VLOOKUP($A$5,'RECAP SECT AN'!$G$6:$FS$312,7,FALSE) -> 134% | M12: =+K12-I12 -> -766% | O12: =VLOOKUP($A$5,'RECAP SECT'!$G$6:$DG$312,8,FALSE) -> 0.5011588178 | S12: =VLOOKUP($A$5,'RECAP SECT AN'!$G$6:$FE$312,6,FALSE) -> -181% | U12: =+S12-I12 -> -1081%
B13: PNB Evolution nette Clients PREMIUM | C13: 5% | E13: ='RECAP SECT'!#REF! ->  | G13: =VLOOKUP($A$5,'RECAP SECT'!$G$6:$DG$312,10,FALSE) -> 13.0 | I13: =VLOOKUP($A$5,'RECAP SECT'!$G$6:$DG$312,11,FALSE) -> 37% | K13: =VLOOKUP($A$5,'RECAP SECT AN'!$G$6:$FS$312,11,FALSE) -> 20% | M13: =+K13-I13 -> -17% | O13: =VLOOKUP($A$5,'RECAP SECT'!$G$6:$DG$312,12,FALSE) -> 0.346384121 | S13: =VLOOKUP($A$5,'RECAP SECT AN'!$G$6:$FE$312,9,FALSE) -> 287% | U13: =+S13-I13 -> 250%
B14: PNB Evolution nette Clients Jeunes Equipés | C14: 3% | E14: ='RECAP SECT'!#REF! ->  | G14: =VLOOKUP($A$5,'RECAP SECT'!$G$6:$DG$312,14,FALSE) -> 0.0 | I14: =VLOOKUP($A$5,'RECAP SECT'!$G$6:$DG$312,15,FALSE) -> 0% | K14: =VLOOKUP($A$5,'RECAP SECT AN'!$G$6:$FS$312,15,FALSE) -> -99% | M14: =+K14-I14 -> -99% | O14: =VLOOKUP($A$5,'RECAP SECT'!$G$6:$DG$312,16,FALSE) -> 0 | S14: =VLOOKUP($A$5,'RECAP SECT AN'!$G$6:$FE$312,12,FALSE) -> 1300% | U14: =+S14-I14 -> 1300%
B15: PNB Evolution nette Clients Pro Actifs Equipés | C15: 3% | E15: ='RECAP SECT'!W4 -> 0.0 | G15: =VLOOKUP($A$5,'RECAP SECT'!$G$6:$DG$312,18,FALSE) -> 488.4 | I15: =VLOOKUP($A$5,'RECAP SECT'!$G$6:$DG$312,19,FALSE) -> 750% | K15: =VLOOKUP($A$5,'RECAP SECT AN'!$G$6:$FS$312,19,FALSE) -> 54% | M15: =+K15-I15 -> -696% | O15: =VLOOKUP($A$5,'RECAP SECT'!$G$6:$DG$312,20,FALSE) -> 0.6597322493 | S15: =VLOOKUP($A$5,'RECAP SECT AN'!$G$6:$FE$312,15,FALSE) -> -99% | U15: =+S15-I15 -> -849%
A17: CRITERE BANCARISATION | C17: 15% | O17: =VLOOKUP($A$5,'RECAP SECT'!$G$6:$DG$312,48,FALSE) -> 13
B18: PNB Ventes nettes forfaits | C18: 4% | E18: ='RECAP SECT'!X4 -> 22.0 | G18: =VLOOKUP($A$5,'RECAP SECT'!$G$6:$DG$312,31,FALSE) -> -0.3 | I18: =VLOOKUP($A$5,'RECAP SECT'!$G$6:$DG$312,32,FALSE) -> 15% | K18: =VLOOKUP($A$5,'RECAP SECT AN'!$G$6:$FS$312,32,FALSE) -> 117% | M18: =+K18-I18 -> 102% | O18: =VLOOKUP($A$5,'RECAP SECT'!$G$6:$DG$312,33,FALSE) -> 4 | S18: =VLOOKUP($A$5,'RECAP SECT AN'!$G$6:$FE$312,27,FALSE) -> 0% | U18: =+S18-I18 -> -15%
B19: PNB Ventes nettes IZICARTES Débit Différé | C19: 4% | E19: ='RECAP SECT'!AB4 -> 14.0 | G19: =VLOOKUP($A$5,'RECAP SECT'!$G$6:$DG$312,35,FALSE) -> 0.3 | I19: =VLOOKUP($A$5,'RECAP SECT'!$G$6:$DG$312,36,FALSE) -> 1700% | K19: =VLOOKUP($A$5,'RECAP SECT AN'!$G$6:$FS$312,36,FALSE) -> 27% | M19: =+K19-I19 -> -1673% | O19: =VLOOKUP($A$5,'RECAP SECT'!$G$6:$DG$312,37,FALSE) -> 0 | S19: =VLOOKUP($A$5,'RECAP SECT AN'!$G$6:$FE$312,30,FALSE) -> 430% | U19: =+S19-I19 -> -1270%
B20: PNB Ventes nettes cartes HDG Débit Différé | C20: 4% | E20: ='RECAP SECT'!AF4 -> 4.9 | G20: =VLOOKUP($A$5,'RECAP SECT'!$G$6:$DG$312,39,FALSE) -> 0.0 | I20: =VLOOKUP($A$5,'RECAP SECT'!$G$6:$DG$312,40,FALSE) -> 0% | K20: =VLOOKUP($A$5,'RECAP SECT AN'!$G$6:$FS$312,40,FALSE) -> 35% | M20: =+K20-I20 -> 35% | O20: =VLOOKUP($A$5,'RECAP SECT'!$G$6:$DG$312,41,FALSE) -> 8269.628468 | S20: =VLOOKUP($A$5,'RECAP SECT AN'!$G$6:$FE$312,33,FALSE) -> 1600% | U20: =+S20-I20 -> 1600%
B21: PNB Ventes nettes Forfaits Pro, Carte pro | C21: 3% | E21: ='RECAP SECT'!AJ4 -> -0.3 | G21: =VLOOKUP($A$5,'RECAP SECT'!$G$6:$DG$312,43,FALSE) -> 0.5 | I21: =VLOOKUP($A$5,'RECAP SECT'!$G$6:$DG$312,44,FALSE) -> 1300% | K21: =VLOOKUP($A$5,'RECAP SECT AN'!$G$6:$FS$312,44,FALSE) -> 87% | M21: =+K21-I21 -> -1213% | O21: =VLOOKUP($A$5,'RECAP SECT'!$G$6:$DG$312,45,FALSE) -> 351 | S21: =VLOOKUP($A$5,'RECAP SECT AN'!$G$6:$FE$312,39,FALSE) -> 467% | U21: =+S21-I21 -> -833%
A23: CRITERE EPARGNE | C23: 10% | O23: =VLOOKUP($A$5,'RECAP SECT'!$G$6:$DG$312,69,FALSE) -> 0.5185673088
B24: PNB Epargne Liquide | C24: 3% | E24: ='RECAP SECT'!AU4 -> 251.3 | G24: =VLOOKUP($A$5,'RECAP SECT'!$G$6:$DG$312,56,FALSE) -> 841.3 | I24: =VLOOKUP($A$5,'RECAP SECT'!$G$6:$DG$312,57,FALSE) -> 1292% | K24: =VLOOKUP($A$5,'RECAP SECT AN'!$G$6:$FS$312,57,FALSE) -> 25% | M24: =+K24-I24 -> -1267% | O24: =VLOOKUP($A$5,'RECAP SECT'!$G$6:$DG$312,58,FALSE) -> 0.820038719 | S24: =VLOOKUP($A$5,'RECAP SECT AN'!$G$6:$FE$312,51,FALSE) -> 0% | U24: =+S24-I24 -> -1292%
B25: PNB CA UC + arbitrage | C25: 4% | E25: ='RECAP SECT'!AY4 -> 9.6 | G25: =VLOOKUP($A$5,'RECAP SECT'!$G$6:$DG$312,60,FALSE) -> 846.9 | I25: =VLOOKUP($A$5,'RECAP SECT'!$G$6:$DG$312,61,FALSE) -> 1301% | K25: =VLOOKUP($A$5,'RECAP SECT AN'!$G$6:$FS$312,61,FALSE) -> 23% | M25: =+K25-I25 -> -1278% | O25: =VLOOKUP($A$5,'RECAP SECT'!$G$6:$DG$312,62,FALSE) -> 0.3507689608 | S25: =VLOOKUP($A$5,'RECAP SECT AN'!$G$6:$FE$312,57,FALSE) -> 25% | U25: =+S25-I25 -> -1276%
B26: PNB Excédent assurance vie | C26: 3% | E26: ='RECAP SECT'!#REF! ->  | G26: =VLOOKUP($A$5,'RECAP SECT'!$G$6:$DG$312,64,FALSE) -> 161.0 | I26: =VLOOKUP($A$5,'RECAP SECT'!$G$6:$DG$312,65,FALSE) -> 247% | K26: =VLOOKUP($A$5,'RECAP SECT AN'!$G$6:$FS$312,65,FALSE) -> 114% | M26: =+K26-I26 -> -134% | O26: =VLOOKUP($A$5,'RECAP SECT'!$G$6:$DG$312,66,FALSE) -> 0.6140570317 | S26: =VLOOKUP($A$5,'RECAP SECT AN'!$G$6:$FE$312,60,FALSE) -> 107% | U26: =+S26-I26 -> -141%
A28: CRITERE CREDITS | C28: 15% | O28: =VLOOKUP($A$5,'RECAP SECT'!$G$6:$DG$312,102,FALSE) -> 0.3749116205
B29: PNB crédit conso | C29: 4% | E29: ='RECAP SECT'!BJ4 -> 71.8 | G29: =VLOOKUP($A$5,'RECAP SECT'!$G$6:$DG$312,77,FALSE) -> 0.2 | I29: =VLOOKUP($A$5,'RECAP SECT'!$G$6:$DG$312,78,FALSE) -> 600% | K29: =VLOOKUP($A$5,'RECAP SECT AN'!$G$6:$FS$312,78,FALSE) -> 37% | M29: =+K29-I29 -> -563% | O29: =VLOOKUP($A$5,'RECAP SECT'!$G$6:$DG$312,79,FALSE) -> 499 | S29: =VLOOKUP($A$5,'RECAP SECT AN'!$G$6:$FE$312,75,FALSE) -> 0% | U29: =+S29-I29 -> -600%
B30: PNB ADE crédit conso | C30: 1% | E30: ='RECAP SECT'!#REF! ->  | G30: =VLOOKUP($A$5,'RECAP SECT'!$G$6:$DG$312,81,FALSE) -> 0.4 | I30: =VLOOKUP($A$5,'RECAP SECT'!$G$6:$DG$312,82,FALSE) -> 1700% | K30: =VLOOKUP($A$5,'RECAP SECT AN'!$G$6:$FS$312,82,FALSE) -> 44% | M30: -1656% | O30: =VLOOKUP($A$5,'RECAP SECT'!$G$6:$DG$312,83,FALSE) -> 0.2468072341 | S30: =VLOOKUP($A$5,'RECAP SECT AN'!$G$6:$FE$312,78,FALSE) -> 37% | U30: -1663%
B31: PNB crédit immo | C31: 4% | E31: ='RECAP SECT'!BN4 -> 20.0 | G31: =VLOOKUP($A$5,'RECAP SECT'!$G$6:$DG$312,85,FALSE) -> 8.0 | I31: =VLOOKUP($A$5,'RECAP SECT'!$G$6:$DG$312,86,FALSE) -> 0% | K31: =VLOOKUP($A$5,'RECAP SECT AN'!$G$6:$FS$312,86,FALSE) -> 38% | M31: 38% | O31: =VLOOKUP($A$5,'RECAP SECT'!$G$6:$DG$312,87,FALSE) -> 0 | S31: =VLOOKUP($A$5,'RECAP SECT AN'!$G$6:$FE$312,81,FALSE) -> 782% | U31: 782%
B32: PNB ADE crédit immo | C32: 2% | E32: ='RECAP SECT'!#REF! ->  | G32: =VLOOKUP($A$5,'RECAP SECT'!$G$6:$DG$312,89,FALSE) -> 0.0 | I32: =VLOOKUP($A$5,'RECAP SECT'!$G$6:$DG$312,90,FALSE) -> 0% | K32: =VLOOKUP($A$5,'RECAP SECT AN'!$G$6:$FS$312,90,FALSE) -> 49% | M32: 49% | O32: =VLOOKUP($A$5,'RECAP SECT'!$G$6:$DG$312,91,FALSE) -> 0 | S32: =VLOOKUP($A$5,'RECAP SECT AN'!$G$6:$FE$312,84,FALSE) -> 139312% | U32: 139312%
B33: PNB SACCEF | C33: 2% | E33: ='RECAP SECT'!#REF! ->  | G33: =VLOOKUP($A$5,'RECAP SECT'!$G$6:$DG$312,93,FALSE) -> 0.0 | I33: =VLOOKUP($A$5,'RECAP SECT'!$G$6:$DG$312,94,FALSE) -> 0% | K33: =VLOOKUP($A$5,'RECAP SECT AN'!$G$6:$FS$312,94,FALSE) -> 51% | M33: 51% | O33: =VLOOKUP($A$5,'RECAP SECT'!$G$6:$DG$312,95,FALSE) -> 0 | S33: =VLOOKUP($A$5,'RECAP SECT AN'!$G$6:$FE$312,87,FALSE) -> 1100% | U33: 1100%
B34: PNB Crédit MLT + Crédit Bail | C34: 2% | E34: ='RECAP SECT'!BR4 -> 6.4 | G34: =VLOOKUP($A$5,'RECAP SECT'!$G$6:$DG$312,97,FALSE) -> 0.0 | I34: =VLOOKUP($A$5,'RECAP SECT'!$G$6:$DG$312,98,FALSE) -> 0% | K34: =VLOOKUP($A$5,'RECAP SECT AN'!$G$6:$FS$312,98,FALSE) -> 74% | M34: 74% | O34: =VLOOKUP($A$5,'RECAP SECT'!$G$6:$DG$312,99,FALSE) -> 0 | S34: =VLOOKUP($A$5,'RECAP SECT AN'!$G$6:$FE$312,90,FALSE) -> 49% | U34: 49%
A36: CRITERE IARD PREVOYANCE | C36: 15% | O36: =VLOOKUP($A$5,'RECAP SECT'!$G$6:$DG$312,119,FALSE) -> 
B37: PNB Ventes nettes IARD | C37: 9% | E37: ='RECAP SECT'!CC4 -> 72.1 | G37: =VLOOKUP($A$5,'RECAP SECT'!$G$6:$DG$312,110,FALSE) ->  | I37: =VLOOKUP($A$5,'RECAP SECT'!$G$6:$DG$312,111,FALSE) ->  | K37: =VLOOKUP($A$5,'RECAP SECT AN'!$G$6:$FS$312,111,FALSE) -> 75% | M37: =+K37-I37 ->  | O37: =VLOOKUP($A$5,'RECAP SECT'!$G$6:$DG$312,112,FALSE) ->  | S37: =VLOOKUP($A$5,'RECAP SECT AN'!$G$6:$FE$312,102,FALSE) -> 1800% | U37: =+S37-I37 -> 
B38: PNB Ventes nettes Prévoyance | C38: 6% | E38: ='RECAP SECT'!CG4 -> 12.6 | G38: =VLOOKUP($A$5,'RECAP SECT'!$G$6:$DG$312,114,FALSE) ->  | I38: =VLOOKUP($A$5,'RECAP SECT'!$G$6:$DG$312,115,FALSE) ->  | K38: =VLOOKUP($A$5,'RECAP SECT AN'!$G$6:$FS$312,115,FALSE) -> 62% | M38: =+K38-I38 ->  | O38: =VLOOKUP($A$5,'RECAP SECT'!$G$6:$DG$312,116,FALSE) ->  | S38: =VLOOKUP($A$5,'RECAP SECT AN'!$G$6:$FE$312,105,FALSE) -> 0% | U38: =+S38-I38 -> 
A40: CRITERE ACCELERATEURS PNB | C40: 15% | O40: =VLOOKUP($A$5,'RECAP SECT'!$G$6:$DG$312,144,FALSE) -> 
B41: PNB Ventes brutes SED Finalisées | C41: 6% | E41: ='RECAP SECT'!#REF! ->  | G41: =VLOOKUP($A$5,'RECAP SECT'!$G$6:$DG$312,127,FALSE) ->  | I41: =VLOOKUP($A$5,'RECAP SECT'!$G$6:$DG$312,128,FALSE) ->  | K41: =VLOOKUP($A$5,'RECAP SECT AN'!$G$6:$FS$312,128,FALSE) -> 45% | M41: =+K41-I41 ->  | O41: =VLOOKUP($A$5,'RECAP SECT'!$G$6:$DG$312,129,FALSE) ->  | S41: =VLOOKUP($A$5,'RECAP SECT AN'!$G$6:$FE$312,120,FALSE) -> 0% | U41: =+S41-I41 -> 
B42: PNB clients équipés E documents | C42: 3% | E42: ='RECAP SECT'!#REF! ->  | G42: =VLOOKUP($A$5,'RECAP SECT'!$G$6:$DG$312,131,FALSE) ->  | I42: =VLOOKUP($A$5,'RECAP SECT'!$G$6:$DG$312,132,FALSE) ->  | K42: =VLOOKUP($A$5,'RECAP SECT AN'!$G$6:$FS$312,132,FALSE) -> 43% | M42: =+K42-I42 ->  | O42: =VLOOKUP($A$5,'RECAP SECT'!$G$6:$DG$312,133,FALSE) ->  | S42: =VLOOKUP($A$5,'RECAP SECT AN'!$G$6:$FE$312,123,FALSE) -> 0% | U42: =+S42-I42 -> 
B43: Economie opt'in | C43: 3% | E43: ='RECAP SECT'!#REF! ->  | G43: =VLOOKUP($A$5,'RECAP SECT'!$G$6:$DG$312,135,FALSE) ->  | I43: =VLOOKUP($A$5,'RECAP SECT'!$G$6:$DG$312,136,FALSE) ->  | K43: =VLOOKUP($A$5,'RECAP SECT AN'!$G$6:$FS$312,136,FALSE) -> 55% | M43: =+K43-I43 ->  | O43: =VLOOKUP($A$5,'RECAP SECT'!$G$6:$DG$312,137,FALSE) -> 
B44: Remises commerciales | C44: 3% | E44: ='RECAP SECT'!#REF! ->  | G44: =VLOOKUP($A$5,'RECAP SECT'!$G$6:$DG$312,139,FALSE) ->  | I44: =VLOOKUP($A$5,'RECAP SECT'!$G$6:$DG$312,140,FALSE) ->  | K44: =VLOOKUP($A$5,'RECAP SECT AN'!$G$6:$FS$312,140,FALSE) -> 45% | M44: =+K44-I44 ->  | O44: =VLOOKUP($A$5,'RECAP SECT'!$G$6:$DG$312,141,FALSE) ->  | S44: =VLOOKUP($A$5,'RECAP SECT AN'!$G$6:$FE$312,126,FALSE) -> 2124% | U44: =+S44-I44 -> 
A46: CRITERE Satisfaction Clients | C46: 15% | O46: =VLOOKUP($A$5,'RECAP SECT'!$G$6:$DG$312,159,FALSE) -> 
B47: Objectifs NPS* | C47: 8% | E47: ='RECAP SECT'!K4 -> 19 | G47: =VLOOKUP($A$5,'RECAP SECT'!$G$6:$DG$312,151,FALSE) ->  | I47: =VLOOKUP($A$5,'RECAP SECT'!$G$6:$DG$312,152,FALSE) ->  | K47: =VLOOKUP($A$5,'RECAP SECT AN'!$G$6:$FS$312,152,FALSE) -> 110% | M47: =+K47-I47 ->  | O47: =VLOOKUP($A$5,'RECAP SECT'!$G$6:$DG$312,153,FALSE) ->  | S47: =VLOOKUP($A$5,'RECAP SECT AN'!$G$6:$FE$312,138,FALSE) -> -33048% | U47: =+S47-I47 -> 
B48: Enquête Qualité Haute Définition | C48: 7% | E48: ='RECAP SECT'!N4 -> 68% | G48: =VLOOKUP($A$5,'RECAP SECT'!$G$6:$DG$312,154,FALSE) ->  | I48: =VLOOKUP($A$5,'RECAP SECT'!$G$6:$DG$312,155,FALSE) ->  | K48: =VLOOKUP($A$5,'RECAP SECT AN'!$G$6:$FS$312,155,FALSE) -> 7% | M48: =+K48-I48 ->  | O48: =VLOOKUP($A$5,'RECAP SECT'!$G$6:$DG$312,156,FALSE) ->  | S48: =VLOOKUP($A$5,'RECAP SECT AN'!$G$6:$FE$312,141,FALSE) -> 1000% | U48: =+S48-I48 -> 

Sheet SE_TOTAL
B1: Accueil | F1: BAROMETRE BDD - TERRITOIRES
F2: TOTAL GENERAL
F3: =ACCUEIL!F7 -> 2021-03-07
F7: TOTAL GENERAL | I7: Total Satisfaction Clients | L7: Total Bancarisation | O7: Total Epargne | R7: Total IARD Prévoyance | U7: Total Crédits
G8: coef | H8: 100% | J8: coef | K8: =SE_SATISFACTION!N8 -> 20% | M8: coef | N8: =SE_BANCA!X8 -> 20% | P8: coef | Q8: =SE_EPARGNE!P8 -> 20% | S8: coef | T8: =SE_IARD!P8 -> 20% | V8: coef | W8: =SE_CREDIT!T8 -> 20%
B9: Direction | C9: eds | D9: Territoire | E9: ="ETP perf "&DATEMAJ!$C$28 -> ETP perf 31-janv | F9: Moyenne ecart au 1er | G9: % Ecart au 1er | H9: Rang CEGEE | I9: Moyenne ecart au 1er | J9: % Ecart au 1er | K9: Rang CEGEE | L9: Moyenne ecart au 1er | M9: % Ecart au 1er | N9: Rang CEGEE | O9: Moyenne ecart au 1er | P9: % Ecart au 1er | Q9: Rang CEGEE | R9: Moyenne ecart au 1er | S9: % Ecart au 1er | T9: Rang CEGEE | U9: Moyenne ecart au 1er | V9: % Ecart au 1er | W9: Rang CEGEE
A10: 50 | B10: MEURTHE ET MOSELLE MEUSE | C10: 26 | D10: NANCY | E10: 67.6 | F10: 11% | G10: 0% | H10: 1 | I10: 35% | J10: 33% | K10: 12 | L10: 23% | M10: 0% | N10: 1 | O10: 27% | P10: 21% | Q10: 8 | R10: 0% | S10: 0% | T10: 1 | U10: 10% | V10: 0% | W10: 1
A11: 50 | B11: MEURTHE ET MOSELLE MEUSE | C11: 27 | D11: PONT A MOUSSON | E11: 77.5 | F11: 17% | G11: 6% | H11: 2 | I11: 34% | J11: 32% | K11: 10 | L11: 36% | M11: 13% | N11: 5 | O11: 24% | P11: 18% | Q11: 6 | R11: 15% | S11: 15% | T11: 5 | U11: 15% | V11: 6% | W11: 2
A12: 262 | B12: BAS-RHIN | C12: 5101 | D12: SELESTAT | E12: 63.5 | F12: 20% | G12: 9% | H12: 3 | I12: 48% | J12: 46% | K12: 15 | L12: 23% | M12: 0% | N12: 2 | O12: 6% | P12: 0% | Q12: 1 | R12: 14% | S12: 14% | T12: 4 | U12: 50% | V12: 40% | W12: 14
A13: 262 | B13: VOSGES | C13: 57 | D13: EPINAL | E13: 61.5 | F13: 20% | G13: 9% | H13: 4 | I13: 10% | J13: 8% | K13: 3 | L13: 49% | M13: 26% | N13: 13 | O13: 23% | P13: 17% | Q13: 5 | R13: 17% | S13: 17% | T13: 6 | U13: 43% | V13: 33% | W13: 11
A14: 262 | B14: MARNE-ARDENNES | C14: 2 | D14: CHARLEVILLE MEZIERES | E14: 56.0 | F14: 21% | G14: 10% | H14: 5 | I14: 2% | J14: 0% | K14: 1 | L14: 39% | M14: 16% | N14: 8 | O14: 33% | P14: 27% | Q14: 10 | R14: 43% | S14: 43% | T14: 15 | U14: 29% | V14: 19% | W14: 4
A15: 264 | B15: VOSGES | C15: 55 | D15: SAINT DIE | E15: 50.2 | F15: 23% | G15: 12% | H15: 6 | I15: 7% | J15: 5% | K15: 2 | L15: 49% | M15: 26% | N15: 15 | O15: 23% | P15: 17% | Q15: 4 | R15: 27% | S15: 27% | T15: 10 | U15: 51% | V15: 41% | W15: 16
A16: 264 | B16: BAS-RHIN | C16: 5006 | D16: STRASBOURG | E16: 83.0 | F16: 23% | G16: 12% | H16: 7 | I16: 55% | J16: 53% | K16: 17 | L16: 30% | M16: 8% | N16: 3 | O16: 18% | P16: 12% | Q16: 3 | R16: 13% | S16: 13% | T16: 3 | U16: 40% | V16: 30% | W16: 10
A17: 30 | B17: MOSELLE | C17: 42 | D17: MOSELLE EST | E17: 72.5 | F17: 27% | G17: 16% | H17: 8 | I17: 20% | J17: 18% | K17: 5 | L17: 41% | M17: 18% | N17: 10 | O17: 33% | P17: 27% | Q17: 9 | R17: 35% | S17: 35% | T17: 13 | U17: 48% | V17: 38% | W17: 13
A18: 30 | B18: MOSELLE | C18: 44 | D18: MOSELLE NORD | E18: 74.2 | F18: 27% | G18: 17% | H18: 9 | I18: 51% | J18: 49% | K18: 16 | L18: 41% | M18: 18% | N18: 9 | O18: 25% | P18: 19% | Q18: 7 | R18: 22% | S18: 22% | T18: 7 | U18: 40% | V18: 30% | W18: 9
A19: 30 | B19: AUBE HAUTE MARNE | C19: 21 | D19: CHAUMONT | E19: 34.0 | F19: 28% | G19: 17% | H19: 10 | I19: 31% | J19: 29% | K19: 9 | L19: 44% | M19: 21% | N19: 11 | O19: 54% | P19: 48% | Q19: 14 | R19: 12% | S19: 12% | T19: 2 | U19: 39% | V19: 29% | W19: 5
A20: 110 | B20: BAS-RHIN | C20: 5060 | D20: HAGUENAU | E20: 74.1 | F20: 28% | G20: 17% | H20: 11 | I20: 31% | J20: 29% | K20: 8 | L20: 55% | M20: 32% | N20: 16 | O20: 17% | P20: 11% | Q20: 2 | R20: 27% | S20: 27% | T20: 11 | U20: 50% | V20: 40% | W20: 15
A21: 110 | B21: MEURTHE ET MOSELLE MEUSE | C21: 31 | D21: VERDUN | E21: 58.4 | F21: 29% | G21: 18% | H21: 12 | I21: 18% | J21: 16% | K21: 4 | L21: 44% | M21: 21% | N21: 12 | O21: 59% | P21: 53% | Q21: 17 | R21: 26% | S21: 26% | T21: 9 | U21: 39% | V21: 29% | W21: 6
A22: 110 | B22: MARNE-ARDENNES | C22: 11 | D22: REIMS | E22: 83.2 | F22: 30% | G22: 19% | H22: 13 | I22: 34% | J22: 32% | K22: 11 | L22: 34% | M22: 11% | N22: 4 | O22: 58% | P22: 52% | Q22: 16 | R22: 41% | S22: 41% | T22: 14 | U22: 25% | V22: 15% | W22: 3
A23: 160 | B23: MOSELLE | C23: 45 | D23: METZ | E23: 89.1 | F23: 31% | G23: 21% | H23: 14 | I23: 39% | J23: 36% | K23: 14 | L23: 49% | M23: 26% | N23: 14 | O23: 41% | P23: 35% | Q23: 11 | R23: 29% | S23: 29% | T23: 12 | U23: 39% | V23: 30% | W23: 8
A24: 160 | B24: MARNE-ARDENNES | C24: 6 | D24: CHALONS EN CHAMPAGNE | E24: 45.4 | F24: 32% | G24: 21% | H24: 15 | I24: 21% | J24: 19% | K24: 6 | L24: 38% | M24: 15% | N24: 6 | O24: 57% | P24: 51% | Q24: 15 | R24: 45% | S24: 45% | T24: 16 | U24: 39% | V24: 30% | W24: 7
A25: 160 | B25: AUBE HAUTE MARNE | C25: 14 | D25: TROYES | E25: 68.9 | F25: 35% | G25: 24% | H25: 16 | I25: 24% | J25: 22% | K25: 7 | L25: 38% | M25: 15% | N25: 7 | O25: 62% | P25: 56% | Q25: 18 | R25: 47% | S25: 47% | T25: 17 | U25: 46% | V25: 36% | W25: 12
A26: 80 | B26: HAUT-RHIN | C26: 5130 | D26: COLMAR | E26: 65.1 | F26: 37% | G26: 27% | H26: 17 | I26: 37% | J26: 35% | K26: 13 | L26: 57% | M26: 34% | N26: 17 | O26: 48% | P26: 42% | Q26: 13 | R26: 25% | S26: 25% | T26: 8 | U26: 62% | V26: 52% | W26: 18
A27: 80 | B27: HAUT-RHIN | C27: 5169 | D27: MULHOUSE | E27: 61.5 | F27: 51% | G27: 40% | H27: 18 | I27: 76% | J27: 74% | K27: 18 | L27: 72% | M27: 49% | N27: 18 | O27: 43% | P27: 37% | Q27: 12 | R27: 49% | S27: 49% | T27: 18 | U27: 55% | V27: 45% | W27: 17
A28: Total CEGEE Directions Régionales | E28: =SUM(E10:E27) -> 1186

Sheet SE_BANCA
B1: Accueil | F1: BAROMETRE BDD - TERRITOIRES
F2: BANCARISATION
F3: =ACCUEIL!F7 -> 2021-03-07
F7: Ventes Nettes produits pondérés | J7: Ventes sur client non détenteur de l’univers | N7: Mobilité Macron | R7: Remises commerciales | V7: Total Bancarisation
F8: =DATEMAJ!C8 -> au 07/03 | H8: coef | I8: ='RECAP DIRCOM'!AA4 -> 10% | J8: =DATEMAJ!C9 -> au 07/03 | L8: coef | M8: ='RECAP DIRCOM'!AE4 -> 4% | N8: =DATEMAJ!C10 -> au 07/03 | P8: coef | Q8: ='RECAP DIRCOM'!AI4 -> 3% | R8: =DATEMAJ!C11 -> au 31/01 | T8: coef | U8: ='RECAP DIRCOM'!AM4 -> 3% | W8: coef | X8: ='RECAP DIRCOM'!AP4 -> 20%
B9: Direction | C9: eds | D9: Territoire | E9: ="ETP perf "&DATEMAJ!$C$28 -> ETP perf 31-janv | F9: VN | G9: VN / ETP | H9: % Ecart au 1er | I9: Rang | J9: VB | K9: VB / ETP | L9: % Ecart au 1er | M9: Rang | N9: Nb | O9: Nb / ETP | P9: % Ecart au 1er | Q9: Rang | R9: Montant | S9: Montant / ETP | T9: % Ecart au 1er | U9: Rang | V9: Moyenne ecart au 1er | W9: % Ecart au 1er | X9: Rang CEGEE
A10: 50 | B10: AUBE HAUTE MARNE | C10: 21 | D10: CHAUMONT | E10: =VLOOKUP($C10,'RECAP SECT'!$G$6:$DC$253,3,FALSE) -> 34.0 | F10: =VLOOKUP($C10,'RECAP SECT'!$G$6:$DC$253,18,FALSE) -> 338 | G10: =VLOOKUP($C10,'RECAP SECT'!$G$6:$DC$253,19,FALSE) -> 9.95 | H10: =VLOOKUP($C10,'RECAP SECT'!$G$6:$DC$253,20,FALSE) -> 55% | I10: =VLOOKUP($C10,'RECAP SECT'!$G$6:$DC$253,21,FALSE) -> 14 | J10: =VLOOKUP($C10,'RECAP SECT'!$G$6:$DC$253,22,FALSE) -> 358 | K10: =VLOOKUP($C10,'RECAP SECT'!$G$6:$DC$253,23,FALSE) -> 10.53 | L10: =VLOOKUP($C10,'RECAP SECT'!$G$6:$DC$253,24,FALSE) -> 25% | M10: =VLOOKUP($C10,'RECAP SECT'!$G$6:$DC$253,25,FALSE) -> 6 | N10: =VLOOKUP($C10,'RECAP SECT'!$G$6:$DC$253,26,FALSE) -> 48 | O10: =VLOOKUP($C10,'RECAP SECT'!$G$6:$DC$253,27,FALSE) -> 1.41 | P10: =VLOOKUP($C10,'RECAP SECT'!$G$6:$DC$253,28,FALSE) -> 71% | Q10: =VLOOKUP($C10,'RECAP SECT'!$G$6:$DC$253,29,FALSE) -> 11 | R10: =VLOOKUP($C10,'RECAP SECT'!$G$6:$DC$253,30,FALSE) -> -9.8 | S10: =VLOOKUP($C10,'RECAP SECT'!$G$6:$DC$253,31,FALSE) -> -0.29 | T10: =VLOOKUP($C10,'RECAP SECT'!$G$6:$DC$253,32,FALSE) -> 6% | U10: =VLOOKUP($C10,'RECAP SECT'!$G$6:$DC$253,33,FALSE) -> 2 | V10: =VLOOKUP($C10,'RECAP SECT'!$G$6:$DC$253,34,FALSE) -> 44% | W10: =VLOOKUP($C10,'RECAP SECT'!$G$6:$DC$253,35,FALSE) -> 21% | X10: =VLOOKUP($C10,'RECAP SECT'!$G$6:$DC$253,36,FALSE) -> 11
A11: 50 | B11: AUBE HAUTE MARNE | C11: 14 | D11: TROYES | E11: =VLOOKUP($C11,'RECAP SECT'!$G$6:$DC$253,3,FALSE) -> 68.9 | F11: =VLOOKUP($C11,'RECAP SECT'!$G$6:$DC$253,18,FALSE) -> 955 | G11: =VLOOKUP($C11,'RECAP SECT'!$G$6:$DC$253,19,FALSE) -> 13.86 | H11: =VLOOKUP($C11,'RECAP SECT'!$G$6:$DC$253,20,FALSE) -> 37% | I11: =VLOOKUP($C11,'RECAP SECT'!$G$6:$DC$253,21,FALSE) -> 5 | J11: =VLOOKUP($C11,'RECAP SECT'!$G$6:$DC$253,22,FALSE) -> 685 | K11: =VLOOKUP($C11,'RECAP SECT'!$G$6:$DC$253,23,FALSE) -> 9.95 | L11: =VLOOKUP($C11,'RECAP SECT'!$G$6:$DC$253,24,FALSE) -> 29% | M11: =VLOOKUP($C11,'RECAP SECT'!$G$6:$DC$253,25,FALSE) -> 10 | N11: =VLOOKUP($C11,'RECAP SECT'!$G$6:$DC$253,26,FALSE) -> 99 | O11: =VLOOKUP($C11,'RECAP SECT'!$G$6:$DC$253,27,FALSE) -> 1.44 | P11: =VLOOKUP($C11,'RECAP SECT'!$G$6:$DC$253,28,FALSE) -> 71% | Q11: =VLOOKUP($C11,'RECAP SECT'!$G$6:$DC$253,29,FALSE) -> 10 | R11: =VLOOKUP($C11,'RECAP SECT'!$G$6:$DC$253,30,FALSE) -> -22.6 | S11: =VLOOKUP($C11,'RECAP SECT'!$G$6:$DC$253,31,FALSE) -> -0.33 | T11: =VLOOKUP($C11,'RECAP SECT'!$G$6:$DC$253,32,FALSE) -> 20% | U11: =VLOOKUP($C11,'RECAP SECT'!$G$6:$DC$253,33,FALSE) -> 7 | V11: =VLOOKUP($C11,'RECAP SECT'!$G$6:$DC$253,34,FALSE) -> 38% | W11: =VLOOKUP($C11,'RECAP SECT'!$G$6:$DC$253,35,FALSE) -> 15% | X11: =VLOOKUP($C11,'RECAP SECT'!$G$6:$DC$253,36,FALSE) -> 7
A12: 262 | B12: BAS-RHIN | C12: 5060 | D12: HAGUENAU | E12: =VLOOKUP($C12,'RECAP SECT'!$G$6:$DC$253,3,FALSE) -> 74.1 | F12: =VLOOKUP($C12,'RECAP SECT'!$G$6:$DC$253,18,FALSE) -> 806 | G12: =VLOOKUP($C12,'RECAP SECT'!$G$6:$DC$253,19,FALSE) -> 10.87 | H12: =VLOOKUP($C12,'RECAP SECT'!$G$6:$DC$253,20,FALSE) -> 51% | I12: =VLOOKUP($C12,'RECAP SECT'!$G$6:$DC$253,21,FALSE) -> 11 | J12: =VLOOKUP($C12,'RECAP SECT'!$G$6:$DC$253,22,FALSE) -> 602 | K12: =VLOOKUP($C12,'RECAP SECT'!$G$6:$DC$253,23,FALSE) -> 8.13 | L12: =VLOOKUP($C12,'RECAP SECT'!$G$6:$DC$253,24,FALSE) -> 42% | M12: =VLOOKUP($C12,'RECAP SECT'!$G$6:$DC$253,25,FALSE) -> 16 | N12: =VLOOKUP($C12,'RECAP SECT'!$G$6:$DC$253,26,FALSE) -> 89 | O12: =VLOOKUP($C12,'RECAP SECT'!$G$6:$DC$253,27,FALSE) -> 1.20 | P12: =VLOOKUP($C12,'RECAP SECT'!$G$6:$DC$253,28,FALSE) -> 76% | Q12: =VLOOKUP($C12,'RECAP SECT'!$G$6:$DC$253,29,FALSE) -> 13 | R12: =VLOOKUP($C12,'RECAP SECT'!$G$6:$DC$253,30,FALSE) -> -33.5 | S12: =VLOOKUP($C12,'RECAP SECT'!$G$6:$DC$253,31,FALSE) -> -0.45 | T12: =VLOOKUP($C12,'RECAP SECT'!$G$6:$DC$253,32,FALSE) -> 65% | U12: =VLOOKUP($C12,'RECAP SECT'!$G$6:$DC$253,33,FALSE) -> 18 | V12: =VLOOKUP($C12,'RECAP SECT'!$G$6:$DC$253,34,FALSE) -> 55% | W12: =VLOOKUP($C12,'RECAP SECT'!$G$6:$DC$253,35,FALSE) -> 32% | X12: =VLOOKUP($C12,'RECAP SECT'!$G$6:$DC$253,36,FALSE) -> 16
A13: 262 | B13: BAS-RHIN | C13: 5101 | D13: SELESTAT | E13: =VLOOKUP($C13,'RECAP SECT'!$G$6:$DC$253,3,FALSE) -> 63.5 | F13: =VLOOKUP($C13,'RECAP SECT'!$G$6:$DC$253,18,FALSE) -> 1,399 | G13: =VLOOKUP($C13,'RECAP SECT'!$G$6:$DC$253,19,FALSE) -> 22.05 | H13: =VLOOKUP($C13,'RECAP SECT'!$G$6:$DC$253,20,FALSE) -> 0% | I13: =VLOOKUP($C13,'RECAP SECT'!$G$6:$DC$253,21,FALSE) -> 1 | J13: =VLOOKUP($C13,'RECAP SECT'!$G$6:$DC$253,22,FALSE) -> 593 | K13: =VLOOKUP($C13,'RECAP SECT'!$G$6:$DC$253,23,FALSE) -> 9.35 | L13: =VLOOKUP($C13,'RECAP SECT'!$G$6:$DC$253,24,FALSE) -> 33% | M13: =VLOOKUP($C13,'RECAP SECT'!$G$6:$DC$253,25,FALSE) -> 12 | N13: =VLOOKUP($C13,'RECAP SECT'!$G$6:$DC$253,26,FALSE) -> 88 | O13: =VLOOKUP($C13,'RECAP SECT'!$G$6:$DC$253,27,FALSE) -> 1.39 | P13: =VLOOKUP($C13,'RECAP SECT'!$G$6:$DC$253,28,FALSE) -> 72% | Q13: =VLOOKUP($C13,'RECAP SECT'!$G$6:$DC$253,29,FALSE) -> 12 | R13: =VLOOKUP($C13,'RECAP SECT'!$G$6:$DC$253,30,FALSE) -> -24.0 | S13: =VLOOKUP($C13,'RECAP SECT'!$G$6:$DC$253,31,FALSE) -> -0.38 | T13: =VLOOKUP($C13,'RECAP SECT'!$G$6:$DC$253,32,FALSE) -> 38% | U13: =VLOOKUP($C13,'RECAP SECT'!$G$6:$DC$253,33,FALSE) -> 11 | V13: =VLOOKUP($C13,'RECAP SECT'!$G$6:$DC$253,34,FALSE) -> 23% | W13: =VLOOKUP($C13,'RECAP SECT'!$G$6:$DC$253,35,FALSE) -> 0% | X13: =VLOOKUP($C13,'RECAP SECT'!$G$6:$DC$253,36,FALSE) -> 2
A14: 262 | B14: BAS-RHIN | C14: 5006 | D14: STRASBOURG | E14: =VLOOKUP($C14,'RECAP SECT'!$G$6:$DC$253,3,FALSE) -> 83.0 | F14: =VLOOKUP($C14,'RECAP SECT'!$G$6:$DC$253,18,FALSE) -> 1,393 | G14: =VLOOKUP($C14,'RECAP SECT'!$G$6:$DC$253,19,FALSE) -> 16.77 | H14: =VLOOKUP($C14,'RECAP SECT'!$G$6:$DC$253,20,FALSE) -> 24% | I14: =VLOOKUP($C14,'RECAP SECT'!$G$6:$DC$253,21,FALSE) -> 2 | J14: =VLOOKUP($C14,'RECAP SECT'!$G$6:$DC$253,22,FALSE) -> 1,062 | K14: =VLOOKUP($C14,'RECAP SECT'!$G$6:$DC$253,23,FALSE) -> 12.79 | L14: =VLOOKUP($C14,'RECAP SECT'!$G$6:$DC$253,24,FALSE) -> 9% | M14: =VLOOKUP($C14,'RECAP SECT'!$G$6:$DC$253,25,FALSE) -> 2 | N14: =VLOOKUP($C14,'RECAP SECT'!$G$6:$DC$253,26,FALSE) -> 206 | O14: =VLOOKUP($C14,'RECAP SECT'!$G$6:$DC$253,27,FALSE) -> 2.48 | P14: =VLOOKUP($C14,'RECAP SECT'!$G$6:$DC$253,28,FALSE) -> 50% | Q14: =VLOOKUP($C14,'RECAP SECT'!$G$6:$DC$253,29,FALSE) -> 6 | R14: =VLOOKUP($C14,'RECAP SECT'!$G$6:$DC$253,30,FALSE) -> -36.9 | S14: =VLOOKUP($C14,'RECAP SECT'!$G$6:$DC$253,31,FALSE) -> -0.44 | T14: =VLOOKUP($C14,'RECAP SECT'!$G$6:$DC$253,32,FALSE) -> 62% | U14: =VLOOKUP($C14,'RECAP SECT'!$G$6:$DC$253,33,FALSE) -> 17 | V14: =VLOOKUP($C14,'RECAP SECT'!$G$6:$DC$253,34,FALSE) -> 30% | W14: =VLOOKUP($C14,'RECAP SECT'!$G$6:$DC$253,35,FALSE) -> 8% | X14: =VLOOKUP($C14,'RECAP SECT'!$G$6:$DC$253,36,FALSE) -> 3
A15: 264 | B15: HAUT-RHIN | C15: 5130 | D15: COLMAR | E15: =VLOOKUP($C15,'RECAP SECT'!$G$6:$DC$253,3,FALSE) -> 65.1 | F15: =VLOOKUP($C15,'RECAP SECT'!$G$6:$DC$253,18,FALSE) -> 488 | G15: =VLOOKUP($C15,'RECAP SECT'!$G$6:$DC$253,19,FALSE) -> 7.50 | H15: =VLOOKUP($C15,'RECAP SECT'!$G$6:$DC$253,20,FALSE) -> 66% | I15: =VLOOKUP($C15,'RECAP SECT'!$G$6:$DC$253,21,FALSE) -> 17 | J15: =VLOOKUP($C15,'RECAP SECT'!$G$6:$DC$253,22,FALSE) -> 488 | K15: =VLOOKUP($C15,'RECAP SECT'!$G$6:$DC$253,23,FALSE) -> 7.50 | L15: =VLOOKUP($C15,'RECAP SECT'!$G$6:$DC$253,24,FALSE) -> 46% | M15: =VLOOKUP($C15,'RECAP SECT'!$G$6:$DC$253,25,FALSE) -> 18 | N15: =VLOOKUP($C15,'RECAP SECT'!$G$6:$DC$253,26,FALSE) -> 47 | O15: =VLOOKUP($C15,'RECAP SECT'!$G$6:$DC$253,27,FALSE) -> 0.72 | P15: =VLOOKUP($C15,'RECAP SECT'!$G$6:$DC$253,28,FALSE) -> 85% | Q15: =VLOOKUP($C15,'RECAP SECT'!$G$6:$DC$253,29,FALSE) -> 17 | R15: =VLOOKUP($C15,'RECAP SECT'!$G$6:$DC$253,30,FALSE) -> -20.5 | S15: =VLOOKUP($C15,'RECAP SECT'!$G$6:$DC$253,31,FALSE) -> -0.31 | T15: =VLOOKUP($C15,'RECAP SECT'!$G$6:$DC$253,32,FALSE) -> 15% | U15: =VLOOKUP($C15,'RECAP SECT'!$G$6:$DC$253,33,FALSE) -> 4 | V15: =VLOOKUP($C15,'RECAP SECT'!$G$6:$DC$253,34,FALSE) -> 57% | W15: =VLOOKUP($C15,'RECAP SECT'!$G$6:$DC$253,35,FALSE) -> 34% | X15: =VLOOKUP($C15,'RECAP SECT'!$G$6:$DC$253,36,FALSE) -> 17
A16: 264 | B16: HAUT-RHIN | C16: 5169 | D16: MULHOUSE | E16: =VLOOKUP($C16,'RECAP SECT'!$G$6:$DC$253,3,FALSE) -> 61.5 | F16: =VLOOKUP($C16,'RECAP SECT'!$G$6:$DC$253,18,FALSE) -> 155 | G16: =VLOOKUP($C16,'RECAP SECT'!$G$6:$DC$253,19,FALSE) -> 2.52 | H16: =VLOOKUP($C16,'RECAP SECT'!$G$6:$DC$253,20,FALSE) -> 89% | I16: =VLOOKUP($C16,'RECAP SECT'!$G$6:$DC$253,21,FALSE) -> 18 | J16: =VLOOKUP($C16,'RECAP SECT'!$G$6:$DC$253,22,FALSE) -> 506 | K16: =VLOOKUP($C16,'RECAP SECT'!$G$6:$DC$253,23,FALSE) -> 8.22 | L16: =VLOOKUP($C16,'RECAP SECT'!$G$6:$DC$253,24,FALSE) -> 41% | M16: =VLOOKUP($C16,'RECAP SECT'!$G$6:$DC$253,25,FALSE) -> 15 | N16: =VLOOKUP($C16,'RECAP SECT'!$G$6:$DC$253,26,FALSE) -> 43 | O16: =VLOOKUP($C16,'RECAP SECT'!$G$6:$DC$253,27,FALSE) -> 0.70 | P16: =VLOOKUP($C16,'RECAP SECT'!$G$6:$DC$253,28,FALSE) -> 86% | Q16: =VLOOKUP($C16,'RECAP SECT'!$G$6:$DC$253,29,FALSE) -> 18 | R16: =VLOOKUP($C16,'RECAP SECT'!$G$6:$DC$253,30,FALSE) -> -24.3 | S16: =VLOOKUP($C16,'RECAP SECT'!$G$6:$DC$253,31,FALSE) -> -0.40 | T16: =VLOOKUP($C16,'RECAP SECT'!$G$6:$DC$253,32,FALSE) -> 44% | U16: =VLOOKUP($C16,'RECAP SECT'!$G$6:$DC$253,33,FALSE) -> 14 | V16: =VLOOKUP($C16,'RECAP SECT'!$G$6:$DC$253,34,FALSE) -> 72% | W16: =VLOOKUP($C16,'RECAP SECT'!$G$6:$DC$253,35,FALSE) -> 49% | X16: =VLOOKUP($C16,'RECAP SECT'!$G$6:$DC$253,36,FALSE) -> 18
A17: 30 | B17: MARNE-ARDENNES | C17: 6 | D17: CHALONS EN CHAMPAGNE | E17: =VLOOKUP($C17,'RECAP SECT'!$G$6:$DC$253,3,FALSE) -> 45.4 | F17: =VLOOKUP($C17,'RECAP SECT'!$G$6:$DC$253,18,FALSE) -> 558 | G17: =VLOOKUP($C17,'RECAP SECT'!$G$6:$DC$253,19,FALSE) -> 12.29 | H17: =VLOOKUP($C17,'RECAP SECT'!$G$6:$DC$253,20,FALSE) -> 44% | I17: =VLOOKUP($C17,'RECAP SECT'!$G$6:$DC$253,21,FALSE) -> 9 | J17: =VLOOKUP($C17,'RECAP SECT'!$G$6:$DC$253,22,FALSE) -> 478 | K17: =VLOOKUP($C17,'RECAP SECT'!$G$6:$DC$253,23,FALSE) -> 10.52 | L17: =VLOOKUP($C17,'RECAP SECT'!$G$6:$DC$253,24,FALSE) -> 25% | M17: =VLOOKUP($C17,'RECAP SECT'!$G$6:$DC$253,25,FALSE) -> 7 | N17: =VLOOKUP($C17,'RECAP SECT'!$G$6:$DC$253,26,FALSE) -> 141 | O17: =VLOOKUP($C17,'RECAP SECT'!$G$6:$DC$253,27,FALSE) -> 3.10 | P17: =VLOOKUP($C17,'RECAP SECT'!$G$6:$DC$253,28,FALSE) -> 37% | Q17: =VLOOKUP($C17,'RECAP SECT'!$G$6:$DC$253,29,FALSE) -> 3 | R17: =VLOOKUP($C17,'RECAP SECT'!$G$6:$DC$253,30,FALSE) -> -16.9 | S17: =VLOOKUP($C17,'RECAP SECT'!$G$6:$DC$253,31,FALSE) -> -0.37 | T17: =VLOOKUP($C17,'RECAP SECT'!$G$6:$DC$253,32,FALSE) -> 35% | U17: =VLOOKUP($C17,'RECAP SECT'!$G$6:$DC$253,33,FALSE) -> 10 | V17: =VLOOKUP($C17,'RECAP SECT'!$G$6:$DC$253,34,FALSE) -> 38% | W17: =VLOOKUP($C17,'RECAP SECT'!$G$6:$DC$253,35,FALSE) -> 15% | X17: =VLOOKUP($C17,'RECAP SECT'!$G$6:$DC$253,36,FALSE) -> 6
A18: 30 | B18: MARNE-ARDENNES | C18: 2 | D18: CHARLEVILLE MEZIERES | E18: =VLOOKUP($C18,'RECAP SECT'!$G$6:$DC$253,3,FALSE) -> 56.0 | F18: =VLOOKUP($C18,'RECAP SECT'!$G$6:$DC$253,18,FALSE) -> 598 | G18: =VLOOKUP($C18,'RECAP SECT'!$G$6:$DC$253,19,FALSE) -> 10.68 | H18: =VLOOKUP($C18,'RECAP SECT'!$G$6:$DC$253,20,FALSE) -> 52% | I18: =VLOOKUP($C18,'RECAP SECT'!$G$6:$DC$253,21,FALSE) -> 12 | J18: =VLOOKUP($C18,'RECAP SECT'!$G$6:$DC$253,22,FALSE) -> 652 | K18: =VLOOKUP($C18,'RECAP SECT'!$G$6:$DC$253,23,FALSE) -> 11.65 | L18: =VLOOKUP($C18,'RECAP SECT'!$G$6:$DC$253,24,FALSE) -> 17% | M18: =VLOOKUP($C18,'RECAP SECT'!$G$6:$DC$253,25,FALSE) -> 5 | N18: =VLOOKUP($C18,'RECAP SECT'!$G$6:$DC$253,26,FALSE) -> 147 | O18: =VLOOKUP($C18,'RECAP SECT'!$G$6:$DC$253,27,FALSE) -> 2.63 | P18: =VLOOKUP($C18,'RECAP SECT'!$G$6:$DC$253,28,FALSE) -> 47% | Q18: =VLOOKUP($C18,'RECAP SECT'!$G$6:$DC$253,29,FALSE) -> 5 | R18: =VLOOKUP($C18,'RECAP SECT'!$G$6:$DC$253,30,FALSE) -> -18.4 | S18: =VLOOKUP($C18,'RECAP SECT'!$G$6:$DC$253,31,FALSE) -> -0.33 | T18: =VLOOKUP($C18,'RECAP SECT'!$G$6:$DC$253,32,FALSE) -> 20% | U18: =VLOOKUP($C18,'RECAP SECT'!$G$6:$DC$253,33,FALSE) -> 6 | V18: =VLOOKUP($C18,'RECAP SECT'!$G$6:$DC$253,34,FALSE) -> 39% | W18: =VLOOKUP($C18,'RECAP SECT'!$G$6:$DC$253,35,FALSE) -> 16% | X18: =VLOOKUP($C18,'RECAP SECT'!$G$6:$DC$253,36,FALSE) -> 8
A19: 30 | B19: MARNE-ARDENNES | C19: 11 | D19: REIMS | E19: =VLOOKUP($C19,'RECAP SECT'!$G$6:$DC$253,3,FALSE) -> 83.2 | F19: =VLOOKUP($C19,'RECAP SECT'!$G$6:$DC$253,18,FALSE) -> 1,205 | G19: =VLOOKUP($C19,'RECAP SECT'!$G$6:$DC$253,19,FALSE) -> 14.48 | H19: =VLOOKUP($C19,'RECAP SECT'!$G$6:$DC$253,20,FALSE) -> 34% | I19: =VLOOKUP($C19,'RECAP SECT'!$G$6:$DC$253,21,FALSE) -> 4 | J19: =VLOOKUP($C19,'RECAP SECT'!$G$6:$DC$253,22,FALSE) -> 989 | K19: =VLOOKUP($C19,'RECAP SECT'!$G$6:$DC$253,23,FALSE) -> 11.89 | L19: =VLOOKUP($C19,'RECAP SECT'!$G$6:$DC$253,24,FALSE) -> 15% | M19: =VLOOKUP($C19,'RECAP SECT'!$G$6:$DC$253,25,FALSE) -> 4 | N19: =VLOOKUP($C19,'RECAP SECT'!$G$6:$DC$253,26,FALSE) -> 281 | O19: =VLOOKUP($C19,'RECAP SECT'!$G$6:$DC$253,27,FALSE) -> 3.38 | P19: =VLOOKUP($C19,'RECAP SECT'!$G$6:$DC$253,28,FALSE) -> 31% | Q19: =VLOOKUP($C19,'RECAP SECT'!$G$6:$DC$253,29,FALSE) -> 2 | R19: =VLOOKUP($C19,'RECAP SECT'!$G$6:$DC$253,30,FALSE) -> -36.5 | S19: =VLOOKUP($C19,'RECAP SECT'!$G$6:$DC$253,31,FALSE) -> -0.44 | T19: =VLOOKUP($C19,'RECAP SECT'!$G$6:$DC$253,32,FALSE) -> 60% | U19: =VLOOKUP($C19,'RECAP SECT'!$G$6:$DC$253,33,FALSE) -> 16 | V19: =VLOOKUP($C19,'RECAP SECT'!$G$6:$DC$253,34,FALSE) -> 34% | W19: =VLOOKUP($C19,'RECAP SECT'!$G$6:$DC$253,35,FALSE) -> 11% | X19: =VLOOKUP($C19,'RECAP SECT'!$G$6:$DC$253,36,FALSE) -> 4
A20: 110 | B20: MEURTHE ET MOSELLE MEUSE | C20: 26 | D20: NANCY | E20: =VLOOKUP($C20,'RECAP SECT'!$G$6:$DC$253,3,FALSE) -> 67.6 | F20: =VLOOKUP($C20,'RECAP SECT'!$G$6:$DC$253,18,FALSE) -> 993 | G20: =VLOOKUP($C20,'RECAP SECT'!$G$6:$DC$253,19,FALSE) -> 14.69 | H20: =VLOOKUP($C20,'RECAP SECT'!$G$6:$DC$253,20,FALSE) -> 33% | I20: =VLOOKUP($C20,'RECAP SECT'!$G$6:$DC$253,21,FALSE) -> 3 | J20: =VLOOKUP($C20,'RECAP SECT'!$G$6:$DC$253,22,FALSE) -> 946 | K20: =VLOOKUP($C20,'RECAP SECT'!$G$6:$DC$253,23,FALSE) -> 14.00 | L20: =VLOOKUP($C20,'RECAP SECT'!$G$6:$DC$253,24,FALSE) -> 0% | M20: =VLOOKUP($C20,'RECAP SECT'!$G$6:$DC$253,25,FALSE) -> 1 | N20: =VLOOKUP($C20,'RECAP SECT'!$G$6:$DC$253,26,FALSE) -> 332 | O20: =VLOOKUP($C20,'RECAP SECT'!$G$6:$DC$253,27,FALSE) -> 4.91 | P20: =VLOOKUP($C20,'RECAP SECT'!$G$6:$DC$253,28,FALSE) -> 0% | Q20: =VLOOKUP($C20,'RECAP SECT'!$G$6:$DC$253,29,FALSE) -> 1 | R20: =VLOOKUP($C20,'RECAP SECT'!$G$6:$DC$253,30,FALSE) -> -26.1 | S20: =VLOOKUP($C20,'RECAP SECT'!$G$6:$DC$253,31,FALSE) -> -0.39 | T20: =VLOOKUP($C20,'RECAP SECT'!$G$6:$DC$253,32,FALSE) -> 41% | U20: =VLOOKUP($C20,'RECAP SECT'!$G$6:$DC$253,33,FALSE) -> 12 | V20: =VLOOKUP($C20,'RECAP SECT'!$G$6:$DC$253,34,FALSE) -> 23% | W20: =VLOOKUP($C20,'RECAP SECT'!$G$6:$DC$253,35,FALSE) -> 0% | X20: =VLOOKUP($C20,'RECAP SECT'!$G$6:$DC$253,36,FALSE) -> 1
A21: 110 | B21: MEURTHE ET MOSELLE MEUSE | C21: 27 | D21: PONT A MOUSSON | E21: =VLOOKUP($C21,'RECAP SECT'!$G$6:$DC$253,3,FALSE) -> 77.5 | F21: =VLOOKUP($C21,'RECAP SECT'!$G$6:$DC$253,18,FALSE) -> 1,028 | G21: =VLOOKUP($C21,'RECAP SECT'!$G$6:$DC$253,19,FALSE) -> 13.26 | H21: =VLOOKUP($C21,'RECAP SECT'!$G$6:$DC$253,20,FALSE) -> 40% | I21: =VLOOKUP($C21,'RECAP SECT'!$G$6:$DC$253,21,FALSE) -> 7 | J21: =VLOOKUP($C21,'RECAP SECT'!$G$6:$DC$253,22,FALSE) -> 952 | K21: =VLOOKUP($C21,'RECAP SECT'!$G$6:$DC$253,23,FALSE) -> 12.28 | L21: =VLOOKUP($C21,'RECAP SECT'!$G$6:$DC$253,24,FALSE) -> 12% | M21: =VLOOKUP($C21,'RECAP SECT'!$G$6:$DC$253,25,FALSE) -> 3 | N21: =VLOOKUP($C21,'RECAP SECT'!$G$6:$DC$253,26,FALSE) -> 230 | O21: =VLOOKUP($C21,'RECAP SECT'!$G$6:$DC$253,27,FALSE) -> 2.97 | P21: =VLOOKUP($C21,'RECAP SECT'!$G$6:$DC$253,28,FALSE) -> 40% | Q21: =VLOOKUP($C21,'RECAP SECT'!$G$6:$DC$253,29,FALSE) -> 4 | R21: =VLOOKUP($C21,'RECAP SECT'!$G$6:$DC$253,30,FALSE) -> -31.6 | S21: =VLOOKUP($C21,'RECAP SECT'!$G$6:$DC$253,31,FALSE) -> -0.41 | T21: =VLOOKUP($C21,'RECAP SECT'!$G$6:$DC$253,32,FALSE) -> 49% | U21: =VLOOKUP($C21,'RECAP SECT'!$G$6:$DC$253,33,FALSE) -> 15 | V21: =VLOOKUP($C21,'RECAP SECT'!$G$6:$DC$253,34,FALSE) -> 36% | W21: =VLOOKUP($C21,'RECAP SECT'!$G$6:$DC$253,35,FALSE) -> 13% | X21: =VLOOKUP($C21,'RECAP SECT'!$G$6:$DC$253,36,FALSE) -> 5
A22: 110 | B22: MEURTHE ET MOSELLE MEUSE | C22: 31 | D22: VERDUN | E22: =VLOOKUP($C22,'RECAP SECT'!$G$6:$DC$253,3,FALSE) -> 58.4 | F22: =VLOOKUP($C22,'RECAP SECT'!$G$6:$DC$253,18,FALSE) -> 571 | G22: =VLOOKUP($C22,'RECAP SECT'!$G$6:$DC$253,19,FALSE) -> 9.78 | H22: =VLOOKUP($C22,'RECAP SECT'!$G$6:$DC$253,20,FALSE) -> 56% | I22: =VLOOKUP($C22,'RECAP SECT'!$G$6:$DC$253,21,FALSE) -> 16 | J22: =VLOOKUP($C22,'RECAP SECT'!$G$6:$DC$253,22,FALSE) -> 607 | K22: =VLOOKUP($C22,'RECAP SECT'!$G$6:$DC$253,23,FALSE) -> 10.40 | L22: =VLOOKUP($C22,'RECAP SECT'!$G$6:$DC$253,24,FALSE) -> 26% | M22: =VLOOKUP($C22,'RECAP SECT'!$G$6:$DC$253,25,FALSE) -> 8 | N22: =VLOOKUP($C22,'RECAP SECT'!$G$6:$DC$253,26,FALSE) -> 116 | O22: =VLOOKUP($C22,'RECAP SECT'!$G$6:$DC$253,27,FALSE) -> 1.99 | P22: =VLOOKUP($C22,'RECAP SECT'!$G$6:$DC$253,28,FALSE) -> 60% | Q22: =VLOOKUP($C22,'RECAP SECT'!$G$6:$DC$253,29,FALSE) -> 7 | R22: =VLOOKUP($C22,'RECAP SECT'!$G$6:$DC$253,30,FALSE) -> -18.3 | S22: =VLOOKUP($C22,'RECAP SECT'!$G$6:$DC$253,31,FALSE) -> -0.31 | T22: =VLOOKUP($C22,'RECAP SECT'!$G$6:$DC$253,32,FALSE) -> 15% | U22: =VLOOKUP($C22,'RECAP SECT'!$G$6:$DC$253,33,FALSE) -> 3 | V22: =VLOOKUP($C22,'RECAP SECT'!$G$6:$DC$253,34,FALSE) -> 44% | W22: =VLOOKUP($C22,'RECAP SECT'!$G$6:$DC$253,35,FALSE) -> 21% | X22: =VLOOKUP($C22,'RECAP SECT'!$G$6:$DC$253,36,FALSE) -> 12
A23: 160 | B23: MOSELLE | C23: 45 | D23: METZ | E23: =VLOOKUP($C23,'RECAP SECT'!$G$6:$DC$253,3,FALSE) -> 89.1 | F23: =VLOOKUP($C23,'RECAP SECT'!$G$6:$DC$253,18,FALSE) -> 877 | G23: =VLOOKUP($C23,'RECAP SECT'!$G$6:$DC$253,19,FALSE) -> 9.84 | H23: =VLOOKUP($C23,'RECAP SECT'!$G$6:$DC$253,20,FALSE) -> 55% | I23: =VLOOKUP($C23,'RECAP SECT'!$G$6:$DC$253,21,FALSE) -> 15 | J23: =VLOOKUP($C23,'RECAP SECT'!$G$6:$DC$253,22,FALSE) -> 859 | K23: =VLOOKUP($C23,'RECAP SECT'!$G$6:$DC$253,23,FALSE) -> 9.64 | L23: =VLOOKUP($C23,'RECAP SECT'!$G$6:$DC$253,24,FALSE) -> 31% | M23: =VLOOKUP($C23,'RECAP SECT'!$G$6:$DC$253,25,FALSE) -> 11 | N23: =VLOOKUP($C23,'RECAP SECT'!$G$6:$DC$253,26,FALSE) -> 136 | O23: =VLOOKUP($C23,'RECAP SECT'!$G$6:$DC$253,27,FALSE) -> 1.53 | P23: =VLOOKUP($C23,'RECAP SECT'!$G$6:$DC$253,28,FALSE) -> 69% | Q23: =VLOOKUP($C23,'RECAP SECT'!$G$6:$DC$253,29,FALSE) -> 9 | R23: =VLOOKUP($C23,'RECAP SECT'!$G$6:$DC$253,30,FALSE) -> -32.4 | S23: =VLOOKUP($C23,'RECAP SECT'!$G$6:$DC$253,31,FALSE) -> -0.36 | T23: =VLOOKUP($C23,'RECAP SECT'!$G$6:$DC$253,32,FALSE) -> 33% | U23: =VLOOKUP($C23,'RECAP SECT'!$G$6:$DC$253,33,FALSE) -> 9 | V23: =VLOOKUP($C23,'RECAP SECT'!$G$6:$DC$253,34,FALSE) -> 49% | W23: =VLOOKUP($C23,'RECAP SECT'!$G$6:$DC$253,35,FALSE) -> 26% | X23: =VLOOKUP($C23,'RECAP SECT'!$G$6:$DC$253,36,FALSE) -> 14
A24: 160 | B24: MOSELLE | C24: 42 | D24: MOSELLE EST | E24: =VLOOKUP($C24,'RECAP SECT'!$G$6:$DC$253,3,FALSE) -> 72.5 | F24: =VLOOKUP($C24,'RECAP SECT'!$G$6:$DC$253,18,FALSE) -> 980 | G24: =VLOOKUP($C24,'RECAP SECT'!$G$6:$DC$253,19,FALSE) -> 13.52 | H24: =VLOOKUP($C24,'RECAP SECT'!$G$6:$DC$253,20,FALSE) -> 39% | I24: =VLOOKUP($C24,'RECAP SECT'!$G$6:$DC$253,21,FALSE) -> 6 | J24: =VLOOKUP($C24,'RECAP SECT'!$G$6:$DC$253,22,FALSE) -> 652 | K24: =VLOOKUP($C24,'RECAP SECT'!$G$6:$DC$253,23,FALSE) -> 8.99 | L24: =VLOOKUP($C24,'RECAP SECT'!$G$6:$DC$253,24,FALSE) -> 36% | M24: =VLOOKUP($C24,'RECAP SECT'!$G$6:$DC$253,25,FALSE) -> 14 | N24: =VLOOKUP($C24,'RECAP SECT'!$G$6:$DC$253,26,FALSE) -> 72 | O24: =VLOOKUP($C24,'RECAP SECT'!$G$6:$DC$253,27,FALSE) -> 0.99 | P24: =VLOOKUP($C24,'RECAP SECT'!$G$6:$DC$253,28,FALSE) -> 80% | Q24: =VLOOKUP($C24,'RECAP SECT'!$G$6:$DC$253,29,FALSE) -> 15 | R24: =VLOOKUP($C24,'RECAP SECT'!$G$6:$DC$253,30,FALSE) -> -23.4 | S24: =VLOOKUP($C24,'RECAP SECT'!$G$6:$DC$253,31,FALSE) -> -0.32 | T24: =VLOOKUP($C24,'RECAP SECT'!$G$6:$DC$253,32,FALSE) -> 18% | U24: =VLOOKUP($C24,'RECAP SECT'!$G$6:$DC$253,33,FALSE) -> 5 | V24: =VLOOKUP($C24,'RECAP SECT'!$G$6:$DC$253,34,FALSE) -> 41% | W24: =VLOOKUP($C24,'RECAP SECT'!$G$6:$DC$253,35,FALSE) -> 18% | X24: =VLOOKUP($C24,'RECAP SECT'!$G$6:$DC$253,36,FALSE) -> 10
A25: 160 | B25: MOSELLE | C25: 44 | D25: MOSELLE NORD | E25: =VLOOKUP($C25,'RECAP SECT'!$G$6:$DC$253,3,FALSE) -> 74.2 | F25: =VLOOKUP($C25,'RECAP SECT'!$G$6:$DC$253,18,FALSE) -> 919 | G25: =VLOOKUP($C25,'RECAP SECT'!$G$6:$DC$253,19,FALSE) -> 12.39 | H25: =VLOOKUP($C25,'RECAP SECT'!$G$6:$DC$253,20,FALSE) -> 44% | I25: =VLOOKUP($C25,'RECAP SECT'!$G$6:$DC$253,21,FALSE) -> 8 | J25: =VLOOKUP($C25,'RECAP SECT'!$G$6:$DC$253,22,FALSE) -> 671 | K25: =VLOOKUP($C25,'RECAP SECT'!$G$6:$DC$253,23,FALSE) -> 9.05 | L25: =VLOOKUP($C25,'RECAP SECT'!$G$6:$DC$253,24,FALSE) -> 35% | M25: =VLOOKUP($C25,'RECAP SECT'!$G$6:$DC$253,25,FALSE) -> 13 | N25: =VLOOKUP($C25,'RECAP SECT'!$G$6:$DC$253,26,FALSE) -> 80 | O25: =VLOOKUP($C25,'RECAP SECT'!$G$6:$DC$253,27,FALSE) -> 1.08 | P25: =VLOOKUP($C25,'RECAP SECT'!$G$6:$DC$253,28,FALSE) -> 78% | Q25: =VLOOKUP($C25,'RECAP SECT'!$G$6:$DC$253,29,FALSE) -> 14 | R25: =VLOOKUP($C25,'RECAP SECT'!$G$6:$DC$253,30,FALSE) -> -20.3 | S25: =VLOOKUP($C25,'RECAP SECT'!$G$6:$DC$253,31,FALSE) -> -0.27 | T25: =VLOOKUP($C25,'RECAP SECT'!$G$6:$DC$253,32,FALSE) -> 0% | U25: =VLOOKUP($C25,'RECAP SECT'!$G$6:$DC$253,33,FALSE) -> 1 | V25: =VLOOKUP($C25,'RECAP SECT'!$G$6:$DC$253,34,FALSE) -> 41% | W25: =VLOOKUP($C25,'RECAP SECT'!$G$6:$DC$253,35,FALSE) -> 18% | X25: =VLOOKUP($C25,'RECAP SECT'!$G$6:$DC$253,36,FALSE) -> 9
A26: 80 | B26: VOSGES | C26: 57 | D26: EPINAL | E26: =VLOOKUP($C26,'RECAP SECT'!$G$6:$DC$253,3,FALSE) -> 61.5 | F26: =VLOOKUP($C26,'RECAP SECT'!$G$6:$DC$253,18,FALSE) -> 612 | G26: =VLOOKUP($C26,'RECAP SECT'!$G$6:$DC$253,19,FALSE) -> 9.96 | H26: =VLOOKUP($C26,'RECAP SECT'!$G$6:$DC$253,20,FALSE) -> 55% | I26: =VLOOKUP($C26,'RECAP SECT'!$G$6:$DC$253,21,FALSE) -> 13 | J26: =VLOOKUP($C26,'RECAP SECT'!$G$6:$DC$253,22,FALSE) -> 626 | K26: =VLOOKUP($C26,'RECAP SECT'!$G$6:$DC$253,23,FALSE) -> 10.19 | L26: =VLOOKUP($C26,'RECAP SECT'!$G$6:$DC$253,24,FALSE) -> 27% | M26: =VLOOKUP($C26,'RECAP SECT'!$G$6:$DC$253,25,FALSE) -> 9 | N26: =VLOOKUP($C26,'RECAP SECT'!$G$6:$DC$253,26,FALSE) -> 113 | O26: =VLOOKUP($C26,'RECAP SECT'!$G$6:$DC$253,27,FALSE) -> 1.84 | P26: =VLOOKUP($C26,'RECAP SECT'!$G$6:$DC$253,28,FALSE) -> 63% | Q26: =VLOOKUP($C26,'RECAP SECT'!$G$6:$DC$253,29,FALSE) -> 8 | R26: =VLOOKUP($C26,'RECAP SECT'!$G$6:$DC$253,30,FALSE) -> -24.3 | S26: =VLOOKUP($C26,'RECAP SECT'!$G$6:$DC$253,31,FALSE) -> -0.39 | T26: =VLOOKUP($C26,'RECAP SECT'!$G$6:$DC$253,32,FALSE) -> 44% | U26: =VLOOKUP($C26,'RECAP SECT'!$G$6:$DC$253,33,FALSE) -> 13 | V26: =VLOOKUP($C26,'RECAP SECT'!$G$6:$DC$253,34,FALSE) -> 49% | W26: =VLOOKUP($C26,'RECAP SECT'!$G$6:$DC$253,35,FALSE) -> 26% | X26: =VLOOKUP($C26,'RECAP SECT'!$G$6:$DC$253,36,FALSE) -> 13
A27: 80 | B27: VOSGES | C27: 55 | D27: SAINT DIE | E27: =VLOOKUP($C27,'RECAP SECT'!$G$6:$DC$253,3,FALSE) -> 50.2 | F27: =VLOOKUP($C27,'RECAP SECT'!$G$6:$DC$253,18,FALSE) -> 550 | G27: =VLOOKUP($C27,'RECAP SECT'!$G$6:$DC$253,19,FALSE) -> 10.95 | H27: =VLOOKUP($C27,'RECAP SECT'!$G$6:$DC$253,20,FALSE) -> 50% | I27: =VLOOKUP($C27,'RECAP SECT'!$G$6:$DC$253,21,FALSE) -> 10 | J27: =VLOOKUP($C27,'RECAP SECT'!$G$6:$DC$253,22,FALSE) -> 406 | K27: =VLOOKUP($C27,'RECAP SECT'!$G$6:$DC$253,23,FALSE) -> 8.08 | L27: =VLOOKUP($C27,'RECAP SECT'!$G$6:$DC$253,24,FALSE) -> 42% | M27: =VLOOKUP($C27,'RECAP SECT'!$G$6:$DC$253,25,FALSE) -> 17 | N27: =VLOOKUP($C27,'RECAP SECT'!$G$6:$DC$253,26,FALSE) -> 47 | O27: =VLOOKUP($C27,'RECAP SECT'!$G$6:$DC$253,27,FALSE) -> 0.94 | P27: =VLOOKUP($C27,'RECAP SECT'!$G$6:$DC$253,28,FALSE) -> 81% | Q27: =VLOOKUP($C27,'RECAP SECT'!$G$6:$DC$253,29,FALSE) -> 16 | R27: =VLOOKUP($C27,'RECAP SECT'!$G$6:$DC$253,30,FALSE) -> -16.9 | S27: =VLOOKUP($C27,'RECAP SECT'!$G$6:$DC$253,31,FALSE) -> -0.34 | T27: =VLOOKUP($C27,'RECAP SECT'!$G$6:$DC$253,32,FALSE) -> 23% | U27: =VLOOKUP($C27,'RECAP SECT'!$G$6:$DC$253,33,FALSE) -> 8 | V27: =VLOOKUP($C27,'RECAP SECT'!$G$6:$DC$253,34,FALSE) -> 49% | W27: =VLOOKUP($C27,'RECAP SECT'!$G$6:$DC$253,35,FALSE) -> 26% | X27: =VLOOKUP($C27,'RECAP SECT'!$G$6:$DC$253,36,FALSE) -> 15
A28: Total CEGEE Directions Régionales | E28: =SUM(E10:E27) -> 1186

Sheet SE_EPARGNE
B1: Accueil | F1: BAROMETRE BDD - TERRITOIRES
F2: EPARGNE
F3: =ACCUEIL!F7 -> 2021-03-07
F7: Excédent Epargne y/c DAV pondéré | J7: Ventes sur client non détenteur de l’univers | N7: Total Epargne
F8: =DATEMAJ!C14 -> au 07/03 | H8: coef | I8: ='RECAP DIRCOM'!AX4 -> 14% | J8: =DATEMAJ!C15 -> au 07/03 | L8: coef | M8: ='RECAP DIRCOM'!BB4 -> 6% | O8: coef | P8: ='RECAP DIRCOM'!BE4 -> 20%
A9: eds | B9: Direction | C9: eds | D9: Territoire | E9: ="ETP perf "&DATEMAJ!$C$28 -> ETP perf 31-janv | F9: Excédent | G9: Excédent / ETP | H9: % Ecart au 1er | I9: Rang | J9: VB | K9: VB / ETP | L9: % Ecart au 1er | M9: Rang | N9: Moyenne ecart au 1er | O9: % Ecart au 1er | P9: Rang CEGEE
A10: 50 | B10: AUBE HAUTE MARNE | C10: 21 | D10: CHAUMONT | E10: =VLOOKUP($C10,'RECAP SECT'!$G$6:$DC$253,3,FALSE) -> 34.0 | F10: =VLOOKUP($C10,'RECAP SECT'!$G$6:$DC$253,41,FALSE) -> 3,298 | G10: =VLOOKUP($C10,'RECAP SECT'!$G$6:$DC$253,42,FALSE) -> 96.98 | H10: =VLOOKUP($C10,'RECAP SECT'!$G$6:$DC$253,43,FALSE) -> 61% | I10: =VLOOKUP($C10,'RECAP SECT'!$G$6:$DC$253,44,FALSE) -> 14 | J10: =VLOOKUP($C10,'RECAP SECT'!$G$6:$DC$253,45,FALSE) -> 206 | K10: =VLOOKUP($C10,'RECAP SECT'!$G$6:$DC$253,46,FALSE) -> 6.06 | L10: =VLOOKUP($C10,'RECAP SECT'!$G$6:$DC$253,47,FALSE) -> 37% | M10: =VLOOKUP($C10,'RECAP SECT'!$G$6:$DC$253,48,FALSE) -> 9 | N10: =VLOOKUP($C10,'RECAP SECT'!$G$6:$DC$253,49,FALSE) -> 54% | O10: =VLOOKUP($C10,'RECAP SECT'!$G$6:$DC$253,50,FALSE) -> 48% | P10: =VLOOKUP($C10,'RECAP SECT'!$G$6:$DC$253,51,FALSE) -> 14
A11: 50 | B11: AUBE HAUTE MARNE | C11: 14 | D11: TROYES | E11: =VLOOKUP($C11,'RECAP SECT'!$G$6:$DC$253,3,FALSE) -> 68.9 | F11: =VLOOKUP($C11,'RECAP SECT'!$G$6:$DC$253,41,FALSE) -> 4,991 | G11: =VLOOKUP($C11,'RECAP SECT'!$G$6:$DC$253,42,FALSE) -> 72.50 | H11: =VLOOKUP($C11,'RECAP SECT'!$G$6:$DC$253,43,FALSE) -> 71% | I11: =VLOOKUP($C11,'RECAP SECT'!$G$6:$DC$253,44,FALSE) -> 17 | J11: =VLOOKUP($C11,'RECAP SECT'!$G$6:$DC$253,45,FALSE) -> 394 | K11: =VLOOKUP($C11,'RECAP SECT'!$G$6:$DC$253,46,FALSE) -> 5.72 | L11: =VLOOKUP($C11,'RECAP SECT'!$G$6:$DC$253,47,FALSE) -> 40% | M11: =VLOOKUP($C11,'RECAP SECT'!$G$6:$DC$253,48,FALSE) -> 11 | N11: =VLOOKUP($C11,'RECAP SECT'!$G$6:$DC$253,49,FALSE) -> 62% | O11: =VLOOKUP($C11,'RECAP SECT'!$G$6:$DC$253,50,FALSE) -> 56% | P11: =VLOOKUP($C11,'RECAP SECT'!$G$6:$DC$253,51,FALSE) -> 18
A12: 262 | B12: BAS-RHIN | C12: 5060 | D12: HAGUENAU | E12: =VLOOKUP($C12,'RECAP SECT'!$G$6:$DC$253,3,FALSE) -> 74.1 | F12: =VLOOKUP($C12,'RECAP SECT'!$G$6:$DC$253,41,FALSE) -> 17,628 | G12: =VLOOKUP($C12,'RECAP SECT'!$G$6:$DC$253,42,FALSE) -> 237.96 | H12: =VLOOKUP($C12,'RECAP SECT'!$G$6:$DC$253,43,FALSE) -> 5% | I12: =VLOOKUP($C12,'RECAP SECT'!$G$6:$DC$253,44,FALSE) -> 2 | J12: =VLOOKUP($C12,'RECAP SECT'!$G$6:$DC$253,45,FALSE) -> 391 | K12: =VLOOKUP($C12,'RECAP SECT'!$G$6:$DC$253,46,FALSE) -> 5.28 | L12: =VLOOKUP($C12,'RECAP SECT'!$G$6:$DC$253,47,FALSE) -> 45% | M12: =VLOOKUP($C12,'RECAP SECT'!$G$6:$DC$253,48,FALSE) -> 14 | N12: =VLOOKUP($C12,'RECAP SECT'!$G$6:$DC$253,49,FALSE) -> 17% | O12: =VLOOKUP($C12,'RECAP SECT'!$G$6:$DC$253,50,FALSE) -> 11% | P12: =VLOOKUP($C12,'RECAP SECT'!$G$6:$DC$253,51,FALSE) -> 2
A13: 262 | B13: BAS-RHIN | C13: 5101 | D13: SELESTAT | E13: =VLOOKUP($C13,'RECAP SECT'!$G$6:$DC$253,3,FALSE) -> 63.5 | F13: =VLOOKUP($C13,'RECAP SECT'!$G$6:$DC$253,41,FALSE) -> 15,945 | G13: =VLOOKUP($C13,'RECAP SECT'!$G$6:$DC$253,42,FALSE) -> 251.29 | H13: =VLOOKUP($C13,'RECAP SECT'!$G$6:$DC$253,43,FALSE) -> 0% | I13: =VLOOKUP($C13,'RECAP SECT'!$G$6:$DC$253,44,FALSE) -> 1 | J13: =VLOOKUP($C13,'RECAP SECT'!$G$6:$DC$253,45,FALSE) -> 488 | K13: =VLOOKUP($C13,'RECAP SECT'!$G$6:$DC$253,46,FALSE) -> 7.69 | L13: =VLOOKUP($C13,'RECAP SECT'!$G$6:$DC$253,47,FALSE) -> 20% | M13: =VLOOKUP($C13,'RECAP SECT'!$G$6:$DC$253,48,FALSE) -> 3 | N13: =VLOOKUP($C13,'RECAP SECT'!$G$6:$DC$253,49,FALSE) -> 6% | O13: =VLOOKUP($C13,'RECAP SECT'!$G$6:$DC$253,50,FALSE) -> 0% | P13: =VLOOKUP($C13,'RECAP SECT'!$G$6:$DC$253,51,FALSE) -> 1
A14: 262 | B14: BAS-RHIN | C14: 5006 | D14: STRASBOURG | E14: =VLOOKUP($C14,'RECAP SECT'!$G$6:$DC$253,3,FALSE) -> 83.0 | F14: =VLOOKUP($C14,'RECAP SECT'!$G$6:$DC$253,41,FALSE) -> 18,218 | G14: =VLOOKUP($C14,'RECAP SECT'!$G$6:$DC$253,42,FALSE) -> 219.38 | H14: =VLOOKUP($C14,'RECAP SECT'!$G$6:$DC$253,43,FALSE) -> 13% | I14: =VLOOKUP($C14,'RECAP SECT'!$G$6:$DC$253,44,FALSE) -> 5 | J14: =VLOOKUP($C14,'RECAP SECT'!$G$6:$DC$253,45,FALSE) -> 545 | K14: =VLOOKUP($C14,'RECAP SECT'!$G$6:$DC$253,46,FALSE) -> 6.56 | L14: =VLOOKUP($C14,'RECAP SECT'!$G$6:$DC$253,47,FALSE) -> 32% | M14: =VLOOKUP($C14,'RECAP SECT'!$G$6:$DC$253,48,FALSE) -> 6 | N14: =VLOOKUP($C14,'RECAP SECT'!$G$6:$DC$253,49,FALSE) -> 18% | O14: =VLOOKUP($C14,'RECAP SECT'!$G$6:$DC$253,50,FALSE) -> 12% | P14: =VLOOKUP($C14,'RECAP SECT'!$G$6:$DC$253,51,FALSE) -> 3
A15: 264 | B15: HAUT-RHIN | C15: 5130 | D15: COLMAR | E15: =VLOOKUP($C15,'RECAP SECT'!$G$6:$DC$253,3,FALSE) -> 65.1 | F15: =VLOOKUP($C15,'RECAP SECT'!$G$6:$DC$253,41,FALSE) -> 8,270 | G15: =VLOOKUP($C15,'RECAP SECT'!$G$6:$DC$253,42,FALSE) -> 127.03 | H15: =VLOOKUP($C15,'RECAP SECT'!$G$6:$DC$253,43,FALSE) -> 49% | I15: =VLOOKUP($C15,'RECAP SECT'!$G$6:$DC$253,44,FALSE) -> 13 | J15: =VLOOKUP($C15,'RECAP SECT'!$G$6:$DC$253,45,FALSE) -> 351 | K15: =VLOOKUP($C15,'RECAP SECT'!$G$6:$DC$253,46,FALSE) -> 5.39 | L15: =VLOOKUP($C15,'RECAP SECT'!$G$6:$DC$253,47,FALSE) -> 44% | M15: =VLOOKUP($C15,'RECAP SECT'!$G$6:$DC$253,48,FALSE) -> 13 | N15: =VLOOKUP($C15,'RECAP SECT'!$G$6:$DC$253,49,FALSE) -> 48% | O15: =VLOOKUP($C15,'RECAP SECT'!$G$6:$DC$253,50,FALSE) -> 42% | P15: =VLOOKUP($C15,'RECAP SECT'!$G$6:$DC$253,51,FALSE) -> 13
A16: 264 | B16: HAUT-RHIN | C16: 5169 | D16: MULHOUSE | E16: =VLOOKUP($C16,'RECAP SECT'!$G$6:$DC$253,3,FALSE) -> 61.5 | F16: =VLOOKUP($C16,'RECAP SECT'!$G$6:$DC$253,41,FALSE) -> 8,140 | G16: =VLOOKUP($C16,'RECAP SECT'!$G$6:$DC$253,42,FALSE) -> 132.26 | H16: =VLOOKUP($C16,'RECAP SECT'!$G$6:$DC$253,43,FALSE) -> 47% | I16: =VLOOKUP($C16,'RECAP SECT'!$G$6:$DC$253,44,FALSE) -> 12 | J16: =VLOOKUP($C16,'RECAP SECT'!$G$6:$DC$253,45,FALSE) -> 403 | K16: =VLOOKUP($C16,'RECAP SECT'!$G$6:$DC$253,46,FALSE) -> 6.55 | L16: =VLOOKUP($C16,'RECAP SECT'!$G$6:$DC$253,47,FALSE) -> 32% | M16: =VLOOKUP($C16,'RECAP SECT'!$G$6:$DC$253,48,FALSE) -> 7 | N16: =VLOOKUP($C16,'RECAP SECT'!$G$6:$DC$253,49,FALSE) -> 43% | O16: =VLOOKUP($C16,'RECAP SECT'!$G$6:$DC$253,50,FALSE) -> 37% | P16: =VLOOKUP($C16,'RECAP SECT'!$G$6:$DC$253,51,FALSE) -> 12
A17: 30 | B17: MARNE-ARDENNES | C17: 6 | D17: CHALONS EN CHAMPAGNE | E17: =VLOOKUP($C17,'RECAP SECT'!$G$6:$DC$253,3,FALSE) -> 45.4 | F17: =VLOOKUP($C17,'RECAP SECT'!$G$6:$DC$253,41,FALSE) -> 2,053 | G17: =VLOOKUP($C17,'RECAP SECT'!$G$6:$DC$253,42,FALSE) -> 45.21 | H17: =VLOOKUP($C17,'RECAP SECT'!$G$6:$DC$253,43,FALSE) -> 82% | I17: =VLOOKUP($C17,'RECAP SECT'!$G$6:$DC$253,44,FALSE) -> 18 | J17: =VLOOKUP($C17,'RECAP SECT'!$G$6:$DC$253,45,FALSE) -> 436 | K17: =VLOOKUP($C17,'RECAP SECT'!$G$6:$DC$253,46,FALSE) -> 9.60 | L17: =VLOOKUP($C17,'RECAP SECT'!$G$6:$DC$253,47,FALSE) -> 0% | M17: =VLOOKUP($C17,'RECAP SECT'!$G$6:$DC$253,48,FALSE) -> 1 | N17: =VLOOKUP($C17,'RECAP SECT'!$G$6:$DC$253,49,FALSE) -> 57% | O17: =VLOOKUP($C17,'RECAP SECT'!$G$6:$DC$253,50,FALSE) -> 51% | P17: =VLOOKUP($C17,'RECAP SECT'!$G$6:$DC$253,51,FALSE) -> 15
A18: 30 | B18: MARNE-ARDENNES | C18: 2 | D18: CHARLEVILLE MEZIERES | E18: =VLOOKUP($C18,'RECAP SECT'!$G$6:$DC$253,3,FALSE) -> 56.0 | F18: =VLOOKUP($C18,'RECAP SECT'!$G$6:$DC$253,41,FALSE) -> 8,349 | G18: =VLOOKUP($C18,'RECAP SECT'!$G$6:$DC$253,42,FALSE) -> 149.16 | H18: =VLOOKUP($C18,'RECAP SECT'!$G$6:$DC$253,43,FALSE) -> 41% | I18: =VLOOKUP($C18,'RECAP SECT'!$G$6:$DC$253,44,FALSE) -> 11 | J18: =VLOOKUP($C18,'RECAP SECT'!$G$6:$DC$253,45,FALSE) -> 449 | K18: =VLOOKUP($C18,'RECAP SECT'!$G$6:$DC$253,46,FALSE) -> 8.02 | L18: =VLOOKUP($C18,'RECAP SECT'!$G$6:$DC$253,47,FALSE) -> 16% | M18: =VLOOKUP($C18,'RECAP SECT'!$G$6:$DC$253,48,FALSE) -> 2 | N18: =VLOOKUP($C18,'RECAP SECT'!$G$6:$DC$253,49,FALSE) -> 33% | O18: =VLOOKUP($C18,'RECAP SECT'!$G$6:$DC$253,50,FALSE) -> 27% | P18: =VLOOKUP($C18,'RECAP SECT'!$G$6:$DC$253,51,FALSE) -> 10
A19: 30 | B19: MARNE-ARDENNES | C19: 11 | D19: REIMS | E19: =VLOOKUP($C19,'RECAP SECT'!$G$6:$DC$253,3,FALSE) -> 83.2 | F19: =VLOOKUP($C19,'RECAP SECT'!$G$6:$DC$253,41,FALSE) -> 6,929 | G19: =VLOOKUP($C19,'RECAP SECT'!$G$6:$DC$253,42,FALSE) -> 83.30 | H19: =VLOOKUP($C19,'RECAP SECT'!$G$6:$DC$253,43,FALSE) -> 67% | I19: =VLOOKUP($C19,'RECAP SECT'!$G$6:$DC$253,44,FALSE) -> 16 | J19: =VLOOKUP($C19,'RECAP SECT'!$G$6:$DC$253,45,FALSE) -> 497 | K19: =VLOOKUP($C19,'RECAP SECT'!$G$6:$DC$253,46,FALSE) -> 5.98 | L19: =VLOOKUP($C19,'RECAP SECT'!$G$6:$DC$253,47,FALSE) -> 38% | M19: =VLOOKUP($C19,'RECAP SECT'!$G$6:$DC$253,48,FALSE) -> 10 | N19: =VLOOKUP($C19,'RECAP SECT'!$G$6:$DC$253,49,FALSE) -> 58% | O19: =VLOOKUP($C19,'RECAP SECT'!$G$6:$DC$253,50,FALSE) -> 52% | P19: =VLOOKUP($C19,'RECAP SECT'!$G$6:$DC$253,51,FALSE) -> 16
A20: 110 | B20: MEURTHE ET MOSELLE MEUSE | C20: 26 | D20: NANCY | E20: =VLOOKUP($C20,'RECAP SECT'!$G$6:$DC$253,3,FALSE) -> 67.6 | F20: =VLOOKUP($C20,'RECAP SECT'!$G$6:$DC$253,41,FALSE) -> 11,985 | G20: =VLOOKUP($C20,'RECAP SECT'!$G$6:$DC$253,42,FALSE) -> 177.37 | H20: =VLOOKUP($C20,'RECAP SECT'!$G$6:$DC$253,43,FALSE) -> 29% | I20: =VLOOKUP($C20,'RECAP SECT'!$G$6:$DC$253,44,FALSE) -> 8 | J20: =VLOOKUP($C20,'RECAP SECT'!$G$6:$DC$253,45,FALSE) -> 514 | K20: =VLOOKUP($C20,'RECAP SECT'!$G$6:$DC$253,46,FALSE) -> 7.61 | L20: =VLOOKUP($C20,'RECAP SECT'!$G$6:$DC$253,47,FALSE) -> 21% | M20: =VLOOKUP($C20,'RECAP SECT'!$G$6:$DC$253,48,FALSE) -> 4 | N20: =VLOOKUP($C20,'RECAP SECT'!$G$6:$DC$253,49,FALSE) -> 27% | O20: =VLOOKUP($C20,'RECAP SECT'!$G$6:$DC$253,50,FALSE) -> 21% | P20: =VLOOKUP($C20,'RECAP SECT'!$G$6:$DC$253,51,FALSE) -> 8
A21: 110 | B21: MEURTHE ET MOSELLE MEUSE | C21: 27 | D21: PONT A MOUSSON | E21: =VLOOKUP($C21,'RECAP SECT'!$G$6:$DC$253,3,FALSE) -> 77.5 | F21: =VLOOKUP($C21,'RECAP SECT'!$G$6:$DC$253,41,FALSE) -> 15,448 | G21: =VLOOKUP($C21,'RECAP SECT'!$G$6:$DC$253,42,FALSE) -> 199.32 | H21: =VLOOKUP($C21,'RECAP SECT'!$G$6:$DC$253,43,FALSE) -> 21% | I21: =VLOOKUP($C21,'RECAP SECT'!$G$6:$DC$253,44,FALSE) -> 7 | J21: =VLOOKUP($C21,'RECAP SECT'!$G$6:$DC$253,45,FALSE) -> 520 | K21: =VLOOKUP($C21,'RECAP SECT'!$G$6:$DC$253,46,FALSE) -> 6.71 | L21: =VLOOKUP($C21,'RECAP SECT'!$G$6:$DC$253,47,FALSE) -> 30% | M21: =VLOOKUP($C21,'RECAP SECT'!$G$6:$DC$253,48,FALSE) -> 5 | N21: =VLOOKUP($C21,'RECAP SECT'!$G$6:$DC$253,49,FALSE) -> 24% | O21: =VLOOKUP($C21,'RECAP SECT'!$G$6:$DC$253,50,FALSE) -> 18% | P21: =VLOOKUP($C21,'RECAP SECT'!$G$6:$DC$253,51,FALSE) -> 6
A22: 110 | B22: MEURTHE ET MOSELLE MEUSE | C22: 31 | D22: VERDUN | E22: =VLOOKUP($C22,'RECAP SECT'!$G$6:$DC$253,3,FALSE) -> 58.4 | F22: =VLOOKUP($C22,'RECAP SECT'!$G$6:$DC$253,41,FALSE) -> 5,639 | G22: =VLOOKUP($C22,'RECAP SECT'!$G$6:$DC$253,42,FALSE) -> 96.60 | H22: =VLOOKUP($C22,'RECAP SECT'!$G$6:$DC$253,43,FALSE) -> 62% | I22: =VLOOKUP($C22,'RECAP SECT'!$G$6:$DC$253,44,FALSE) -> 15 | J22: =VLOOKUP($C22,'RECAP SECT'!$G$6:$DC$253,45,FALSE) -> 269 | K22: =VLOOKUP($C22,'RECAP SECT'!$G$6:$DC$253,46,FALSE) -> 4.61 | L22: =VLOOKUP($C22,'RECAP SECT'!$G$6:$DC$253,47,FALSE) -> 52% | M22: =VLOOKUP($C22,'RECAP SECT'!$G$6:$DC$253,48,FALSE) -> 17 | N22: =VLOOKUP($C22,'RECAP SECT'!$G$6:$DC$253,49,FALSE) -> 59% | O22: =VLOOKUP($C22,'RECAP SECT'!$G$6:$DC$253,50,FALSE) -> 53% | P22: =VLOOKUP($C22,'RECAP SECT'!$G$6:$DC$253,51,FALSE) -> 17
A23: 160 | B23: MOSELLE | C23: 45 | D23: METZ | E23: =VLOOKUP($C23,'RECAP SECT'!$G$6:$DC$253,3,FALSE) -> 89.1 | F23: =VLOOKUP($C23,'RECAP SECT'!$G$6:$DC$253,41,FALSE) -> 13,802 | G23: =VLOOKUP($C23,'RECAP SECT'!$G$6:$DC$253,42,FALSE) -> 154.92 | H23: =VLOOKUP($C23,'RECAP SECT'!$G$6:$DC$253,43,FALSE) -> 38% | I23: =VLOOKUP($C23,'RECAP SECT'!$G$6:$DC$253,44,FALSE) -> 10 | J23: =VLOOKUP($C23,'RECAP SECT'!$G$6:$DC$253,45,FALSE) -> 456 | K23: =VLOOKUP($C23,'RECAP SECT'!$G$6:$DC$253,46,FALSE) -> 5.12 | L23: =VLOOKUP($C23,'RECAP SECT'!$G$6:$DC$253,47,FALSE) -> 47% | M23: =VLOOKUP($C23,'RECAP SECT'!$G$6:$DC$253,48,FALSE) -> 15 | N23: =VLOOKUP($C23,'RECAP SECT'!$G$6:$DC$253,49,FALSE) -> 41% | O23: =VLOOKUP($C23,'RECAP SECT'!$G$6:$DC$253,50,FALSE) -> 35% | P23: =VLOOKUP($C23,'RECAP SECT'!$G$6:$DC$253,51,FALSE) -> 11
A24: 160 | B24: MOSELLE | C24: 42 | D24: MOSELLE EST | E24: =VLOOKUP($C24,'RECAP SECT'!$G$6:$DC$253,3,FALSE) -> 72.5 | F24: =VLOOKUP($C24,'RECAP SECT'!$G$6:$DC$253,41,FALSE) -> 12,378 | G24: =VLOOKUP($C24,'RECAP SECT'!$G$6:$DC$253,42,FALSE) -> 170.75 | H24: =VLOOKUP($C24,'RECAP SECT'!$G$6:$DC$253,43,FALSE) -> 32% | I24: =VLOOKUP($C24,'RECAP SECT'!$G$6:$DC$253,44,FALSE) -> 9 | J24: =VLOOKUP($C24,'RECAP SECT'!$G$6:$DC$253,45,FALSE) -> 459 | K24: =VLOOKUP($C24,'RECAP SECT'!$G$6:$DC$253,46,FALSE) -> 6.33 | L24: =VLOOKUP($C24,'RECAP SECT'!$G$6:$DC$253,47,FALSE) -> 34% | M24: =VLOOKUP($C24,'RECAP SECT'!$G$6:$DC$253,48,FALSE) -> 8 | N24: =VLOOKUP($C24,'RECAP SECT'!$G$6:$DC$253,49,FALSE) -> 33% | O24: =VLOOKUP($C24,'RECAP SECT'!$G$6:$DC$253,50,FALSE) -> 27% | P24: =VLOOKUP($C24,'RECAP SECT'!$G$6:$DC$253,51,FALSE) -> 9
A25: 160 | B25: MOSELLE | C25: 44 | D25: MOSELLE NORD | E25: =VLOOKUP($C25,'RECAP SECT'!$G$6:$DC$253,3,FALSE) -> 74.2 | F25: =VLOOKUP($C25,'RECAP SECT'!$G$6:$DC$253,41,FALSE) -> 15,573 | G25: =VLOOKUP($C25,'RECAP SECT'!$G$6:$DC$253,42,FALSE) -> 209.98 | H25: =VLOOKUP($C25,'RECAP SECT'!$G$6:$DC$253,43,FALSE) -> 16% | I25: =VLOOKUP($C25,'RECAP SECT'!$G$6:$DC$253,44,FALSE) -> 6 | J25: =VLOOKUP($C25,'RECAP SECT'!$G$6:$DC$253,45,FALSE) -> 403 | K25: =VLOOKUP($C25,'RECAP SECT'!$G$6:$DC$253,46,FALSE) -> 5.43 | L25: =VLOOKUP($C25,'RECAP SECT'!$G$6:$DC$253,47,FALSE) -> 43% | M25: =VLOOKUP($C25,'RECAP SECT'!$G$6:$DC$253,48,FALSE) -> 12 | N25: =VLOOKUP($C25,'RECAP SECT'!$G$6:$DC$253,49,FALSE) -> 25% | O25: =VLOOKUP($C25,'RECAP SECT'!$G$6:$DC$253,50,FALSE) -> 19% | P25: =VLOOKUP($C25,'RECAP SECT'!$G$6:$DC$253,51,FALSE) -> 7
A26: 80 | B26: VOSGES | C26: 57 | D26: EPINAL | E26: =VLOOKUP($C26,'RECAP SECT'!$G$6:$DC$253,3,FALSE) -> 61.5 | F26: =VLOOKUP($C26,'RECAP SECT'!$G$6:$DC$253,41,FALSE) -> 14,254 | G26: =VLOOKUP($C26,'RECAP SECT'!$G$6:$DC$253,42,FALSE) -> 231.96 | H26: =VLOOKUP($C26,'RECAP SECT'!$G$6:$DC$253,43,FALSE) -> 8% | I26: =VLOOKUP($C26,'RECAP SECT'!$G$6:$DC$253,44,FALSE) -> 3 | J26: =VLOOKUP($C26,'RECAP SECT'!$G$6:$DC$253,45,FALSE) -> 242 | K26: =VLOOKUP($C26,'RECAP SECT'!$G$6:$DC$253,46,FALSE) -> 3.94 | L26: =VLOOKUP($C26,'RECAP SECT'!$G$6:$DC$253,47,FALSE) -> 59% | M26: =VLOOKUP($C26,'RECAP SECT'!$G$6:$DC$253,48,FALSE) -> 18 | N26: =VLOOKUP($C26,'RECAP SECT'!$G$6:$DC$253,49,FALSE) -> 23% | O26: =VLOOKUP($C26,'RECAP SECT'!$G$6:$DC$253,50,FALSE) -> 17% | P26: =VLOOKUP($C26,'RECAP SECT'!$G$6:$DC$253,51,FALSE) -> 5
A27: 80 | B27: VOSGES | C27: 55 | D27: SAINT DIE | E27: =VLOOKUP($C27,'RECAP SECT'!$G$6:$DC$253,3,FALSE) -> 50.2 | F27: =VLOOKUP($C27,'RECAP SECT'!$G$6:$DC$253,41,FALSE) -> 11,298 | G27: =VLOOKUP($C27,'RECAP SECT'!$G$6:$DC$253,42,FALSE) -> 224.86 | H27: =VLOOKUP($C27,'RECAP SECT'!$G$6:$DC$253,43,FALSE) -> 11% | I27: =VLOOKUP($C27,'RECAP SECT'!$G$6:$DC$253,44,FALSE) -> 4 | J27: =VLOOKUP($C27,'RECAP SECT'!$G$6:$DC$253,45,FALSE) -> 237 | K27: =VLOOKUP($C27,'RECAP SECT'!$G$6:$DC$253,46,FALSE) -> 4.72 | L27: =VLOOKUP($C27,'RECAP SECT'!$G$6:$DC$253,47,FALSE) -> 51% | M27: =VLOOKUP($C27,'RECAP SECT'!$G$6:$DC$253,48,FALSE) -> 16 | N27: =VLOOKUP($C27,'RECAP SECT'!$G$6:$DC$253,49,FALSE) -> 23% | O27: =VLOOKUP($C27,'RECAP SECT'!$G$6:$DC$253,50,FALSE) -> 17% | P27: =VLOOKUP($C27,'RECAP SECT'!$G$6:$DC$253,51,FALSE) -> 4
A28: Total CEGEE Directions Régionales | E28: =SUM(E10:E27) -> 1186

Sheet SE_CREDIT
B1: Accueil | F1: BAROMETRE BDD - TERRITOIRES
F2: CREDITS
F3: =ACCUEIL!F7 -> 2021-03-07
F7: Engagements et ventes accessoires pondérés Immo | J7: Engagements et ventes accessoires pondérés Conso | N7: Ventes sur client non détenteur de l’univers | R7: Total Crédits
F8: =DATEMAJ!C18 -> au 07/03 | H8: coef | I8: ='RECAP DIRCOM'!BM4 -> 8% | J8: =DATEMAJ!C19 -> au 07/03 | L8: coef | M8: ='RECAP DIRCOM'!BQ4 -> 6% | N8: =DATEMAJ!C20 -> au 07/03 | P8: coef | Q8: ='RECAP DIRCOM'!BU4 -> 6% | S8: coef | T8: ='RECAP DIRCOM'!BX4 -> 20%
B9: Direction | C9: eds | D9: Territoire | E9: ="ETP perf "&DATEMAJ!$C$28 -> ETP perf 31-janv | F9: PNB | G9: PNB / ETP | H9: % Ecart au 1er | I9: Rang | J9: PNB | K9: PNB / ETP | L9: % Ecart au 1er | M9: Rang | N9: VB | O9: VB / ETP | P9: % Ecart au 1er | Q9: Rang | R9: Moyenne ecart au 1er | S9: % Ecart au 1er | T9: Rang CEGEE
A10: 50 | B10: AUBE HAUTE MARNE | C10: 21 | D10: CHAUMONT | E10: =VLOOKUP($C10,'RECAP SECT'!$G$6:$DC$253,3,FALSE) -> 34.0 | F10: =VLOOKUP($C10,'RECAP SECT'!$G$6:$DC$253,56,FALSE) -> 774 | G10: =VLOOKUP($C10,'RECAP SECT'!$G$6:$DC$253,57,FALSE) -> 22.75 | H10: =VLOOKUP($C10,'RECAP SECT'!$G$6:$DC$253,58,FALSE) -> 68% | I10: =VLOOKUP($C10,'RECAP SECT'!$G$6:$DC$253,59,FALSE) -> 15 | J10: =VLOOKUP($C10,'RECAP SECT'!$G$6:$DC$253,60,FALSE) -> 681 | K10: =VLOOKUP($C10,'RECAP SECT'!$G$6:$DC$253,61,FALSE) -> 20.04 | L10: =VLOOKUP($C10,'RECAP SECT'!$G$6:$DC$253,62,FALSE) -> 0% | M10: =VLOOKUP($C10,'RECAP SECT'!$G$6:$DC$253,63,FALSE) -> 1 | N10: =VLOOKUP($C10,'RECAP SECT'!$G$6:$DC$253,64,FALSE) -> 135 | O10: =VLOOKUP($C10,'RECAP SECT'!$G$6:$DC$253,65,FALSE) -> 3.97 | P10: =VLOOKUP($C10,'RECAP SECT'!$G$6:$DC$253,66,FALSE) -> 38% | Q10: =VLOOKUP($C10,'RECAP SECT'!$G$6:$DC$253,67,FALSE) -> 7 | R10: =VLOOKUP($C10,'RECAP SECT'!$G$6:$DC$253,68,FALSE) -> 39% | S10: =VLOOKUP($C10,'RECAP SECT'!$G$6:$DC$253,69,FALSE) -> 29% | T10: =VLOOKUP($C10,'RECAP SECT'!$G$6:$DC$253,70,FALSE) -> 5
A11: 50 | B11: AUBE HAUTE MARNE | C11: 14 | D11: TROYES | E11: =VLOOKUP($C11,'RECAP SECT'!$G$6:$DC$253,3,FALSE) -> 68.9 | F11: =VLOOKUP($C11,'RECAP SECT'!$G$6:$DC$253,56,FALSE) -> 1,894 | G11: =VLOOKUP($C11,'RECAP SECT'!$G$6:$DC$253,57,FALSE) -> 27.50 | H11: =VLOOKUP($C11,'RECAP SECT'!$G$6:$DC$253,58,FALSE) -> 62% | I11: =VLOOKUP($C11,'RECAP SECT'!$G$6:$DC$253,59,FALSE) -> 11 | J11: =VLOOKUP($C11,'RECAP SECT'!$G$6:$DC$253,60,FALSE) -> 1,000 | K11: =VLOOKUP($C11,'RECAP SECT'!$G$6:$DC$253,61,FALSE) -> 14.52 | L11: =VLOOKUP($C11,'RECAP SECT'!$G$6:$DC$253,62,FALSE) -> 28% | M11: =VLOOKUP($C11,'RECAP SECT'!$G$6:$DC$253,63,FALSE) -> 11 | N11: =VLOOKUP($C11,'RECAP SECT'!$G$6:$DC$253,64,FALSE) -> 250 | O11: =VLOOKUP($C11,'RECAP SECT'!$G$6:$DC$253,65,FALSE) -> 3.63 | P11: =VLOOKUP($C11,'RECAP SECT'!$G$6:$DC$253,66,FALSE) -> 43% | Q11: =VLOOKUP($C11,'RECAP SECT'!$G$6:$DC$253,67,FALSE) -> 11 | R11: =VLOOKUP($C11,'RECAP SECT'!$G$6:$DC$253,68,FALSE) -> 46% | S11: =VLOOKUP($C11,'RECAP SECT'!$G$6:$DC$253,69,FALSE) -> 36% | T11: =VLOOKUP($C11,'RECAP SECT'!$G$6:$DC$253,70,FALSE) -> 12
A12: 262 | B12: BAS-RHIN | C12: 5060 | D12: HAGUENAU | E12: =VLOOKUP($C12,'RECAP SECT'!$G$6:$DC$253,3,FALSE) -> 74.1 | F12: =VLOOKUP($C12,'RECAP SECT'!$G$6:$DC$253,56,FALSE) -> 1,778 | G12: =VLOOKUP($C12,'RECAP SECT'!$G$6:$DC$253,57,FALSE) -> 24.00 | H12: =VLOOKUP($C12,'RECAP SECT'!$G$6:$DC$253,58,FALSE) -> 67% | I12: =VLOOKUP($C12,'RECAP SECT'!$G$6:$DC$253,59,FALSE) -> 13 | J12: =VLOOKUP($C12,'RECAP SECT'!$G$6:$DC$253,60,FALSE) -> 1,160 | K12: =VLOOKUP($C12,'RECAP SECT'!$G$6:$DC$253,61,FALSE) -> 15.66 | L12: =VLOOKUP($C12,'RECAP SECT'!$G$6:$DC$253,62,FALSE) -> 22% | M12: =VLOOKUP($C12,'RECAP SECT'!$G$6:$DC$253,63,FALSE) -> 4 | N12: =VLOOKUP($C12,'RECAP SECT'!$G$6:$DC$253,64,FALSE) -> 212 | O12: =VLOOKUP($C12,'RECAP SECT'!$G$6:$DC$253,65,FALSE) -> 2.86 | P12: =VLOOKUP($C12,'RECAP SECT'!$G$6:$DC$253,66,FALSE) -> 55% | Q12: =VLOOKUP($C12,'RECAP SECT'!$G$6:$DC$253,67,FALSE) -> 16 | R12: =VLOOKUP($C12,'RECAP SECT'!$G$6:$DC$253,68,FALSE) -> 50% | S12: =VLOOKUP($C12,'RECAP SECT'!$G$6:$DC$253,69,FALSE) -> 40% | T12: =VLOOKUP($C12,'RECAP SECT'!$G$6:$DC$253,70,FALSE) -> 15
A13: 262 | B13: BAS-RHIN | C13: 5101 | D13: SELESTAT | E13: =VLOOKUP($C13,'RECAP SECT'!$G$6:$DC$253,3,FALSE) -> 63.5 | F13: =VLOOKUP($C13,'RECAP SECT'!$G$6:$DC$253,56,FALSE) -> 1,380 | G13: =VLOOKUP($C13,'RECAP SECT'!$G$6:$DC$253,57,FALSE) -> 21.74 | H13: =VLOOKUP($C13,'RECAP SECT'!$G$6:$DC$253,58,FALSE) -> 70% | I13: =VLOOKUP($C13,'RECAP SECT'!$G$6:$DC$253,59,FALSE) -> 16 | J13: =VLOOKUP($C13,'RECAP SECT'!$G$6:$DC$253,60,FALSE) -> 974 | K13: =VLOOKUP($C13,'RECAP SECT'!$G$6:$DC$253,61,FALSE) -> 15.35 | L13: =VLOOKUP($C13,'RECAP SECT'!$G$6:$DC$253,62,FALSE) -> 23% | M13: =VLOOKUP($C13,'RECAP SECT'!$G$6:$DC$253,63,FALSE) -> 7 | N13: =VLOOKUP($C13,'RECAP SECT'!$G$6:$DC$253,64,FALSE) -> 205 | O13: =VLOOKUP($C13,'RECAP SECT'!$G$6:$DC$253,65,FALSE) -> 3.23 | P13: =VLOOKUP($C13,'RECAP SECT'!$G$6:$DC$253,66,FALSE) -> 50% | Q13: =VLOOKUP($C13,'RECAP SECT'!$G$6:$DC$253,67,FALSE) -> 13 | R13: =VLOOKUP($C13,'RECAP SECT'!$G$6:$DC$253,68,FALSE) -> 50% | S13: =VLOOKUP($C13,'RECAP SECT'!$G$6:$DC$253,69,FALSE) -> 40% | T13: =VLOOKUP($C13,'RECAP SECT'!$G$6:$DC$253,70,FALSE) -> 14
A14: 262 | B14: BAS-RHIN | C14: 5006 | D14: STRASBOURG | E14: =VLOOKUP($C14,'RECAP SECT'!$G$6:$DC$253,3,FALSE) -> 83.0 | F14: =VLOOKUP($C14,'RECAP SECT'!$G$6:$DC$253,56,FALSE) -> 3,396 | G14: =VLOOKUP($C14,'RECAP SECT'!$G$6:$DC$253,57,FALSE) -> 40.90 | H14: =VLOOKUP($C14,'RECAP SECT'!$G$6:$DC$253,58,FALSE) -> 43% | I14: =VLOOKUP($C14,'RECAP SECT'!$G$6:$DC$253,59,FALSE) -> 5 | J14: =VLOOKUP($C14,'RECAP SECT'!$G$6:$DC$253,60,FALSE) -> 1,076 | K14: =VLOOKUP($C14,'RECAP SECT'!$G$6:$DC$253,61,FALSE) -> 12.96 | L14: =VLOOKUP($C14,'RECAP SECT'!$G$6:$DC$253,62,FALSE) -> 35% | M14: =VLOOKUP($C14,'RECAP SECT'!$G$6:$DC$253,63,FALSE) -> 16 | N14: =VLOOKUP($C14,'RECAP SECT'!$G$6:$DC$253,64,FALSE) -> 316 | O14: =VLOOKUP($C14,'RECAP SECT'!$G$6:$DC$253,65,FALSE) -> 3.81 | P14: =VLOOKUP($C14,'RECAP SECT'!$G$6:$DC$253,66,FALSE) -> 41% | Q14: =VLOOKUP($C14,'RECAP SECT'!$G$6:$DC$253,67,FALSE) -> 9 | R14: =VLOOKUP($C14,'RECAP SECT'!$G$6:$DC$253,68,FALSE) -> 40% | S14: =VLOOKUP($C14,'RECAP SECT'!$G$6:$DC$253,69,FALSE) -> 30% | T14: =VLOOKUP($C14,'RECAP SECT'!$G$6:$DC$253,70,FALSE) -> 10
A15: 264 | B15: HAUT-RHIN | C15: 5130 | D15: COLMAR | E15: =VLOOKUP($C15,'RECAP SECT'!$G$6:$DC$253,3,FALSE) -> 65.1 | F15: =VLOOKUP($C15,'RECAP SECT'!$G$6:$DC$253,56,FALSE) -> 841 | G15: =VLOOKUP($C15,'RECAP SECT'!$G$6:$DC$253,57,FALSE) -> 12.92 | H15: =VLOOKUP($C15,'RECAP SECT'!$G$6:$DC$253,58,FALSE) -> 82% | I15: =VLOOKUP($C15,'RECAP SECT'!$G$6:$DC$253,59,FALSE) -> 18 | J15: =VLOOKUP($C15,'RECAP SECT'!$G$6:$DC$253,60,FALSE) -> 847 | K15: =VLOOKUP($C15,'RECAP SECT'!$G$6:$DC$253,61,FALSE) -> 13.01 | L15: =VLOOKUP($C15,'RECAP SECT'!$G$6:$DC$253,62,FALSE) -> 35% | M15: =VLOOKUP($C15,'RECAP SECT'!$G$6:$DC$253,63,FALSE) -> 15 | N15: =VLOOKUP($C15,'RECAP SECT'!$G$6:$DC$253,64,FALSE) -> 161 | O15: =VLOOKUP($C15,'RECAP SECT'!$G$6:$DC$253,65,FALSE) -> 2.47 | P15: =VLOOKUP($C15,'RECAP SECT'!$G$6:$DC$253,66,FALSE) -> 61% | Q15: =VLOOKUP($C15,'RECAP SECT'!$G$6:$DC$253,67,FALSE) -> 18 | R15: =VLOOKUP($C15,'RECAP SECT'!$G$6:$DC$253,68,FALSE) -> 62% | S15: =VLOOKUP($C15,'RECAP SECT'!$G$6:$DC$253,69,FALSE) -> 52% | T15: =VLOOKUP($C15,'RECAP SECT'!$G$6:$DC$253,70,FALSE) -> 18
A16: 264 | B16: HAUT-RHIN | C16: 5169 | D16: MULHOUSE | E16: =VLOOKUP($C16,'RECAP SECT'!$G$6:$DC$253,3,FALSE) -> 61.5 | F16: =VLOOKUP($C16,'RECAP SECT'!$G$6:$DC$253,56,FALSE) -> 1,055 | G16: =VLOOKUP($C16,'RECAP SECT'!$G$6:$DC$253,57,FALSE) -> 17.14 | H16: =VLOOKUP($C16,'RECAP SECT'!$G$6:$DC$253,58,FALSE) -> 76% | I16: =VLOOKUP($C16,'RECAP SECT'!$G$6:$DC$253,59,FALSE) -> 17 | J16: =VLOOKUP($C16,'RECAP SECT'!$G$6:$DC$253,60,FALSE) -> 961 | K16: =VLOOKUP($C16,'RECAP SECT'!$G$6:$DC$253,61,FALSE) -> 15.62 | L16: =VLOOKUP($C16,'RECAP SECT'!$G$6:$DC$253,62,FALSE) -> 22% | M16: =VLOOKUP($C16,'RECAP SECT'!$G$6:$DC$253,63,FALSE) -> 5 | N16: =VLOOKUP($C16,'RECAP SECT'!$G$6:$DC$253,64,FALSE) -> 164 | O16: =VLOOKUP($C16,'RECAP SECT'!$G$6:$DC$253,65,FALSE) -> 2.66 | P16: =VLOOKUP($C16,'RECAP SECT'!$G$6:$DC$253,66,FALSE) -> 58% | Q16: =VLOOKUP($C16,'RECAP SECT'!$G$6:$DC$253,67,FALSE) -> 17 | R16: =VLOOKUP($C16,'RECAP SECT'!$G$6:$DC$253,68,FALSE) -> 55% | S16: =VLOOKUP($C16,'RECAP SECT'!$G$6:$DC$253,69,FALSE) -> 45% | T16: =VLOOKUP($C16,'RECAP SECT'!$G$6:$DC$253,70,FALSE) -> 17
A17: 30 | B17: MARNE-ARDENNES | C17: 6 | D17: CHALONS EN CHAMPAGNE | E17: =VLOOKUP($C17,'RECAP SECT'!$G$6:$DC$253,3,FALSE) -> 45.4 | F17: =VLOOKUP($C17,'RECAP SECT'!$G$6:$DC$253,56,FALSE) -> 1,757 | G17: =VLOOKUP($C17,'RECAP SECT'!$G$6:$DC$253,57,FALSE) -> 38.68 | H17: =VLOOKUP($C17,'RECAP SECT'!$G$6:$DC$253,58,FALSE) -> 46% | I17: =VLOOKUP($C17,'RECAP SECT'!$G$6:$DC$253,59,FALSE) -> 6 | J17: =VLOOKUP($C17,'RECAP SECT'!$G$6:$DC$253,60,FALSE) -> 575 | K17: =VLOOKUP($C17,'RECAP SECT'!$G$6:$DC$253,61,FALSE) -> 12.66 | L17: =VLOOKUP($C17,'RECAP SECT'!$G$6:$DC$253,62,FALSE) -> 37% | M17: =VLOOKUP($C17,'RECAP SECT'!$G$6:$DC$253,63,FALSE) -> 18 | N17: =VLOOKUP($C17,'RECAP SECT'!$G$6:$DC$253,64,FALSE) -> 195 | O17: =VLOOKUP($C17,'RECAP SECT'!$G$6:$DC$253,65,FALSE) -> 4.29 | P17: =VLOOKUP($C17,'RECAP SECT'!$G$6:$DC$253,66,FALSE) -> 33% | Q17: =VLOOKUP($C17,'RECAP SECT'!$G$6:$DC$253,67,FALSE) -> 5 | R17: =VLOOKUP($C17,'RECAP SECT'!$G$6:$DC$253,68,FALSE) -> 39% | S17: =VLOOKUP($C17,'RECAP SECT'!$G$6:$DC$253,69,FALSE) -> 30% | T17: =VLOOKUP($C17,'RECAP SECT'!$G$6:$DC$253,70,FALSE) -> 7
A18: 30 | B18: MARNE-ARDENNES | C18: 2 | D18: CHARLEVILLE MEZIERES | E18: =VLOOKUP($C18,'RECAP SECT'!$G$6:$DC$253,3,FALSE) -> 56.0 | F18: =VLOOKUP($C18,'RECAP SECT'!$G$6:$DC$253,56,FALSE) -> 3,031 | G18: =VLOOKUP($C18,'RECAP SECT'!$G$6:$DC$253,57,FALSE) -> 54.15 | H18: =VLOOKUP($C18,'RECAP SECT'!$G$6:$DC$253,58,FALSE) -> 25% | I18: =VLOOKUP($C18,'RECAP SECT'!$G$6:$DC$253,59,FALSE) -> 4 | J18: =VLOOKUP($C18,'RECAP SECT'!$G$6:$DC$253,60,FALSE) -> 719 | K18: =VLOOKUP($C18,'RECAP SECT'!$G$6:$DC$253,61,FALSE) -> 12.85 | L18: =VLOOKUP($C18,'RECAP SECT'!$G$6:$DC$253,62,FALSE) -> 36% | M18: =VLOOKUP($C18,'RECAP SECT'!$G$6:$DC$253,63,FALSE) -> 17 | N18: =VLOOKUP($C18,'RECAP SECT'!$G$6:$DC$253,64,FALSE) -> 259 | O18: =VLOOKUP($C18,'RECAP SECT'!$G$6:$DC$253,65,FALSE) -> 4.63 | P18: =VLOOKUP($C18,'RECAP SECT'!$G$6:$DC$253,66,FALSE) -> 28% | Q18: =VLOOKUP($C18,'RECAP SECT'!$G$6:$DC$253,67,FALSE) -> 3 | R18: =VLOOKUP($C18,'RECAP SECT'!$G$6:$DC$253,68,FALSE) -> 29% | S18: =VLOOKUP($C18,'RECAP SECT'!$G$6:$DC$253,69,FALSE) -> 19% | T18: =VLOOKUP($C18,'RECAP SECT'!$G$6:$DC$253,70,FALSE) -> 4
A19: 30 | B19: MARNE-ARDENNES | C19: 11 | D19: REIMS | E19: =VLOOKUP($C19,'RECAP SECT'!$G$6:$DC$253,3,FALSE) -> 83.2 | F19: =VLOOKUP($C19,'RECAP SECT'!$G$6:$DC$253,56,FALSE) -> 4,625 | G19: =VLOOKUP($C19,'RECAP SECT'!$G$6:$DC$253,57,FALSE) -> 55.61 | H19: =VLOOKUP($C19,'RECAP SECT'!$G$6:$DC$253,58,FALSE) -> 23% | I19: =VLOOKUP($C19,'RECAP SECT'!$G$6:$DC$253,59,FALSE) -> 3 | J19: =VLOOKUP($C19,'RECAP SECT'!$G$6:$DC$253,60,FALSE) -> 1,272 | K19: =VLOOKUP($C19,'RECAP SECT'!$G$6:$DC$253,61,FALSE) -> 15.30 | L19: =VLOOKUP($C19,'RECAP SECT'!$G$6:$DC$253,62,FALSE) -> 24% | M19: =VLOOKUP($C19,'RECAP SECT'!$G$6:$DC$253,63,FALSE) -> 8 | N19: =VLOOKUP($C19,'RECAP SECT'!$G$6:$DC$253,64,FALSE) -> 372 | O19: =VLOOKUP($C19,'RECAP SECT'!$G$6:$DC$253,65,FALSE) -> 4.47 | P19: =VLOOKUP($C19,'RECAP SECT'!$G$6:$DC$253,66,FALSE) -> 30% | Q19: =VLOOKUP($C19,'RECAP SECT'!$G$6:$DC$253,67,FALSE) -> 4 | R19: =VLOOKUP($C19,'RECAP SECT'!$G$6:$DC$253,68,FALSE) -> 25% | S19: =VLOOKUP($C19,'RECAP SECT'!$G$6:$DC$253,69,FALSE) -> 15% | T19: =VLOOKUP($C19,'RECAP SECT'!$G$6:$DC$253,70,FALSE) -> 3
A20: 110 | B20: MEURTHE ET MOSELLE MEUSE | C20: 26 | D20: NANCY | E20: =VLOOKUP($C20,'RECAP SECT'!$G$6:$DC$253,3,FALSE) -> 67.6 | F20: =VLOOKUP($C20,'RECAP SECT'!$G$6:$DC$253,56,FALSE) -> 4,852 | G20: =VLOOKUP($C20,'RECAP SECT'!$G$6:$DC$253,57,FALSE) -> 71.81 | H20: =VLOOKUP($C20,'RECAP SECT'!$G$6:$DC$253,58,FALSE) -> 0% | I20: =VLOOKUP($C20,'RECAP SECT'!$G$6:$DC$253,59,FALSE) -> 1 | J20: =VLOOKUP($C20,'RECAP SECT'!$G$6:$DC$253,60,FALSE) -> 908 | K20: =VLOOKUP($C20,'RECAP SECT'!$G$6:$DC$253,61,FALSE) -> 13.43 | L20: =VLOOKUP($C20,'RECAP SECT'!$G$6:$DC$253,62,FALSE) -> 33% | M20: =VLOOKUP($C20,'RECAP SECT'!$G$6:$DC$253,63,FALSE) -> 13 | N20: =VLOOKUP($C20,'RECAP SECT'!$G$6:$DC$253,64,FALSE) -> 433 | O20: =VLOOKUP($C20,'RECAP SECT'!$G$6:$DC$253,65,FALSE) -> 6.41 | P20: =VLOOKUP($C20,'RECAP SECT'!$G$6:$DC$253,66,FALSE) -> 0% | Q20: =VLOOKUP($C20,'RECAP SECT'!$G$6:$DC$253,67,FALSE) -> 1 | R20: =VLOOKUP($C20,'RECAP SECT'!$G$6:$DC$253,68,FALSE) -> 10% | S20: =VLOOKUP($C20,'RECAP SECT'!$G$6:$DC$253,69,FALSE) -> 0% | T20: =VLOOKUP($C20,'RECAP SECT'!$G$6:$DC$253,70,FALSE) -> 1
A21: 110 | B21: MEURTHE ET MOSELLE MEUSE | C21: 27 | D21: PONT A MOUSSON | E21: =VLOOKUP($C21,'RECAP SECT'!$G$6:$DC$253,3,FALSE) -> 77.5 | F21: =VLOOKUP($C21,'RECAP SECT'!$G$6:$DC$253,56,FALSE) -> 5,098 | G21: =VLOOKUP($C21,'RECAP SECT'!$G$6:$DC$253,57,FALSE) -> 65.78 | H21: =VLOOKUP($C21,'RECAP SECT'!$G$6:$DC$253,58,FALSE) -> 8% | I21: =VLOOKUP($C21,'RECAP SECT'!$G$6:$DC$253,59,FALSE) -> 2 | J21: =VLOOKUP($C21,'RECAP SECT'!$G$6:$DC$253,60,FALSE) -> 1,199 | K21: =VLOOKUP($C21,'RECAP SECT'!$G$6:$DC$253,61,FALSE) -> 15.47 | L21: =VLOOKUP($C21,'RECAP SECT'!$G$6:$DC$253,62,FALSE) -> 23% | M21: =VLOOKUP($C21,'RECAP SECT'!$G$6:$DC$253,63,FALSE) -> 6 | N21: =VLOOKUP($C21,'RECAP SECT'!$G$6:$DC$253,64,FALSE) -> 410 | O21: =VLOOKUP($C21,'RECAP SECT'!$G$6:$DC$253,65,FALSE) -> 5.29 | P21: =VLOOKUP($C21,'RECAP SECT'!$G$6:$DC$253,66,FALSE) -> 17% | Q21: =VLOOKUP($C21,'RECAP SECT'!$G$6:$DC$253,67,FALSE) -> 2 | R21: =VLOOKUP($C21,'RECAP SECT'!$G$6:$DC$253,68,FALSE) -> 15% | S21: =VLOOKUP($C21,'RECAP SECT'!$G$6:$DC$253,69,FALSE) -> 6% | T21: =VLOOKUP($C21,'RECAP SECT'!$G$6:$DC$253,70,FALSE) -> 2
A22: 110 | B22: MEURTHE ET MOSELLE MEUSE | C22: 31 | D22: VERDUN | E22: =VLOOKUP($C22,'RECAP SECT'!$G$6:$DC$253,3,FALSE) -> 58.4 | F22: =VLOOKUP($C22,'RECAP SECT'!$G$6:$DC$253,56,FALSE) -> 1,998 | G22: =VLOOKUP($C22,'RECAP SECT'!$G$6:$DC$253,57,FALSE) -> 34.23 | H22: =VLOOKUP($C22,'RECAP SECT'!$G$6:$DC$253,58,FALSE) -> 52% | I22: =VLOOKUP($C22,'RECAP SECT'!$G$6:$DC$253,59,FALSE) -> 9 | J22: =VLOOKUP($C22,'RECAP SECT'!$G$6:$DC$253,60,FALSE) -> 916 | K22: =VLOOKUP($C22,'RECAP SECT'!$G$6:$DC$253,61,FALSE) -> 15.70 | L22: =VLOOKUP($C22,'RECAP SECT'!$G$6:$DC$253,62,FALSE) -> 22% | M22: =VLOOKUP($C22,'RECAP SECT'!$G$6:$DC$253,63,FALSE) -> 3 | N22: =VLOOKUP($C22,'RECAP SECT'!$G$6:$DC$253,64,FALSE) -> 228 | O22: =VLOOKUP($C22,'RECAP SECT'!$G$6:$DC$253,65,FALSE) -> 3.91 | P22: =VLOOKUP($C22,'RECAP SECT'!$G$6:$DC$253,66,FALSE) -> 39% | Q22: =VLOOKUP($C22,'RECAP SECT'!$G$6:$DC$253,67,FALSE) -> 8 | R22: =VLOOKUP($C22,'RECAP SECT'!$G$6:$DC$253,68,FALSE) -> 39% | S22: =VLOOKUP($C22,'RECAP SECT'!$G$6:$DC$253,69,FALSE) -> 29% | T22: =VLOOKUP($C22,'RECAP SECT'!$G$6:$DC$253,70,FALSE) -> 6
A23: 160 | B23: MOSELLE | C23: 45 | D23: METZ | E23: =VLOOKUP($C23,'RECAP SECT'!$G$6:$DC$253,3,FALSE) -> 89.1 | F23: =VLOOKUP($C23,'RECAP SECT'!$G$6:$DC$253,56,FALSE) -> 3,286 | G23: =VLOOKUP($C23,'RECAP SECT'!$G$6:$DC$253,57,FALSE) -> 36.88 | H23: =VLOOKUP($C23,'RECAP SECT'!$G$6:$DC$253,58,FALSE) -> 49% | I23: =VLOOKUP($C23,'RECAP SECT'!$G$6:$DC$253,59,FALSE) -> 8 | J23: =VLOOKUP($C23,'RECAP SECT'!$G$6:$DC$253,60,FALSE) -> 1,325 | K23: =VLOOKUP($C23,'RECAP SECT'!$G$6:$DC$253,61,FALSE) -> 14.87 | L23: =VLOOKUP($C23,'RECAP SECT'!$G$6:$DC$253,62,FALSE) -> 26% | M23: =VLOOKUP($C23,'RECAP SECT'!$G$6:$DC$253,63,FALSE) -> 10 | N23: =VLOOKUP($C23,'RECAP SECT'!$G$6:$DC$253,64,FALSE) -> 338 | O23: =VLOOKUP($C23,'RECAP SECT'!$G$6:$DC$253,65,FALSE) -> 3.79 | P23: =VLOOKUP($C23,'RECAP SECT'!$G$6:$DC$253,66,FALSE) -> 41% | Q23: =VLOOKUP($C23,'RECAP SECT'!$G$6:$DC$253,67,FALSE) -> 10 | R23: =VLOOKUP($C23,'RECAP SECT'!$G$6:$DC$253,68,FALSE) -> 39% | S23: =VLOOKUP($C23,'RECAP SECT'!$G$6:$DC$253,69,FALSE) -> 30% | T23: =VLOOKUP($C23,'RECAP SECT'!$G$6:$DC$253,70,FALSE) -> 8
A24: 160 | B24: MOSELLE | C24: 42 | D24: MOSELLE EST | E24: =VLOOKUP($C24,'RECAP SECT'!$G$6:$DC$253,3,FALSE) -> 72.5 | F24: =VLOOKUP($C24,'RECAP SECT'!$G$6:$DC$253,56,FALSE) -> 1,672 | G24: =VLOOKUP($C24,'RECAP SECT'!$G$6:$DC$253,57,FALSE) -> 23.06 | H24: =VLOOKUP($C24,'RECAP SECT'!$G$6:$DC$253,58,FALSE) -> 68% | I24: =VLOOKUP($C24,'RECAP SECT'!$G$6:$DC$253,59,FALSE) -> 14 | J24: =VLOOKUP($C24,'RECAP SECT'!$G$6:$DC$253,60,FALSE) -> 1,199 | K24: =VLOOKUP($C24,'RECAP SECT'!$G$6:$DC$253,61,FALSE) -> 16.54 | L24: =VLOOKUP($C24,'RECAP SECT'!$G$6:$DC$253,62,FALSE) -> 17% | M24: =VLOOKUP($C24,'RECAP SECT'!$G$6:$DC$253,63,FALSE) -> 2 | N24: =VLOOKUP($C24,'RECAP SECT'!$G$6:$DC$253,64,FALSE) -> 228 | O24: =VLOOKUP($C24,'RECAP SECT'!$G$6:$DC$253,65,FALSE) -> 3.15 | P24: =VLOOKUP($C24,'RECAP SECT'!$G$6:$DC$253,66,FALSE) -> 51% | Q24: =VLOOKUP($C24,'RECAP SECT'!$G$6:$DC$253,67,FALSE) -> 14 | R24: =VLOOKUP($C24,'RECAP SECT'!$G$6:$DC$253,68,FALSE) -> 48% | S24: =VLOOKUP($C24,'RECAP SECT'!$G$6:$DC$253,69,FALSE) -> 38% | T24: =VLOOKUP($C24,'RECAP SECT'!$G$6:$DC$253,70,FALSE) -> 13
A25: 160 | B25: MOSELLE | C25: 44 | D25: MOSELLE NORD | E25: =VLOOKUP($C25,'RECAP SECT'!$G$6:$DC$253,3,FALSE) -> 74.2 | F25: =VLOOKUP($C25,'RECAP SECT'!$G$6:$DC$253,56,FALSE) -> 2,867 | G25: =VLOOKUP($C25,'RECAP SECT'!$G$6:$DC$253,57,FALSE) -> 38.66 | H25: =VLOOKUP($C25,'RECAP SECT'!$G$6:$DC$253,58,FALSE) -> 46% | I25: =VLOOKUP($C25,'RECAP SECT'!$G$6:$DC$253,59,FALSE) -> 7 | J25: =VLOOKUP($C25,'RECAP SECT'!$G$6:$DC$253,60,FALSE) -> 1,105 | K25: =VLOOKUP($C25,'RECAP SECT'!$G$6:$DC$253,61,FALSE) -> 14.90 | L25: =VLOOKUP($C25,'RECAP SECT'!$G$6:$DC$253,62,FALSE) -> 26% | M25: =VLOOKUP($C25,'RECAP SECT'!$G$6:$DC$253,63,FALSE) -> 9 | N25: =VLOOKUP($C25,'RECAP SECT'!$G$6:$DC$253,64,FALSE) -> 258 | O25: =VLOOKUP($C25,'RECAP SECT'!$G$6:$DC$253,65,FALSE) -> 3.48 | P25: =VLOOKUP($C25,'RECAP SECT'!$G$6:$DC$253,66,FALSE) -> 46% | Q25: =VLOOKUP($C25,'RECAP SECT'!$G$6:$DC$253,67,FALSE) -> 12 | R25: =VLOOKUP($C25,'RECAP SECT'!$G$6:$DC$253,68,FALSE) -> 40% | S25: =VLOOKUP($C25,'RECAP SECT'!$G$6:$DC$253,69,FALSE) -> 30% | T25: =VLOOKUP($C25,'RECAP SECT'!$G$6:$DC$253,70,FALSE) -> 9
A26: 80 | B26: VOSGES | C26: 57 | D26: EPINAL | E26: =VLOOKUP($C26,'RECAP SECT'!$G$6:$DC$253,3,FALSE) -> 61.5 | F26: =VLOOKUP($C26,'RECAP SECT'!$G$6:$DC$253,56,FALSE) -> 1,928 | G26: =VLOOKUP($C26,'RECAP SECT'!$G$6:$DC$253,57,FALSE) -> 31.38 | H26: =VLOOKUP($C26,'RECAP SECT'!$G$6:$DC$253,58,FALSE) -> 56% | I26: =VLOOKUP($C26,'RECAP SECT'!$G$6:$DC$253,59,FALSE) -> 10 | J26: =VLOOKUP($C26,'RECAP SECT'!$G$6:$DC$253,60,FALSE) -> 836 | K26: =VLOOKUP($C26,'RECAP SECT'!$G$6:$DC$253,61,FALSE) -> 13.60 | L26: =VLOOKUP($C26,'RECAP SECT'!$G$6:$DC$253,62,FALSE) -> 32% | M26: =VLOOKUP($C26,'RECAP SECT'!$G$6:$DC$253,63,FALSE) -> 12 | N26: =VLOOKUP($C26,'RECAP SECT'!$G$6:$DC$253,64,FALSE) -> 255 | O26: =VLOOKUP($C26,'RECAP SECT'!$G$6:$DC$253,65,FALSE) -> 4.15 | P26: =VLOOKUP($C26,'RECAP SECT'!$G$6:$DC$253,66,FALSE) -> 35% | Q26: =VLOOKUP($C26,'RECAP SECT'!$G$6:$DC$253,67,FALSE) -> 6 | R26: =VLOOKUP($C26,'RECAP SECT'!$G$6:$DC$253,68,FALSE) -> 43% | S26: =VLOOKUP($C26,'RECAP SECT'!$G$6:$DC$253,69,FALSE) -> 33% | T26: =VLOOKUP($C26,'RECAP SECT'!$G$6:$DC$253,70,FALSE) -> 11
A27: 80 | B27: VOSGES | C27: 55 | D27: SAINT DIE | E27: =VLOOKUP($C27,'RECAP SECT'!$G$6:$DC$253,3,FALSE) -> 50.2 | F27: =VLOOKUP($C27,'RECAP SECT'!$G$6:$DC$253,56,FALSE) -> 1,340 | G27: =VLOOKUP($C27,'RECAP SECT'!$G$6:$DC$253,57,FALSE) -> 26.68 | H27: =VLOOKUP($C27,'RECAP SECT'!$G$6:$DC$253,58,FALSE) -> 63% | I27: =VLOOKUP($C27,'RECAP SECT'!$G$6:$DC$253,59,FALSE) -> 12 | J27: =VLOOKUP($C27,'RECAP SECT'!$G$6:$DC$253,60,FALSE) -> 668 | K27: =VLOOKUP($C27,'RECAP SECT'!$G$6:$DC$253,61,FALSE) -> 13.29 | L27: =VLOOKUP($C27,'RECAP SECT'!$G$6:$DC$253,62,FALSE) -> 34% | M27: =VLOOKUP($C27,'RECAP SECT'!$G$6:$DC$253,63,FALSE) -> 14 | N27: =VLOOKUP($C27,'RECAP SECT'!$G$6:$DC$253,64,FALSE) -> 154 | O27: =VLOOKUP($C27,'RECAP SECT'!$G$6:$DC$253,65,FALSE) -> 3.07 | P27: =VLOOKUP($C27,'RECAP SECT'!$G$6:$DC$253,66,FALSE) -> 52% | Q27: =VLOOKUP($C27,'RECAP SECT'!$G$6:$DC$253,67,FALSE) -> 15 | R27: =VLOOKUP($C27,'RECAP SECT'!$G$6:$DC$253,68,FALSE) -> 51% | S27: =VLOOKUP($C27,'RECAP SECT'!$G$6:$DC$253,69,FALSE) -> 41% | T27: =VLOOKUP($C27,'RECAP SECT'!$G$6:$DC$253,70,FALSE) -> 16
A28: Total CEGEE Directions Régionales | E28: =SUM(E10:E27) -> 1186

Sheet SE_IARD
B1: Accueil | F1: BAROMETRE BDD - TERRITOIRES
F2: IARD ET PREVOYANCE
F3: =ACCUEIL!F7 -> 2021-03-07
F7: Ventes Nettes produits pondérés | J7: Ventes sur client non détenteur de l’univers | N7: Total IARD Prévoyance
F8: =DATEMAJ!C23 -> au 07/03 | H8: coef | I8: ='RECAP DIRCOM'!CF4 -> 14% | J8: =DATEMAJ!C24 -> au 07/03 | L8: coef | M8: ='RECAP DIRCOM'!CJ4 -> 6% | O8: coef | P8: ='RECAP DIRCOM'!CM4 -> 20%
B9: Direction | C9: eds | D9: Territoire | E9: ="ETP perf "&DATEMAJ!$C$28 -> ETP perf 31-janv | F9: VN | G9: VN / ETP | H9: % Ecart au 1er | I9: Rang | J9: VB | K9: VB / ETP | L9: % Ecart au 1er | M9: Rang | N9: Moyenne ecart au 1er | O9: % Ecart au 1er | P9: Rang CEGEE
A10: 50 | B10: AUBE HAUTE MARNE | C10: 21 | D10: CHAUMONT | E10: =VLOOKUP($C10,'RECAP SECT'!$G$6:$DC$253,3,FALSE) -> 34.0 | F10: =VLOOKUP($C10,'RECAP SECT'!$G$6:$DC$253,75,FALSE) -> 2,152 | G10: =VLOOKUP($C10,'RECAP SECT'!$G$6:$DC$253,76,FALSE) -> 63.29 | H10: =VLOOKUP($C10,'RECAP SECT'!$G$6:$DC$253,77,FALSE) -> 12% | I10: =VLOOKUP($C10,'RECAP SECT'!$G$6:$DC$253,78,FALSE) -> 3 | J10: =VLOOKUP($C10,'RECAP SECT'!$G$6:$DC$253,79,FALSE) -> 383 | K10: =VLOOKUP($C10,'RECAP SECT'!$G$6:$DC$253,80,FALSE) -> 11.26 | L10: =VLOOKUP($C10,'RECAP SECT'!$G$6:$DC$253,81,FALSE) -> 10% | M10: =VLOOKUP($C10,'RECAP SECT'!$G$6:$DC$253,82,FALSE) -> 3 | N10: =VLOOKUP($C10,'RECAP SECT'!$G$6:$DC$253,83,FALSE) -> 12% | O10: =VLOOKUP($C10,'RECAP SECT'!$G$6:$DC$253,84,FALSE) -> 12% | P10: =VLOOKUP($C10,'RECAP SECT'!$G$6:$DC$253,85,FALSE) -> 2
A11: 50 | B11: AUBE HAUTE MARNE | C11: 14 | D11: TROYES | E11: =VLOOKUP($C11,'RECAP SECT'!$G$6:$DC$253,3,FALSE) -> 68.9 | F11: =VLOOKUP($C11,'RECAP SECT'!$G$6:$DC$253,75,FALSE) -> 2,310 | G11: =VLOOKUP($C11,'RECAP SECT'!$G$6:$DC$253,76,FALSE) -> 33.55 | H11: =VLOOKUP($C11,'RECAP SECT'!$G$6:$DC$253,77,FALSE) -> 53% | I11: =VLOOKUP($C11,'RECAP SECT'!$G$6:$DC$253,78,FALSE) -> 17 | J11: =VLOOKUP($C11,'RECAP SECT'!$G$6:$DC$253,79,FALSE) -> 577 | K11: =VLOOKUP($C11,'RECAP SECT'!$G$6:$DC$253,80,FALSE) -> 8.38 | L11: =VLOOKUP($C11,'RECAP SECT'!$G$6:$DC$253,81,FALSE) -> 33% | M11: =VLOOKUP($C11,'RECAP SECT'!$G$6:$DC$253,82,FALSE) -> 15 | N11: =VLOOKUP($C11,'RECAP SECT'!$G$6:$DC$253,83,FALSE) -> 47% | O11: =VLOOKUP($C11,'RECAP SECT'!$G$6:$DC$253,84,FALSE) -> 47% | P11: =VLOOKUP($C11,'RECAP SECT'!$G$6:$DC$253,85,FALSE) -> 17
A12: 262 | B12: BAS-RHIN | C12: 5060 | D12: HAGUENAU | E12: =VLOOKUP($C12,'RECAP SECT'!$G$6:$DC$253,3,FALSE) -> 74.1 | F12: =VLOOKUP($C12,'RECAP SECT'!$G$6:$DC$253,75,FALSE) -> 3,972 | G12: =VLOOKUP($C12,'RECAP SECT'!$G$6:$DC$253,76,FALSE) -> 53.61 | H12: =VLOOKUP($C12,'RECAP SECT'!$G$6:$DC$253,77,FALSE) -> 26% | I12: =VLOOKUP($C12,'RECAP SECT'!$G$6:$DC$253,78,FALSE) -> 10 | J12: =VLOOKUP($C12,'RECAP SECT'!$G$6:$DC$253,79,FALSE) -> 641 | K12: =VLOOKUP($C12,'RECAP SECT'!$G$6:$DC$253,80,FALSE) -> 8.65 | L12: =VLOOKUP($C12,'RECAP SECT'!$G$6:$DC$253,81,FALSE) -> 31% | M12: =VLOOKUP($C12,'RECAP SECT'!$G$6:$DC$253,82,FALSE) -> 12 | N12: =VLOOKUP($C12,'RECAP SECT'!$G$6:$DC$253,83,FALSE) -> 27% | O12: =VLOOKUP($C12,'RECAP SECT'!$G$6:$DC$253,84,FALSE) -> 27% | P12: =VLOOKUP($C12,'RECAP SECT'!$G$6:$DC$253,85,FALSE) -> 11
A13: 262 | B13: BAS-RHIN | C13: 5101 | D13: SELESTAT | E13: =VLOOKUP($C13,'RECAP SECT'!$G$6:$DC$253,3,FALSE) -> 63.5 | F13: =VLOOKUP($C13,'RECAP SECT'!$G$6:$DC$253,75,FALSE) -> 4,104 | G13: =VLOOKUP($C13,'RECAP SECT'!$G$6:$DC$253,76,FALSE) -> 64.68 | H13: =VLOOKUP($C13,'RECAP SECT'!$G$6:$DC$253,77,FALSE) -> 10% | I13: =VLOOKUP($C13,'RECAP SECT'!$G$6:$DC$253,78,FALSE) -> 2 | J13: =VLOOKUP($C13,'RECAP SECT'!$G$6:$DC$253,79,FALSE) -> 631 | K13: =VLOOKUP($C13,'RECAP SECT'!$G$6:$DC$253,80,FALSE) -> 9.94 | L13: =VLOOKUP($C13,'RECAP SECT'!$G$6:$DC$253,81,FALSE) -> 21% | M13: =VLOOKUP($C13,'RECAP SECT'!$G$6:$DC$253,82,FALSE) -> 5 | N13: =VLOOKUP($C13,'RECAP SECT'!$G$6:$DC$253,83,FALSE) -> 14% | O13: =VLOOKUP($C13,'RECAP SECT'!$G$6:$DC$253,84,FALSE) -> 14% | P13: =VLOOKUP($C13,'RECAP SECT'!$G$6:$DC$253,85,FALSE) -> 4
A14: 262 | B14: BAS-RHIN | C14: 5006 | D14: STRASBOURG | E14: =VLOOKUP($C14,'RECAP SECT'!$G$6:$DC$253,3,FALSE) -> 83.0 | F14: =VLOOKUP($C14,'RECAP SECT'!$G$6:$DC$253,75,FALSE) -> 5,231 | G14: =VLOOKUP($C14,'RECAP SECT'!$G$6:$DC$253,76,FALSE) -> 63.00 | H14: =VLOOKUP($C14,'RECAP SECT'!$G$6:$DC$253,77,FALSE) -> 13% | I14: =VLOOKUP($C14,'RECAP SECT'!$G$6:$DC$253,78,FALSE) -> 4 | J14: =VLOOKUP($C14,'RECAP SECT'!$G$6:$DC$253,79,FALSE) -> 905 | K14: =VLOOKUP($C14,'RECAP SECT'!$G$6:$DC$253,80,FALSE) -> 10.90 | L14: =VLOOKUP($C14,'RECAP SECT'!$G$6:$DC$253,81,FALSE) -> 13% | M14: =VLOOKUP($C14,'RECAP SECT'!$G$6:$DC$253,82,FALSE) -> 4 | N14: =VLOOKUP($C14,'RECAP SECT'!$G$6:$DC$253,83,FALSE) -> 13% | O14: =VLOOKUP($C14,'RECAP SECT'!$G$6:$DC$253,84,FALSE) -> 13% | P14: =VLOOKUP($C14,'RECAP SECT'!$G$6:$DC$253,85,FALSE) -> 3
A15: 264 | B15: HAUT-RHIN | C15: 5130 | D15: COLMAR | E15: =VLOOKUP($C15,'RECAP SECT'!$G$6:$DC$253,3,FALSE) -> 65.1 | F15: =VLOOKUP($C15,'RECAP SECT'!$G$6:$DC$253,75,FALSE) -> 3,826 | G15: =VLOOKUP($C15,'RECAP SECT'!$G$6:$DC$253,76,FALSE) -> 58.78 | H15: =VLOOKUP($C15,'RECAP SECT'!$G$6:$DC$253,77,FALSE) -> 19% | I15: =VLOOKUP($C15,'RECAP SECT'!$G$6:$DC$253,78,FALSE) -> 6 | J15: =VLOOKUP($C15,'RECAP SECT'!$G$6:$DC$253,79,FALSE) -> 499 | K15: =VLOOKUP($C15,'RECAP SECT'!$G$6:$DC$253,80,FALSE) -> 7.66 | L15: =VLOOKUP($C15,'RECAP SECT'!$G$6:$DC$253,81,FALSE) -> 39% | M15: =VLOOKUP($C15,'RECAP SECT'!$G$6:$DC$253,82,FALSE) -> 17 | N15: =VLOOKUP($C15,'RECAP SECT'!$G$6:$DC$253,83,FALSE) -> 25% | O15: =VLOOKUP($C15,'RECAP SECT'!$G$6:$DC$253,84,FALSE) -> 25% | P15: =VLOOKUP($C15,'RECAP SECT'!$G$6:$DC$253,85,FALSE) -> 8
A16: 264 | B16: HAUT-RHIN | C16: 5169 | D16: MULHOUSE | E16: =VLOOKUP($C16,'RECAP SECT'!$G$6:$DC$253,3,FALSE) -> 61.5 | F16: =VLOOKUP($C16,'RECAP SECT'!$G$6:$DC$253,75,FALSE) -> 1,939 | G16: =VLOOKUP($C16,'RECAP SECT'!$G$6:$DC$253,76,FALSE) -> 31.51 | H16: =VLOOKUP($C16,'RECAP SECT'!$G$6:$DC$253,77,FALSE) -> 56% | I16: =VLOOKUP($C16,'RECAP SECT'!$G$6:$DC$253,78,FALSE) -> 18 | J16: =VLOOKUP($C16,'RECAP SECT'!$G$6:$DC$253,79,FALSE) -> 536 | K16: =VLOOKUP($C16,'RECAP SECT'!$G$6:$DC$253,80,FALSE) -> 8.71 | L16: =VLOOKUP($C16,'RECAP SECT'!$G$6:$DC$253,81,FALSE) -> 31% | M16: =VLOOKUP($C16,'RECAP SECT'!$G$6:$DC$253,82,FALSE) -> 11 | N16: =VLOOKUP($C16,'RECAP SECT'!$G$6:$DC$253,83,FALSE) -> 49% | O16: =VLOOKUP($C16,'RECAP SECT'!$G$6:$DC$253,84,FALSE) -> 49% | P16: =VLOOKUP($C16,'RECAP SECT'!$G$6:$DC$253,85,FALSE) -> 18
A17: 30 | B17: MARNE-ARDENNES | C17: 6 | D17: CHALONS EN CHAMPAGNE | E17: =VLOOKUP($C17,'RECAP SECT'!$G$6:$DC$253,3,FALSE) -> 45.4 | F17: =VLOOKUP($C17,'RECAP SECT'!$G$6:$DC$253,75,FALSE) -> 1,630 | G17: =VLOOKUP($C17,'RECAP SECT'!$G$6:$DC$253,76,FALSE) -> 35.88 | H17: =VLOOKUP($C17,'RECAP SECT'!$G$6:$DC$253,77,FALSE) -> 50% | I17: =VLOOKUP($C17,'RECAP SECT'!$G$6:$DC$253,78,FALSE) -> 16 | J17: =VLOOKUP($C17,'RECAP SECT'!$G$6:$DC$253,79,FALSE) -> 392 | K17: =VLOOKUP($C17,'RECAP SECT'!$G$6:$DC$253,80,FALSE) -> 8.63 | L17: =VLOOKUP($C17,'RECAP SECT'!$G$6:$DC$253,81,FALSE) -> 31% | M17: =VLOOKUP($C17,'RECAP SECT'!$G$6:$DC$253,82,FALSE) -> 13 | N17: =VLOOKUP($C17,'RECAP SECT'!$G$6:$DC$253,83,FALSE) -> 45% | O17: =VLOOKUP($C17,'RECAP SECT'!$G$6:$DC$253,84,FALSE) -> 45% | P17: =VLOOKUP($C17,'RECAP SECT'!$G$6:$DC$253,85,FALSE) -> 16
A18: 30 | B18: MARNE-ARDENNES | C18: 2 | D18: CHARLEVILLE MEZIERES | E18: =VLOOKUP($C18,'RECAP SECT'!$G$6:$DC$253,3,FALSE) -> 56.0 | F18: =VLOOKUP($C18,'RECAP SECT'!$G$6:$DC$253,75,FALSE) -> 2,130 | G18: =VLOOKUP($C18,'RECAP SECT'!$G$6:$DC$253,76,FALSE) -> 38.05 | H18: =VLOOKUP($C18,'RECAP SECT'!$G$6:$DC$253,77,FALSE) -> 47% | I18: =VLOOKUP($C18,'RECAP SECT'!$G$6:$DC$253,78,FALSE) -> 15 | J18: =VLOOKUP($C18,'RECAP SECT'!$G$6:$DC$253,79,FALSE) -> 472 | K18: =VLOOKUP($C18,'RECAP SECT'!$G$6:$DC$253,80,FALSE) -> 8.43 | L18: =VLOOKUP($C18,'RECAP SECT'!$G$6:$DC$253,81,FALSE) -> 33% | M18: =VLOOKUP($C18,'RECAP SECT'!$G$6:$DC$253,82,FALSE) -> 14 | N18: =VLOOKUP($C18,'RECAP SECT'!$G$6:$DC$253,83,FALSE) -> 43% | O18: =VLOOKUP($C18,'RECAP SECT'!$G$6:$DC$253,84,FALSE) -> 43% | P18: =VLOOKUP($C18,'RECAP SECT'!$G$6:$DC$253,85,FALSE) -> 15
A19: 30 | B19: MARNE-ARDENNES | C19: 11 | D19: REIMS | E19: =VLOOKUP($C19,'RECAP SECT'!$G$6:$DC$253,3,FALSE) -> 83.2 | F19: =VLOOKUP($C19,'RECAP SECT'!$G$6:$DC$253,75,FALSE) -> 3,287 | G19: =VLOOKUP($C19,'RECAP SECT'!$G$6:$DC$253,76,FALSE) -> 39.52 | H19: =VLOOKUP($C19,'RECAP SECT'!$G$6:$DC$253,77,FALSE) -> 45% | I19: =VLOOKUP($C19,'RECAP SECT'!$G$6:$DC$253,78,FALSE) -> 14 | J19: =VLOOKUP($C19,'RECAP SECT'!$G$6:$DC$253,79,FALSE) -> 728 | K19: =VLOOKUP($C19,'RECAP SECT'!$G$6:$DC$253,80,FALSE) -> 8.75 | L19: =VLOOKUP($C19,'RECAP SECT'!$G$6:$DC$253,81,FALSE) -> 30% | M19: =VLOOKUP($C19,'RECAP SECT'!$G$6:$DC$253,82,FALSE) -> 10 | N19: =VLOOKUP($C19,'RECAP SECT'!$G$6:$DC$253,83,FALSE) -> 41% | O19: =VLOOKUP($C19,'RECAP SECT'!$G$6:$DC$253,84,FALSE) -> 41% | P19: =VLOOKUP($C19,'RECAP SECT'!$G$6:$DC$253,85,FALSE) -> 14
A20: 110 | B20: MEURTHE ET MOSELLE MEUSE | C20: 26 | D20: NANCY | E20: =VLOOKUP($C20,'RECAP SECT'!$G$6:$DC$253,3,FALSE) -> 67.6 | F20: =VLOOKUP($C20,'RECAP SECT'!$G$6:$DC$253,75,FALSE) -> 4,874 | G20: =VLOOKUP($C20,'RECAP SECT'!$G$6:$DC$253,76,FALSE) -> 72.13 | H20: =VLOOKUP($C20,'RECAP SECT'!$G$6:$DC$253,77,FALSE) -> 0% | I20: =VLOOKUP($C20,'RECAP SECT'!$G$6:$DC$253,78,FALSE) -> 1 | J20: =VLOOKUP($C20,'RECAP SECT'!$G$6:$DC$253,79,FALSE) -> 850 | K20: =VLOOKUP($C20,'RECAP SECT'!$G$6:$DC$253,80,FALSE) -> 12.58 | L20: =VLOOKUP($C20,'RECAP SECT'!$G$6:$DC$253,81,FALSE) -> 0% | M20: =VLOOKUP($C20,'RECAP SECT'!$G$6:$DC$253,82,FALSE) -> 1 | N20: =VLOOKUP($C20,'RECAP SECT'!$G$6:$DC$253,83,FALSE) -> 0% | O20: =VLOOKUP($C20,'RECAP SECT'!$G$6:$DC$253,84,FALSE) -> 0% | P20: =VLOOKUP($C20,'RECAP SECT'!$G$6:$DC$253,85,FALSE) -> 1
A21: 110 | B21: MEURTHE ET MOSELLE MEUSE | C21: 27 | D21: PONT A MOUSSON | E21: =VLOOKUP($C21,'RECAP SECT'!$G$6:$DC$253,3,FALSE) -> 77.5 | F21: =VLOOKUP($C21,'RECAP SECT'!$G$6:$DC$253,75,FALSE) -> 4,494 | G21: =VLOOKUP($C21,'RECAP SECT'!$G$6:$DC$253,76,FALSE) -> 57.98 | H21: =VLOOKUP($C21,'RECAP SECT'!$G$6:$DC$253,77,FALSE) -> 20% | I21: =VLOOKUP($C21,'RECAP SECT'!$G$6:$DC$253,78,FALSE) -> 7 | J21: =VLOOKUP($C21,'RECAP SECT'!$G$6:$DC$253,79,FALSE) -> 931 | K21: =VLOOKUP($C21,'RECAP SECT'!$G$6:$DC$253,80,FALSE) -> 12.01 | L21: =VLOOKUP($C21,'RECAP SECT'!$G$6:$DC$253,81,FALSE) -> 5% | M21: =VLOOKUP($C21,'RECAP SECT'!$G$6:$DC$253,82,FALSE) -> 2 | N21: =VLOOKUP($C21,'RECAP SECT'!$G$6:$DC$253,83,FALSE) -> 15% | O21: =VLOOKUP($C21,'RECAP SECT'!$G$6:$DC$253,84,FALSE) -> 15% | P21: =VLOOKUP($C21,'RECAP SECT'!$G$6:$DC$253,85,FALSE) -> 5
A22: 110 | B22: MEURTHE ET MOSELLE MEUSE | C22: 31 | D22: VERDUN | E22: =VLOOKUP($C22,'RECAP SECT'!$G$6:$DC$253,3,FALSE) -> 58.4 | F22: =VLOOKUP($C22,'RECAP SECT'!$G$6:$DC$253,75,FALSE) -> 3,093 | G22: =VLOOKUP($C22,'RECAP SECT'!$G$6:$DC$253,76,FALSE) -> 52.99 | H22: =VLOOKUP($C22,'RECAP SECT'!$G$6:$DC$253,77,FALSE) -> 27% | I22: =VLOOKUP($C22,'RECAP SECT'!$G$6:$DC$253,78,FALSE) -> 11 | J22: =VLOOKUP($C22,'RECAP SECT'!$G$6:$DC$253,79,FALSE) -> 546 | K22: =VLOOKUP($C22,'RECAP SECT'!$G$6:$DC$253,80,FALSE) -> 9.35 | L22: =VLOOKUP($C22,'RECAP SECT'!$G$6:$DC$253,81,FALSE) -> 26% | M22: =VLOOKUP($C22,'RECAP SECT'!$G$6:$DC$253,82,FALSE) -> 8 | N22: =VLOOKUP($C22,'RECAP SECT'!$G$6:$DC$253,83,FALSE) -> 26% | O22: =VLOOKUP($C22,'RECAP SECT'!$G$6:$DC$253,84,FALSE) -> 26% | P22: =VLOOKUP($C22,'RECAP SECT'!$G$6:$DC$253,85,FALSE) -> 9
A23: 160 | B23: MOSELLE | C23: 45 | D23: METZ | E23: =VLOOKUP($C23,'RECAP SECT'!$G$6:$DC$253,3,FALSE) -> 89.1 | F23: =VLOOKUP($C23,'RECAP SECT'!$G$6:$DC$253,75,FALSE) -> 4,470 | G23: =VLOOKUP($C23,'RECAP SECT'!$G$6:$DC$253,76,FALSE) -> 50.18 | H23: =VLOOKUP($C23,'RECAP SECT'!$G$6:$DC$253,77,FALSE) -> 30% | I23: =VLOOKUP($C23,'RECAP SECT'!$G$6:$DC$253,78,FALSE) -> 12 | J23: =VLOOKUP($C23,'RECAP SECT'!$G$6:$DC$253,79,FALSE) -> 818 | K23: =VLOOKUP($C23,'RECAP SECT'!$G$6:$DC$253,80,FALSE) -> 9.18 | L23: =VLOOKUP($C23,'RECAP SECT'!$G$6:$DC$253,81,FALSE) -> 27% | M23: =VLOOKUP($C23,'RECAP SECT'!$G$6:$DC$253,82,FALSE) -> 9 | N23: =VLOOKUP($C23,'RECAP SECT'!$G$6:$DC$253,83,FALSE) -> 29% | O23: =VLOOKUP($C23,'RECAP SECT'!$G$6:$DC$253,84,FALSE) -> 29% | P23: =VLOOKUP($C23,'RECAP SECT'!$G$6:$DC$253,85,FALSE) -> 12
A24: 160 | B24: MOSELLE | C24: 42 | D24: MOSELLE EST | E24: =VLOOKUP($C24,'RECAP SECT'!$G$6:$DC$253,3,FALSE) -> 72.5 | F24: =VLOOKUP($C24,'RECAP SECT'!$G$6:$DC$253,75,FALSE) -> 3,448 | G24: =VLOOKUP($C24,'RECAP SECT'!$G$6:$DC$253,76,FALSE) -> 47.56 | H24: =VLOOKUP($C24,'RECAP SECT'!$G$6:$DC$253,77,FALSE) -> 34% | I24: =VLOOKUP($C24,'RECAP SECT'!$G$6:$DC$253,78,FALSE) -> 13 | J24: =VLOOKUP($C24,'RECAP SECT'!$G$6:$DC$253,79,FALSE) -> 569 | K24: =VLOOKUP($C24,'RECAP SECT'!$G$6:$DC$253,80,FALSE) -> 7.85 | L24: =VLOOKUP($C24,'RECAP SECT'!$G$6:$DC$253,81,FALSE) -> 38% | M24: =VLOOKUP($C24,'RECAP SECT'!$G$6:$DC$253,82,FALSE) -> 16 | N24: =VLOOKUP($C24,'RECAP SECT'!$G$6:$DC$253,83,FALSE) -> 35% | O24: =VLOOKUP($C24,'RECAP SECT'!$G$6:$DC$253,84,FALSE) -> 35% | P24: =VLOOKUP($C24,'RECAP SECT'!$G$6:$DC$253,85,FALSE) -> 13
A25: 160 | B25: MOSELLE | C25: 44 | D25: MOSELLE NORD | E25: =VLOOKUP($C25,'RECAP SECT'!$G$6:$DC$253,3,FALSE) -> 74.2 | F25: =VLOOKUP($C25,'RECAP SECT'!$G$6:$DC$253,75,FALSE) -> 4,259 | G25: =VLOOKUP($C25,'RECAP SECT'!$G$6:$DC$253,76,FALSE) -> 57.43 | H25: =VLOOKUP($C25,'RECAP SECT'!$G$6:$DC$253,77,FALSE) -> 20% | I25: =VLOOKUP($C25,'RECAP SECT'!$G$6:$DC$253,78,FALSE) -> 8 | J25: =VLOOKUP($C25,'RECAP SECT'!$G$6:$DC$253,79,FALSE) -> 704 | K25: =VLOOKUP($C25,'RECAP SECT'!$G$6:$DC$253,80,FALSE) -> 9.49 | L25: =VLOOKUP($C25,'RECAP SECT'!$G$6:$DC$253,81,FALSE) -> 25% | M25: =VLOOKUP($C25,'RECAP SECT'!$G$6:$DC$253,82,FALSE) -> 6 | N25: =VLOOKUP($C25,'RECAP SECT'!$G$6:$DC$253,83,FALSE) -> 22% | O25: =VLOOKUP($C25,'RECAP SECT'!$G$6:$DC$253,84,FALSE) -> 22% | P25: =VLOOKUP($C25,'RECAP SECT'!$G$6:$DC$253,85,FALSE) -> 7
A26: 80 | B26: VOSGES | C26: 57 | D26: EPINAL | E26: =VLOOKUP($C26,'RECAP SECT'!$G$6:$DC$253,3,FALSE) -> 61.5 | F26: =VLOOKUP($C26,'RECAP SECT'!$G$6:$DC$253,75,FALSE) -> 3,864 | G26: =VLOOKUP($C26,'RECAP SECT'!$G$6:$DC$253,76,FALSE) -> 62.88 | H26: =VLOOKUP($C26,'RECAP SECT'!$G$6:$DC$253,77,FALSE) -> 13% | I26: =VLOOKUP($C26,'RECAP SECT'!$G$6:$DC$253,78,FALSE) -> 5 | J26: =VLOOKUP($C26,'RECAP SECT'!$G$6:$DC$253,79,FALSE) -> 576 | K26: =VLOOKUP($C26,'RECAP SECT'!$G$6:$DC$253,80,FALSE) -> 9.37 | L26: =VLOOKUP($C26,'RECAP SECT'!$G$6:$DC$253,81,FALSE) -> 25% | M26: =VLOOKUP($C26,'RECAP SECT'!$G$6:$DC$253,82,FALSE) -> 7 | N26: =VLOOKUP($C26,'RECAP SECT'!$G$6:$DC$253,83,FALSE) -> 17% | O26: =VLOOKUP($C26,'RECAP SECT'!$G$6:$DC$253,84,FALSE) -> 17% | P26: =VLOOKUP($C26,'RECAP SECT'!$G$6:$DC$253,85,FALSE) -> 6
A27: 80 | B27: VOSGES | C27: 55 | D27: SAINT DIE | E27: =VLOOKUP($C27,'RECAP SECT'!$G$6:$DC$253,3,FALSE) -> 50.2 | F27: =VLOOKUP($C27,'RECAP SECT'!$G$6:$DC$253,75,FALSE) -> 2,870 | G27: =VLOOKUP($C27,'RECAP SECT'!$G$6:$DC$253,76,FALSE) -> 57.13 | H27: =VLOOKUP($C27,'RECAP SECT'!$G$6:$DC$253,77,FALSE) -> 21% | I27: =VLOOKUP($C27,'RECAP SECT'!$G$6:$DC$253,78,FALSE) -> 9 | J27: =VLOOKUP($C27,'RECAP SECT'!$G$6:$DC$253,79,FALSE) -> 368 | K27: =VLOOKUP($C27,'RECAP SECT'!$G$6:$DC$253,80,FALSE) -> 7.32 | L27: =VLOOKUP($C27,'RECAP SECT'!$G$6:$DC$253,81,FALSE) -> 42% | M27: =VLOOKUP($C27,'RECAP SECT'!$G$6:$DC$253,82,FALSE) -> 18 | N27: =VLOOKUP($C27,'RECAP SECT'!$G$6:$DC$253,83,FALSE) -> 27% | O27: =VLOOKUP($C27,'RECAP SECT'!$G$6:$DC$253,84,FALSE) -> 27% | P27: =VLOOKUP($C27,'RECAP SECT'!$G$6:$DC$253,85,FALSE) -> 10
A28: Total CEGEE Directions Régionales | E28: =SUM(E10:E27) -> 1186

Sheet SE_SATISFACTION
B1: Accueil | F1: BAROMETRE BDD - TERRITOIRES
F2: SATISFACTION
F3: =ACCUEIL!F7 -> 2021-03-07
F7: NPS à froid (SAE) | I7: NPS à chaud (QHD) | L7: Total Satisfaction Clients
F8: =DATEMAJ!E4 -> au 28/02 | G8: coef | H8: ='RECAP DIRCOM'!M4 -> 10% | I8: =DATEMAJ!C5 -> au 31/01 | J8: coef | K8: ='RECAP DIRCOM'!P4 -> 10% | M8: coef | N8: ='RECAP DIRCOM'!S4 -> 20%
B9: Direction | C9: eds | D9: Territoire | E9: ="ETP perf "&DATEMAJ!$C$28 -> ETP perf 31-janv | G9: % Ecart au 1er | H9: Rang | J9: % Ecart au 1er | K9: Rang | L9: Moyenne ecart au 1er | M9: % Ecart au 1er | N9: Rang CEGEE
A10: 50 | B10: AUBE HAUTE MARNE | C10: 21 | D10: CHAUMONT | E10: =VLOOKUP($C10,'RECAP SECT'!$G$6:$DC$253,3,FALSE) -> 34.0 | F10: =VLOOKUP($C10,'RECAP SECT'!$G$6:$DC$253,5,FALSE) -> 11 | G10: =VLOOKUP($C10,'RECAP SECT'!$G$6:$DC$253,6,FALSE) -> 42% | H10: =VLOOKUP($C10,'RECAP SECT'!$G$6:$DC$253,7,FALSE) -> 7 | I10: =VLOOKUP($C10,'RECAP SECT'!$G$6:$DC$253,8,FALSE) -> 54% | J10: =VLOOKUP($C10,'RECAP SECT'!$G$6:$DC$253,9,FALSE) -> 21% | K10: =VLOOKUP($C10,'RECAP SECT'!$G$6:$DC$253,10,FALSE) -> 11 | L10: =VLOOKUP($C10,'RECAP SECT'!$G$6:$DC$253,11,FALSE) -> 31% | M10: =VLOOKUP($C10,'RECAP SECT'!$G$6:$DC$253,12,FALSE) -> 29% | N10: =VLOOKUP($C10,'RECAP SECT'!$G$6:$DC$253,13,FALSE) -> 9
A11: 50 | B11: AUBE HAUTE MARNE | C11: 14 | D11: TROYES | E11: =VLOOKUP($C11,'RECAP SECT'!$G$6:$DC$253,3,FALSE) -> 68.9 | F11: =VLOOKUP($C11,'RECAP SECT'!$G$6:$DC$253,5,FALSE) -> 15 | G11: =VLOOKUP($C11,'RECAP SECT'!$G$6:$DC$253,6,FALSE) -> 21% | H11: =VLOOKUP($C11,'RECAP SECT'!$G$6:$DC$253,7,FALSE) -> 4 | I11: =VLOOKUP($C11,'RECAP SECT'!$G$6:$DC$253,8,FALSE) -> 50% | J11: =VLOOKUP($C11,'RECAP SECT'!$G$6:$DC$253,9,FALSE) -> 27% | K11: =VLOOKUP($C11,'RECAP SECT'!$G$6:$DC$253,10,FALSE) -> 14 | L11: =VLOOKUP($C11,'RECAP SECT'!$G$6:$DC$253,11,FALSE) -> 24% | M11: =VLOOKUP($C11,'RECAP SECT'!$G$6:$DC$253,12,FALSE) -> 22% | N11: =VLOOKUP($C11,'RECAP SECT'!$G$6:$DC$253,13,FALSE) -> 7
A12: 262 | B12: BAS-RHIN | C12: 5060 | D12: HAGUENAU | E12: =VLOOKUP($C12,'RECAP SECT'!$G$6:$DC$253,3,FALSE) -> 74.1 | F12: =VLOOKUP($C12,'RECAP SECT'!$G$6:$DC$253,5,FALSE) -> 10 | G12: =VLOOKUP($C12,'RECAP SECT'!$G$6:$DC$253,6,FALSE) -> 47% | H12: =VLOOKUP($C12,'RECAP SECT'!$G$6:$DC$253,7,FALSE) -> 9 | I12: =VLOOKUP($C12,'RECAP SECT'!$G$6:$DC$253,8,FALSE) -> 58% | J12: =VLOOKUP($C12,'RECAP SECT'!$G$6:$DC$253,9,FALSE) -> 15% | K12: =VLOOKUP($C12,'RECAP SECT'!$G$6:$DC$253,10,FALSE) -> 8 | L12: =VLOOKUP($C12,'RECAP SECT'!$G$6:$DC$253,11,FALSE) -> 31% | M12: =VLOOKUP($C12,'RECAP SECT'!$G$6:$DC$253,12,FALSE) -> 29% | N12: =VLOOKUP($C12,'RECAP SECT'!$G$6:$DC$253,13,FALSE) -> 8
A13: 262 | B13: BAS-RHIN | C13: 5101 | D13: SELESTAT | E13: =VLOOKUP($C13,'RECAP SECT'!$G$6:$DC$253,3,FALSE) -> 63.5 | F13: =VLOOKUP($C13,'RECAP SECT'!$G$6:$DC$253,5,FALSE) -> 6 | G13: =VLOOKUP($C13,'RECAP SECT'!$G$6:$DC$253,6,FALSE) -> 68% | H13: =VLOOKUP($C13,'RECAP SECT'!$G$6:$DC$253,7,FALSE) -> 15 | I13: =VLOOKUP($C13,'RECAP SECT'!$G$6:$DC$253,8,FALSE) -> 49% | J13: =VLOOKUP($C13,'RECAP SECT'!$G$6:$DC$253,9,FALSE) -> 28% | K13: =VLOOKUP($C13,'RECAP SECT'!$G$6:$DC$253,10,FALSE) -> 15 | L13: =VLOOKUP($C13,'RECAP SECT'!$G$6:$DC$253,11,FALSE) -> 48% | M13: =VLOOKUP($C13,'RECAP SECT'!$G$6:$DC$253,12,FALSE) -> 46% | N13: =VLOOKUP($C13,'RECAP SECT'!$G$6:$DC$253,13,FALSE) -> 15
A14: 262 | B14: BAS-RHIN | C14: 5006 | D14: STRASBOURG | E14: =VLOOKUP($C14,'RECAP SECT'!$G$6:$DC$253,3,FALSE) -> 83.0 | F14: =VLOOKUP($C14,'RECAP SECT'!$G$6:$DC$253,5,FALSE) -> 5 | G14: =VLOOKUP($C14,'RECAP SECT'!$G$6:$DC$253,6,FALSE) -> 74% | H14: =VLOOKUP($C14,'RECAP SECT'!$G$6:$DC$253,7,FALSE) -> 17 | I14: =VLOOKUP($C14,'RECAP SECT'!$G$6:$DC$253,8,FALSE) -> 43% | J14: =VLOOKUP($C14,'RECAP SECT'!$G$6:$DC$253,9,FALSE) -> 37% | K14: =VLOOKUP($C14,'RECAP SECT'!$G$6:$DC$253,10,FALSE) -> 17 | L14: =VLOOKUP($C14,'RECAP SECT'!$G$6:$DC$253,11,FALSE) -> 55% | M14: =VLOOKUP($C14,'RECAP SECT'!$G$6:$DC$253,12,FALSE) -> 53% | N14: =VLOOKUP($C14,'RECAP SECT'!$G$6:$DC$253,13,FALSE) -> 17
A15: 264 | B15: HAUT-RHIN | C15: 5130 | D15: COLMAR | E15: =VLOOKUP($C15,'RECAP SECT'!$G$6:$DC$253,3,FALSE) -> 65.1 | F15: =VLOOKUP($C15,'RECAP SECT'!$G$6:$DC$253,5,FALSE) -> 10 | G15: =VLOOKUP($C15,'RECAP SECT'!$G$6:$DC$253,6,FALSE) -> 47% | H15: =VLOOKUP($C15,'RECAP SECT'!$G$6:$DC$253,7,FALSE) -> 9 | I15: =VLOOKUP($C15,'RECAP SECT'!$G$6:$DC$253,8,FALSE) -> 50% | J15: =VLOOKUP($C15,'RECAP SECT'!$G$6:$DC$253,9,FALSE) -> 27% | K15: =VLOOKUP($C15,'RECAP SECT'!$G$6:$DC$253,10,FALSE) -> 13 | L15: =VLOOKUP($C15,'RECAP SECT'!$G$6:$DC$253,11,FALSE) -> 37% | M15: =VLOOKUP($C15,'RECAP SECT'!$G$6:$DC$253,12,FALSE) -> 35% | N15: =VLOOKUP($C15,'RECAP SECT'!$G$6:$DC$253,13,FALSE) -> 13
A16: 264 | B16: HAUT-RHIN | C16: 5169 | D16: MULHOUSE | E16: =VLOOKUP($C16,'RECAP SECT'!$G$6:$DC$253,3,FALSE) -> 61.5 | F16: =VLOOKUP($C16,'RECAP SECT'!$G$6:$DC$253,5,FALSE) -> -2 | G16: =VLOOKUP($C16,'RECAP SECT'!$G$6:$DC$253,6,FALSE) -> 111% | H16: =VLOOKUP($C16,'RECAP SECT'!$G$6:$DC$253,7,FALSE) -> 18 | I16: =VLOOKUP($C16,'RECAP SECT'!$G$6:$DC$253,8,FALSE) -> 40% | J16: =VLOOKUP($C16,'RECAP SECT'!$G$6:$DC$253,9,FALSE) -> 41% | K16: =VLOOKUP($C16,'RECAP SECT'!$G$6:$DC$253,10,FALSE) -> 18 | L16: =VLOOKUP($C16,'RECAP SECT'!$G$6:$DC$253,11,FALSE) -> 76% | M16: =VLOOKUP($C16,'RECAP SECT'!$G$6:$DC$253,12,FALSE) -> 74% | N16: =VLOOKUP($C16,'RECAP SECT'!$G$6:$DC$253,13,FALSE) -> 18
A17: 30 | B17: MARNE-ARDENNES | C17: 6 | D17: CHALONS EN CHAMPAGNE | E17: =VLOOKUP($C17,'RECAP SECT'!$G$6:$DC$253,3,FALSE) -> 45.4 | F17: =VLOOKUP($C17,'RECAP SECT'!$G$6:$DC$253,5,FALSE) -> 11 | G17: =VLOOKUP($C17,'RECAP SECT'!$G$6:$DC$253,6,FALSE) -> 42% | H17: =VLOOKUP($C17,'RECAP SECT'!$G$6:$DC$253,7,FALSE) -> 7 | I17: =VLOOKUP($C17,'RECAP SECT'!$G$6:$DC$253,8,FALSE) -> 68% | J17: =VLOOKUP($C17,'RECAP SECT'!$G$6:$DC$253,9,FALSE) -> 0% | K17: =VLOOKUP($C17,'RECAP SECT'!$G$6:$DC$253,10,FALSE) -> 1 | L17: =VLOOKUP($C17,'RECAP SECT'!$G$6:$DC$253,11,FALSE) -> 21% | M17: =VLOOKUP($C17,'RECAP SECT'!$G$6:$DC$253,12,FALSE) -> 19% | N17: =VLOOKUP($C17,'RECAP SECT'!$G$6:$DC$253,13,FALSE) -> 6
A18: 30 | B18: MARNE-ARDENNES | C18: 2 | D18: CHARLEVILLE MEZIERES | E18: =VLOOKUP($C18,'RECAP SECT'!$G$6:$DC$253,3,FALSE) -> 56.0 | F18: =VLOOKUP($C18,'RECAP SECT'!$G$6:$DC$253,5,FALSE) -> 19 | G18: =VLOOKUP($C18,'RECAP SECT'!$G$6:$DC$253,6,FALSE) -> 0% | H18: =VLOOKUP($C18,'RECAP SECT'!$G$6:$DC$253,7,FALSE) -> 1 | I18: =VLOOKUP($C18,'RECAP SECT'!$G$6:$DC$253,8,FALSE) -> 65% | J18: =VLOOKUP($C18,'RECAP SECT'!$G$6:$DC$253,9,FALSE) -> 5% | K18: =VLOOKUP($C18,'RECAP SECT'!$G$6:$DC$253,10,FALSE) -> 2 | L18: =VLOOKUP($C18,'RECAP SECT'!$G$6:$DC$253,11,FALSE) -> 2% | M18: =VLOOKUP($C18,'RECAP SECT'!$G$6:$DC$253,12,FALSE) -> 0% | N18: =VLOOKUP($C18,'RECAP SECT'!$G$6:$DC$253,13,FALSE) -> 1
A19: 30 | B19: MARNE-ARDENNES | C19: 11 | D19: REIMS | E19: =VLOOKUP($C19,'RECAP SECT'!$G$6:$DC$253,3,FALSE) -> 83.2 | F19: =VLOOKUP($C19,'RECAP SECT'!$G$6:$DC$253,5,FALSE) -> 8 | G19: =VLOOKUP($C19,'RECAP SECT'!$G$6:$DC$253,6,FALSE) -> 58% | H19: =VLOOKUP($C19,'RECAP SECT'!$G$6:$DC$253,7,FALSE) -> 13 | I19: =VLOOKUP($C19,'RECAP SECT'!$G$6:$DC$253,8,FALSE) -> 61% | J19: =VLOOKUP($C19,'RECAP SECT'!$G$6:$DC$253,9,FALSE) -> 11% | K19: =VLOOKUP($C19,'RECAP SECT'!$G$6:$DC$253,10,FALSE) -> 6 | L19: =VLOOKUP($C19,'RECAP SECT'!$G$6:$DC$253,11,FALSE) -> 34% | M19: =VLOOKUP($C19,'RECAP SECT'!$G$6:$DC$253,12,FALSE) -> 32% | N19: =VLOOKUP($C19,'RECAP SECT'!$G$6:$DC$253,13,FALSE) -> 11
A20: 110 | B20: MEURTHE ET MOSELLE MEUSE | C20: 26 | D20: NANCY | E20: =VLOOKUP($C20,'RECAP SECT'!$G$6:$DC$253,3,FALSE) -> 67.6 | F20: =VLOOKUP($C20,'RECAP SECT'!$G$6:$DC$253,5,FALSE) -> 9 | G20: =VLOOKUP($C20,'RECAP SECT'!$G$6:$DC$253,6,FALSE) -> 53% | H20: =VLOOKUP($C20,'RECAP SECT'!$G$6:$DC$253,7,FALSE) -> 12 | I20: =VLOOKUP($C20,'RECAP SECT'!$G$6:$DC$253,8,FALSE) -> 56% | J20: =VLOOKUP($C20,'RECAP SECT'!$G$6:$DC$253,9,FALSE) -> 18% | K20: =VLOOKUP($C20,'RECAP SECT'!$G$6:$DC$253,10,FALSE) -> 9 | L20: =VLOOKUP($C20,'RECAP SECT'!$G$6:$DC$253,11,FALSE) -> 35% | M20: =VLOOKUP($C20,'RECAP SECT'!$G$6:$DC$253,12,FALSE) -> 33% | N20: =VLOOKUP($C20,'RECAP SECT'!$G$6:$DC$253,13,FALSE) -> 12
A21: 110 | B21: MEURTHE ET MOSELLE MEUSE | C21: 27 | D21: PONT A MOUSSON | E21: =VLOOKUP($C21,'RECAP SECT'!$G$6:$DC$253,3,FALSE) -> 77.5 | F21: =VLOOKUP($C21,'RECAP SECT'!$G$6:$DC$253,5,FALSE) -> 10 | G21: =VLOOKUP($C21,'RECAP SECT'!$G$6:$DC$253,6,FALSE) -> 47% | H21: =VLOOKUP($C21,'RECAP SECT'!$G$6:$DC$253,7,FALSE) -> 9 | I21: =VLOOKUP($C21,'RECAP SECT'!$G$6:$DC$253,8,FALSE) -> 54% | J21: =VLOOKUP($C21,'RECAP SECT'!$G$6:$DC$253,9,FALSE) -> 21% | K21: =VLOOKUP($C21,'RECAP SECT'!$G$6:$DC$253,10,FALSE) -> 12 | L21: =VLOOKUP($C21,'RECAP SECT'!$G$6:$DC$253,11,FALSE) -> 34% | M21: =VLOOKUP($C21,'RECAP SECT'!$G$6:$DC$253,12,FALSE) -> 32% | N21: =VLOOKUP($C21,'RECAP SECT'!$G$6:$DC$253,13,FALSE) -> 10
A22: 110 | B22: MEURTHE ET MOSELLE MEUSE | C22: 31 | D22: VERDUN | E22: =VLOOKUP($C22,'RECAP SECT'!$G$6:$DC$253,3,FALSE) -> 58.4 | F22: =VLOOKUP($C22,'RECAP SECT'!$G$6:$DC$253,5,FALSE) -> 13 | G22: =VLOOKUP($C22,'RECAP SECT'!$G$6:$DC$253,6,FALSE) -> 32% | H22: =VLOOKUP($C22,'RECAP SECT'!$G$6:$DC$253,7,FALSE) -> 6 | I22: =VLOOKUP($C22,'RECAP SECT'!$G$6:$DC$253,8,FALSE) -> 65% | J22: =VLOOKUP($C22,'RECAP SECT'!$G$6:$DC$253,9,FALSE) -> 5% | K22: =VLOOKUP($C22,'RECAP SECT'!$G$6:$DC$253,10,FALSE) -> 3 | L22: =VLOOKUP($C22,'RECAP SECT'!$G$6:$DC$253,11,FALSE) -> 18% | M22: =VLOOKUP($C22,'RECAP SECT'!$G$6:$DC$253,12,FALSE) -> 16% | N22: =VLOOKUP($C22,'RECAP SECT'!$G$6:$DC$253,13,FALSE) -> 4
A23: 160 | B23: MOSELLE | C23: 45 | D23: METZ | E23: =VLOOKUP($C23,'RECAP SECT'!$G$6:$DC$253,3,FALSE) -> 89.1 | F23: =VLOOKUP($C23,'RECAP SECT'!$G$6:$DC$253,5,FALSE) -> 7 | G23: =VLOOKUP($C23,'RECAP SECT'!$G$6:$DC$253,6,FALSE) -> 63% | H23: =VLOOKUP($C23,'RECAP SECT'!$G$6:$DC$253,7,FALSE) -> 14 | I23: =VLOOKUP($C23,'RECAP SECT'!$G$6:$DC$253,8,FALSE) -> 59% | J23: =VLOOKUP($C23,'RECAP SECT'!$G$6:$DC$253,9,FALSE) -> 14% | K23: =VLOOKUP($C23,'RECAP SECT'!$G$6:$DC$253,10,FALSE) -> 7 | L23: =VLOOKUP($C23,'RECAP SECT'!$G$6:$DC$253,11,FALSE) -> 39% | M23: =VLOOKUP($C23,'RECAP SECT'!$G$6:$DC$253,12,FALSE) -> 36% | N23: =VLOOKUP($C23,'RECAP SECT'!$G$6:$DC$253,13,FALSE) -> 14
A24: 160 | B24: MOSELLE | C24: 42 | D24: MOSELLE EST | E24: =VLOOKUP($C24,'RECAP SECT'!$G$6:$DC$253,3,FALSE) -> 72.5 | F24: =VLOOKUP($C24,'RECAP SECT'!$G$6:$DC$253,5,FALSE) -> 15 | G24: =VLOOKUP($C24,'RECAP SECT'!$G$6:$DC$253,6,FALSE) -> 21% | H24: =VLOOKUP($C24,'RECAP SECT'!$G$6:$DC$253,7,FALSE) -> 4 | I24: =VLOOKUP($C24,'RECAP SECT'!$G$6:$DC$253,8,FALSE) -> 56% | J24: =VLOOKUP($C24,'RECAP SECT'!$G$6:$DC$253,9,FALSE) -> 19% | K24: =VLOOKUP($C24,'RECAP SECT'!$G$6:$DC$253,10,FALSE) -> 10 | L24: =VLOOKUP($C24,'RECAP SECT'!$G$6:$DC$253,11,FALSE) -> 20% | M24: =VLOOKUP($C24,'RECAP SECT'!$G$6:$DC$253,12,FALSE) -> 18% | N24: =VLOOKUP($C24,'RECAP SECT'!$G$6:$DC$253,13,FALSE) -> 5
A25: 160 | B25: MOSELLE | C25: 44 | D25: MOSELLE NORD | E25: =VLOOKUP($C25,'RECAP SECT'!$G$6:$DC$253,3,FALSE) -> 74.2 | F25: =VLOOKUP($C25,'RECAP SECT'!$G$6:$DC$253,5,FALSE) -> 6 | G25: =VLOOKUP($C25,'RECAP SECT'!$G$6:$DC$253,6,FALSE) -> 68% | H25: =VLOOKUP($C25,'RECAP SECT'!$G$6:$DC$253,7,FALSE) -> 15 | I25: =VLOOKUP($C25,'RECAP SECT'!$G$6:$DC$253,8,FALSE) -> 45% | J25: =VLOOKUP($C25,'RECAP SECT'!$G$6:$DC$253,9,FALSE) -> 34% | K25: =VLOOKUP($C25,'RECAP SECT'!$G$6:$DC$253,10,FALSE) -> 16 | L25: =VLOOKUP($C25,'RECAP SECT'!$G$6:$DC$253,11,FALSE) -> 51% | M25: =VLOOKUP($C25,'RECAP SECT'!$G$6:$DC$253,12,FALSE) -> 49% | N25: =VLOOKUP($C25,'RECAP SECT'!$G$6:$DC$253,13,FALSE) -> 16
A26: 80 | B26: VOSGES | C26: 57 | D26: EPINAL | E26: =VLOOKUP($C26,'RECAP SECT'!$G$6:$DC$253,3,FALSE) -> 61.5 | F26: =VLOOKUP($C26,'RECAP SECT'!$G$6:$DC$253,5,FALSE) -> 17 | G26: =VLOOKUP($C26,'RECAP SECT'!$G$6:$DC$253,6,FALSE) -> 11% | H26: =VLOOKUP($C26,'RECAP SECT'!$G$6:$DC$253,7,FALSE) -> 3 | I26: =VLOOKUP($C26,'RECAP SECT'!$G$6:$DC$253,8,FALSE) -> 61% | J26: =VLOOKUP($C26,'RECAP SECT'!$G$6:$DC$253,9,FALSE) -> 10% | K26: =VLOOKUP($C26,'RECAP SECT'!$G$6:$DC$253,10,FALSE) -> 5 | L26: =VLOOKUP($C26,'RECAP SECT'!$G$6:$DC$253,11,FALSE) -> 10% | M26: =VLOOKUP($C26,'RECAP SECT'!$G$6:$DC$253,12,FALSE) -> 8% | N26: =VLOOKUP($C26,'RECAP SECT'!$G$6:$DC$253,13,FALSE) -> 3
A27: 80 | B27: VOSGES | C27: 55 | D27: SAINT DIE | E27: =VLOOKUP($C27,'RECAP SECT'!$G$6:$DC$253,3,FALSE) -> 50.2 | F27: =VLOOKUP($C27,'RECAP SECT'!$G$6:$DC$253,5,FALSE) -> 18 | G27: =VLOOKUP($C27,'RECAP SECT'!$G$6:$DC$253,6,FALSE) -> 5% | H27: =VLOOKUP($C27,'RECAP SECT'!$G$6:$DC$253,7,FALSE) -> 2 | I27: =VLOOKUP($C27,'RECAP SECT'!$G$6:$DC$253,8,FALSE) -> 62% | J27: =VLOOKUP($C27,'RECAP SECT'!$G$6:$DC$253,9,FALSE) -> 9% | K27: =VLOOKUP($C27,'RECAP SECT'!$G$6:$DC$253,10,FALSE) -> 4 | L27: =VLOOKUP($C27,'RECAP SECT'!$G$6:$DC$253,11,FALSE) -> 7% | M27: =VLOOKUP($C27,'RECAP SECT'!$G$6:$DC$253,12,FALSE) -> 5% | N27: =VLOOKUP($C27,'RECAP SECT'!$G$6:$DC$253,13,FALSE) -> 2
A28: Total CEGEE Directions Régionales | E28: =SUM(E10:E27) -> 1186

Sheet AG_CLASS
B1: Accueil | H1: BAROMETRE BDD - AGENCES
H2: CLASSEMENTS
H3: =ACCUEIL!F7 -> 2021-03-07
H8: CLASSEMENT GENERAL | I8: CRITERE Satisfaction Clients | J8: NPS à froid (SAE) | K8: NPS à chaud (QHD) | L8: CRITERE BANCARISATION | M8: Ventes Nettes produits pondérés | N8: Ventes sur client non détenteur de l’univers | O8: Mobilité Macron | P8: Remises commerciales | Q8: CRITERE EPARGNE | R8: Excédent Epargne y/c DAV pondéré | S8: Ventes sur client non détenteur de l’univers | T8: CRITERE IARD PREVOYANCE | U8: Ventes Nettes produits pondérés | V8: Ventes sur client non détenteur de l’univers | W8: CRITERE CREDITS | X8: Engagements et ventes accessoires pondérés Immo | Y8: Engagements et ventes accessoires pondérés Conso | Z8: Ventes sur client non détenteur de l’univers
B9: Direction | C9: eds | D9: Territoire | E9: eds | F9: Agence | G9: ="ETP perf "&DATEMAJ!$C$28 -> ETP perf 31-janv | H9: Rang | I9: Rang | J9: Rang | K9: Rang | L9: Rang | M9: Rang | N9: Rang | O9: Rang | P9: Rang | Q9: Rang | R9: Rang | S9: Rang | T9: Rang | U9: Rang | V9: Rang | W9: Rang | X9: Rang | Y9: Rang | Z9: Rang
A10: 50 | B10: MEURTHE ET MOSELLE MEUSE | C10: 26 | D10: NANCY | E10: 454481 | F10: NANCY PLACE DOMBASLE | G10: 12.3 | H10: 1 | I10: 162 | J10: 168 | K10: 134 | L10: 1 | M10: 8 | N10: 1 | O10: 1 | P10: 188 | Q10: 16 | R10: 63 | S10: 3 | T10: 1 | U10: 1 | V10: 4 | W10: 4 | X10: 4 | Y10: 93 | Z10: 2
A11: 50 | B11: MEURTHE ET MOSELLE MEUSE | C11: 27 | D11: PONT A MOUSSON | E11: 554531 | F11: POMPEY | G11: 3.0 | H11: 2 | I11: 88 | J11: 106 | K11: 75 | L11: 4 | M11: 7 | N11: 5 | O11: 5 | P11: 6 | Q11: 7 | R11: 14 | S11: 7 | T11: 12 | U11: 13 | V11: 9 | W11: 5 | X11: 10 | Y11: 2 | Z11: 17
A12: 50 | B12: BAS-RHIN | C12: 5101 | D12: SELESTAT | E12: 4113 | F12: BARR | G12: 3.0 | H12: 3 | I12: 21 | J12: 38 | K12: 11 | L12: 7 | M12: 5 | N12: 84 | O12: 21 | P12: 15 | Q12: 4 | R12: 8 | S12: 4 | T12: 7 | U12: 5 | V12: 40 | W12: 204 | X12: 157 | Y12: 212 | Z12: 159
A13: 50 | B13: MEURTHE ET MOSELLE MEUSE | C13: 26 | D13: NANCY | E13: 554356 | F13: JARVILLE LA MALGRANGE | G13: 4.0 | H13: 4 | I13: 117 | J13: 79 | K13: 170 | L13: 6 | M13: 9 | N13: 4 | O13: 2 | P13: 232 | Q13: 162 | R13: 161 | S13: 173 | T13: 2 | U13: 2 | V13: 7 | W13: 3 | X13: 2 | Y13: 110 | Z13: 3
A14: 50 | B14: VOSGES | C14: 57 | D14: EPINAL | E14: 488288 | F14: EPINAL LEOPOLD BOURG | G14: 1.8 | H14: 5 | I14: 11 | J14: 8 | K14: 40 | L14: 3 | M14: 2 | N14: 16 | O14: 13 | P14: 158 | Q14: 80 | R14: 58 | S14: 213 | T14: 112 | U14: 120 | V14: 77 | W14: 2 | X14: 8 | Y14: 1 | Z14: 6
A15: 50 | B15: MEURTHE ET MOSELLE MEUSE | C15: 27 | D15: PONT A MOUSSON | E15: 454651 | F15: TOUL | G15: 9.6 | H15: 6 | I15: 262 | J15: 237 | K15: 268 | L15: 5 | M15: 6 | N15: 2 | O15: 3 | P15: 259 | Q15: 101 | R15: 110 | S15: 64 | T15: 15 | U15: 25 | V15: 6 | W15: 1 | X15: 1 | Y15: 6 | Z15: 1
A16: 50 | B16: MOSELLE | C16: 44 | D16: MOSELLE NORD | E16: 557508 | F16: NILVANGE | G16: 2.1 | H16: 7 | I16: 112 | J16: 75 | K16: 177 | L16: 18 | M16: 14 | N16: 40 | O16: 35 | P16: 210 | Q16: 37 | R16: 89 | S16: 14 | T16: 3 | U16: 3 | V16: 5 | W16: 43 | X16: 35 | Y16: 104 | Z16: 47
A17: 50 | B17: BAS-RHIN | C17: 5101 | D17: SELESTAT | E17: 4120 | F17: WASSELONNE | G17: 2.9 | H17: 8 | I17: 197 | J17: 188 | K17: 183 | L17: 61 | M17: 46 | N17: 66 | O17: 172 | P17: 178 | Q17: 1 | R17: 5 | S17: 5 | T17: 5 | U17: 6 | V17: 22 | W17: 37 | X17: 117 | Y17: 11 | Z17: 96
A18: 50 | B18: AUBE HAUTE MARNE | C18: 21 | D18: CHAUMONT | E18: 510590 | F18: CHAUMONT REPUBLIQUE | G18: 3.9 | H18: 9 | I18: 74 | J18: 79 | K18: 79 | L18: 38 | M18: 83 | N18: 19 | O18: 103 | P18: 71 | Q18: 71 | R18: 85 | S18: 84 | T18: 10 | U18: 7 | V18: 29 | W18: 20 | X18: 93 | Y18: 5 | Z18: 55
A19: 50 | B19: MEURTHE ET MOSELLE MEUSE | C19: 26 | D19: NANCY | E19: 554636 | F19: TOMBLAINE | G19: 2.0 | H19: 10 | I19: 28 | J19: 70 | K19: 6 | L19: 206 | M19: 230 | N19: 13 | O19: 261 | P19: 218 | Q19: 40 | R19: 42 | S19: 120 | T19: 6 | U19: 17 | V19: 1 | W19: 40 | X19: 120 | Y19: 126 | Z19: 5
A20: 50 | B20: MARNE-ARDENNES | C20: 11 | D20: REIMS | E20: 551310 | F20: REIMS CHATILLONS | G20: 3.7 | H20: 11 | I20: 84 | J20: 87 | K20: 93 | L20: 12 | M20: 11 | N20: 55 | O20: 20 | P20: 181 | Q20: 34 | R20: 30 | S20: 136 | T20: 69 | U20: 61 | V20: 116 | W20: 13 | X20: 15 | Y20: 22 | Z20: 42
A21: 50 | B21: MARNE-ARDENNES | C21: 2 | D21: CHARLEVILLE MEZIERES | E21: 408822 | F21: CHARLEVILLE MEZIERES | G21: 4.4 | H21: 12 | I21: 92 | J21: 127 | K21: 63 | L21: 67 | M21: 146 | N21: 35 | O21: 18 | P21: 112 | Q21: 13 | R21: 37 | S21: 6 | T21: 27 | U21: 24 | V21: 41 | W21: 31 | X21: 12 | Y21: 231 | Z21: 22
A22: 50 | B22: MARNE-ARDENNES | C22: 11 | D22: REIMS | E22: 551349 | F22: REIMS SAINT REMI | G22: 2.9 | H22: 13 | I22: 85 | J22: 53 | K22: 154 | L22: 13 | M22: 24 | N22: 15 | O22: 15 | P22: 144 | Q22: 12 | R22: 19 | S22: 15 | T22: 84 | U22: 112 | V22: 35 | W22: 25 | X22: 26 | Y22: 75 | Z22: 44
A23: 50 | B23: MEURTHE ET MOSELLE MEUSE | C23: 27 | D23: PONT A MOUSSON | E23: 554321 | F23: FROUARD | G23: 3.0 | H23: 14 | I23: 97 | J23: 53 | K23: 174 | L23: 104 | M23: 122 | N23: 142 | O23: 148 | P23: 53 | Q23: 5 | R23: 2 | S23: 94 | T23: 53 | U23: 71 | V23: 25 | W23: 28 | X23: 19 | Y23: 143 | Z23: 31
A24: 50 | B24: MOSELLE | C24: 45 | D24: METZ | E24: 557447 | F24: METZ SAINT MAXIMIN | G24: 3.0 | H24: 15 | I24: 78 | J24: 75 | K24: 104 | L24: 15 | M24: 119 | N24: 3 | O24: 7 | P24: 78 | Q24: 60 | R24: 52 | S24: 159 | T24: 59 | U24: 85 | V24: 23 | W24: 16 | X24: 9 | Y24: 154 | Z24: 8
A25: 50 | B25: MARNE-ARDENNES | C25: 6 | D25: CHALONS EN CHAMPAGNE | E25: 451115 | F25: MOURMELON LE GRAND | G25: 3.0 | H25: 16 | I25: 59 | J25: 116 | K25: 21 | L25: 166 | M25: 171 | N25: 74 | O25: 6 | P25: 247 | Q25: 24 | R25: 159 | S25: 1 | T25: 32 | U25: 36 | V25: 27 | W25: 27 | X25: 59 | Y25: 45 | Z25: 17
A26: 50 | B26: BAS-RHIN | C26: 5060 | D26: HAGUENAU | E26: 4092 | F26: HOCHFELDEN | G26: 1.8 | H26: 17 | I26: 46 | J26: 20 | K26: 136 | L26: 56 | M26: 25 | N26: 30 | O26: 37 | P26: 262 | Q26: 134 | R26: 179 | S26: 36 | T26: 38 | U26: 64 | V26: 11 | W26: 17 | X26: 23 | Y26: 21 | Z26: 81
A27: 50 | B27: VOSGES | C27: 55 | D27: SAINT DIE | E27: 488246 | F27: CORNIMONT LA BRESSE | G27: 2.9 | H27: 18 | I27: 23 | J27: 70 | K27: 3 | L27: 94 | M27: 80 | N27: 108 | O27: 206 | P27: 135 | Q27: 128 | R27: 145 | S27: 69 | T27: 21 | U27: 12 | V27: 136 | W27: 115 | X27: 197 | Y27: 57 | Z27: 126
A28: 50 | B28: BAS-RHIN | C28: 5101 | D28: SELESTAT | E28: 4107 | F28: VILLE | G28: 2.9 | H28: 19 | I28: 219 | J28: 221 | K28: 197 | L28: 2 | M28: 1 | N28: 73 | O28: 107 | P28: 30 | Q28: 47 | R28: 60 | S28: 88 | T28: 23 | U28: 18 | V28: 128 | W28: 179 | X28: 246 | Y28: 43 | Z28: 234
A29: 50 | B29: MOSELLE | C29: 42 | D29: MOSELLE EST | E29: 557250 | F29: CREUTZWALD | G29: 2.9 | H29: 20 | I29: 48 | J29: 40 | K29: 80 | L29: 199 | M29: 202 | N29: 174 | O29: 207 | P29: 98 | Q29: 3 | R29: 6 | S29: 8 | T29: 113 | U29: 98 | V29: 156 | W29: 55 | X29: 73 | Y29: 26 | Z29: 127
A30: 50 | B30: MOSELLE | C30: 42 | D30: MOSELLE EST | E30: 457163 | F30: BEHREN LES FORBACH | G30: 2.5 | H30: 21 | I30: 32 | J30: 20 | K30: 64 | L30: 14 | M30: 27 | N30: 12 | O30: 194 | P30: 45 | Q30: 77 | R30: 106 | S30: 25 | T30: 78 | U30: 97 | V30: 42 | W30: 116 | X30: 271 | Y30: 27 | Z30: 93
A31: 50 | B31: MARNE-ARDENNES | C31: 2 | D31: CHARLEVILLE MEZIERES | E31: 408862 | F31: REVIN | G31: 3.6 | H31: 22 | I31: 107 | J31: 130 | K31: 81 | L31: 11 | M31: 35 | N31: 8 | O31: 45 | P31: 23 | Q31: 17 | R31: 43 | S31: 9 | T31: 116 | U31: 107 | V31: 134 | W31: 39 | X31: 45 | Y31: 134 | Z31: 14
A32: 262 | B32: MEURTHE ET MOSELLE MEUSE | C32: 27 | D32: PONT A MOUSSON | E32: 554416 | F32: LUDRES | G32: 4.0 | H32: 23 | I32: 12 | J32: 8 | K32: 53 | L32: 119 | M32: 148 | N32: 47 | O32: 31 | P32: 184 | Q32: 41 | R32: 59 | S32: 70 | T32: 153 | U32: 155 | V32: 150 | W32: 52 | X32: 104 | Y32: 64 | Z32: 31
A33: 262 | B33: MOSELLE | C33: 45 | D33: METZ | E33: 557444 | F33: SAINT JULIEN LES METZ | G33: 5.6 | H33: 24 | I33: 93 | J33: 106 | K33: 86 | L33: 89 | M33: 72 | N33: 149 | O33: 121 | P33: 123 | Q33: 94 | R33: 87 | S33: 164 | T33: 22 | U33: 26 | V33: 26 | W33: 69 | X33: 127 | Y33: 29 | Z33: 117
A34: 262 | B34: VOSGES | C34: 57 | D34: EPINAL | E34: 488706 | F34: VITTEL | G34: 3.5 | H34: 25 | I34: 27 | J34: 62 | K34: 7 | L34: 184 | M34: 218 | N34: 204 | O34: 139 | P34: 36 | Q34: 38 | R34: 29 | S34: 218 | T34: 47 | U34: 40 | V34: 124 | W34: 110 | X34: 162 | Y34: 117 | Z34: 63
A35: 262 | B35: AUBE HAUTE MARNE | C35: 21 | D35: CHAUMONT | E35: 410560 | F35: BOURBONNE LES BAINS | G35: 2.0 | H35: 26 | I35: 2 | J35: 3 | K35: 5 | L35: 148 | M35: 151 | N35: 250 | O35: 227 | P35: 14 | Q35: 131 | R35: 139 | S35: 100 | T35: 81 | U35: 79 | V35: 88 | W35: 224 | X35: 263 | Y35: 103 | Z35: 217
A36: 262 | B36: BAS-RHIN | C36: 5101 | D36: SELESTAT | E36: 4121 | F36: SCHIRMECK | G36: 3.8 | H36: 27 | I36: 52 | J36: 62 | K36: 60 | L36: 77 | M36: 81 | N36: 236 | O36: 99 | P36: 27 | Q36: 55 | R36: 47 | S36: 161 | T36: 73 | U36: 58 | V36: 152 | W36: 67 | X36: 177 | Y36: 53 | Z36: 30
A37: 262 | B37: MARNE-ARDENNES | C37: 11 | D37: REIMS | E37: 551309 | F37: REIMS EUROPE | G37: 3.0 | H37: 28 | I37: 13 | J37: 8 | K37: 56 | L37: 72 | M37: 102 | N37: 124 | O37: 115 | P37: 29 | Q37: 58 | R37: 88 | S37: 34 | T37: 107 | U37: 134 | V37: 47 | W37: 189 | X37: 101 | Y37: 214 | Z37: 202
A38: 262 | B38: MARNE-ARDENNES | C38: 6 | D38: CHALONS EN CHAMPAGNE | E38: 551330 | F38: MONTMIRAIL | G38: 3.0 | H38: 29 | I38: 39 | J38: 75 | K38: 17 | L38: 115 | M38: 160 | N38: 154 | O38: 27 | P38: 66 | Q38: 28 | R38: 26 | S38: 79 | T38: 136 | U38: 152 | V38: 81 | W38: 62 | X38: 57 | Y38: 119 | Z38: 48
A39: 262 | B39: MARNE-ARDENNES | C39: 2 | D39: CHARLEVILLE MEZIERES | E39: 508820 | F39: VOUZIERS | G39: 2.9 | H39: 30 | I39: 230 | J39: 255 | K39: 181 | L39: 64 | M39: 31 | N39: 18 | O39: 43 | P39: 265 | Q39: 50 | R39: 62 | S39: 82 | T39: 18 | U39: 23 | V39: 19 | W39: 15 | X39: 27 | Y39: 32 | Z39: 9
A40: 262 | B40: MOSELLE | C40: 44 | D40: MOSELLE NORD | E40: 557113 | F40: AUDUN LE TICHE | G40: 2.2 | H40: 31 | I40: 242 | J40: 265 | K40: 184 | L40: 36 | M40: 52 | N40: 7 | O40: 236 | P40: 195 | Q40: 27 | R40: 33 | S40: 39 | T40: 48 | U40: 44 | V40: 86 | W40: 7 | X40: 5 | Y40: 131 | Z40: 7
A41: 262 | B41: BAS-RHIN | C41: 5060 | D41: HAGUENAU | E41: 4066 | F41: NIEDERBRONN LES BAINS | G41: 6.1 | H41: 32 | I41: 14 | J41: 40 | K41: 4 | L41: 157 | M41: 184 | N41: 130 | O41: 136 | P41: 75 | Q41: 83 | R41: 44 | S41: 258 | T41: 92 | U41: 73 | V41: 187 | W41: 128 | X41: 71 | Y41: 132 | Z41: 209
A42: 262 | B42: VOSGES | C42: 57 | D42: EPINAL | E42: 588631 | F42: THAON LES VOSGES | G42: 5.4 | H42: 33 | I42: 40 | J42: 62 | K42: 27 | L42: 30 | M42: 38 | N42: 59 | O42: 72 | P42: 142 | Q42: 179 | R42: 152 | S42: 238 | T42: 39 | U42: 39 | V42: 52 | W42: 161 | X42: 204 | Y42: 109 | Z42: 141
A43: 262 | B43: VOSGES | C43: 55 | D43: SAINT DIE | E43: 588186 | F43: BRUYERES | G43: 3.7 | H43: 34 | I43: 61 | J43: 87 | K43: 52 | L43: 50 | M43: 68 | N43: 101 | O43: 170 | P43: 49 | Q43: 174 | R43: 164 | S43: 177 | T43: 42 | U43: 30 | V43: 146 | W43: 73 | X43: 136 | Y43: 34 | Z43: 94
A44: 262 | B44: VOSGES | C44: 57 | D44: EPINAL | E44: 588716 | F44: XERTIGNY | G44: 3.0 | H44: 35 | I44: 79 | J44: 87 | K44: 84 | L44: 168 | M44: 144 | N44: 243 | O44: 244 | P44: 92 | Q44: 78 | R44: 80 | S44: 116 | T44: 14 | U44: 9 | V44: 60 | W44: 197 | X44: 158 | Y44: 208 | Z44: 152
A45: 262 | B45: MARNE-ARDENNES | C45: 6 | D45: CHALONS EN CHAMPAGNE | E45: 551110 | F45: CHALONS ROOSEVELT | G45: 5.0 | H45: 36 | I45: 16 | J45: 15 | K45: 34 | L45: 91 | M45: 117 | N45: 47 | O45: 28 | P45: 165 | Q45: 46 | R45: 99 | S45: 13 | T45: 174 | U45: 152 | V45: 236 | W45: 109 | X45: 51 | Y45: 195 | Z45: 124
A46: 262 | B46: MEURTHE ET MOSELLE MEUSE | C46: 26 | D46: NANCY | E46: 554266 | F46: DOMBASLE SUR MEURTHE | G46: 3.7 | H46: 37 | I46: 155 | J46: 175 | K46: 105 | L46: 218 | M46: 214 | N46: 134 | O46: 26 | P46: 231 | Q46: 2 | R46: 4 | S46: 43 | T46: 140 | U46: 179 | V46: 49 | W46: 23 | X46: 47 | Y46: 13 | Z46: 57
A47: 262 | B47: MOSELLE | C47: 44 | D47: MOSELLE NORD | E47: 457348 | F47: HAGONDANGE | G47: 8.6 | H47: 38 | I47: 189 | J47: 188 | K47: 179 | L47: 21 | M47: 18 | N47: 168 | O47: 83 | P47: 94 | Q47: 49 | R47: 53 | S47: 102 | T47: 50 | U47: 42 | V47: 110 | W47: 49 | X47: 46 | Y47: 73 | Z47: 71
A48: 262 | B48: BAS-RHIN | C48: 5006 | D48: STRASBOURG | E48: 4033 | F48: LA WANTZENAU | G48: 1.2 | H48: 39 | I48: 227 | J48: 183 | K48: 241 | L48: 230 | M48: 250 | N48: 138 | O48: 108 | P48: 152 | Q48: 8 | R48: 3 | S48: 231 | T48: 56 | U48: 38 | V48: 186 | W48: 8 | X48: 17 | Y48: 7 | Z48: 53
A49: 262 | B49: AUBE HAUTE MARNE | C49: 14 | D49: TROYES | E49: 510511 | F49: TROYES BROSSOLETTE | G49: 3.0 | H49: 40 | I49: 83 | J49: 175 | K49: 12 | L49: 33 | M49: 57 | N49: 33 | O49: 115 | P49: 127 | Q49: 10 | R49: 7 | S49: 94 | T49: 169 | U49: 177 | V49: 117 | W49: 158 | X49: 85 | Y49: 213 | Z49: 133
A50: 262 | B50: MOSELLE | C50: 45 | D50: METZ | E50: 457453 | F50: MONTIGNY LES METZ | G50: 8.0 | H50: 41 | I50: 19 | J50: 31 | K50: 14 | L50: 57 | M50: 19 | N50: 165 | O50: 57 | P50: 238 | Q50: 145 | R50: 191 | S50: 31 | T50: 171 | U50: 142 | V50: 242 | W50: 56 | X50: 50 | Y50: 95 | Z50: 51
A51: 262 | B51: VOSGES | C51: 55 | D51: SAINT DIE | E51: 588587 | F51: SAINT DIE CATHEDRALE | G51: 4.0 | H51: 42 | I51: 24 | J51: 37 | K51: 18 | L51: 138 | M51: 121 | N51: 215 | O51: 227 | P51: 79 | Q51: 15 | R51: 9 | S51: 145 | T51: 155 | U51: 154 | V51: 157 | W51: 231 | X51: 99 | Y51: 263 | Z51: 227
A52: 262 | B52: MARNE-ARDENNES | C52: 11 | D52: REIMS | E52: 551305 | F52: REIMS HIPPODROME | G52: 3.8 | H52: 43 | I52: 8 | J52: 14 | K52: 9 | L52: 106 | M52: 103 | N52: 60 | O52: 4 | P52: 250 | Q52: 248 | R52: 259 | S52: 46 | T52: 102 | U52: 122 | V52: 59 | W52: 51 | X52: 36 | Y52: 167 | Z52: 28
A53: 262 | B53: MOSELLE | C53: 44 | D53: MOSELLE NORD | E53: 557347 | F53: GUENANGE | G53: 2.6 | H53: 44 | I53: 153 | J53: 62 | K53: 232 | L53: 82 | M53: 152 | N53: 77 | O53: 63 | P53: 25 | Q53: 66 | R53: 56 | S53: 157 | T53: 124 | U53: 172 | V53: 30 | W53: 11 | X53: 7 | Y53: 114 | Z53: 10
A54: 262 | B54: BAS-RHIN | C54: 5060 | D54: HAGUENAU | E54: 4071 | F54: WISSEMBOURG | G54: 8.7 | H54: 45 | I54: 18 | J54: 31 | K54: 10 | L54: 160 | M54: 157 | N54: 173 | O54: 204 | P54: 86 | Q54: 56 | R54: 54 | S54: 126 | T54: 101 | U54: 103 | V54: 104 | W54: 212 | X54: 249 | Y54: 127 | Z54: 183
A55: 262 | B55: MEURTHE ET MOSELLE MEUSE | C55: 26 | D55: NANCY | E55: 554476 | F55: NANCY ARTEM | G55: 2.6 | H55: 46 | I55: 103 | J55: 168 | K55: 41 | L55: 96 | M55: 61 | N55: 52 | O55: 24 | P55: 251 | Q55: 84 | R55: 83 | S55: 130 | T55: 63 | U55: 76 | V55: 39 | W55: 60 | X55: 54 | Y55: 198 | Z55: 12
A56: 262 | B56: BAS-RHIN | C56: 5060 | D56: HAGUENAU | E56: 4082 | F56: BOUXWILLER | G56: 2.9 | H56: 47 | I56: 70 | J56: 62 | K56: 95 | L56: 220 | M56: 208 | N56: 229 | O56: 261 | P56: 118 | Q56: 14 | R56: 17 | S56: 20 | T56: 104 | U56: 125 | V56: 62 | W56: 102 | X56: 139 | Y56: 41 | Z56: 177
A57: 262 | B57: MARNE-ARDENNES | C57: 11 | D57: REIMS | E57: 551340 | F57: BETHENY | G57: 3.0 | H57: 48 | I57: 57 | J57: 106 | K57: 22 | L57: 27 | M57: 51 | N57: 13 | O57: 8 | P57: 227 | Q57: 125 | R57: 143 | S57: 62 | T57: 254 | U57: 258 | V57: 178 | W57: 9 | X57: 11 | Y57: 30 | Z57: 11
A58: 262 | B58: MOSELLE | C58: 45 | D58: METZ | E58: 457443 | F58: METZ REPUBLIQUE | G58: 4.2 | H58: 49 | I58: 1 | J58: 1 | K58: 50 | L58: 188 | M58: 175 | N58: 231 | O58: 257 | P58: 95 | Q58: 193 | R58: 195 | S58: 132 | T58: 236 | U58: 244 | V58: 170 | W58: 41 | X58: 41 | Y58: 118 | Z58: 24
A59: 262 | B59: MEURTHE ET MOSELLE MEUSE | C59: 27 | D59: PONT A MOUSSON | E59: 554357 | F59: JOEUF | G59: 4.0 | H59: 50 | I59: 100 | J59: 95 | K59: 126 | L59: 108 | M59: 163 | N59: 21 | O59: 46 | P59: 173 | Q59: 215 | R59: 224 | S59: 100 | T59: 35 | U59: 41 | V59: 21 | W59: 36 | X59: 43 | Y59: 68 | Z59: 46
A60: 262 | B60: MEURTHE ET MOSELLE MEUSE | C60: 31 | D60: VERDUN | E60: 454414 | F60: LONGWY HAUT | G60: 4.0 | H60: 51 | I60: 138 | J60: 145 | K60: 109 | L60: 42 | M60: 82 | N60: 41 | O60: 106 | P60: 40 | Q60: 44 | R60: 61 | S60: 70 | T60: 49 | U60: 62 | V60: 32 | W60: 198 | X60: 138 | Y60: 221 | Z60: 168
A61: 262 | B61: HAUT-RHIN | C61: 5130 | D61: COLMAR | E61: 4153 | F61: ROUFFACH | G61: 3.7 | H61: 52 | I61: 98 | J61: 106 | K61: 92 | L61: 111 | M61: 76 | N61: 89 | O61: 222 | P61: 187 | Q61: 243 | R61: 255 | S61: 32 | T61: 16 | U61: 19 | V61: 37 | W61: 71 | X61: 161 | Y61: 15 | Z61: 129
A62: 262 | B62: MEURTHE ET MOSELLE MEUSE | C62: 26 | D62: NANCY | E62: 454426 | F62: LUNEVILLE CARNOT | G62: 9.6 | H62: 53 | I62: 136 | J62: 137 | K62: 119 | L62: 48 | M62: 43 | N62: 82 | O62: 73 | P62: 177 | Q62: 130 | R62: 121 | S62: 149 | T62: 51 | U62: 56 | V62: 43 | W62: 70 | X62: 42 | Y62: 153 | Z62: 62
A63: 262 | B63: MEURTHE ET MOSELLE MEUSE | C63: 31 | D63: VERDUN | E63: 555679 | F63: VERDUN MAZEL | G63: 4.0 | H63: 54 | I63: 38 | J63: 40 | K63: 59 | L63: 97 | M63: 137 | N63: 87 | O63: 55 | P63: 99 | Q63: 115 | R63: 126 | S63: 57 | T63: 90 | U63: 86 | V63: 99 | W63: 169 | X63: 206 | Y63: 175 | Z63: 77
A64: 262 | B64: MARNE-ARDENNES | C64: 11 | D64: REIMS | E64: 451361 | F64: PIERRY LECLERC | G64: 2.0 | H64: 55 | I64: 7 | J64: 4 | K64: 35 | L64: 78 | M64: 173 | N64: 41 | O64: 66 | P64: 9 | Q64: 252 | R64: 234 | S64: 270 | T64: 74 | U64: 69 | V64: 106 | W64: 206 | X64: 62 | Y64: 215 | Z64: 267
A65: 262 | B65: MEURTHE ET MOSELLE MEUSE | C65: 31 | D65: VERDUN | E65: 455231 | F65: COMMERCY | G65: 4.4 | H65: 56 | I65: 160 | J65: 159 | K65: 136 | L65: 100 | M65: 99 | N65: 31 | O65: 89 | P65: 206 | Q65: 191 | R65: 174 | S65: 206 | T65: 37 | U65: 28 | V65: 109 | W65: 24 | X65: 66 | Y65: 17 | Z65: 26
A66: 262 | B66: BAS-RHIN | C66: 5006 | D66: STRASBOURG | E66: 4037 | F66: MUNDOLSHEIM | G66: 4.4 | H66: 57 | I66: 173 | J66: 183 | K66: 144 | L66: 10 | M66: 4 | N66: 63 | O66: 100 | P66: 200 | Q66: 89 | R66: 94 | S66: 91 | T66: 55 | U66: 53 | V66: 68 | W66: 234 | X66: 225 | Y66: 238 | Z66: 149
A67: 262 | B67: VOSGES | C67: 57 | D67: EPINAL | E67: 588206 | F67: CHARMES | G67: 2.8 | H67: 58 | I67: 148 | J67: 188 | K67: 72 | L67: 147 | M67: 124 | N67: 99 | O67: 169 | P67: 180 | Q67: 75 | R67: 51 | S67: 212 | T67: 40 | U67: 45 | V67: 34 | W67: 89 | X67: 194 | Y67: 28 | Z67: 115
A68: 262 | B68: BAS-RHIN | C68: 5101 | D68: SELESTAT | E68: 4007 | F68: ILLKIRCH CENTRE | G68: 7.0 | H68: 59 | I68: 152 | J68: 153 | K68: 133 | L68: 9 | M68: 3 | N68: 152 | O68: 125 | P68: 199 | Q68: 164 | R68: 197 | S68: 74 | T68: 46 | U68: 46 | V68: 70 | W68: 201 | X68: 145 | Y68: 170 | Z68: 232
A69: 262 | B69: BAS-RHIN | C69: 5006 | D69: STRASBOURG | E69: 4047 | F69: STRASBOURG CRONENBOURG | G69: 6.7 | H69: 60 | I69: 56 | J69: 79 | K69: 47 | L69: 145 | M69: 170 | N69: 117 | O69: 42 | P69: 150 | Q69: 116 | R69: 127 | S69: 58 | T69: 58 | U69: 51 | V69: 138 | W69: 156 | X69: 65 | Y69: 234 | Z69: 137
A70: 262 | B70: MEURTHE ET MOSELLE MEUSE | C70: 31 | D70: VERDUN | E70: 554412 | F70: LONGUYON | G70: 3.0 | H70: 61 | I70: 22 | J70: 17 | K70: 56 | L70: 132 | M70: 168 | N70: 106 | O70: 60 | P70: 113 | Q70: 211 | R70: 185 | S70: 246 | T70: 67 | U70: 68 | V70: 66 | W70: 165 | X70: 91 | Y70: 178 | Z70: 202
A71: 262 | B71: MEURTHE ET MOSELLE MEUSE | C71: 27 | D71: PONT A MOUSSON | E71: 454535 | F71: PONT A MOUSSON CENTRALE | G71: 8.1 | H71: 62 | I71: 188 | J71: 195 | K71: 165 | L71: 20 | M71: 21 | N71: 56 | O71: 52 | P71: 134 | Q71: 126 | R71: 118 | S71: 128 | T71: 45 | U71: 50 | V71: 50 | W71: 91 | X71: 32 | Y71: 222 | Z71: 97
A72: 262 | B72: BAS-RHIN | C72: 5006 | D72: STRASBOURG | E72: 4038 | F72: OBERHAUSBERGEN | G72: 5.0 | H72: 63 | I72: 125 | J72: 175 | K72: 66 | L72: 69 | M72: 37 | N72: 51 | O72: 53 | P72: 244 | Q72: 69 | R72: 95 | S72: 38 | T72: 145 | U72: 143 | V72: 168 | W72: 30 | X72: 22 | Y72: 65 | Z72: 109
A73: 262 | B73: VOSGES | C73: 55 | D73: SAINT DIE | E73: 488326 | F73: GERARDMER | G73: 5.9 | H73: 64 | I73: 20 | J73: 28 | K73: 18 | L73: 167 | M73: 120 | N73: 249 | O73: 128 | P73: 161 | Q73: 52 | R73: 27 | S73: 260 | T73: 189 | U73: 165 | V73: 246 | W73: 145 | X73: 61 | Y73: 176 | Z73: 200
A74: 262 | B74: MOSELLE | C74: 42 | D74: MOSELLE EST | E74: 557503 | F74: NEUNKIRCH | G74: 4.2 | H74: 65 | I74: 10 | J74: 11 | K74: 25 | L74: 140 | M74: 84 | N74: 199 | O74: 256 | P74: 170 | Q74: 100 | R74: 64 | S74: 253 | T74: 206 | U74: 180 | V74: 254 | W74: 166 | X74: 133 | Y74: 113 | Z74: 221
A75: 262 | B75: MARNE-ARDENNES | C75: 11 | D75: REIMS | E75: 551367 | F75: AY CHAMPAGNE | G75: 3.0 | H75: 66 | I75: 90 | J75: 79 | K75: 123 | L75: 8 | M75: 16 | N75: 22 | O75: 8 | P75: 90 | Q75: 214 | R75: 217 | S75: 106 | T75: 193 | U75: 217 | V75: 117 | W75: 45 | X75: 29 | Y75: 160 | Z75: 41
A76: 262 | B76: AUBE HAUTE MARNE | C76: 21 | D76: CHAUMONT | E76: 410566 | F76: CHAUMONT HOTEL DE VILLE | G76: 7.6 | H76: 67 | I76: 50 | J76: 70 | K76: 51 | L76: 88 | M76: 109 | N76: 75 | O76: 138 | P76: 83 | Q76: 155 | R76: 157 | S76: 124 | T76: 87 | U76: 94 | V76: 67 | W76: 146 | X76: 186 | Y76: 50 | Z76: 206
A77: 262 | B77: MARNE-ARDENNES | C77: 2 | D77: CHARLEVILLE MEZIERES | E77: 508819 | F77: MOUZON | G77: 2.0 | H77: 68 | I77: 65 | J77: 47 | K77: 125 | L77: 185 | M77: 142 | N77: 76 | O77: 88 | P77: 243 | Q77: 29 | R77: 22 | S77: 141 | T77: 244 | U77: 257 | V77: 100 | W77: 21 | X77: 30 | Y77: 66 | Z77: 19
A78: 262 | B78: MEURTHE ET MOSELLE MEUSE | C78: 27 | D78: PONT A MOUSSON | E78: 554257 | F78: DIEULOUARD | G78: 3.4 | H78: 69 | I78: 30 | J78: 40 | K78: 20 | L78: 189 | M78: 217 | N78: 166 | O78: 64 | P78: 107 | Q78: 188 | R78: 173 | S78: 195 | T78: 77 | U78: 75 | V78: 101 | W78: 104 | X78: 119 | Y78: 142 | Z78: 70
A79: 262 | B79: MEURTHE ET MOSELLE MEUSE | C79: 31 | D79: VERDUN | E79: 555624 | F79: STENAY | G79: 3.0 | H79: 70 | I79: 147 | J79: 188 | K79: 71 | L79: 31 | M79: 60 | N79: 106 | O79: 209 | P79: 3 | Q79: 104 | R79: 96 | S79: 135 | T79: 91 | U79: 88 | V79: 106 | W79: 92 | X79: 188 | Y79: 52 | Z79: 67
A80: 262 | B80: MOSELLE | C80: 42 | D80: MOSELLE EST | E80: 457308 | F80: FORBACH CENTRALE | G80: 12.0 | H80: 71 | I80: 124 | J80: 145 | K80: 94 | L80: 32 | M80: 29 | N80: 167 | O80: 161 | P80: 93 | Q80: 102 | R80: 102 | S80: 93 | T80: 127 | U80: 96 | V80: 211 | W80: 79 | X80: 134 | Y80: 35 | Z80: 101
A81: 262 | B81: AUBE HAUTE MARNE | C81: 21 | D81: CHAUMONT | E81: 451151 | F81: WASSY | G81: 2.0 | H81: 72 | I81: 143 | J81: 214 | K81: 38 | L81: 80 | M81: 88 | N81: 93 | O81: 90 | P81: 109 | Q81: 256 | R81: 267 | S81: 18 | T81: 33 | U81: 29 | V81: 61 | W81: 26 | X81: 153 | Y81: 8 | Z81: 31
A82: 262 | B82: MARNE-ARDENNES | C82: 2 | D82: CHARLEVILLE MEZIERES | E82: 408801 | F82: CHARLEVILLE JEAN JAURES | G82: 9.7 | H82: 73 | I82: 119 | J82: 145 | K82: 78 | L82: 53 | M82: 79 | N82: 43 | O82: 12 | P82: 191 | Q82: 105 | R82: 138 | S82: 23 | T82: 195 | U82: 205 | V82: 166 | W82: 18 | X82: 14 | Y82: 144 | Z82: 13
A83: 264 | B83: MOSELLE | C83: 45 | D83: METZ | E83: 557712 | F83: WOIPPY | G83: 5.1 | H83: 74 | I83: 167 | J83: 159 | K83: 149 | L83: 71 | M83: 101 | N83: 27 | O83: 95 | P83: 149 | Q83: 213 | R83: 183 | S83: 251 | T83: 19 | U83: 27 | V83: 13 | W83: 114 | X83: 76 | Y83: 163 | Z83: 119
A84: 264 | B84: MARNE-ARDENNES | C84: 11 | D84: REIMS | E84: 551314 | F84: FISMES | G84: 3.0 | H84: 75 | I84: 77 | J84: 116 | K84: 54 | L84: 87 | M84: 160 | N84: 64 | O84: 11 | P84: 114 | Q84: 123 | R84: 180 | S84: 16 | T84: 148 | U84: 156 | V84: 135 | W84: 57 | X84: 58 | Y84: 87 | Z84: 59
A85: 264 | B85: HAUT-RHIN | C85: 5130 | D85: COLMAR | E85: 4144 | F85: RIBEAUVILLE | G85: 3.0 | H85: 76 | I85: 169 | J85: 225 | K85: 70 | L85: 24 | M85: 28 | N85: 180 | O85: 115 | P85: 44 | Q85: 140 | R85: 176 | S85: 47 | T85: 31 | U85: 14 | V85: 232 | W85: 236 | X85: 209 | Y85: 182 | Z85: 252
A86: 264 | B86: VOSGES | C86: 57 | D86: EPINAL | E86: 588336 | F86: GOLBEY | G86: 3.3 | H86: 77 | I86: 82 | J86: 87 | K86: 91 | L86: 207 | M86: 191 | N86: 110 | O86: 74 | P86: 225 | Q86: 36 | R86: 34 | S86: 151 | T86: 158 | U86: 133 | V86: 219 | W86: 58 | X86: 48 | Y86: 172 | Z86: 21
A87: 264 | B87: BAS-RHIN | C87: 5006 | D87: STRASBOURG | E87: 4043 | F87: STRASBOURG HALLES | G87: 8.9 | H87: 78 | I87: 217 | J87: 183 | K87: 230 | L87: 40 | M87: 53 | N87: 11 | O87: 23 | P87: 234 | Q87: 39 | R87: 38 | S87: 165 | T87: 109 | U87: 117 | V87: 74 | W87: 47 | X87: 25 | Y87: 177 | Z87: 58
A88: 264 | B88: HAUT-RHIN | C88: 5130 | D88: COLMAR | E88: 4157 | F88: NEUF BRISACH | G88: 3.8 | H88: 79 | I88: 202 | J88: 221 | K88: 160 | L88: 243 | M88: 225 | N88: 197 | O88: 253 | P88: 189 | Q88: 33 | R88: 41 | S88: 53 | T88: 20 | U88: 11 | V88: 137 | W88: 127 | X88: 195 | Y88: 70 | Z88: 132
A89: 264 | B89: MEURTHE ET MOSELLE MEUSE | C89: 31 | D89: VERDUN | E89: 455298 | F89: ETAIN | G89: 1.7 | H89: 80 | I89: 94 | J89: 70 | K89: 143 | L89: 271 | M89: 270 | N89: 224 | O89: 215 | P89: 229 | Q89: 241 | R89: 233 | S89: 223 | T89: 4 | U89: 4 | V89: 16 | W89: 85 | X89: 52 | Y89: 77 | Z89: 184
A90: 264 | B90: MARNE-ARDENNES | C90: 11 | D90: REIMS | E90: 551365 | F90: DORMANS | G90: 2.8 | H90: 81 | I90: 4 | J90: 2 | K90: 47 | L90: 223 | M90: 253 | N90: 234 | O90: 16 | P90: 141 | Q90: 209 | R90: 225 | S90: 68 | T90: 210 | U90: 199 | V90: 224 | W90: 107 | X90: 113 | Y90: 138 | Z90: 91
A91: 264 | B91: VOSGES | C91: 57 | D91: EPINAL | E91: 488561 | F91: REMIREMONT | G91: 6.4 | H91: 82 | I91: 71 | J91: 116 | K91: 45 | L91: 190 | M91: 197 | N91: 225 | O91: 181 | P91: 62 | Q91: 103 | R91: 101 | S91: 99 | T91: 97 | U91: 77 | V91: 175 | W91: 130 | X91: 110 | Y91: 186 | Z91: 74
A92: 264 | B92: BAS-RHIN | C92: 5006 | D92: STRASBOURG | E92: 4024 | F92: STRASBOURG AUSTERLITZ | G92: 2.0 | H92: 83 | I92: 264 | J92: 258 | K92: 256 | L92: 16 | M92: 13 | N92: 25 | O92: 66 | P92: 216 | Q92: 20 | R92: 21 | S92: 70 | T92: 71 | U92: 145 | V92: 8 | W92: 38 | X92: 100 | Y92: 33 | Z92: 31
A93: 264 | B93: MEURTHE ET MOSELLE MEUSE | C93: 31 | D93: VERDUN | E93: 455456 | F93: MONTMEDY | G93: 1.8 | H93: 84 | I93: 68 | J93: 106 | K93: 46 | L93: 103 | M93: 111 | N93: 49 | O93: 165 | P93: 147 | Q93: 242 | R93: 230 | S93: 234 | T93: 70 | U93: 78 | V93: 55 | W93: 84 | X93: 72 | Y93: 168 | Z93: 43
A94: 264 | B94: BAS-RHIN | C94: 5006 | D94: STRASBOURG | E94: 4027 | F94: SCHILTIGHEIM CENTRE | G94: 3.8 | H94: 85 | I94: 183 | J94: 175 | K94: 185 | L94: 54 | M94: 64 | N94: 10 | O94: 14 | P94: 253 | Q94: 30 | R94: 40 | S94: 33 | T94: 182 | U94: 202 | V94: 112 | W94: 64 | X94: 31 | Y94: 156 | Z94: 75
A95: 264 | B95: MOSELLE | C95: 42 | D95: MOSELLE EST | E95: 457617 | F95: SARREGUEMINES | G95: 7.9 | H95: 86 | I95: 118 | J95: 153 | K95: 73 | L95: 52 | M95: 47 | N95: 145 | O95: 131 | P95: 97 | Q95: 87 | R95: 105 | S95: 45 | T95: 121 | U95: 106 | V95: 160 | W95: 187 | X95: 144 | Y95: 181 | Z95: 186
A96: 264 | B96: MOSELLE | C96: 42 | D96: MOSELLE EST | E96: 457165 | F96: BITCHE | G96: 2.1 | H96: 87 | I96: 120 | J96: 130 | K96: 99 | L96: 29 | M96: 23 | N96: 185 | O96: 232 | P96: 52 | Q96: 269 | R96: 270 | S96: 60 | T96: 26 | U96: 31 | V96: 20 | W96: 119 | X96: 216 | Y96: 105 | Z96: 49
A97: 264 | B97: MARNE-ARDENNES | C97: 6 | D97: CHALONS EN CHAMPAGNE | E97: 451101 | F97: CHALONS VIVIERS | G97: 8.6 | H97: 88 | I97: 42 | J97: 58 | K97: 39 | L97: 39 | M97: 30 | N97: 88 | O97: 59 | P97: 190 | Q97: 217 | R97: 252 | S97: 10 | T97: 224 | U97: 246 | V97: 111 | W97: 54 | X97: 44 | Y97: 108 | Z97: 50
A98: 264 | B98: VOSGES | C98: 57 | D98: EPINAL | E98: 488451 | F98: MIRECOURT | G98: 5.0 | H98: 89 | I98: 210 | J98: 261 | K98: 64 | L98: 130 | M98: 155 | N98: 45 | O98: 75 | P98: 175 | Q98: 35 | R98: 28 | S98: 202 | T98: 54 | U98: 48 | V98: 94 | W98: 129 | X98: 118 | Y98: 162 | Z98: 99
A99: 264 | B99: VOSGES | C99: 55 | D99: SAINT DIE | E99: 588551 | F99: RAMBERVILLERS | G99: 4.0 | H99: 90 | I99: 5 | J99: 15 | K99: 1 | L99: 257 | M99: 227 | N99: 261 | O99: 155 | P99: 226 | Q99: 182 | R99: 151 | S99: 246 | T99: 143 | U99: 135 | V99: 178 | W99: 207 | X99: 169 | Y99: 145 | Z99: 238
A100: 264 | B100: HAUT-RHIN | C100: 5169 | D100: MULHOUSE | E100: 4181 | F100: WITTELSHEIM | G100: 3.5 | H100: 91 | I100: 106 | J100: 79 | K100: 150 | L100: 234 | M100: 212 | N100: 91 | O100: 112 | P100: 241 | Q100: 73 | R100: 68 | S100: 150 | T100: 178 | U100: 194 | V100: 129 | W100: 22 | X100: 67 | Y100: 12 | Z100: 39
A101: 264 | B101: MOSELLE | C101: 45 | D101: METZ | E101: 557105 | F101: ARS SUR MOSELLE | G101: 4.2 | H101: 92 | I101: 132 | J101: 145 | K101: 99 | L101: 198 | M101: 166 | N101: 171 | O101: 140 | P101: 193 | Q101: 187 | R101: 165 | S101: 207 | T101: 123 | U101: 113 | V101: 147 | W101: 14 | X101: 6 | Y101: 40 | Z101: 73
A102: 264 | B102: VOSGES | C102: 55 | D102: SAINT DIE | E102: 488586 | F102: SAINT DIE | G102: 11.6 | H102: 93 | I102: 102 | J102: 183 | K102: 24 | L102: 156 | M102: 100 | N102: 143 | O102: 205 | P102: 196 | Q102: 42 | R102: 49 | S102: 97 | T102: 128 | U102: 99 | V102: 207 | W102: 190 | X102: 147 | Y102: 209 | Z102: 147
A103: 264 | B103: MOSELLE | C103: 44 | D103: MOSELLE NORD | E103: 457192 | F103: CATTENOM | G103: 2.9 | H103: 94 | I103: 171 | J103: 95 | K103: 233 | L103: 74 | M103: 78 | N103: 198 | O103: 243 | P103: 12 | Q103: 26 | R103: 15 | S103: 191 | T103: 147 | U103: 111 | V103: 248 | W103: 167 | X103: 56 | Y103: 230 | Z103: 199
A104: 264 | B104: VOSGES | C104: 57 | D104: EPINAL | E104: 588501 | F104: NEUFCHATEAU | G104: 5.0 | H104: 95 | I104: 81 | J104: 87 | K104: 89 | L104: 172 | M104: 200 | N104: 124 | O104: 36 | P104: 154 | Q104: 88 | R104: 75 | S104: 184 | T104: 175 | U104: 178 | V104: 155 | W104: 76 | X104: 141 | Y104: 63 | Z104: 54
A105: 264 | B105: BAS-RHIN | C105: 5006 | D105: STRASBOURG | E105: 4020 | F105: STRASBOURG ROBERTSAU | G105: 5.7 | H105: 96 | I105: 72 | J105: 137 | K105: 23 | L105: 47 | M105: 56 | N105: 123 | O105: 38 | P105: 140 | Q105: 122 | R105: 134 | S105: 78 | T105: 197 | U105: 190 | V105: 214 | W105: 139 | X105: 95 | Y105: 203 | Z105: 86
A106: 264 | B106: MARNE-ARDENNES | C106: 2 | D106: CHARLEVILLE MEZIERES | E106: 508802 | F106: CHARLEVILLE NEVERS | G106: 3.0 | H106: 97 | I106: 15 | J106: 5 | K106: 107 | L106: 203 | M106: 216 | N106: 170 | O106: 39 | P106: 183 | Q106: 239 | R106: 251 | S106: 40 | T106: 119 | U106: 118 | V106: 117 | W106: 138 | X106: 151 | Y106: 91 | Z106: 159
A107: 264 | B107: BAS-RHIN | C107: 5006 | D107: STRASBOURG | E107: 4054 | F107: STRASBOURG MONTAGNE VERTE | G107: 2.8 | H107: 98 | I107: 257 | J107: 242 | K107: 253 | L107: 95 | M107: 204 | N107: 20 | O107: 105 | P107: 16 | Q107: 220 | R107: 212 | S107: 197 | T107: 9 | U107: 20 | V107: 2 | W107: 32 | X107: 38 | Y107: 74 | Z107: 29
A108: 30 | B108: BAS-RHIN | C108: 5101 | D108: SELESTAT | E108: 4126 | F108: MUTZIG | G108: 3.0 | H108: 99 | I108: 161 | J108: 188 | K108: 98 | L108: 73 | M108: 90 | N108: 79 | O108: 46 | P108: 129 | Q108: 255 | R108: 261 | S108: 40 | T108: 103 | U108: 110 | V108: 81 | W108: 10 | X108: 28 | Y108: 10 | Z108: 20
A109: 30 | B109: MOSELLE | C109: 42 | D109: MOSELLE EST | E109: 557523 | F109: PHALSBOURG | G109: 2.3 | H109: 100 | I109: 55 | J109: 40 | K109: 99 | L109: 241 | M109: 226 | N109: 94 | O109: 150 | P109: 236 | Q109: 32 | R109: 24 | S109: 134 | T109: 201 | U109: 195 | V109: 208 | W109: 106 | X109: 232 | Y109: 39 | Z109: 87
A110: 30 | B110: AUBE HAUTE MARNE | C110: 21 | D110: CHAUMONT | E110: 451154 | F110: JOINVILLE | G110: 2.0 | H110: 101 | I110: 3 | J110: 11 | K110: 2 | L110: 222 | M110: 228 | N110: 140 | O110: 227 | P110: 143 | Q110: 244 | R110: 228 | S110: 255 | T110: 194 | U110: 222 | V110: 88 | W110: 143 | X110: 235 | Y110: 67 | Z110: 112
A111: 30 | B111: BAS-RHIN | C111: 5101 | D111: SELESTAT | E111: 4116 | F111: MOLSHEIM | G111: 5.1 | H111: 102 | I111: 221 | J111: 195 | K111: 224 | L111: 117 | M111: 67 | N111: 161 | O111: 159 | P111: 197 | Q111: 11 | R111: 10 | S111: 80 | T111: 146 | U111: 138 | V111: 190 | W111: 95 | X111: 98 | Y111: 96 | Z111: 114
A112: 30 | B112: MARNE-ARDENNES | C112: 11 | D112: REIMS | E112: 451350 | F112: REIMS CENTRE VILLE | G112: 7.6 | H112: 103 | I112: 178 | J112: 188 | K112: 158 | L112: 128 | M112: 107 | N112: 32 | O112: 33 | P112: 246 | Q112: 107 | R112: 112 | S112: 87 | T112: 118 | U112: 119 | V112: 108 | W112: 35 | X112: 24 | Y112: 112 | Z112: 65
A113: 30 | B113: MOSELLE | C113: 44 | D113: MOSELLE NORD | E113: 557352 | F113: HETTANGE GRANDE | G113: 4.3 | H113: 104 | I113: 244 | J113: 253 | K113: 219 | L113: 19 | M113: 12 | N113: 83 | O113: 182 | P113: 157 | Q113: 112 | R113: 91 | S113: 194 | T113: 64 | U113: 63 | V113: 90 | W113: 68 | X113: 49 | Y113: 42 | Z113: 196
A114: 30 | B114: BAS-RHIN | C114: 5101 | D114: SELESTAT | E114: 4119 | F114: OBERNAI | G114: 4.3 | H114: 105 | I114: 246 | J114: 237 | K114: 239 | L114: 49 | M114: 20 | N114: 128 | O114: 180 | P114: 213 | Q114: 82 | R114: 135 | S114: 11 | T114: 17 | U114: 16 | V114: 54 | W114: 230 | X114: 242 | Y114: 136 | Z114: 245
A115: 30 | B115: MARNE-ARDENNES | C115: 11 | D115: REIMS | E115: 551369 | F115: DAMERY | G115: 3.0 | H115: 106 | I115: 60 | J115: 13 | K115: 217 | L115: 245 | M115: 194 | N115: 124 | O115: 76 | P115: 263 | Q115: 173 | R115: 144 | S115: 246 | T115: 61 | U115: 66 | V115: 58 | W115: 120 | X115: 77 | Y115: 196 | Z115: 89
A116: 30 | B116: MARNE-ARDENNES | C116: 2 | D116: CHARLEVILLE MEZIERES | E116: 508815 | F116: CARIGNAN | G116: 3.0 | H116: 107 | I116: 154 | J116: 106 | K116: 190 | L116: 51 | M116: 132 | N116: 25 | O116: 60 | P116: 32 | Q116: 43 | R116: 79 | S116: 34 | T116: 196 | U116: 206 | V116: 165 | W116: 117 | X116: 64 | Y116: 165 | Z116: 159
A117: 30 | B117: MARNE-ARDENNES | C117: 11 | D117: REIMS | E117: 451336 | F117: TINQUEUX | G117: 5.9 | H117: 108 | I117: 114 | J117: 137 | K117: 86 | L117: 86 | M117: 77 | N117: 58 | O117: 34 | P117: 215 | Q117: 121 | R117: 109 | S117: 146 | T117: 209 | U117: 225 | V117: 139 | W117: 46 | X117: 20 | Y117: 157 | Z117: 84
A118: 30 | B118: VOSGES | C118: 57 | D118: EPINAL | E118: 488281 | F118: ELOYES | G118: 4.8 | H118: 109 | I118: 109 | J118: 106 | K118: 132 | L118: 195 | M118: 188 | N118: 146 | O118: 190 | P118: 138 | Q118: 163 | R118: 149 | S118: 217 | T118: 62 | U118: 55 | V118: 130 | W118: 97 | X118: 68 | Y118: 125 | Z118: 138
A119: 30 | B119: MARNE-ARDENNES | C119: 6 | D119: CHALONS EN CHAMPAGNE | E119: 451120 | F119: SARRY | G119: 2.5 | H119: 110 | I119: 36 | J119: 53 | K119: 29 | L119: 101 | M119: 174 | N119: 147 | O119: 22 | P119: 19 | Q119: 132 | R119: 153 | S119: 67 | T119: 211 | U119: 204 | V119: 215 | W119: 178 | X119: 189 | Y119: 159 | Z119: 136
A120: 30 | B120: MEURTHE ET MOSELLE MEUSE | C120: 31 | D120: VERDUN | E120: 554700 | F120: VILLERUPT | G120: 2.8 | H120: 111 | I120: 35 | J120: 17 | K120: 97 | L120: 85 | M120: 136 | N120: 67 | O120: 167 | P120: 33 | Q120: 142 | R120: 130 | S120: 196 | T120: 252 | U120: 250 | V120: 224 | W120: 105 | X120: 264 | Y120: 9 | Z120: 231
A121: 30 | B121: BAS-RHIN | C121: 5006 | D121: STRASBOURG | E121: 4006 | F121: STRASBOURG NEUDORF | G121: 9.0 | H121: 112 | I121: 174 | J121: 183 | K121: 147 | L121: 25 | M121: 36 | N121: 28 | O121: 69 | P121: 163 | Q121: 169 | R121: 178 | S121: 142 | T121: 60 | U121: 65 | V121: 64 | W121: 196 | X121: 111 | Y121: 239 | Z121: 178
A122: 30 | B122: AUBE HAUTE MARNE | C122: 21 | D122: CHAUMONT | E122: 410541 | F122: LANGRES | G122: 6.7 | H122: 113 | I122: 33 | J122: 20 | K122: 68 | L122: 202 | M122: 213 | N122: 216 | O122: 158 | P122: 101 | Q122: 226 | R122: 227 | S122: 153 | T122: 126 | U122: 132 | V122: 97 | W122: 123 | X122: 196 | Y122: 46 | Z122: 165
A123: 30 | B123: MEURTHE ET MOSELLE MEUSE | C123: 27 | D123: PONT A MOUSSON | E123: 554184 | F123: BRIEY | G123: 4.8 | H123: 114 | I123: 142 | J123: 145 | K123: 113 | L123: 171 | M123: 234 | N123: 135 | O123: 85 | P123: 26 | Q123: 22 | R123: 16 | S123: 137 | T123: 216 | U123: 215 | V123: 206 | W123: 93 | X123: 83 | Y123: 83 | Z123: 157
A124: 30 | B124: AUBE HAUTE MARNE | C124: 21 | D124: CHAUMONT | E124: 451156 | F124: SAINT DIZIER CENTRE | G124: 7.0 | H124: 115 | I124: 150 | J124: 159 | K124: 112 | L124: 155 | M124: 135 | N124: 97 | O124: 185 | P124: 176 | Q124: 111 | R124: 97 | S124: 167 | T124: 93 | U124: 89 | V124: 121 | W124: 126 | X124: 176 | Y124: 92 | Z124: 104
A125: 30 | B125: MARNE-ARDENNES | C125: 11 | D125: REIMS | E125: 451370 | F125: EPERNAY | G125: 11.7 | H125: 116 | I125: 47 | J125: 70 | K125: 43 | L125: 75 | M125: 44 | N125: 121 | O125: 77 | P125: 205 | Q125: 228 | R125: 219 | S125: 182 | T125: 161 | U125: 136 | V125: 223 | W125: 148 | X125: 148 | Y125: 152 | Z125: 98
A126: 30 | B126: VOSGES | C126: 55 | D126: SAINT DIE | E126: 588386 | F126: LE THILLOT | G126: 3.0 | H126: 117 | I126: 137 | J126: 145 | K126: 108 | L126: 204 | M126: 209 | N126: 250 | O126: 247 | P126: 56 | Q126: 197 | R126: 204 | S126: 120 | T126: 24 | U126: 15 | V126: 143 | W126: 217 | X126: 255 | Y126: 84 | Z126: 238
A127: 30 | B127: MOSELLE | C127: 44 | D127: MOSELLE NORD | E127: 457306 | F127: FLORANGE | G127: 3.9 | H127: 118 | I127: 248 | J127: 266 | K127: 212 | L127: 44 | M127: 69 | N127: 72 | O127: 129 | P127: 58 | Q127: 25 | R127: 25 | S127: 55 | T127: 76 | U127: 72 | V127: 103 | W127: 132 | X127: 80 | Y127: 137 | Z127: 195
A128: 30 | B128: HAUT-RHIN | C128: 5130 | D128: COLMAR | E128: 4135 | F128: COLMAR SAINTE MARIE | G128: 7.3 | H128: 119 | I128: 146 | J128: 130 | K128: 146 | L128: 135 | M128: 138 | N128: 181 | O128: 145 | P128: 91 | Q128: 72 | R128: 78 | S128: 104 | T128: 96 | U128: 87 | V128: 132 | W128: 214 | X128: 146 | Y128: 248 | Z128: 140
A129: 30 | B129: BAS-RHIN | C129: 5101 | D129: SELESTAT | E129: 4101 | F129: SELESTAT CENTRE | G129: 8.5 | H129: 120 | I129: 235 | J129: 227 | K129: 235 | L129: 41 | M129: 34 | N129: 80 | O129: 94 | P129: 174 | Q129: 68 | R129: 73 | S129: 108 | T129: 80 | U129: 100 | V129: 44 | W129: 111 | X129: 140 | Y129: 62 | Z129: 174
A130: 30 | B130: VOSGES | C130: 57 | D130: EPINAL | E130: 488291 | F130: EPINAL AVRINSART | G130: 1.8 | H130: 121 | I130: 63 | J130: 53 | K130: 95 | L130: 263 | M130: 224 | N130: 158 | O130: 80 | P130: 267 | Q130: 207 | R130: 182 | S130: 234 | T130: 65 | U130: 49 | V130: 184 | W130: 80 | X130: 96 | Y130: 80 | Z130: 80
A131: 30 | B131: MOSELLE | C131: 44 | D131: MOSELLE NORD | E131: 557660 | F131: UCKANGE | G131: 2.1 | H131: 122 | I131: 225 | J131: 137 | K131: 252 | L131: 191 | M131: 94 | N131: 185 | O131: 232 | P131: 235 | Q131: 150 | R131: 124 | S131: 236 | T131: 25 | U131: 35 | V131: 15 | W131: 83 | X131: 97 | Y131: 44 | Z131: 155
A132: 30 | B132: MEURTHE ET MOSELLE MEUSE | C132: 31 | D132: VERDUN | E132: 455151 | F132: BAR LE DUC | G132: 9.7 | H132: 123 | I132: 115 | J132: 106 | K132: 135 | L132: 125 | M132: 141 | N132: 175 | O132: 86 | P132: 76 | Q132: 194 | R132: 156 | S132: 250 | T132: 108 | U132: 101 | V132: 142 | W132: 98 | X132: 167 | Y132: 51 | Z132: 103
A133: 30 | B133: AUBE HAUTE MARNE | C133: 14 | D133: TROYES | E133: 410571 | F133: ROMILLY SUR SEINE | G133: 6.1 | H133: 124 | I133: 113 | J133: 137 | K133: 82 | L133: 34 | M133: 49 | N133: 50 | O133: 97 | P133: 119 | Q133: 224 | R133: 232 | S133: 118 | T133: 177 | U133: 182 | V133: 159 | W133: 65 | X133: 79 | Y133: 116 | Z133: 40
A134: 30 | B134: MEURTHE ET MOSELLE MEUSE | C134: 31 | D134: VERDUN | E134: 455566 | F134: REVIGNY SUR ORNAIN | G134: 3.9 | H134: 125 | I134: 25 | J134: 31 | K134: 26 | L134: 83 | M134: 98 | N134: 183 | O134: 226 | P134: 8 | Q134: 253 | R134: 246 | S134: 245 | T134: 157 | U134: 141 | V134: 196 | W134: 209 | X134: 227 | Y134: 155 | Z134: 180
A135: 30 | B135: MEURTHE ET MOSELLE MEUSE | C135: 27 | D135: PONT A MOUSSON | E135: 554376 | F135: LAXOU BOUFFLERS | G135: 2.9 | H135: 126 | I135: 158 | J135: 195 | K135: 84 | L135: 221 | M135: 133 | N135: 61 | O135: 111 | P135: 268 | Q135: 127 | R135: 147 | S135: 54 | T135: 82 | U135: 84 | V135: 65 | W135: 77 | X135: 70 | Y135: 101 | Z135: 82
A136: 30 | B136: MEURTHE ET MOSELLE MEUSE | C136: 26 | D136: NANCY | E136: 454671 | F136: VANDOEUVRE LES NANCY | G136: 4.6 | H136: 127 | I136: 95 | J136: 47 | K136: 186 | L136: 84 | M136: 116 | N136: 39 | O136: 19 | P136: 185 | Q136: 263 | R136: 258 | S136: 254 | T136: 100 | U136: 105 | V136: 79 | W136: 50 | X136: 21 | Y136: 246 | Z136: 27
A137: 30 | B137: MEURTHE ET MOSELLE MEUSE | C137: 31 | D137: VERDUN | E137: 554413 | F137: LONGWY BAS | G137: 4.1 | H137: 128 | I137: 17 | J137: 20 | K137: 15 | L137: 209 | M137: 229 | N137: 235 | O137: 200 | P137: 57 | Q137: 133 | R137: 142 | S137: 105 | T137: 253 | U137: 247 | V137: 251 | W137: 147 | X137: 37 | Y137: 188 | Z137: 240
A138: 30 | B138: MOSELLE | C138: 45 | D138: METZ | E138: 557559 | F138: REMILLY | G138: 4.0 | H138: 129 | I138: 199 | J138: 214 | K138: 154 | L138: 62 | M138: 108 | N138: 103 | O138: 156 | P138: 7 | Q138: 143 | R138: 131 | S138: 192 | T138: 86 | U138: 81 | V138: 102 | W138: 118 | X138: 166 | Y138: 102 | Z138: 83
A139: 30 | B139: HAUT-RHIN | C139: 5169 | D139: MULHOUSE | E139: 4195 | F139: CERNAY | G139: 2.5 | H139: 130 | I139: 126 | J139: 130 | K139: 120 | L139: 127 | M139: 186 | N139: 90 | O139: 192 | P139: 20 | Q139: 18 | R139: 13 | S139: 162 | T139: 217 | U139: 235 | V139: 123 | W139: 218 | X139: 178 | Y139: 202 | Z139: 194
A140: 30 | B140: VOSGES | C140: 57 | D140: EPINAL | E140: 488286 | F140: EPINAL ARISTIDE BRIAND | G140: 9.4 | H140: 131 | I140: 172 | J140: 221 | K140: 88 | L140: 114 | M140: 71 | N140: 36 | O140: 51 | P140: 257 | Q140: 136 | R140: 117 | S140: 215 | T140: 57 | U140: 57 | V140: 71 | W140: 193 | X140: 135 | Y140: 244 | Z140: 110
A141: 30 | B141: MOSELLE | C141: 42 | D141: MOSELLE EST | E141: 557305 | F141: FAULQUEMONT | G141: 2.1 | H141: 132 | I141: 168 | J141: 116 | K141: 206 | L141: 164 | M141: 158 | N141: 57 | O141: 232 | P141: 171 | Q141: 165 | R141: 215 | S141: 22 | T141: 30 | U141: 33 | V141: 31 | W141: 237 | X141: 264 | Y141: 124 | Z141: 241
A142: 30 | B142: BAS-RHIN | C142: 5060 | D142: HAGUENAU | E142: 4057 | F142: BISCHWILLER | G142: 6.8 | H142: 133 | I142: 187 | J142: 195 | K142: 164 | L142: 192 | M142: 178 | N142: 207 | O142: 237 | P142: 111 | Q142: 139 | R142: 141 | S142: 147 | T142: 36 | U142: 34 | V142: 45 | W142: 175 | X142: 211 | Y142: 61 | Z142: 242
A143: 30 | B143: AUBE HAUTE MARNE | C143: 14 | D143: TROYES | E143: 510522 | F143: TROYES CHARTREUX | G143: 3.0 | H143: 134 | I143: 130 | J143: 212 | K143: 32 | L143: 70 | M143: 74 | N143: 64 | O143: 148 | P143: 136 | Q143: 159 | R143: 175 | S143: 106 | T143: 88 | U143: 80 | V143: 117 | W143: 233 | X143: 251 | Y143: 219 | Z143: 133
A144: 30 | B144: MARNE-ARDENNES | C144: 2 | D144: CHARLEVILLE MEZIERES | E144: 508817 | F144: CHARLEVILLE MOHON | G144: 3.1 | H144: 135 | I144: 54 | J144: 31 | K144: 130 | L144: 183 | M144: 231 | N144: 202 | O144: 261 | P144: 1 | Q144: 218 | R144: 211 | S144: 200 | T144: 114 | U144: 115 | V144: 92 | W144: 172 | X144: 86 | Y144: 225 | Z144: 167
A145: 30 | B145: MOSELLE | C145: 45 | D145: METZ | E145: 557440 | F145: METZ MOZART | G145: 3.1 | H145: 136 | I145: 104 | J145: 51 | K145: 195 | L145: 186 | M145: 183 | N145: 193 | O145: 122 | P145: 139 | Q145: 53 | R145: 39 | S145: 204 | T145: 131 | U145: 129 | V145: 144 | W145: 242 | X145: 179 | Y145: 218 | Z145: 255
A146: 30 | B146: AUBE HAUTE MARNE | C146: 14 | D146: TROYES | E146: 510523 | F146: LA CHAPELLE ST LUC | G146: 5.7 | H146: 137 | I146: 218 | J146: 212 | K146: 207 | L146: 65 | M146: 65 | N146: 131 | O146: 171 | P146: 89 | Q146: 138 | R146: 170 | S146: 51 | T146: 41 | U146: 59 | V146: 18 | W146: 221 | X146: 199 | Y146: 199 | Z146: 192
A147: 30 | B147: MOSELLE | C147: 42 | D147: MOSELLE EST | E147: 457258 | F147: DIEUZE | G147: 3.1 | H147: 138 | I147: 51 | J147: 31 | K147: 123 | L147: 79 | M147: 93 | N147: 193 | O147: 152 | P147: 11 | Q147: 222 | R147: 209 | S147: 227 | T147: 134 | U147: 128 | V147: 154 | W147: 239 | X147: 223 | Y147: 183 | Z147: 255
A148: 30 | B148: MOSELLE | C148: 45 | D148: METZ | E148: 457574 | F148: ROMBAS | G148: 4.2 | H148: 139 | I148: 111 | J148: 116 | K148: 122 | L148: 59 | M148: 70 | N148: 217 | O148: 201 | P148: 2 | Q148: 141 | R148: 129 | S148: 186 | T148: 135 | U148: 108 | V148: 203 | W148: 235 | X148: 231 | Y148: 187 | Z148: 222
A149: 110 | B149: MEURTHE ET MOSELLE MEUSE | C149: 26 | D149: NANCY | E149: 554486 | F149: NANCY POINT CENTRAL | G149: 5.0 | H149: 140 | I149: 99 | J149: 87 | K149: 127 | L149: 178 | M149: 221 | N149: 113 | O149: 54 | P149: 108 | Q149: 137 | R149: 133 | S149: 175 | T149: 181 | U149: 191 | V149: 148 | W149: 78 | X149: 60 | Y149: 201 | Z149: 25
A150: 110 | B150: BAS-RHIN | C150: 5006 | D150: STRASBOURG | E150: 4039 | F150: REICHSTETT | G150: 1.8 | H150: 141 | I150: 253 | J150: 247 | K150: 249 | L150: 46 | M150: 42 | N150: 86 | O150: 164 | P150: 131 | Q150: 51 | R150: 65 | S150: 81 | T150: 29 | U150: 32 | V150: 36 | W150: 246 | X150: 214 | Y150: 252 | Z150: 193
A151: 110 | B151: MARNE-ARDENNES | C151: 6 | D151: CHALONS EN CHAMPAGNE | E151: 551354 | F151: VERTUS | G151: 2.5 | H151: 142 | I151: 6 | J151: 6 | K151: 8 | L151: 217 | M151: 130 | N151: 246 | O151: 160 | P151: 239 | Q151: 265 | R151: 268 | S151: 48 | T151: 144 | U151: 174 | V151: 63 | W151: 222 | X151: 203 | Y151: 232 | Z151: 139
A152: 110 | B152: AUBE HAUTE MARNE | C152: 14 | D152: TROYES | E152: 410550 | F152: BAR SUR AUBE | G152: 6.1 | H152: 143 | I152: 135 | J152: 137 | K152: 116 | L152: 55 | M152: 55 | N152: 104 | O152: 212 | P152: 84 | Q152: 216 | R152: 196 | S152: 233 | T152: 152 | U152: 171 | V152: 95 | W152: 101 | X152: 234 | Y152: 23 | Z152: 116
A153: 110 | B153: VOSGES | C153: 55 | D153: SAINT DIE | E153: 488556 | F153: RAON L ETAPE | G153: 2.7 | H153: 144 | I153: 76 | J153: 27 | K153: 201 | L153: 121 | M153: 104 | N153: 116 | O153: 82 | P153: 179 | Q153: 148 | R153: 122 | S153: 241 | T153: 228 | U153: 227 | V153: 220 | W153: 90 | X153: 87 | Y153: 100 | Z153: 108
A154: 110 | B154: BAS-RHIN | C154: 5060 | D154: HAGUENAU | E154: 4087 | F154: SAVERNE | G154: 8.4 | H154: 145 | I154: 251 | J154: 237 | K154: 251 | L154: 181 | M154: 39 | N154: 100 | O154: 68 | P154: 272 | Q154: 54 | R154: 48 | S154: 148 | T154: 44 | U154: 47 | V154: 48 | W154: 66 | X154: 78 | Y154: 59 | Z154: 102
A155: 110 | B155: MEURTHE ET MOSELLE MEUSE | C155: 27 | D155: PONT A MOUSSON | E155: 554533 | F155: PONT A MOUSSON BREUIL | G155: 2.9 | H155: 146 | I155: 156 | J155: 123 | K155: 182 | L155: 219 | M155: 180 | N155: 68 | O155: 71 | P155: 260 | Q155: 93 | R155: 69 | S155: 230 | T155: 130 | U155: 131 | V155: 133 | W155: 99 | X155: 33 | Y155: 235 | Z155: 100
A156: 110 | B156: MOSELLE | C156: 45 | D156: METZ | E156: 557434 | F156: MARLY | G156: 4.0 | H156: 147 | I156: 34 | J156: 20 | K156: 69 | L156: 165 | M156: 185 | N156: 212 | O156: 196 | P156: 31 | Q156: 129 | R156: 100 | S156: 226 | T156: 223 | U156: 213 | V156: 244 | W156: 247 | X156: 215 | Y156: 207 | Z156: 248
A157: 110 | B157: BAS-RHIN | C157: 5060 | D157: HAGUENAU | E157: 4079 | F157: SOULTZ SOUS FORETS | G157: 1.6 | H157: 148 | I157: 37 | J157: 31 | K157: 74 | L157: 187 | M157: 147 | N157: 159 | O157: 65 | P157: 223 | Q157: 230 | R157: 244 | S157: 63 | T157: 248 | U157: 251 | V157: 192 | W157: 34 | X157: 53 | Y157: 49 | Z157: 38
A158: 110 | B158: MARNE-ARDENNES | C158: 6 | D158: CHALONS EN CHAMPAGNE | E158: 451166 | F158: VITRY LE FRANCOIS | G158: 7.3 | H158: 149 | I158: 49 | J158: 79 | K158: 31 | L158: 139 | M158: 145 | N158: 127 | O158: 44 | P158: 172 | Q158: 202 | R158: 220 | S158: 56 | T158: 208 | U158: 198 | V158: 216 | W158: 141 | X158: 63 | Y158: 245 | Z158: 85
A159: 110 | B159: MEURTHE ET MOSELLE MEUSE | C159: 26 | D159: NANCY | E159: 554491 | F159: NANCY SAINT SEBASTIEN | G159: 3.9 | H159: 150 | I159: 75 | J159: 17 | K159: 225 | L159: 182 | M159: 203 | N159: 182 | O159: 174 | P159: 63 | Q159: 76 | R159: 71 | S159: 166 | T159: 188 | U159: 192 | V159: 181 | W159: 232 | X159: 172 | Y159: 243 | Z159: 191
A160: 110 | B160: AUBE HAUTE MARNE | C160: 14 | D160: TROYES | E160: 510520 | F160: SAINT ANDRE LES VERGERS | G160: 4.4 | H160: 151 | I160: 185 | J160: 221 | K160: 129 | L160: 26 | M160: 48 | N160: 34 | O160: 49 | P160: 120 | Q160: 146 | R160: 169 | S160: 76 | T160: 168 | U160: 187 | V160: 84 | W160: 134 | X160: 200 | Y160: 56 | Z160: 175
A161: 110 | B161: AUBE HAUTE MARNE | C161: 14 | D161: TROYES | E161: 510570 | F161: NOGENT SUR SEINE | G161: 4.8 | H161: 152 | I161: 9 | J161: 6 | K161: 35 | L161: 258 | M161: 262 | N161: 259 | O161: 154 | P161: 168 | Q161: 189 | R161: 155 | S161: 237 | T161: 241 | U161: 214 | V161: 272 | W161: 162 | X161: 154 | Y161: 122 | Z161: 176
A162: 110 | B162: MEURTHE ET MOSELLE MEUSE | C162: 26 | D162: NANCY | E162: 554116 | F162: BACCARAT | G162: 2.6 | H162: 153 | I162: 26 | J162: 40 | K162: 13 | L162: 254 | M162: 263 | N162: 270 | O162: 195 | P162: 81 | Q162: 167 | R162: 187 | S162: 98 | T162: 207 | U162: 188 | V162: 243 | W162: 157 | X162: 171 | Y162: 141 | Z162: 123
A163: 110 | B163: MEURTHE ET MOSELLE MEUSE | C163: 26 | D163: NANCY | E163: 554296 | F163: ESSEY LES NANCY | G163: 4.0 | H163: 154 | I163: 128 | J163: 101 | K163: 163 | L163: 122 | M163: 110 | N163: 164 | O163: 90 | P163: 128 | Q163: 185 | R163: 177 | S163: 179 | T163: 176 | U163: 170 | V163: 188 | W163: 88 | X163: 114 | Y163: 88 | Z163: 77
A164: 110 | B164: MOSELLE | C164: 44 | D164: MOSELLE NORD | E164: 557622 | F164: SIERCK LES BAINS | G164: 2.1 | H164: 155 | I164: 89 | J164: 101 | K164: 90 | L164: 129 | M164: 167 | N164: 137 | O164: 50 | P164: 96 | Q164: 151 | R164: 132 | S164: 216 | T164: 213 | U164: 228 | V164: 141 | W164: 125 | X164: 106 | Y164: 249 | Z164: 23
A165: 110 | B165: BAS-RHIN | C165: 5006 | D165: STRASBOURG | E165: 4010 | F165: STRASBOURG MEINAU | G165: 4.0 | H165: 156 | I165: 224 | J165: 214 | K165: 218 | L165: 35 | M165: 41 | N165: 24 | O165: 55 | P165: 204 | Q165: 250 | R165: 262 | S165: 18 | T165: 34 | U165: 43 | V165: 17 | W165: 163 | X165: 241 | Y165: 81 | Z165: 128
A166: 110 | B166: MOSELLE | C166: 42 | D166: MOSELLE EST | E166: 457614 | F166: SARREBOURG | G166: 9.3 | H166: 157 | I166: 123 | J166: 95 | K166: 166 | L166: 120 | M166: 105 | N166: 189 | O166: 198 | P166: 77 | Q166: 180 | R166: 181 | S166: 144 | T166: 139 | U166: 102 | V166: 247 | W166: 164 | X166: 208 | Y166: 79 | Z166: 187
A167: 110 | B167: BAS-RHIN | C167: 5006 | D167: STRASBOURG | E167: 4045 | F167: STRASBOURG FRANCS BOURGEOIS | G167: 5.7 | H167: 158 | I167: 232 | J167: 232 | K167: 226 | L167: 68 | M167: 66 | N167: 209 | O167: 123 | P167: 69 | Q167: 6 | R167: 1 | S167: 243 | T167: 231 | U167: 210 | V167: 265 | W167: 199 | X167: 184 | Y167: 189 | Z167: 172
A168: 110 | B168: MARNE-ARDENNES | C168: 11 | D168: REIMS | E168: 451308 | F168: REIMS SAINT THOMAS | G168: 8.4 | H168: 159 | I168: 203 | J168: 195 | K168: 194 | L168: 151 | M168: 139 | N168: 62 | O168: 79 | P168: 212 | Q168: 114 | R168: 90 | S168: 208 | T168: 214 | U168: 221 | V168: 161 | W168: 19 | X168: 16 | Y168: 38 | Z168: 64
A169: 110 | B169: BAS-RHIN | C169: 5006 | D169: STRASBOURG | E169: 4048 | F169: STRASBOURG KOENIGSHOFFEN | G169: 2.2 | H169: 160 | I169: 271 | J169: 273 | K169: 261 | L169: 43 | M169: 26 | N169: 9 | O169: 104 | P169: 255 | Q169: 95 | R169: 128 | S169: 24 | T169: 13 | U169: 21 | V169: 12 | W169: 131 | X169: 121 | Y169: 147 | Z169: 107
A170: 110 | B170: MEURTHE ET MOSELLE MEUSE | C170: 31 | D170: VERDUN | E170: 455678 | F170: VERDUN CENTRALE | G170: 11.1 | H170: 161 | I170: 43 | J170: 58 | K170: 42 | L170: 213 | M170: 195 | N170: 98 | O170: 29 | P170: 245 | Q170: 235 | R170: 235 | S170: 174 | T170: 202 | U170: 216 | V170: 145 | W170: 72 | X170: 39 | Y170: 150 | Z170: 79
A171: 110 | B171: BAS-RHIN | C171: 5060 | D171: HAGUENAU | E171: 4085 | F171: INGWILLER | G171: 3.5 | H171: 162 | I171: 151 | J171: 145 | K171: 136 | L171: 118 | M171: 50 | N171: 169 | O171: 250 | P171: 211 | Q171: 177 | R171: 171 | S171: 176 | T171: 120 | U171: 137 | V171: 73 | W171: 171 | X171: 226 | Y171: 47 | Z171: 236
A172: 110 | B172: BAS-RHIN | C172: 5006 | D172: STRASBOURG | E172: 4023 | F172: STRASBOURG VOSGES | G172: 3.1 | H172: 163 | I172: 266 | J172: 258 | K172: 263 | L172: 17 | M172: 15 | N172: 23 | O172: 81 | P172: 203 | Q172: 48 | R172: 86 | S172: 30 | T172: 111 | U172: 104 | V172: 122 | W172: 81 | X172: 109 | Y172: 128 | Z172: 37
A173: 110 | B173: HAUT-RHIN | C173: 5169 | D173: MULHOUSE | E173: 4180 | F173: RIEDISHEIM | G173: 3.1 | H173: 164 | I173: 226 | J173: 153 | K173: 250 | L173: 163 | M173: 220 | N173: 129 | O173: 96 | P173: 28 | Q173: 9 | R173: 11 | S173: 12 | T173: 180 | U173: 196 | V173: 127 | W173: 215 | X173: 239 | Y173: 85 | Z173: 254
A174: 110 | B174: MOSELLE | C174: 44 | D174: MOSELLE NORD | E174: 557303 | F174: FAMECK | G174: 3.8 | H174: 165 | I174: 73 | J174: 20 | K174: 204 | L174: 266 | M174: 243 | N174: 78 | O174: 225 | P174: 270 | Q174: 31 | R174: 23 | S174: 163 | T174: 235 | U174: 242 | V174: 176 | W174: 122 | X174: 124 | Y174: 123 | Z174: 122
A175: 110 | B175: BAS-RHIN | C175: 5101 | D175: SELESTAT | E175: 4129 | F175: MARLENHEIM | G175: 1.9 | H175: 166 | I175: 159 | J175: 168 | K175: 131 | L175: 58 | M175: 62 | N175: 195 | O175: 223 | P175: 22 | Q175: 205 | R175: 218 | S175: 77 | T175: 192 | U175: 193 | V175: 195 | W175: 87 | X175: 191 | Y175: 31 | Z175: 95
A176: 110 | B176: MARNE-ARDENNES | C176: 2 | D176: CHARLEVILLE MEZIERES | E176: 408806 | F176: SEDAN | G176: 8.6 | H176: 167 | I176: 41 | J176: 62 | K176: 28 | L176: 194 | M176: 128 | N176: 203 | O176: 132 | P176: 220 | Q176: 156 | R176: 136 | S176: 229 | T176: 249 | U176: 234 | V176: 263 | W176: 151 | X176: 126 | Y176: 179 | Z176: 105
A177: 110 | B177: MARNE-ARDENNES | C177: 2 | D177: CHARLEVILLE MEZIERES | E177: 508833 | F177: VILLERS SEMEUSE CORA | G177: 3.6 | H177: 168 | I177: 193 | J177: 168 | K177: 203 | L177: 169 | M177: 251 | N177: 38 | O177: 113 | P177: 43 | Q177: 113 | R177: 160 | S177: 17 | T177: 167 | U177: 189 | V177: 78 | W177: 74 | X177: 40 | Y177: 149 | Z177: 76
A178: 110 | B178: MARNE-ARDENNES | C178: 2 | D178: CHARLEVILLE MEZIERES | E178: 508839 | F178: GIVET | G178: 3.5 | H178: 169 | I178: 45 | J178: 28 | K178: 111 | L178: 112 | M178: 149 | N178: 114 | O178: 163 | P178: 41 | Q178: 227 | R178: 240 | S178: 83 | T178: 218 | U178: 218 | V178: 201 | W178: 203 | X178: 94 | Y178: 240 | Z178: 211
A179: 110 | B179: MOSELLE | C179: 42 | D179: MOSELLE EST | E179: 557668 | F179: VALMONT | G179: 4.6 | H179: 170 | I179: 29 | J179: 20 | K179: 58 | L179: 231 | M179: 239 | N179: 232 | O179: 259 | P179: 74 | Q179: 147 | R179: 123 | S179: 232 | T179: 222 | U179: 212 | V179: 238 | W179: 245 | X179: 182 | Y179: 229 | Z179: 250
A180: 110 | B180: MOSELLE | C180: 45 | D180: METZ | E180: 557178 | F180: BOULAY | G180: 2.3 | H180: 171 | I180: 196 | J180: 195 | K180: 175 | L180: 149 | M180: 210 | N180: 85 | O180: 84 | P180: 59 | Q180: 257 | R180: 257 | S180: 138 | T180: 72 | U180: 70 | V180: 93 | W180: 42 | X180: 69 | Y180: 18 | Z180: 121
A181: 110 | B181: MOSELLE | C181: 45 | D181: METZ | E181: 557445 | F181: METZ SAINT LIVIER | G181: 3.1 | H181: 172 | I181: 87 | J181: 75 | K181: 128 | L181: 236 | M181: 237 | N181: 258 | O181: 151 | P181: 126 | Q181: 45 | R181: 36 | S181: 199 | T181: 250 | U181: 237 | V181: 260 | W181: 149 | X181: 74 | Y181: 259 | Z181: 52
A182: 110 | B182: BAS-RHIN | C182: 5060 | D182: HAGUENAU | E182: 4041 | F182: HOERDT | G182: 2.7 | H182: 173 | I182: 122 | J182: 195 | K182: 37 | L182: 240 | M182: 219 | N182: 267 | O182: 135 | P182: 167 | Q182: 91 | R182: 46 | S182: 261 | T182: 79 | U182: 54 | V182: 221 | W182: 267 | X182: 264 | Y182: 258 | Z182: 258
A183: 110 | B183: MOSELLE | C183: 44 | D183: MOSELLE NORD | E183: 457158 | F183: YUTZ | G183: 4.8 | H183: 174 | I183: 241 | J183: 251 | K183: 220 | L183: 174 | M183: 154 | N183: 248 | O183: 189 | P183: 87 | Q183: 178 | R183: 158 | S183: 201 | T183: 43 | U183: 37 | V183: 87 | W183: 82 | X183: 82 | Y183: 72 | Z183: 125
A184: 110 | B184: VOSGES | C184: 55 | D184: SAINT DIE | E184: 588316 | F184: FRAIZE | G184: 3.8 | H184: 175 | I184: 163 | J184: 159 | K184: 140 | L184: 205 | M184: 196 | N184: 210 | O184: 254 | P184: 117 | Q184: 157 | R184: 167 | S184: 111 | T184: 110 | U184: 93 | V184: 162 | W184: 153 | X184: 160 | Y184: 140 | Z184: 118
A185: 110 | B185: MOSELLE | C185: 42 | D185: MOSELLE EST | E185: 457583 | F185: SAINT AVOLD | G185: 8.0 | H185: 176 | I185: 194 | J185: 195 | K185: 170 | L185: 180 | M185: 123 | N185: 150 | O185: 98 | P185: 228 | Q185: 67 | R185: 57 | S185: 160 | T185: 159 | U185: 169 | V185: 115 | W185: 168 | X185: 122 | Y185: 148 | Z185: 207
A186: 110 | B186: MOSELLE | C186: 45 | D186: METZ | E186: 557612 | F186: SAINTE MARIE AUX CHENES | G186: 3.6 | H186: 177 | I186: 44 | J186: 51 | K186: 61 | L186: 237 | M186: 245 | N186: 178 | O186: 188 | P186: 146 | Q186: 198 | R186: 193 | S186: 172 | T186: 173 | U186: 167 | V186: 172 | W186: 223 | X186: 180 | Y186: 224 | Z186: 179
A187: 110 | B187: AUBE HAUTE MARNE | C187: 21 | D187: CHAUMONT | E187: 551157 | F187: SAINT DIZIER EUROPE | G187: 2.8 | H187: 178 | I187: 170 | J187: 130 | K187: 191 | L187: 150 | M187: 187 | N187: 132 | O187: 30 | P187: 124 | Q187: 246 | R187: 254 | S187: 49 | T187: 138 | U187: 197 | V187: 24 | W187: 44 | X187: 88 | Y187: 86 | Z187: 16
A188: 110 | B188: MOSELLE | C188: 44 | D188: MOSELLE NORD | E188: 557628 | F188: TERVILLE | G188: 1.9 | H188: 179 | I188: 233 | J188: 195 | K188: 244 | L188: 196 | M188: 164 | N188: 70 | O188: 173 | P188: 224 | Q188: 210 | R188: 213 | S188: 113 | T188: 125 | U188: 121 | V188: 131 | W188: 12 | X188: 13 | Y188: 14 | Z188: 66
A189: 110 | B189: BAS-RHIN | C189: 5060 | D189: HAGUENAU | E189: 4030 | F189: BRUMATH | G189: 6.0 | H189: 180 | I189: 206 | J189: 227 | K189: 152 | L189: 177 | M189: 58 | N189: 176 | O189: 120 | P189: 266 | Q189: 59 | R189: 92 | S189: 29 | T189: 162 | U189: 139 | V189: 217 | W189: 152 | X189: 183 | Y189: 90 | Z189: 163
A190: 110 | B190: BAS-RHIN | C190: 5101 | D190: SELESTAT | E190: 4109 | F190: MARCKOLSHEIM | G190: 3.0 | H190: 181 | I190: 198 | J190: 175 | K190: 202 | L190: 22 | M190: 10 | N190: 190 | O190: 176 | P190: 219 | Q190: 201 | R190: 229 | S190: 40 | T190: 185 | U190: 211 | V190: 96 | W190: 144 | X190: 220 | Y190: 106 | Z190: 67
A191: 110 | B191: MARNE-ARDENNES | C191: 6 | D191: CHALONS EN CHAMPAGNE | E191: 451381 | F191: SEZANNE | G191: 6.7 | H191: 182 | I191: 129 | J191: 130 | K191: 121 | L191: 92 | M191: 113 | N191: 111 | O191: 40 | P191: 104 | Q191: 223 | R191: 223 | S191: 152 | T191: 179 | U191: 157 | V191: 234 | W191: 160 | X191: 150 | Y191: 171 | Z191: 106
A192: 110 | B192: MEURTHE ET MOSELLE MEUSE | C192: 27 | D192: PONT A MOUSSON | E192: 554196 | F192: CHAMPIGNEULLES | G192: 3.6 | H192: 183 | I192: 69 | J192: 53 | K192: 116 | L192: 256 | M192: 223 | N192: 242 | O192: 114 | P192: 237 | Q192: 154 | R192: 189 | S192: 50 | T192: 142 | U192: 160 | V192: 83 | W192: 219 | X192: 107 | Y192: 250 | Z192: 214
A193: 110 | B193: BAS-RHIN | C193: 5060 | D193: HAGUENAU | E193: 4095 | F193: SARRE UNION | G193: 5.0 | H193: 184 | I193: 164 | J193: 87 | K193: 223 | L193: 146 | M193: 114 | N193: 244 | O193: 124 | P193: 116 | Q193: 74 | R193: 70 | S193: 154 | T193: 239 | U193: 245 | V193: 193 | W193: 150 | X193: 143 | Y193: 98 | Z193: 185
A194: 110 | B194: MOSELLE | C194: 42 | D194: MOSELLE EST | E194: 557210 | F194: CHATEAU SALINS | G194: 2.1 | H194: 185 | I194: 131 | J194: 137 | K194: 110 | L194: 144 | M194: 140 | N194: 122 | O194: 261 | P194: 100 | Q194: 96 | R194: 93 | S194: 131 | T194: 258 | U194: 254 | V194: 255 | W194: 112 | X194: 116 | Y194: 94 | Z194: 155
A195: 110 | B195: MEURTHE ET MOSELLE MEUSE | C195: 27 | D195: PONT A MOUSSON | E195: 554496 | F195: NANCY TROIS MAISONS | G195: 2.3 | H195: 186 | I195: 212 | J195: 127 | K195: 247 | L195: 93 | M195: 97 | N195: 141 | O195: 110 | P195: 72 | Q195: 183 | R195: 201 | S195: 89 | T195: 129 | U195: 159 | V195: 46 | W195: 135 | X195: 210 | Y195: 25 | Z195: 233
A196: 110 | B196: AUBE HAUTE MARNE | C196: 14 | D196: TROYES | E196: 410512 | F196: TROYES ZOLA | G196: 4.3 | H196: 187 | I196: 228 | J196: 188 | K196: 243 | L196: 123 | M196: 134 | N196: 95 | O196: 162 | P196: 106 | Q196: 117 | R196: 115 | S196: 114 | T196: 149 | U196: 161 | V196: 114 | W196: 86 | X196: 115 | Y196: 54 | Z196: 131
A197: 110 | B197: MARNE-ARDENNES | C197: 11 | D197: REIMS | E197: 551341 | F197: REIMS JEAN JAURES | G197: 4.4 | H197: 188 | I197: 177 | J197: 175 | K197: 170 | L197: 116 | M197: 159 | N197: 139 | O197: 78 | P197: 39 | Q197: 158 | R197: 210 | S197: 28 | T197: 200 | U197: 208 | V197: 153 | W197: 108 | X197: 84 | Y197: 164 | Z197: 92
A198: 110 | B198: MOSELLE | C198: 44 | D198: MOSELLE NORD | E198: 457449 | F198: METZERVISSE | G198: 3.1 | H198: 189 | I198: 195 | J198: 153 | K198: 214 | L198: 208 | M198: 233 | N198: 237 | O198: 213 | P198: 37 | Q198: 86 | R198: 45 | S198: 259 | T198: 106 | U198: 82 | V198: 191 | W198: 240 | X198: 243 | Y198: 205 | Z198: 212
A199: 160 | B199: MEURTHE ET MOSELLE MEUSE | C199: 27 | D199: PONT A MOUSSON | E199: 454466 | F199: NANCY PLATEAU DE HAYE | G199: 2.0 | H199: 190 | I199: 175 | J199: 214 | K199: 118 | L199: 224 | M199: 261 | N199: 190 | O199: 134 | P199: 42 | Q199: 240 | R199: 237 | S199: 188 | T199: 94 | U199: 175 | V199: 10 | W199: 63 | X199: 92 | Y199: 69 | Z199: 59
A200: 160 | B200: MEURTHE ET MOSELLE MEUSE | C200: 27 | D200: PONT A MOUSSON | E200: 454355 | F200: JARNY | G200: 4.2 | H200: 191 | I200: 91 | J200: 95 | K200: 103 | L200: 193 | M200: 150 | N200: 188 | O200: 141 | P200: 194 | Q200: 264 | R200: 265 | S200: 125 | T200: 95 | U200: 140 | V200: 28 | W200: 174 | X200: 89 | Y200: 161 | Z200: 244
A201: 160 | B201: MEURTHE ET MOSELLE MEUSE | C201: 27 | D201: PONT A MOUSSON | E201: 554516 | F201: PAGNY SUR MOSELLE | G201: 3.0 | H201: 192 | I201: 62 | J201: 58 | K201: 83 | L201: 247 | M201: 246 | N201: 228 | O201: 247 | P201: 162 | Q201: 61 | R201: 35 | S201: 252 | T201: 257 | U201: 261 | V201: 151 | W201: 228 | X201: 192 | Y201: 206 | Z201: 202
A202: 160 | B202: MOSELLE | C202: 45 | D202: METZ | E202: 557441 | F202: METZ PLAPPEVILLE | G202: 4.1 | H202: 193 | I202: 166 | J202: 101 | K202: 213 | L202: 235 | M202: 169 | N202: 264 | O202: 231 | P202: 214 | Q202: 57 | R202: 32 | S202: 256 | T202: 199 | U202: 173 | V202: 253 | W202: 195 | X202: 240 | Y202: 129 | Z202: 151
A203: 160 | B203: HAUT-RHIN | C203: 5130 | D203: COLMAR | E203: 4139 | F203: INGERSHEIM | G203: 8.2 | H203: 194 | I203: 58 | J203: 47 | K203: 102 | L203: 179 | M203: 181 | N203: 222 | O203: 186 | P203: 80 | Q203: 208 | R203: 190 | S203: 205 | T203: 187 | U203: 181 | V203: 204 | W203: 262 | X203: 258 | Y203: 210 | Z203: 257
A204: 160 | B204: MARNE-ARDENNES | C204: 11 | D204: REIMS | E204: 551306 | F204: REIMS SAINT MARCEAUX | G204: 4.0 | H204: 195 | I204: 53 | J204: 58 | K204: 67 | L204: 60 | M204: 59 | N204: 154 | O204: 31 | P204: 153 | Q204: 270 | R204: 271 | S204: 133 | T204: 172 | U204: 168 | V204: 169 | W204: 180 | X204: 259 | Y204: 82 | Z204: 143
... 79 more rows

Sheet AG_EVOL_CLASS
B1: Accueil | D1: BAROMETRE BDD - AGENCES
D2: EVOLUTION CLASSEMENT 2020 / 2019
D3: =ACCUEIL!F7 -> 2021-03-07
H8: CLASSEMENT Général 2020 | I8: CLASSEMENT Général 2019 | J8: Evolution
A9: eds | B9: Direction | C9: eds | D9: Territoire | E9: eds | F9: Agence | G9: ="ETP perf "&DATEMAJ!$C$28 -> ETP perf 31-janv | H9: Rang | I9: Rang
A10: 50 | B10: BAS-RHIN | C10: 5006 | D10: STRASBOURG | E10: 4010 | F10: STRASBOURG MEINAU | G10: 2.6 | H10: 36 | I10: 284 | J10: 248
A11: 50 | B11: VOSGES | C11: 57 | D11: EPINAL | E11: 488561 | F11: REMIREMONT | G11: 6.2 | H11: 42 | I11: 270 | J11: 228
A12: 50 | B12: BAS-RHIN | C12: 5060 | D12: HAGUENAU | E12: 4079 | F12: SOULTZ SOUS FORETS | G12: 2.4 | H12: 56 | I12: 277 | J12: 221
A13: 50 | B13: MARNE-ARDENNES | C13: 6 | D13: CHALONS EN CHAMPAGNE | E13: 451115 | F13: MOURMELON suippes | G13: 3.0 | H13: 12 | I13: 232 | J13: 220
A14: 50 | B14: MOSELLE | C14: 44 | D14: MOSELLE NORD | E14: 557508 | F14: NILVANGE | G14: 2.6 | H14: 3 | I14: 220 | J14: 217
A15: 50 | B15: MEURTHE ET MOSELLE MEUSE | C15: 27 | D15: PONT A MOUSSON | E15: 454651 | F15: TOUL REPUBLIQUE | G15: 10.9 | H15: 1 | I15: 192 | J15: 191
A16: 50 | B16: MEURTHE ET MOSELLE MEUSE | C16: 26 | D16: NANCY | E16: 454671 | F16: VANDOEUVRE LES NANCY | G16: 4.4 | H16: 87 | I16: 276 | J16: 189
A17: 50 | B17: MEURTHE ET MOSELLE MEUSE | C17: 31 | D17: VERDUN | E17: 455456 | F17: MONTMEDY | G17: 1.7 | H17: 101 | I17: 265 | J17: 164
A18: 50 | B18: MOSELLE | C18: 44 | D18: MOSELLE NORD | E18: 457306 | F18: FLORANGE | G18: 2.8 | H18: 90 | I18: 253 | J18: 163
A19: 50 | B19: MARNE-ARDENNES | C19: 11 | D19: REIMS | E19: 451361 | F19: PIERRY LECLERC | G19: 1.9 | H19: 16 | I19: 178 | J19: 162
A20: 50 | B20: BAS-RHIN | C20: 5006 | D20: STRASBOURG | E20: 4045 | F20: STRASBOURG FRANCS BOURGEOIS | G20: 5.9 | H20: 112 | I20: 273 | J20: 161
A21: 50 | B21: MARNE-ARDENNES | C21: 6 | D21: CHALONS EN CHAMPAGNE | E21: 551128 | F21: SAINTE MENEHOULD | G21: 3.3 | H21: 94 | I21: 254 | J21: 160
A22: 50 | B22: MEURTHE ET MOSELLE MEUSE | C22: 26 | D22: NANCY | E22: 554491 | F22: NANCY SAINT SEBASTIEN | G22: 3.3 | H22: 48 | I22: 208 | J22: 160
A23: 50 | B23: MEURTHE ET MOSELLE MEUSE | C23: 26 | D23: NANCY | E23: 554471 | F23: NANCY JEAN JAURES | G23: 1.9 | H23: 93 | I23: 251 | J23: 158
A24: 50 | B24: MARNE-ARDENNES | C24: 2 | D24: CHARLEVILLE MEZIERES | E24: 508815 | F24: CARIGNAN | G24: 2.9 | H24: 40 | I24: 194 | J24: 154
A25: 50 | B25: VOSGES | C25: 57 | D25: EPINAL | E25: 588501 | F25: NEUFCHATEAU | G25: 4.7 | H25: 61 | I25: 214 | J25: 153
A26: 50 | B26: MARNE-ARDENNES | C26: 2 | D26: CHARLEVILLE MEZIERES | E26: 508839 | F26: GIVET | G26: 2.9 | H26: 25 | I26: 176 | J26: 151
A27: 50 | B27: MARNE-ARDENNES | C27: 11 | D27: REIMS | E27: 551349 | F27: REIMS SAINT REMI | G27: 2.8 | H27: 9 | I27: 158 | J27: 149
A28: 50 | B28: VOSGES | C28: 55 | D28: SAINT DIE | E28: 588551 | F28: RAMBERVILLERS | G28: 3.7 | H28: 82 | I28: 227 | J28: 145
A29: 50 | B29: MEURTHE ET MOSELLE MEUSE | C29: 26 | D29: NANCY | E29: 554356 | F29: JARVILLE LA MALGRANGE | G29: 3.6 | H29: 105 | I29: 244 | J29: 139
A30: 50 | B30: VOSGES | C30: 57 | D30: EPINAL | E30: 488706 | F30: VITTEL | G30: 3.3 | H30: 91 | I30: 229 | J30: 138
A31: 50 | B31: BAS-RHIN | C31: 5006 | D31: STRASBOURG | E31: 4047 | F31: STRASBOURG CRONENBOURG | G31: 5.6 | H31: 52 | I31: 189 | J31: 137
A32: 262 | B32: HAUT-RHIN | C32: 5130 | D32: COLMAR | E32: 4162 | F32: ENSISHEIM | G32: 4.5 | H32: 80 | I32: 212 | J32: 132
A33: 262 | B33: VOSGES | C33: 55 | D33: SAINT DIE | E33: 588587 | F33: SAINT DIE CATHEDRALE | G33: 4.0 | H33: 64 | I33: 195 | J33: 131
A34: 262 | B34: MEURTHE ET MOSELLE MEUSE | C34: 27 | D34: PONT A MOUSSON | E34: 454535 | F34: PONT A MOUSSON CENTRALE | G34: 7.6 | H34: 119 | I34: 246 | J34: 127
A35: 262 | B35: MARNE-ARDENNES | C35: 11 | D35: REIMS | E35: 551367 | F35: AY CHAMPAGNE | G35: 2.7 | H35: 55 | I35: 175 | J35: 120
A36: 262 | B36: BAS-RHIN | C36: 5101 | D36: SELESTAT | E36: 4110 | F36: SELESTAT OUEST | G36: 1.9 | H36: 69 | I36: 185 | J36: 116
A37: 262 | B37: BAS-RHIN | C37: 5006 | D37: STRASBOURG | E37: 4006 | F37: STRASBOURG NEUDORF | G37: 8.4 | H37: 146 | I37: 262 | J37: 116
A38: 262 | B38: MOSELLE | C38: 42 | D38: MOSELLE EST | E38: 457308 | F38: FORBACH CENTRALE | G38: 9.5 | H38: 122 | I38: 237 | J38: 115
A39: 262 | B39: BAS-RHIN | C39: 5060 | D39: HAGUENAU | E39: 4073 | F39: SCHWEIGHOUSE SUR MODER | G39: 2.4 | H39: 185 | I39: 290 | J39: 105
A40: 262 | B40: BAS-RHIN | C40: 5101 | D40: SELESTAT | E40: 4107 | F40: VILLE | G40: 2.1 | H40: 145 | I40: 249 | J40: 104
A41: 262 | B41: BAS-RHIN | C41: 5006 | D41: STRASBOURG | E41: 4020 | F41: STRASBOURG ROBERTSAU | G41: 4.7 | H41: 153 | I41: 257 | J41: 104
A42: 262 | B42: MEURTHE ET MOSELLE MEUSE | C42: 27 | D42: PONT A MOUSSON | E42: 554376 | F42: LAXOU LA SAPINIERE | G42: 3.0 | H42: 172 | I42: 275 | J42: 103
A43: 262 | B43: MOSELLE | C43: 42 | D43: MOSELLE EST | E43: 557305 | F43: FAULQUEMONT | G43: 2.9 | H43: 98 | I43: 201 | J43: 103
A44: 262 | B44: MEURTHE ET MOSELLE MEUSE | C44: 31 | D44: VERDUN | E44: 555624 | F44: STENAY | G44: 2.7 | H44: 143 | I44: 245 | J44: 102
A45: 262 | B45: MOSELLE | C45: 45 | D45: METZ | E45: 557712 | F45: WOIPPY BONNE FONTAINE | G45: 5.7 | H45: 180 | I45: 281 | J45: 101
A46: 262 | B46: MEURTHE ET MOSELLE MEUSE | C46: 26 | D46: NANCY | E46: 454426 | F46: LUNEVILLE CARNOT | G46: 8.5 | H46: 74 | I46: 174 | J46: 100
A47: 262 | B47: BAS-RHIN | C47: 5101 | D47: SELESTAT | E47: 4113 | F47: BARR | G47: 2.9 | H47: 46 | I47: 145 | J47: 99
A48: 262 | B48: HAUT-RHIN | C48: 5130 | D48: COLMAR | E48: 4139 | F48: INGERSHEIM | G48: 8.3 | H48: 140 | I48: 239 | J48: 99
A49: 262 | B49: HAUT-RHIN | C49: 5130 | D49: COLMAR | E49: 4144 | F49: RIBEAUVILLE | G49: 2.8 | H49: 203 | I49: 301 | J49: 98
A50: 262 | B50: BAS-RHIN | C50: 5006 | D50: STRASBOURG | E50: 4054 | F50: STRASBOURG MONTAGNE VERTE | G50: 2.7 | H50: 197 | I50: 294 | J50: 97
A51: 262 | B51: MARNE-ARDENNES | C51: 2 | D51: CHARLEVILLE MEZIERES | E51: 408814 | F51: VRIGNE AUX BOIS | G51: 0.6 | H51: 96 | I51: 193 | J51: 97
A52: 262 | B52: MEURTHE ET MOSELLE MEUSE | C52: 26 | D52: NANCY | E52: 554486 | F52: NANCY POINT CENTRAL | G52: 4.7 | H52: 113 | I52: 210 | J52: 97
A53: 262 | B53: MOSELLE | C53: 45 | D53: METZ | E53: 557432 | F53: MAIZIERES LES METZ | G53: 3.8 | H53: 123 | I53: 217 | J53: 94
A54: 262 | B54: BAS-RHIN | C54: 5006 | D54: STRASBOURG | E54: 4043 | F54: STRASBOURG HALLES | G54: 8.4 | H54: 26 | I54: 119 | J54: 93
A55: 262 | B55: MEURTHE ET MOSELLE MEUSE | C55: 31 | D55: VERDUN | E55: 455151 | F55: BAR LE DUC | G55: 9.8 | H55: 109 | I55: 197 | J55: 88
A56: 262 | B56: BAS-RHIN | C56: 5006 | D56: STRASBOURG | E56: 4039 | F56: REICHSTETT | G56: 1.4 | H56: 216 | I56: 303 | J56: 87
A57: 262 | B57: VOSGES | C57: 57 | D57: EPINAL | E57: 588206 | F57: CHARMES | G57: 2.7 | H57: 134 | I57: 221 | J57: 87
A58: 262 | B58: MARNE-ARDENNES | C58: 6 | D58: CHALONS EN CHAMPAGNE | E58: 451120 | F58: SARRY | G58: 2.5 | H58: 20 | I58: 106 | J58: 86
A59: 262 | B59: MARNE-ARDENNES | C59: 11 | D59: REIMS | E59: 451308 | F59: REIMS SAINT THOMAS | G59: 8.2 | H59: 132 | I59: 215 | J59: 83
A60: 262 | B60: BAS-RHIN | C60: 5006 | D60: STRASBOURG | E60: 4028 | F60: BISCHHEIM | G60: 2.9 | H60: 182 | I60: 263 | J60: 81
A61: 262 | B61: BAS-RHIN | C61: 5006 | D61: STRASBOURG | E61: 4024 | F61: STRASBOURG AUSTERLITZ | G61: 2.7 | H61: 213 | I61: 291 | J61: 78
A62: 262 | B62: VOSGES | C62: 55 | D62: SAINT DIE | E62: 588186 | F62: BRUYERES | G62: 2.7 | H62: 78 | I62: 155 | J62: 77
A63: 262 | B63: HAUT-RHIN | C63: 5130 | D63: COLMAR | E63: 4130 | F63: COLMAR REPUBLIQUE | G63: 7.9 | H63: 196 | I63: 272 | J63: 76
A64: 262 | B64: VOSGES | C64: 57 | D64: EPINAL | E64: 488286 | F64: EPINAL ARISTIDE BRIAND | G64: 8.8 | H64: 148 | I64: 223 | J64: 75
A65: 262 | B65: MARNE-ARDENNES | C65: 6 | D65: CHALONS EN CHAMPAGNE | E65: 451381 | F65: SEZANNE CHAMP BENOIST | G65: 6.4 | H65: 156 | I65: 230 | J65: 74
A66: 262 | B66: AUBE HAUTE MARNE | C66: 21 | D66: CHAUMONT | E66: 551157 | F66: SAINT DIZIER EUROPE | G66: 2.5 | H66: 54 | I66: 127 | J66: 73
A67: 262 | B67: HAUT-RHIN | C67: 5130 | D67: COLMAR | E67: 4148 | F67: ORBEY | G67: 3.1 | H67: 206 | I67: 279 | J67: 73
A68: 262 | B68: MARNE-ARDENNES | C68: 2 | D68: CHARLEVILLE MEZIERES | E68: 408806 | F68: SEDAN LA HALLE | G68: 8.7 | H68: 58 | I68: 129 | J68: 71
A69: 262 | B69: AUBE HAUTE MARNE | C69: 14 | D69: TROYES | E69: 510511 | F69: TROYES BROSSOLETTE | G69: 3.2 | H69: 81 | I69: 148 | J69: 67
A70: 262 | B70: BAS-RHIN | C70: 5101 | D70: SELESTAT | E70: 4120 | F70: WASSELONNE | G70: 2.5 | H70: 138 | I70: 205 | J70: 67
A71: 262 | B71: MOSELLE | C71: 44 | D71: MOSELLE NORD | E71: 557113 | F71: AUDUN LE TICHE | G71: 2.6 | H71: 166 | I71: 231 | J71: 65
A72: 262 | B72: MEURTHE ET MOSELLE MEUSE | C72: 31 | D72: VERDUN | E72: 455231 | F72: COMMERCY | G72: 4.5 | H72: 135 | I72: 199 | J72: 64
A73: 262 | B73: MEURTHE ET MOSELLE MEUSE | C73: 31 | D73: VERDUN | E73: 555679 | F73: VERDUN MAZEL | G73: 3.8 | H73: 62 | I73: 126 | J73: 64
A74: 262 | B74: MARNE-ARDENNES | C74: 2 | D74: CHARLEVILLE MEZIERES | E74: 408822 | F74: CHARLEVILLE MEZIERES | G74: 4.2 | H74: 4 | I74: 67 | J74: 63
A75: 262 | B75: VOSGES | C75: 57 | D75: EPINAL | E75: 588216 | F75: CHATENOIS | G75: 1.0 | H75: 243 | I75: 306 | J75: 63
A76: 262 | B76: VOSGES | C76: 57 | D76: EPINAL | E76: 588396 | F76: LE VAL D AJOL | G76: 2.8 | H76: 128 | I76: 191 | J76: 63
A77: 262 | B77: MOSELLE | C77: 45 | D77: METZ | E77: 557436 | F77: METZ CATHEDRALE | G77: 4.9 | H77: 103 | I77: 165 | J77: 62
A78: 262 | B78: MEURTHE ET MOSELLE MEUSE | C78: 27 | D78: PONT A MOUSSON | E78: 554686 | F78: VEZELISE | G78: 1.7 | H78: 111 | I78: 171 | J78: 60
A79: 262 | B79: VOSGES | C79: 55 | D79: SAINT DIE | E79: 488246 | F79: CORNIMONT LA BRESSE | G79: 2.9 | H79: 51 | I79: 109 | J79: 58
A80: 262 | B80: VOSGES | C80: 55 | D80: SAINT DIE | E80: 488586 | F80: SAINT DIE | G80: 10.4 | H80: 125 | I80: 183 | J80: 58
A81: 262 | B81: HAUT-RHIN | C81: 5130 | D81: COLMAR | E81: 4147 | F81: GUEBWILLER | G81: 5.9 | H81: 235 | I81: 292 | J81: 57
A82: 262 | B82: MARNE-ARDENNES | C82: 2 | D82: CHARLEVILLE MEZIERES | E82: 508820 | F82: VOUZIERS | G82: 2.8 | H82: 60 | I82: 117 | J82: 57
A83: 262 | B83: MEURTHE ET MOSELLE MEUSE | C83: 31 | D83: VERDUN | E83: 455298 | F83: ETAIN | G83: 1.9 | H83: 85 | I83: 142 | J83: 57
A84: 264 | B84: MEURTHE ET MOSELLE MEUSE | C84: 31 | D84: VERDUN | E84: 554700 | F84: VILLERUPT | G84: 2.7 | H84: 59 | I84: 116 | J84: 57
A85: 264 | B85: BAS-RHIN | C85: 5060 | D85: HAGUENAU | E85: 4071 | F85: WISSEMBOURG | G85: 8.7 | H85: 84 | I85: 140 | J85: 56
A86: 264 | B86: MEURTHE ET MOSELLE MEUSE | C86: 27 | D86: PONT A MOUSSON | E86: 554533 | F86: PONT A MOUSSON BREUIL | G86: 3.5 | H86: 151 | I86: 206 | J86: 55
A87: 264 | B87: AUBE HAUTE MARNE | C87: 14 | D87: TROYES | E87: 510513 | F87: TROYES 1er MAI | G87: 4.2 | H87: 221 | I87: 274 | J87: 53
A88: 264 | B88: VOSGES | C88: 57 | D88: EPINAL | E88: 488291 | F88: EPINAL AVRINSART | G88: 1.8 | H88: 160 | I88: 213 | J88: 53
A89: 264 | B89: MOSELLE | C89: 45 | D89: METZ | E89: 557441 | F89: METZ PLAPPEVILLE | G89: 2.6 | H89: 129 | I89: 181 | J89: 52
A90: 264 | B90: BAS-RHIN | C90: 5101 | D90: SELESTAT | E90: 4101 | F90: SELESTAT CENTRE | G90: 8.0 | H90: 245 | I90: 296 | J90: 51
A91: 264 | B91: HAUT-RHIN | C91: 5169 | D91: MULHOUSE | E91: 4181 | F91: WITTELSHEIM | G91: 4.0 | H91: 100 | I91: 150 | J91: 50
A92: 264 | B92: MOSELLE | C92: 45 | D92: METZ | E92: 457574 | F92: ROMBAS | G92: 3.3 | H92: 86 | I92: 136 | J92: 50
A93: 264 | B93: MOSELLE | C93: 44 | D93: MOSELLE NORD | E93: 557660 | F93: UCKANGE JEANNE D ARC | G93: 1.9 | H93: 14 | I93: 64 | J93: 50
A94: 264 | B94: MEURTHE ET MOSELLE MEUSE | C94: 26 | D94: NANCY | E94: 554296 | F94: ESSEY LES NANCY | G94: 3.7 | H94: 231 | I94: 278 | J94: 47
A95: 264 | B95: MEURTHE ET MOSELLE MEUSE | C95: 27 | D95: PONT A MOUSSON | E95: 554506 | F95: CHALIGNY NEUVES MAISONS | G95: 2.7 | H95: 191 | I95: 236 | J95: 45
A96: 264 | B96: MOSELLE | C96: 45 | D96: METZ | E96: 557459 | F96: MOULINS LES METZ | G96: 2.8 | H96: 167 | I96: 209 | J96: 42
A97: 264 | B97: MARNE-ARDENNES | C97: 6 | D97: CHALONS EN CHAMPAGNE | E97: 451101 | F97: CHALONS VIVIERS | G97: 9.7 | H97: 18 | I97: 58 | J97: 40
A98: 264 | B98: HAUT-RHIN | C98: 5130 | D98: COLMAR | E98: 4143 | F98: MUNSTER | G98: 5.4 | H98: 195 | I98: 234 | J98: 39
A99: 264 | B99: MOSELLE | C99: 45 | D99: METZ | E99: 557447 | F99: METZ SAINT MAXIMIN | G99: 3.0 | H99: 10 | I99: 48 | J99: 38
A100: 264 | B100: AUBE HAUTE MARNE | C100: 14 | D100: TROYES | E100: 510556 | F100: BAR SUR SEINE | G100: 3.8 | H100: 188 | I100: 225 | J100: 37
A101: 264 | B101: BAS-RHIN | C101: 5101 | D101: SELESTAT | E101: 4104 | F101: ERSTEIN | G101: 4.6 | H101: 266 | I101: 302 | J101: 36
A102: 264 | B102: AUBE HAUTE MARNE | C102: 14 | D102: TROYES | E102: 510522 | F102: TROYES CHARTREUX | G102: 2.6 | H102: 229 | I102: 264 | J102: 35
A103: 264 | B103: MARNE-ARDENNES | C103: 6 | D103: CHALONS EN CHAMPAGNE | E103: 451166 | F103: VITRY LE FRANCOIS | G103: 6.4 | H103: 193 | I103: 228 | J103: 35
A104: 264 | B104: MEURTHE ET MOSELLE MEUSE | C104: 27 | D104: PONT A MOUSSON | E104: 554321 | F104: FROUARD | G104: 2.6 | H104: 83 | I104: 118 | J104: 35
A105: 264 | B105: MOSELLE | C105: 42 | D105: MOSELLE EST | E105: 557250 | F105: CREUTZWALD | G105: 3.0 | H105: 76 | I105: 111 | J105: 35
A106: 264 | B106: MOSELLE | C106: 42 | D106: MOSELLE EST | E106: 457435 | F106: MERLEBACH | G106: 3.4 | H106: 236 | I106: 271 | J106: 35
A107: 264 | B107: MARNE-ARDENNES | C107: 2 | D107: CHARLEVILLE MEZIERES | E107: 408862 | F107: REVIN | G107: 3.9 | H107: 37 | I107: 71 | J107: 34
A108: 264 | B108: BAS-RHIN | C108: 5101 | D108: SELESTAT | E108: 4126 | F108: MUTZIG | G108: 2.6 | H108: 65 | I108: 98 | J108: 33
A109: 264 | B109: VOSGES | C109: 57 | D109: EPINAL | E109: 588716 | F109: XERTIGNY | G109: 2.6 | H109: 45 | I109: 78 | J109: 33
A110: 264 | B110: AUBE HAUTE MARNE | C110: 14 | D110: TROYES | E110: 410510 | F110: TROYES GAMBETTA | G110: 9.7 | H110: 99 | I110: 130 | J110: 31
A111: 264 | B111: HAUT-RHIN | C111: 5130 | D111: COLMAR | E111: 4153 | F111: ROUFFACH | G111: 3.7 | H111: 133 | I111: 164 | J111: 31
A112: 30 | B112: HAUT-RHIN | C112: 5169 | D112: MULHOUSE | E112: 4188 | F112: PFASTATT | G112: 3.1 | H112: 274 | I112: 305 | J112: 31
A113: 30 | B113: MEURTHE ET MOSELLE MEUSE | C113: 31 | D113: VERDUN | E113: 455678 | F113: VERDUN CENTRALE | G113: 9.2 | H113: 95 | I113: 125 | J113: 30
A114: 30 | B114: BAS-RHIN | C114: 5101 | D114: SELESTAT | E114: 4127 | F114: ROSHEIM | G114: 1.4 | H114: 260 | I114: 288 | J114: 28
A115: 30 | B115: MARNE-ARDENNES | C115: 2 | D115: CHARLEVILLE MEZIERES | E115: 508802 | F115: CHARLEVILLE NEVERS | G115: 3.6 | H115: 35 | I115: 63 | J115: 28
A116: 30 | B116: MOSELLE | C116: 45 | D116: METZ | E116: 457453 | F116: MONTIGNY CENTRALE | G116: 7.7 | H116: 77 | I116: 105 | J116: 28
A117: 30 | B117: MEURTHE ET MOSELLE MEUSE | C117: 27 | D117: PONT A MOUSSON | E117: 554416 | F117: LUDRES | G117: 3.9 | H117: 19 | I117: 45 | J117: 26
A118: 30 | B118: MOSELLE | C118: 42 | D118: MOSELLE EST | E118: 457345 | F118: GROSBLIEDERSTROFF | G118: 2.5 | H118: 120 | I118: 146 | J118: 26
A119: 30 | B119: MARNE-ARDENNES | C119: 11 | D119: REIMS | E119: 551369 | F119: DAMERY | G119: 2.9 | H119: 6 | I119: 31 | J119: 25
A120: 30 | B120: MOSELLE | C120: 45 | D120: METZ | E120: 557105 | F120: ARS SUR MOSELLE | G120: 3.8 | H120: 70 | I120: 95 | J120: 25
A121: 30 | B121: MEURTHE ET MOSELLE MEUSE | C121: 26 | D121: NANCY | E121: 454171 | F121: BLAMONT | G121: 1.1 | H121: 174 | I121: 198 | J121: 24
A122: 30 | B122: MOSELLE | C122: 45 | D122: METZ | E122: 557178 | F122: BOULAY | G122: 3.0 | H122: 244 | I122: 268 | J122: 24
A123: 30 | B123: AUBE HAUTE MARNE | C123: 14 | D123: TROYES | E123: 510530 | F123: ARCIS SUR AUBE | G123: 3.7 | H123: 246 | I123: 269 | J123: 23
A124: 30 | B124: HAUT-RHIN | C124: 5169 | D124: MULHOUSE | E124: 4183 | F124: WITTENHEIM | G124: 2.4 | H124: 257 | I124: 280 | J124: 23
A125: 30 | B125: VOSGES | C125: 55 | D125: SAINT DIE | E125: 588316 | F125: FRAIZE | G125: 4.0 | H125: 179 | I125: 202 | J125: 23
A126: 30 | B126: MOSELLE | C126: 42 | D126: MOSELLE EST | E126: 457165 | F126: BITCHE | G126: 3.3 | H126: 63 | I126: 85 | J126: 22
A127: 30 | B127: BAS-RHIN | C127: 5006 | D127: STRASBOURG | E127: 4023 | F127: STRASBOURG VOSGES | G127: 3.3 | H127: 277 | I127: 298 | J127: 21
A128: 30 | B128: BAS-RHIN | C128: 5060 | D128: HAGUENAU | E128: 4080 | F128: WOERTH | G128: 2.3 | H128: 275 | I128: 295 | J128: 20
A129: 30 | B129: VOSGES | C129: 55 | D129: SAINT DIE | E129: 488556 | F129: RAON L ETAPE | G129: 3.5 | H129: 73 | I129: 93 | J129: 20
A130: 30 | B130: MEURTHE ET MOSELLE MEUSE | C130: 27 | D130: PONT A MOUSSON | E130: 554196 | F130: CHAMPIGNEULLES | G130: 3.2 | H130: 89 | I130: 107 | J130: 18
A131: 30 | B131: MOSELLE | C131: 44 | D131: MOSELLE NORD | E131: 557307 | F131: FONTOY | G131: 3.1 | H131: 57 | I131: 75 | J131: 18
A132: 30 | B132: VOSGES | C132: 57 | D132: EPINAL | E132: 488451 | F132: MIRECOURT | G132: 4.6 | H132: 268 | I132: 286 | J132: 18
A133: 30 | B133: BAS-RHIN | C133: 5060 | D133: HAGUENAU | E133: 4082 | F133: BOUXWILLER | G133: 2.8 | H133: 118 | I133: 133 | J133: 15
A134: 30 | B134: HAUT-RHIN | C134: 5169 | D134: MULHOUSE | E134: 4174 | F134: MULHOUSE DORNACH | G134: 5.5 | H134: 278 | I134: 293 | J134: 15
A135: 30 | B135: MEURTHE ET MOSELLE MEUSE | C135: 27 | D135: PONT A MOUSSON | E135: 554381 | F135: LAXOU ARISTIDE BRIAND | G135: 4.4 | H135: 227 | I135: 242 | J135: 15
A136: 30 | B136: MOSELLE | C136: 44 | D136: MOSELLE NORD | E136: 457350 | F136: HAYANGE | G136: 9.0 | H136: 237 | I136: 252 | J136: 15
A137: 30 | B137: BAS-RHIN | C137: 5101 | D137: SELESTAT | E137: 4111 | F137: BENFELD | G137: 3.7 | H137: 273 | I137: 287 | J137: 14
A138: 30 | B138: MEURTHE ET MOSELLE MEUSE | C138: 26 | D138: NANCY | E138: 554636 | F138: TOMBLAINE | G138: 2.7 | H138: 34 | I138: 47 | J138: 13
A139: 30 | B139: AUBE HAUTE MARNE | C139: 14 | D139: TROYES | E139: 410512 | F139: TROYES ZOLA | G139: 4.5 | H139: 228 | I139: 240 | J139: 12
A140: 30 | B140: BAS-RHIN | C140: 5006 | D140: STRASBOURG | E140: 4029 | F140: SCHILTIGHEIM KLEBER | G140: 2.3 | H140: 116 | I140: 128 | J140: 12
A141: 30 | B141: MOSELLE | C141: 45 | D141: METZ | E141: 457443 | F141: METZ REPUBLIQUE | G141: 3.9 | H141: 30 | I141: 40 | J141: 10
A142: 30 | B142: MARNE-ARDENNES | C142: 2 | D142: CHARLEVILLE MEZIERES | E142: 408801 | F142: CHARLEVILLE JEAN JAURES | G142: 8.5 | H142: 71 | I142: 80 | J142: 9
A143: 30 | B143: MARNE-ARDENNES | C143: 11 | D143: REIMS | E143: 451370 | F143: EPERNAY VERRON | G143: 10.6 | H143: 41 | I143: 50 | J143: 9
A144: 30 | B144: MEURTHE ET MOSELLE MEUSE | C144: 26 | D144: NANCY | E144: 454481 | F144: NANCY PLACE DOMBASLE | G144: 10.4 | H144: 7 | I144: 16 | J144: 9
A145: 30 | B145: MEURTHE ET MOSELLE MEUSE | C145: 27 | D145: PONT A MOUSSON | E145: 554531 | F145: POMPEY | G145: 2.5 | H145: 13 | I145: 22 | J145: 9
A146: 30 | B146: MOSELLE | C146: 45 | D146: METZ | E146: 557224 | F146: CLOUANGE | G146: 3.3 | H146: 232 | I146: 241 | J146: 9
A147: 30 | B147: MOSELLE | C147: 44 | D147: MOSELLE NORD | E147: 457180 | F147: BOUSSE | G147: 2.3 | H147: 210 | I147: 219 | J147: 9
A148: 30 | B148: VOSGES | C148: 55 | D148: SAINT DIE | E148: 488326 | F148: GERARDMER | G148: 5.1 | H148: 17 | I148: 26 | J148: 9
A149: 30 | B149: BAS-RHIN | C149: 5060 | D149: HAGUENAU | E149: 4067 | F149: PFAFFENHOFFEN | G149: 2.9 | H149: 141 | I149: 149 | J149: 8
A150: 30 | B150: HAUT-RHIN | C150: 5169 | D150: MULHOUSE | E150: 4178 | F150: SAINT LOUIS | G150: 7.7 | H150: 247 | I150: 255 | J150: 8
A151: 30 | B151: MARNE-ARDENNES | C151: 11 | D151: REIMS | E151: 551365 | F151: DORMANS | G151: 2.7 | H151: 28 | I151: 36 | J151: 8
A152: 30 | B152: MEURTHE ET MOSELLE MEUSE | C152: 27 | D152: PONT A MOUSSON | E152: 554357 | F152: JOEUF MAIRIE | G152: 4.4 | H152: 211 | I152: 218 | J152: 7
A153: 30 | B153: BAS-RHIN | C153: 5101 | D153: SELESTAT | E153: 4129 | F153: MARLENHEIM | G153: 2.5 | H153: 205 | I153: 211 | J153: 6
A154: 110 | B154: HAUT-RHIN | C154: 5130 | D154: COLMAR | E154: 4134 | F154: COLMAR SAINT JOSEPH | G154: 0.9 | H154: 283 | I154: 289 | J154: 6
A155: 110 | B155: HAUT-RHIN | C155: 5169 | D155: MULHOUSE | E155: 4169 | F155: MULHOUSE ROOSEVELT | G155: 5.7 | H155: 276 | I155: 282 | J155: 6
A156: 110 | B156: MARNE-ARDENNES | C156: 11 | D156: REIMS | E156: 551314 | F156: FISMES | G156: 2.4 | H156: 43 | I156: 49 | J156: 6
A157: 110 | B157: VOSGES | C157: 57 | D157: EPINAL | E157: 488288 | F157: EPINAL LEOPOLD BOURG | G157: 1.9 | H157: 2 | I157: 8 | J157: 6
A158: 110 | B158: AUBE HAUTE MARNE | C158: 14 | D158: TROYES | E158: 510570 | F158: NOGENT SUR SEINE | G158: 3.8 | H158: 39 | I158: 43 | J158: 4
A159: 110 | B159: BAS-RHIN | C159: 5060 | D159: HAGUENAU | E159: 4031 | F159: TRUCHTERSHEIM | G159: 3.0 | H159: 29 | I159: 33 | J159: 4
A160: 110 | B160: BAS-RHIN | C160: 5060 | D160: HAGUENAU | E160: 4060 | F160: HAGUENAU HOUBLON | G160: 9.4 | H160: 224 | I160: 226 | J160: 2
A161: 110 | B161: BAS-RHIN | C161: 5006 | D161: STRASBOURG | E161: 4048 | F161: STRASBOURG KOENIGSHOFFEN | G161: 2.8 | H161: 281 | I161: 283 | J161: 2
A162: 110 | B162: VOSGES | C162: 55 | D162: SAINT DIE | E162: 488616 | F162: SENONES | G162: 1.9 | H162: 66 | I162: 66 | J162: 0
A163: 110 | B163: AUBE HAUTE MARNE | C163: 14 | D163: TROYES | E163: 510520 | F163: SAINT ANDRE LES VERGERS | G163: 4.5 | H163: 248 | I163: 247 | J163: -1
A164: 110 | B164: BAS-RHIN | C164: 5101 | D164: SELESTAT | E164: 4119 | F164: OBERNAI | G164: 5.3 | H164: 249 | I164: 248 | J164: -1
A165: 110 | B165: MOSELLE | C165: 42 | D165: MOSELLE EST | E165: 557458 | F165: MORHANGE | G165: 2.3 | H165: 170 | I165: 169 | J165: -1
A166: 110 | B166: MOSELLE | C166: 44 | D166: MOSELLE NORD | E166: 457632 | F166: THIONVILLE CENTRALE | G166: 10.8 | H166: 225 | I166: 224 | J166: -1
A167: 110 | B167: VOSGES | C167: 57 | D167: EPINAL | E167: 588336 | F167: GOLBEY | G167: 4.0 | H167: 158 | I167: 157 | J167: -1
A168: 110 | B168: AUBE HAUTE MARNE | C168: 21 | D168: CHAUMONT | E168: 410560 | F168: BOURBONNE LES BAINS | G168: 1.9 | H168: 27 | I168: 25 | J168: -2
A169: 110 | B169: BAS-RHIN | C169: 5060 | D169: HAGUENAU | E169: 4087 | F169: SAVERNE | G169: 7.7 | H169: 175 | I169: 173 | J169: -2
A170: 110 | B170: MARNE-ARDENNES | C170: 11 | D170: REIMS | E170: 551310 | F170: REIMS CHATILLONS | G170: 3.6 | H170: 5 | I170: 3 | J170: -2
A171: 110 | B171: MARNE-ARDENNES | C171: 11 | D171: REIMS | E171: 551306 | F171: REIMS SAINT MARCEAUX | G171: 4.8 | H171: 23 | I171: 21 | J171: -2
A172: 110 | B172: MEURTHE ET MOSELLE MEUSE | C172: 31 | D172: VERDUN | E172: 455566 | F172: REVIGNY SUR ORNAIN | G172: 2.9 | H172: 110 | I172: 108 | J172: -2
A173: 110 | B173: MARNE-ARDENNES | C173: 6 | D173: CHALONS EN CHAMPAGNE | E173: 551354 | F173: VERTUS | G173: 2.8 | H173: 15 | I173: 12 | J173: -3
A174: 110 | B174: MARNE-ARDENNES | C174: 11 | D174: REIMS | E174: 551340 | F174: BETHENY | G174: 3.0 | H174: 8 | I174: 5 | J174: -3
A175: 110 | B175: MARNE-ARDENNES | C175: 11 | D175: REIMS | E175: 551309 | F175: REIMS EUROPE | G175: 2.8 | H175: 21 | I175: 17 | J175: -4
A176: 110 | B176: MARNE-ARDENNES | C176: 11 | D176: REIMS | E176: 551341 | F176: REIMS JEAN JAURES | G176: 4.1 | H176: 67 | I176: 62 | J176: -5
A177: 110 | B177: BAS-RHIN | C177: 5060 | D177: HAGUENAU | E177: 4030 | F177: BRUMATH | G177: 7.3 | H177: 241 | I177: 235 | J177: -6
A178: 110 | B178: BAS-RHIN | C178: 5060 | D178: HAGUENAU | E178: 4066 | F178: NIEDERBRONN LES BAINS | G178: 5.7 | H178: 169 | I178: 163 | J178: -6
A179: 110 | B179: HAUT-RHIN | C179: 5169 | D179: MULHOUSE | E179: 4184 | F179: ILLZACH | G179: 3.2 | H179: 267 | I179: 260 | J179: -7
A180: 110 | B180: MARNE-ARDENNES | C180: 6 | D180: CHALONS EN CHAMPAGNE | E180: 551330 | F180: MONTMIRAIL | G180: 3.1 | H180: 31 | I180: 24 | J180: -7
A181: 110 | B181: MARNE-ARDENNES | C181: 2 | D181: CHARLEVILLE MEZIERES | E181: 508833 | F181: VILLERS SEMEUSE CORA | G181: 2.9 | H181: 11 | I181: 4 | J181: -7
A182: 110 | B182: BAS-RHIN | C182: 5060 | D182: HAGUENAU | E182: 4095 | F182: SARRE UNION | G182: 4.2 | H182: 161 | I182: 152 | J182: -9
A183: 110 | B183: MARNE-ARDENNES | C183: 11 | D183: REIMS | E183: 551305 | F183: REIMS HIPPODROME | G183: 3.7 | H183: 44 | I183: 35 | J183: -9
A184: 110 | B184: MOSELLE | C184: 45 | D184: METZ | E184: 557444 | F184: METZ SAINT JULIEN | G184: 6.0 | H184: 49 | I184: 39 | J184: -10
A185: 110 | B185: BAS-RHIN | C185: 5101 | D185: SELESTAT | E185: 4121 | F185: SCHIRMECK | G185: 3.0 | H185: 126 | I185: 115 | J185: -11
A186: 110 | B186: BAS-RHIN | C186: 5060 | D186: HAGUENAU | E186: 4092 | F186: HOCHFELDEN | G186: 2.4 | H186: 114 | I186: 102 | J186: -12
A187: 110 | B187: MOSELLE | C187: 42 | D187: MOSELLE EST | E187: 557503 | F187: NEUNKIRCH | G187: 2.7 | H187: 53 | I187: 41 | J187: -12
A188: 110 | B188: BAS-RHIN | C188: 5006 | D188: STRASBOURG | E188: 4027 | F188: SCHILTIGHEIM CENTRE | G188: 3.1 | H188: 217 | I188: 204 | J188: -13
A189: 110 | B189: MARNE-ARDENNES | C189: 11 | D189: REIMS | E189: 451336 | F189: TINQUEUX | G189: 5.2 | H189: 32 | I189: 18 | J189: -14
A190: 110 | B190: VOSGES | C190: 55 | D190: SAINT DIE | E190: 488346 | F190: GRANGES AUMONTZEY | G190: 1.8 | H190: 24 | I190: 10 | J190: -14
A191: 110 | B191: AUBE HAUTE MARNE | C191: 21 | D191: CHAUMONT | E191: 410541 | F191: LANGRES | G191: 6.7 | H191: 88 | I191: 73 | J191: -15
A192: 110 | B192: MOSELLE | C192: 42 | D192: MOSELLE EST | E192: 457163 | F192: BEHREN LES FORBACH | G192: 2.4 | H192: 47 | I192: 32 | J192: -15
A193: 110 | B193: HAUT-RHIN | C193: 5130 | D193: COLMAR | E193: 4164 | F193: SAINTE MARIE AUX MINES | G193: 2.8 | H193: 272 | I193: 256 | J193: -16
A194: 110 | B194: MARNE-ARDENNES | C194: 6 | D194: CHALONS EN CHAMPAGNE | E194: 551103 | F194: FAGNIERES LECLERC | G194: 2.7 | H194: 22 | I194: 6 | J194: -16
A195: 110 | B195: MARNE-ARDENNES | C195: 11 | D195: REIMS | E195: 451350 | F195: REIMS CENTRE VILLE | G195: 8.0 | H195: 136 | I195: 120 | J195: -16
A196: 110 | B196: MEURTHE ET MOSELLE MEUSE | C196: 26 | D196: NANCY | E196: 454161 | F196: BAYON | G196: 1.3 | H196: 233 | I196: 216 | J196: -17
A197: 110 | B197: MEURTHE ET MOSELLE MEUSE | C197: 27 | D197: PONT A MOUSSON | E197: 554257 | F197: DIEULOUARD | G197: 3.5 | H197: 164 | I197: 147 | J197: -17
A198: 110 | B198: MOSELLE | C198: 45 | D198: METZ | E198: 557434 | F198: MARLY | G198: 3.8 | H198: 33 | I198: 15 | J198: -18
A199: 110 | B199: MOSELLE | C199: 45 | D199: METZ | E199: 557612 | F199: SAINTE MARIE AUX CHENES | G199: 3.8 | H199: 152 | I199: 134 | J199: -18
A200: 110 | B200: HAUT-RHIN | C200: 5169 | D200: MULHOUSE | E200: 4194 | F200: THANN | G200: 8.5 | H200: 226 | I200: 207 | J200: -19
A201: 110 | B201: MOSELLE | C201: 42 | D201: MOSELLE EST | E201: 557353 | F201: HOMBOURG HAUT | G201: 2.3 | H201: 262 | I201: 243 | J201: -19
A202: 110 | B202: AUBE HAUTE MARNE | C202: 14 | D202: TROYES | E202: 410571 | F202: ROMILLY ORMES | G202: 6.6 | H202: 157 | I202: 137 | J202: -20
A203: 110 | B203: AUBE HAUTE MARNE | C203: 14 | D203: TROYES | E203: 510523 | F203: LA CHAPELLE ST LUC | G203: 5.7 | H203: 194 | I203: 172 | J203: -22
A204: 110 | B204: MOSELLE | C204: 44 | D204: MOSELLE NORD | E204: 457634 | F204: THIONVILLE LA MILLIAIRE | G204: 1.5 | H204: 280 | I204: 258 | J204: -22
... 89 more rows

Sheet AG_FICHE
A1: Accueil
A2: BAROMETRE BDD
A4: UNITE: | B4: Agence | E4: ETP perf : | F4: =VLOOKUP(A5,'RECAP AG'!$G$6:$DG$280,3,FALSE) -> 8.70
A5: =VLOOKUP(B5,LISTES!$C$6:$D$290,2,FALSE) -> 4189 | B5: ALTKIRCH
C6: Coefficient du critère | E6: Résultats | I6: Ecart au 1ier | M6: Evolution | O6: =IF(OR(A5=4017,A5=4022),"Rang estimé","Rang") -> Rang
E7: du 1ier | G7: de l'Agence | I7: Du mois | K7: Au 31/12/2019
A9: RANG au CLASSEMENT GENERAL | K9: =VLOOKUP($A$5,'RECAP AG AN'!$G$6:$FS$313,168,FALSE) -> 180 | M9: =+K9-O9 ->  | O9: =VLOOKUP($A$5,'RECAP AG'!$G$6:$DG$280,168,FALSE) -> 
A11: CRITERE CONQUETE | C11: 15% | O11: =VLOOKUP($A$5,'RECAP AG'!$G$6:$DG$280,23,FALSE) -> 4.826607772
B12: PNB Evolution nette Clients BP | C12: 4% | E12: ='RECAP AG'!#REF! ->  | G12: =VLOOKUP($A$5,'RECAP AG'!$G$6:$DG$280,6,FALSE) -> 1.0 | I12: =VLOOKUP($A$5,'RECAP AG'!$G$6:$DG$280,7,FALSE) -> 19500% | K12: =VLOOKUP($A$5,'RECAP AG AN'!$G$6:$FS$313,7,FALSE) -> 73% | M12: =+K12-I12 -> -19427% | O12: =VLOOKUP($A$5,'RECAP AG'!$G$6:$DG$280,8,FALSE) -> 0.3211009174
B13: PNB Evolution nette Clients PREMIUM | C13: 5% | E13: ='RECAP AG'!#REF! ->  | G13: =VLOOKUP($A$5,'RECAP AG'!$G$6:$DG$280,10,FALSE) -> 227.0 | I13: =VLOOKUP($A$5,'RECAP AG'!$G$6:$DG$280,11,FALSE) -> 82% | K13: =VLOOKUP($A$5,'RECAP AG AN'!$G$6:$FS$313,11,FALSE) -> 68% | M13: =+K13-I13 -> -14% | O13: =VLOOKUP($A$5,'RECAP AG'!$G$6:$DG$280,12,FALSE) -> 0.6923657945
B14: PNB Evolution nette Clients Jeunes Equipés | C14: 3% | E14: ='RECAP AG'!#REF! ->  | G14: =VLOOKUP($A$5,'RECAP AG'!$G$6:$DG$280,14,FALSE) -> 0.0 | I14: =VLOOKUP($A$5,'RECAP AG'!$G$6:$DG$280,15,FALSE) -> 0% | K14: =VLOOKUP($A$5,'RECAP AG AN'!$G$6:$FS$313,15,FALSE) -> 56% | M14: =+K14-I14 -> 56% | O14: =VLOOKUP($A$5,'RECAP AG'!$G$6:$DG$280,16,FALSE) -> 0
B15: PNB Evolution nette Clients Pro Actifs Equipés | C15: 3% | E15: ='RECAP AG'!W4 -> 0.0 | G15: =VLOOKUP($A$5,'RECAP AG'!$G$6:$DG$280,18,FALSE) -> 17.6 | I15: =VLOOKUP($A$5,'RECAP AG'!$G$6:$DG$280,19,FALSE) -> 202% | K15: =VLOOKUP($A$5,'RECAP AG AN'!$G$6:$FS$313,19,FALSE) -> 94% | M15: =+K15-I15 -> -108% | O15: =VLOOKUP($A$5,'RECAP AG'!$G$6:$DG$280,20,FALSE) -> 0.9565822389
A17: CRITERE BANCARISATION | C17: 15% | O17: =VLOOKUP($A$5,'RECAP AG'!$G$6:$DG$280,48,FALSE) -> 262
B18: PNB Ventes nettes forfaits | C18: 4% | E18: ='RECAP AG'!X4 -> 46.6 | G18: =VLOOKUP($A$5,'RECAP AG'!$G$6:$DG$280,31,FALSE) -> -0.6 | I18: =VLOOKUP($A$5,'RECAP AG'!$G$6:$DG$280,32,FALSE) -> 82% | K18: =VLOOKUP($A$5,'RECAP AG AN'!$G$6:$FS$313,32,FALSE) -> 52% | M18: =+K18-I18 -> -30% | O18: =VLOOKUP($A$5,'RECAP AG'!$G$6:$DG$280,33,FALSE) -> 242
B19: PNB Ventes nettes IZICARTES Débit Différé | C19: 4% | E19: ='RECAP AG'!AB4 -> 26.1 | G19: =VLOOKUP($A$5,'RECAP AG'!$G$6:$DG$280,35,FALSE) -> 0.7 | I19: =VLOOKUP($A$5,'RECAP AG'!$G$6:$DG$280,36,FALSE) -> 26700% | K19: =VLOOKUP($A$5,'RECAP AG AN'!$G$6:$FS$313,36,FALSE) -> 79% | M19: =+K19-I19 -> -26621% | O19: =VLOOKUP($A$5,'RECAP AG'!$G$6:$DG$280,37,FALSE) -> 0
B20: PNB Ventes nettes cartes HDG Débit Différé | C20: 4% | E20: ='RECAP AG'!AF4 -> 13.8 | G20: =VLOOKUP($A$5,'RECAP AG'!$G$6:$DG$280,39,FALSE) -> 0.0 | I20: =VLOOKUP($A$5,'RECAP AG'!$G$6:$DG$280,40,FALSE) -> 0% | K20: =VLOOKUP($A$5,'RECAP AG AN'!$G$6:$FS$313,40,FALSE) -> 80% | M20: =+K20-I20 -> 80% | O20: =VLOOKUP($A$5,'RECAP AG'!$G$6:$DG$280,41,FALSE) -> 467.274975
B21: PNB Ventes nettes Forfaits Pro, Carte pro | C21: 3% | E21: ='RECAP AG'!AJ4 -> -0.0 | G21: =VLOOKUP($A$5,'RECAP AG'!$G$6:$DG$280,43,FALSE) -> 0.6 | I21: =VLOOKUP($A$5,'RECAP AG'!$G$6:$DG$280,44,FALSE) -> 20800% | K21: =VLOOKUP($A$5,'RECAP AG AN'!$G$6:$FS$313,44,FALSE) -> 76% | M21: =+K21-I21 -> -20724% | O21: =VLOOKUP($A$5,'RECAP AG'!$G$6:$DG$280,45,FALSE) -> 18
A23: CRITERE EPARGNE | C23: 10% | O23: =VLOOKUP($A$5,'RECAP AG'!$G$6:$DG$280,69,FALSE) -> 0.7274826117
B24: PNB Epargne Liquide | C24: 3% | E24: ='RECAP AG'!AU4 -> 657.7 | G24: =VLOOKUP($A$5,'RECAP AG'!$G$6:$DG$280,56,FALSE) -> 56.1 | I24: =VLOOKUP($A$5,'RECAP AG'!$G$6:$DG$280,57,FALSE) -> 645% | K24: =VLOOKUP($A$5,'RECAP AG AN'!$G$6:$FS$313,57,FALSE) -> 99% | M24: =+K24-I24 -> -546% | O24: =VLOOKUP($A$5,'RECAP AG'!$G$6:$DG$280,58,FALSE) -> 0.9678578862
B25: PNB CA UC + arbitrage | C25: 4% | E25: ='RECAP AG'!AY4 -> 22.7 | G25: =VLOOKUP($A$5,'RECAP AG'!$G$6:$DG$280,60,FALSE) -> 159.0 | I25: =VLOOKUP($A$5,'RECAP AG'!$G$6:$DG$280,61,FALSE) -> 1827% | K25: =VLOOKUP($A$5,'RECAP AG AN'!$G$6:$FS$313,61,FALSE) -> 78% | M25: =+K25-I25 -> -1749% | O25: =VLOOKUP($A$5,'RECAP AG'!$G$6:$DG$280,62,FALSE) -> 0.4625888338
B26: PNB Excédent assurance vie | C26: 3% | E26: ='RECAP AG'!#REF! ->  | G26: =VLOOKUP($A$5,'RECAP AG'!$G$6:$DG$280,64,FALSE) -> 21.0 | I26: =VLOOKUP($A$5,'RECAP AG'!$G$6:$DG$280,65,FALSE) -> 241% | K26: =VLOOKUP($A$5,'RECAP AG AN'!$G$6:$FS$313,65,FALSE) -> 54% | M26: =+K26-I26 -> -188% | O26: =VLOOKUP($A$5,'RECAP AG'!$G$6:$DG$280,66,FALSE) -> 0.8266281169
A28: CRITERE CREDITS | C28: 15% | O28: =VLOOKUP($A$5,'RECAP AG'!$G$6:$DG$280,102,FALSE) -> 0.6889561582
B29: PNB crédit conso | C29: 4% | E29: ='RECAP AG'!BJ4 -> 200.6 | G29: =VLOOKUP($A$5,'RECAP AG'!$G$6:$DG$280,77,FALSE) -> 0.9 | I29: =VLOOKUP($A$5,'RECAP AG'!$G$6:$DG$280,78,FALSE) -> 25200% | K29: =VLOOKUP($A$5,'RECAP AG AN'!$G$6:$FS$313,78,FALSE) -> 35% | M29: =+K29-I29 -> -25165% | O29: =VLOOKUP($A$5,'RECAP AG'!$G$6:$DG$280,79,FALSE) -> 69
B30: PNB ADE crédit conso | C30: 1% | E30: ='RECAP AG'!#REF! ->  | G30: =VLOOKUP($A$5,'RECAP AG'!$G$6:$DG$280,81,FALSE) -> 0.7 | I30: =VLOOKUP($A$5,'RECAP AG'!$G$6:$DG$280,82,FALSE) -> 18200% | K30: =VLOOKUP($A$5,'RECAP AG AN'!$G$6:$FS$313,82,FALSE) -> 51% | M30: -18149% | O30: =VLOOKUP($A$5,'RECAP AG'!$G$6:$DG$280,83,FALSE) -> 0.8458824874
B31: PNB crédit immo | C31: 4% | E31: ='RECAP AG'!BN4 -> 34.0 | G31: =VLOOKUP($A$5,'RECAP AG'!$G$6:$DG$280,85,FALSE) -> 247.0 | I31: =VLOOKUP($A$5,'RECAP AG'!$G$6:$DG$280,86,FALSE) -> 0% | K31: =VLOOKUP($A$5,'RECAP AG AN'!$G$6:$FS$313,86,FALSE) -> 73% | M31: 73% | O31: =VLOOKUP($A$5,'RECAP AG'!$G$6:$DG$280,87,FALSE) -> 0
B32: PNB ADE crédit immo | C32: 2% | E32: ='RECAP AG'!#REF! ->  | G32: =VLOOKUP($A$5,'RECAP AG'!$G$6:$DG$280,89,FALSE) -> 0.0 | I32: =VLOOKUP($A$5,'RECAP AG'!$G$6:$DG$280,90,FALSE) -> 0% | K32: =VLOOKUP($A$5,'RECAP AG AN'!$G$6:$FS$313,90,FALSE) -> 61% | M32: 61% | O32: =VLOOKUP($A$5,'RECAP AG'!$G$6:$DG$280,91,FALSE) -> 0
B33: PNB SACCEF | C33: 2% | E33: ='RECAP AG'!#REF! ->  | G33: =VLOOKUP($A$5,'RECAP AG'!$G$6:$DG$280,93,FALSE) -> 0.0 | I33: =VLOOKUP($A$5,'RECAP AG'!$G$6:$DG$280,94,FALSE) -> 0% | K33: =VLOOKUP($A$5,'RECAP AG AN'!$G$6:$FS$313,94,FALSE) -> 71% | M33: 71% | O33: =VLOOKUP($A$5,'RECAP AG'!$G$6:$DG$280,95,FALSE) -> 0
B34: PNB Crédit MLT + Crédit Bail | C34: 2% | E34: ='RECAP AG'!BR4 -> 13.9 | G34: =VLOOKUP($A$5,'RECAP AG'!$G$6:$DG$280,97,FALSE) -> 0.0 | I34: =VLOOKUP($A$5,'RECAP AG'!$G$6:$DG$280,98,FALSE) -> 0% | K34: =VLOOKUP($A$5,'RECAP AG AN'!$G$6:$FS$313,98,FALSE) -> 96% | M34: 96% | O34: =VLOOKUP($A$5,'RECAP AG'!$G$6:$DG$280,99,FALSE) -> 0
A36: CRITERE IARD PREVOYANCE | C36: 15% | O36: =VLOOKUP($A$5,'RECAP AG'!$G$6:$DG$280,119,FALSE) -> 
B37: PNB Ventes nettes IARD | C37: 9% | E37: ='RECAP AG'!CC4 -> 157.4 | G37: =VLOOKUP($A$5,'RECAP AG'!$G$6:$DG$280,110,FALSE) ->  | I37: =VLOOKUP($A$5,'RECAP AG'!$G$6:$DG$280,111,FALSE) ->  | K37: =VLOOKUP($A$5,'RECAP AG AN'!$G$6:$FS$313,111,FALSE) -> 93% | M37: =+K37-I37 ->  | O37: =VLOOKUP($A$5,'RECAP AG'!$G$6:$DG$280,112,FALSE) -> 
B38: PNB Ventes nettes Prévoyance | C38: 6% | E38: ='RECAP AG'!CG4 -> 23.0 | G38: =VLOOKUP($A$5,'RECAP AG'!$G$6:$DG$280,114,FALSE) ->  | I38: =VLOOKUP($A$5,'RECAP AG'!$G$6:$DG$280,115,FALSE) ->  | K38: =VLOOKUP($A$5,'RECAP AG AN'!$G$6:$FS$313,115,FALSE) -> 89% | M38: =+K38-I38 ->  | O38: =VLOOKUP($A$5,'RECAP AG'!$G$6:$DG$280,116,FALSE) -> 
A40: CRITERE ACCELERATEURS PNB | C40: 15% | O40: =VLOOKUP($A$5,'RECAP AG'!$G$6:$DG$280,144,FALSE) -> 
B41: PNB Ventes brutes SED Finalisées | C41: 6% | E41: ='RECAP AG'!#REF! ->  | G41: =VLOOKUP($A$5,'RECAP AG'!$G$6:$DG$280,127,FALSE) ->  | I41: =VLOOKUP($A$5,'RECAP AG'!$G$6:$DG$280,128,FALSE) ->  | K41: =VLOOKUP($A$5,'RECAP AG AN'!$G$6:$FS$313,128,FALSE) -> 80% | M41: =+K41-I41 ->  | O41: =VLOOKUP($A$5,'RECAP AG'!$G$6:$DG$280,129,FALSE) -> 
B42: PNB clients équipés E documents | C42: 3% | E42: ='RECAP AG'!#REF! ->  | G42: =VLOOKUP($A$5,'RECAP AG'!$G$6:$DG$280,131,FALSE) ->  | I42: =VLOOKUP($A$5,'RECAP AG'!$G$6:$DG$280,132,FALSE) ->  | K42: =VLOOKUP($A$5,'RECAP AG AN'!$G$6:$FS$313,132,FALSE) -> 81% | M42: =+K42-I42 ->  | O42: =VLOOKUP($A$5,'RECAP AG'!$G$6:$DG$280,133,FALSE) -> 
B43: Economie opt'in | C43: 3% | E43: ='RECAP AG'!#REF! ->  | G43: =VLOOKUP($A$5,'RECAP AG'!$G$6:$DG$280,135,FALSE) ->  | I43: =VLOOKUP($A$5,'RECAP AG'!$G$6:$DG$280,136,FALSE) ->  | K43: =VLOOKUP($A$5,'RECAP AG AN'!$G$6:$FS$313,136,FALSE) -> 72% | M43: =+K43-I43 ->  | O43: =VLOOKUP($A$5,'RECAP AG'!$G$6:$DG$280,137,FALSE) -> 
B44: Remises commerciales | C44: 3% | E44: ='RECAP AG'!#REF! ->  | G44: =VLOOKUP($A$5,'RECAP AG'!$G$6:$DG$280,139,FALSE) ->  | I44: =VLOOKUP($A$5,'RECAP AG'!$G$6:$DG$280,140,FALSE) ->  | K44: =VLOOKUP($A$5,'RECAP AG AN'!$G$6:$FS$313,140,FALSE) -> 23% | M44: =+K44-I44 ->  | O44: =VLOOKUP($A$5,'RECAP AG'!$G$6:$DG$280,141,FALSE) -> 
A46: CRITERE Satisfaction Clients | C46: 15% | O46: =VLOOKUP($A$5,'RECAP AG'!$G$6:$DG$280,159,FALSE) -> 
B47: Objectifs NPS* | C47: 8% | E47: ='RECAP AG'!K4 -> 39 | G47: =VLOOKUP($A$5,'RECAP AG'!$G$6:$DG$280,151,FALSE) ->  | I47: =VLOOKUP($A$5,'RECAP AG'!$G$6:$DG$280,152,FALSE) ->  | K47: =VLOOKUP($A$5,'RECAP AG AN'!$G$6:$FS$313,152,FALSE) -> 78% | M47: =+K47-I47 ->  | O47: =VLOOKUP($A$5,'RECAP AG'!$G$6:$DG$280,153,FALSE) -> 
B48: Enquête Qualité Haute Définition | C48: 7% | E48: ='RECAP AG'!N4 -> 90% | G48: =VLOOKUP($A$5,'RECAP AG'!$G$6:$DG$280,154,FALSE) ->  | I48: =VLOOKUP($A$5,'RECAP AG'!$G$6:$DG$280,155,FALSE) ->  | K48: =VLOOKUP($A$5,'RECAP AG AN'!$G$6:$FS$313,155,FALSE) -> 11% | M48: =+K48-I48 ->  | O48: =VLOOKUP($A$5,'RECAP AG'!$G$6:$DG$280,156,FALSE) -> 

Sheet AG_TOTAL
B1: Accueil | H1: BAROMETRE BDD - AGENCES
H2: TOTAL GENERAL
H3: =ACCUEIL!F7 -> 2021-03-07
H7: TOTAL GENERAL | K7: Total Satisfaction Clients | N7: Total Bancarisation | Q7: Total Epargne | T7: Total IARD Prévoyance | W7: Total Crédits
I8: coef | J8: 100% | L8: coef | M8: =AG_SATISFACTION!P8 -> 20% | O8: coef | P8: =AG_BANCA!Z8 -> 20% | R8: coef | S8: =AG_EPARGNE!R8 -> 20% | U8: coef | V8: =AG_IARD!R8 -> 20% | X8: coef | Y8: =AG_CREDIT!V8 -> 20%
B9: Direction | C9: eds | D9: Territoire | E9: eds | F9: Agence | G9: ="ETP perf "&DATEMAJ!$C$28 -> ETP perf 31-janv | H9: Moyenne ecart au 1er | I9: % Ecart au 1er | J9: Rang CEGEE | K9: Moyenne ecart au 1er | L9: % Ecart au 1er | M9: Rang CEGEE | N9: Moyenne ecart au 1er | O9: % Ecart au 1er | P9: Rang CEGEE | Q9: Moyenne ecart au 1er | R9: % Ecart au 1er | S9: Rang CEGEE | T9: Moyenne ecart au 1er | U9: % Ecart au 1er | V9: Rang CEGEE | W9: Moyenne ecart au 1er | X9: % Ecart au 1er | Y9: Rang CEGEE
A10: 50 | B10: MEURTHE ET MOSELLE MEUSE | C10: 26 | D10: NANCY | E10: 454481 | F10: NANCY PLACE DOMBASLE | G10: 12.3 | H10: 20% | I10: 0% | J10: 1 | K10: 69% | L10: 56% | M10: 162 | N10: 24% | O10: 0% | P10: 1 | Q10: 35% | R10: 20% | S10: 16 | T10: 4% | U10: 0% | V10: 1 | W10: 31% | X10: 26% | Y10: 4
A11: 50 | B11: MEURTHE ET MOSELLE MEUSE | C11: 27 | D11: PONT A MOUSSON | E11: 554531 | F11: POMPEY | G11: 3.0 | H11: 23% | I11: 2% | J11: 2 | K11: 57% | L11: 43% | M11: 88 | N11: 28% | O11: 4% | P11: 4 | Q11: 27% | R11: 11% | S11: 7 | T11: 27% | U11: 23% | V11: 12 | W11: 37% | X11: 32% | Y11: 5
A12: 50 | B12: BAS-RHIN | C12: 5101 | D12: SELESTAT | E12: 4113 | F12: BARR | G12: 3.0 | H12: 27% | I12: 6% | J12: 3 | K12: 36% | L12: 23% | M12: 21 | N12: 38% | O12: 14% | P12: 7 | Q12: 21% | R12: 6% | S12: 4 | T12: 21% | U12: 17% | V12: 7 | W12: 79% | X12: 74% | Y12: 204
A13: 50 | B13: MEURTHE ET MOSELLE MEUSE | C13: 26 | D13: NANCY | E13: 554356 | F13: JARVILLE LA MALGRANGE | G13: 4.0 | H13: 27% | I13: 7% | J13: 4 | K13: 62% | L13: 49% | M13: 117 | N13: 37% | O13: 13% | P13: 6 | Q13: 63% | R13: 47% | S13: 162 | T13: 7% | U13: 3% | V13: 2 | W13: 30% | X13: 26% | Y13: 3
A14: 50 | B14: VOSGES | C14: 57 | D14: EPINAL | E14: 488288 | F14: EPINAL LEOPOLD BOURG | G14: 1.8 | H14: 28% | I14: 7% | J14: 5 | K14: 30% | L14: 16% | M14: 11 | N14: 26% | O14: 2% | P14: 3 | Q14: 51% | R14: 35% | S14: 80 | T14: 63% | U14: 59% | V14: 112 | W14: 30% | X14: 26% | Y14: 2
A15: 50 | B15: MEURTHE ET MOSELLE MEUSE | C15: 27 | D15: PONT A MOUSSON | E15: 454651 | F15: TOUL | G15: 9.6 | H15: 34% | I15: 14% | J15: 6 | K15: 106% | L15: 93% | M15: 262 | N15: 35% | O15: 11% | P15: 5 | Q15: 53% | R15: 38% | S15: 101 | T15: 33% | U15: 28% | V15: 15 | W15: 5% | X15: 0% | Y15: 1
A16: 50 | B16: MOSELLE | C16: 44 | D16: MOSELLE NORD | E16: 557508 | F16: NILVANGE | G16: 2.1 | H16: 34% | I16: 14% | J16: 7 | K16: 61% | L16: 48% | M16: 112 | N16: 53% | O16: 29% | P16: 18 | Q16: 45% | R16: 30% | S16: 37 | T16: 12% | U16: 8% | V16: 3 | W16: 62% | X16: 57% | Y16: 43
A17: 50 | B17: BAS-RHIN | C17: 5101 | D17: SELESTAT | E17: 4120 | F17: WASSELONNE | G17: 2.9 | H17: 35% | I17: 14% | J17: 8 | K17: 76% | L17: 63% | M17: 197 | N17: 63% | O17: 38% | P17: 61 | Q17: 16% | R17: 0% | S17: 1 | T17: 20% | U17: 16% | V17: 5 | W17: 61% | X17: 56% | Y17: 37
A18: 50 | B18: AUBE HAUTE MARNE | C18: 21 | D18: CHAUMONT | E18: 510590 | F18: CHAUMONT REPUBLIQUE | G18: 3.9 | H18: 36% | I18: 16% | J18: 9 | K18: 54% | L18: 41% | M18: 74 | N18: 60% | O18: 35% | P18: 38 | Q18: 49% | R18: 34% | S18: 71 | T18: 25% | U18: 21% | V18: 10 | W18: 55% | X18: 50% | Y18: 20
A19: 50 | B19: MEURTHE ET MOSELLE MEUSE | C19: 26 | D19: NANCY | E19: 554636 | F19: TOMBLAINE | G19: 2.0 | H19: 37% | I19: 16% | J19: 10 | K19: 39% | L19: 26% | M19: 28 | N19: 78% | O19: 53% | P19: 206 | Q19: 46% | R19: 30% | S19: 40 | T19: 21% | U19: 16% | V19: 6 | W19: 62% | X19: 57% | Y19: 40
A20: 50 | B20: MARNE-ARDENNES | C20: 11 | D20: REIMS | E20: 551310 | F20: REIMS CHATILLONS | G20: 3.7 | H20: 38% | I20: 18% | J20: 11 | K20: 56% | L20: 42% | M20: 84 | N20: 49% | O20: 24% | P20: 12 | Q20: 43% | R20: 28% | S20: 34 | T20: 55% | U20: 51% | V20: 69 | W20: 50% | X20: 45% | Y20: 13
A21: 50 | B21: MARNE-ARDENNES | C21: 2 | D21: CHARLEVILLE MEZIERES | E21: 408822 | F21: CHARLEVILLE MEZIERES | G21: 4.4 | H21: 38% | I21: 18% | J21: 12 | K21: 57% | L21: 44% | M21: 92 | N21: 64% | O21: 40% | P21: 67 | Q21: 33% | R21: 17% | S21: 13 | T21: 40% | U21: 36% | V21: 27 | W21: 59% | X21: 55% | Y21: 31
A22: 50 | B22: MARNE-ARDENNES | C22: 11 | D22: REIMS | E22: 551349 | F22: REIMS SAINT REMI | G22: 2.9 | H22: 38% | I22: 18% | J22: 13 | K22: 56% | L22: 43% | M22: 85 | N22: 50% | O22: 26% | P22: 13 | Q22: 33% | R22: 17% | S22: 12 | T22: 58% | U22: 54% | V22: 84 | W22: 57% | X22: 52% | Y22: 25
A23: 50 | B23: MEURTHE ET MOSELLE MEUSE | C23: 27 | D23: PONT A MOUSSON | E23: 554321 | F23: FROUARD | G23: 3.0 | H23: 39% | I23: 19% | J23: 14 | K23: 58% | L23: 45% | M23: 97 | N23: 67% | O23: 43% | P23: 104 | Q23: 22% | R23: 6% | S23: 5 | T23: 51% | U23: 47% | V23: 53 | W23: 58% | X23: 54% | Y23: 28
A24: 50 | B24: MOSELLE | C24: 45 | D24: METZ | E24: 557447 | F24: METZ SAINT MAXIMIN | G24: 3.0 | H24: 40% | I24: 20% | J24: 15 | K24: 55% | L24: 42% | M24: 78 | N24: 52% | O24: 28% | P24: 15 | Q24: 48% | R24: 33% | S24: 60 | T24: 54% | U24: 50% | V24: 59 | W24: 52% | X24: 47% | Y24: 16
A25: 50 | B25: MARNE-ARDENNES | C25: 6 | D25: CHALONS EN CHAMPAGNE | E25: 451115 | F25: MOURMELON LE GRAND | G25: 3.0 | H25: 40% | I25: 20% | J25: 16 | K25: 50% | L25: 37% | M25: 59 | N25: 73% | O25: 49% | P25: 166 | Q25: 39% | R25: 24% | S25: 24 | T25: 43% | U25: 39% | V25: 32 | W25: 58% | X25: 53% | Y25: 27
A26: 50 | B26: BAS-RHIN | C26: 5060 | D26: HAGUENAU | E26: 4092 | F26: HOCHFELDEN | G26: 1.8 | H26: 41% | I26: 21% | J26: 17 | K26: 47% | L26: 34% | M26: 46 | N26: 62% | O26: 38% | P26: 56 | Q26: 59% | R26: 43% | S26: 134 | T26: 46% | U26: 42% | V26: 38 | W26: 55% | X26: 50% | Y26: 17
A27: 50 | B27: VOSGES | C27: 55 | D27: SAINT DIE | E27: 488246 | F27: CORNIMONT LA BRESSE | G27: 2.9 | H27: 41% | I27: 21% | J27: 18 | K27: 37% | L27: 24% | M27: 23 | N27: 66% | O27: 42% | P27: 94 | Q27: 57% | R27: 42% | S27: 128 | T27: 38% | U27: 34% | V27: 21 | W27: 71% | X27: 67% | Y27: 115
A28: 50 | B28: BAS-RHIN | C28: 5101 | D28: SELESTAT | E28: 4107 | F28: VILLE | G28: 2.9 | H28: 42% | I28: 21% | J28: 19 | K28: 82% | L28: 69% | M28: 219 | N28: 26% | O28: 2% | P28: 2 | Q28: 47% | R28: 31% | S28: 47 | T28: 38% | U28: 34% | V28: 23 | W28: 77% | X28: 72% | Y28: 179
A29: 50 | B29: MOSELLE | C29: 42 | D29: MOSELLE EST | E29: 557250 | F29: CREUTZWALD | G29: 2.9 | H29: 42% | I29: 21% | J29: 20 | K29: 47% | L29: 34% | M29: 48 | N29: 76% | O29: 52% | P29: 199 | Q29: 21% | R29: 5% | S29: 3 | T29: 63% | U29: 59% | V29: 113 | W29: 64% | X29: 59% | Y29: 55
A30: 50 | B30: MOSELLE | C30: 42 | D30: MOSELLE EST | E30: 457163 | F30: BEHREN LES FORBACH | G30: 2.5 | H30: 42% | I30: 21% | J30: 21 | K30: 40% | L30: 27% | M30: 32 | N30: 51% | O30: 27% | P30: 14 | Q30: 50% | R30: 35% | S30: 77 | T30: 58% | U30: 53% | V30: 78 | W30: 71% | X30: 67% | Y30: 116
A31: 50 | B31: MARNE-ARDENNES | C31: 2 | D31: CHARLEVILLE MEZIERES | E31: 408862 | F31: REVIN | G31: 3.6 | H31: 42% | I31: 21% | J31: 22 | K31: 60% | L31: 47% | M31: 107 | N31: 48% | O31: 24% | P31: 11 | Q31: 38% | R31: 22% | S31: 17 | T31: 63% | U31: 59% | V31: 116 | W31: 61% | X31: 57% | Y31: 39
A32: 262 | B32: MEURTHE ET MOSELLE MEUSE | C32: 27 | D32: PONT A MOUSSON | E32: 554416 | F32: LUDRES | G32: 4.0 | H32: 43% | I32: 23% | J32: 23 | K32: 31% | L32: 18% | M32: 12 | N32: 69% | O32: 44% | P32: 119 | Q32: 46% | R32: 30% | S32: 41 | T32: 69% | U32: 65% | V32: 153 | W32: 63% | X32: 59% | Y32: 52
A33: 262 | B33: MOSELLE | C33: 45 | D33: METZ | E33: 557444 | F33: SAINT JULIEN LES METZ | G33: 5.6 | H33: 44% | I33: 23% | J33: 24 | K33: 57% | L33: 44% | M33: 93 | N33: 66% | O33: 41% | P33: 89 | Q33: 53% | R33: 37% | S33: 94 | T33: 38% | U33: 34% | V33: 22 | W33: 66% | X33: 62% | Y33: 69
A34: 262 | B34: VOSGES | C34: 57 | D34: EPINAL | E34: 488706 | F34: VITTEL | G34: 3.5 | H34: 44% | I34: 23% | J34: 25 | K34: 38% | L34: 25% | M34: 27 | N34: 75% | O34: 51% | P34: 184 | Q34: 46% | R34: 30% | S34: 38 | T34: 50% | U34: 46% | V34: 47 | W34: 71% | X34: 66% | Y34: 110
A35: 262 | B35: AUBE HAUTE MARNE | C35: 21 | D35: CHAUMONT | E35: 410560 | F35: BOURBONNE LES BAINS | G35: 2.0 | H35: 44% | I35: 24% | J35: 26 | K35: 15% | L35: 1% | M35: 2 | N35: 71% | O35: 47% | P35: 148 | Q35: 58% | R35: 42% | S35: 131 | T35: 58% | U35: 54% | V35: 81 | W35: 80% | X35: 76% | Y35: 224
A36: 262 | B36: BAS-RHIN | C36: 5101 | D36: SELESTAT | E36: 4121 | F36: SCHIRMECK | G36: 3.8 | H36: 44% | I36: 24% | J36: 27 | K36: 49% | L36: 35% | M36: 52 | N36: 64% | O36: 40% | P36: 77 | Q36: 48% | R36: 32% | S36: 55 | T36: 56% | U36: 52% | V36: 73 | W36: 66% | X36: 61% | Y36: 67
A37: 262 | B37: MARNE-ARDENNES | C37: 11 | D37: REIMS | E37: 551309 | F37: REIMS EUROPE | G37: 3.0 | H37: 44% | I37: 24% | J37: 28 | K37: 31% | L37: 18% | M37: 13 | N37: 64% | O37: 40% | P37: 72 | Q37: 48% | R37: 32% | S37: 58 | T37: 62% | U37: 58% | V37: 107 | W37: 78% | X37: 73% | Y37: 189
A38: 262 | B38: MARNE-ARDENNES | C38: 6 | D38: CHALONS EN CHAMPAGNE | E38: 551330 | F38: MONTMIRAIL | G38: 3.0 | H38: 45% | I38: 24% | J38: 29 | K38: 44% | L38: 31% | M38: 39 | N38: 68% | O38: 44% | P38: 115 | Q38: 40% | R38: 25% | S38: 28 | T38: 67% | U38: 62% | V38: 136 | W38: 65% | X38: 60% | Y38: 62
A39: 262 | B39: MARNE-ARDENNES | C39: 2 | D39: CHARLEVILLE MEZIERES | E39: 508820 | F39: VOUZIERS | G39: 2.9 | H39: 45% | I39: 24% | J39: 30 | K39: 88% | L39: 75% | M39: 230 | N39: 63% | O39: 39% | P39: 64 | Q39: 47% | R39: 31% | S39: 50 | T39: 35% | U39: 31% | V39: 18 | W39: 51% | X39: 47% | Y39: 15
A40: 262 | B40: MOSELLE | C40: 44 | D40: MOSELLE NORD | E40: 557113 | F40: AUDUN LE TICHE | G40: 2.2 | H40: 45% | I40: 24% | J40: 31 | K40: 92% | L40: 79% | M40: 242 | N40: 60% | O40: 35% | P40: 36 | Q40: 40% | R40: 25% | S40: 27 | T40: 50% | U40: 46% | V40: 48 | W40: 43% | X40: 39% | Y40: 7
A41: 262 | B41: BAS-RHIN | C41: 5060 | D41: HAGUENAU | E41: 4066 | F41: NIEDERBRONN LES BAINS | G41: 6.1 | H41: 45% | I41: 25% | J41: 32 | K41: 32% | L41: 19% | M41: 14 | N41: 72% | O41: 48% | P41: 157 | Q41: 51% | R41: 36% | S41: 83 | T41: 60% | U41: 56% | V41: 92 | W41: 72% | X41: 68% | Y41: 128
A42: 262 | B42: VOSGES | C42: 57 | D42: EPINAL | E42: 588631 | F42: THAON LES VOSGES | G42: 5.4 | H42: 45% | I42: 25% | J42: 33 | K42: 44% | L42: 31% | M42: 40 | N42: 58% | O42: 34% | P42: 30 | Q42: 64% | R42: 48% | S42: 179 | T42: 46% | U42: 42% | V42: 39 | W42: 75% | X42: 70% | Y42: 161
A43: 262 | B43: VOSGES | C43: 55 | D43: SAINT DIE | E43: 588186 | F43: BRUYERES | G43: 3.7 | H43: 45% | I43: 25% | J43: 34 | K43: 50% | L43: 37% | M43: 61 | N43: 62% | O43: 37% | P43: 50 | Q43: 63% | R43: 48% | S43: 174 | T43: 47% | U43: 43% | V43: 42 | W43: 67% | X43: 62% | Y43: 73
A44: 262 | B44: VOSGES | C44: 57 | D44: EPINAL | E44: 588716 | F44: XERTIGNY | G44: 3.0 | H44: 45% | I44: 25% | J44: 35 | K44: 55% | L44: 42% | M44: 79 | N44: 73% | O44: 49% | P44: 168 | Q44: 50% | R44: 35% | S44: 78 | T44: 32% | U44: 28% | V44: 14 | W44: 78% | X44: 74% | Y44: 197
A45: 262 | B45: MARNE-ARDENNES | C45: 6 | D45: CHALONS EN CHAMPAGNE | E45: 551110 | F45: CHALONS ROOSEVELT | G45: 5.0 | H45: 45% | I45: 25% | J45: 36 | K45: 33% | L45: 20% | M45: 16 | N45: 66% | O45: 41% | P45: 91 | Q45: 47% | R45: 31% | S45: 46 | T45: 72% | U45: 68% | V45: 174 | W45: 71% | X45: 66% | Y45: 109
A46: 262 | B46: MEURTHE ET MOSELLE MEUSE | C46: 26 | D46: NANCY | E46: 554266 | F46: DOMBASLE SUR MEURTHE | G46: 3.7 | H46: 46% | I46: 25% | J46: 37 | K46: 67% | L46: 54% | M46: 155 | N46: 79% | O46: 55% | P46: 218 | Q46: 21% | R46: 5% | S46: 2 | T46: 68% | U46: 64% | V46: 140 | W46: 56% | X46: 52% | Y46: 23
A47: 262 | B47: MOSELLE | C47: 44 | D47: MOSELLE NORD | E47: 457348 | F47: HAGONDANGE | G47: 8.6 | H47: 46% | I47: 26% | J47: 38 | K47: 75% | L47: 62% | M47: 189 | N47: 56% | O47: 31% | P47: 21 | Q47: 47% | R47: 31% | S47: 49 | T47: 51% | U47: 47% | V47: 50 | W47: 63% | X47: 58% | Y47: 49
A48: 262 | B48: BAS-RHIN | C48: 5006 | D48: STRASBOURG | E48: 4033 | F48: LA WANTZENAU | G48: 1.2 | H48: 46% | I48: 26% | J48: 39 | K48: 86% | L48: 72% | M48: 227 | N48: 80% | O48: 56% | P48: 230 | Q48: 27% | R48: 12% | S48: 8 | T48: 52% | U48: 48% | V48: 56 | W48: 47% | X48: 42% | Y48: 8
A49: 262 | B49: AUBE HAUTE MARNE | C49: 14 | D49: TROYES | E49: 510511 | F49: TROYES BROSSOLETTE | G49: 3.0 | H49: 46% | I49: 26% | J49: 40 | K49: 56% | L49: 42% | M49: 83 | N49: 59% | O49: 35% | P49: 33 | Q49: 32% | R49: 16% | S49: 10 | T49: 71% | U49: 67% | V49: 169 | W49: 75% | X49: 70% | Y49: 158
A50: 262 | B50: MOSELLE | C50: 45 | D50: METZ | E50: 457453 | F50: MONTIGNY LES METZ | G50: 8.0 | H50: 46% | I50: 26% | J50: 41 | K50: 35% | L50: 22% | M50: 19 | N50: 62% | O50: 38% | P50: 57 | Q50: 60% | R50: 45% | S50: 145 | T50: 72% | U50: 67% | V50: 171 | W50: 64% | X50: 59% | Y50: 56
A51: 262 | B51: VOSGES | C51: 55 | D51: SAINT DIE | E51: 588587 | F51: SAINT DIE CATHEDRALE | G51: 4.0 | H51: 46% | I51: 26% | J51: 42 | K51: 37% | L51: 24% | M51: 24 | N51: 71% | O51: 46% | P51: 138 | Q51: 34% | R51: 19% | S51: 15 | T51: 70% | U51: 65% | V51: 155 | W51: 82% | X51: 77% | Y51: 231
A52: 262 | B52: MARNE-ARDENNES | C52: 11 | D52: REIMS | E52: 551305 | F52: REIMS HIPPODROME | G52: 3.8 | H52: 46% | I52: 26% | J52: 43 | K52: 27% | L52: 14% | M52: 8 | N52: 67% | O52: 43% | P52: 106 | Q52: 74% | R52: 59% | S52: 248 | T52: 62% | U52: 58% | V52: 102 | W52: 63% | X52: 59% | Y52: 51
A53: 262 | B53: MOSELLE | C53: 44 | D53: MOSELLE NORD | E53: 557347 | F53: GUENANGE | G53: 2.6 | H53: 47% | I53: 26% | J53: 44 | K53: 67% | L53: 54% | M53: 153 | N53: 65% | O53: 41% | P53: 82 | Q53: 49% | R53: 33% | S53: 66 | T53: 65% | U53: 60% | V53: 124 | W53: 49% | X53: 44% | Y53: 11
A54: 262 | B54: BAS-RHIN | C54: 5060 | D54: HAGUENAU | E54: 4071 | F54: WISSEMBOURG | G54: 8.7 | H54: 47% | I54: 26% | J54: 45 | K54: 34% | L54: 21% | M54: 18 | N54: 72% | O54: 48% | P54: 160 | Q54: 48% | R54: 32% | S54: 56 | T54: 62% | U54: 57% | V54: 101 | W54: 79% | X54: 74% | Y54: 212
A55: 262 | B55: MEURTHE ET MOSELLE MEUSE | C55: 26 | D55: NANCY | E55: 554476 | F55: NANCY ARTEM | G55: 2.6 | H55: 47% | I55: 26% | J55: 46 | K55: 59% | L55: 46% | M55: 103 | N55: 66% | O55: 42% | P55: 96 | Q55: 51% | R55: 36% | S55: 84 | T55: 54% | U55: 50% | V55: 63 | W55: 65% | X55: 60% | Y55: 60
A56: 262 | B56: BAS-RHIN | C56: 5060 | D56: HAGUENAU | E56: 4082 | F56: BOUXWILLER | G56: 2.9 | H56: 47% | I56: 27% | J56: 47 | K56: 53% | L56: 40% | M56: 70 | N56: 79% | O56: 55% | P56: 220 | Q56: 34% | R56: 18% | S56: 14 | T56: 62% | U56: 58% | V56: 104 | W56: 70% | X56: 65% | Y56: 102
A57: 262 | B57: MARNE-ARDENNES | C57: 11 | D57: REIMS | E57: 551340 | F57: BETHENY | G57: 3.0 | H57: 47% | I57: 27% | J57: 48 | K57: 49% | L57: 36% | M57: 57 | N57: 57% | O57: 33% | P57: 27 | Q57: 57% | R57: 41% | S57: 125 | T57: 87% | U57: 83% | V57: 254 | W57: 47% | X57: 43% | Y57: 9
A58: 262 | B58: MOSELLE | C58: 45 | D58: METZ | E58: 457443 | F58: METZ REPUBLIQUE | G58: 4.2 | H58: 47% | I58: 27% | J58: 49 | K58: 13% | L58: 0% | M58: 1 | N58: 75% | O58: 51% | P58: 188 | Q58: 65% | R58: 49% | S58: 193 | T58: 82% | U58: 78% | V58: 236 | W58: 62% | X58: 57% | Y58: 41
A59: 262 | B59: MEURTHE ET MOSELLE MEUSE | C59: 27 | D59: PONT A MOUSSON | E59: 554357 | F59: JOEUF | G59: 4.0 | H59: 47% | I59: 27% | J59: 50 | K59: 59% | L59: 46% | M59: 100 | N59: 68% | O59: 43% | P59: 108 | Q59: 68% | R59: 52% | S59: 215 | T59: 44% | U59: 40% | V59: 35 | W59: 61% | X59: 56% | Y59: 36
A60: 262 | B60: MEURTHE ET MOSELLE MEUSE | C60: 31 | D60: VERDUN | E60: 454414 | F60: LONGWY HAUT | G60: 4.0 | H60: 48% | I60: 27% | J60: 51 | K60: 64% | L60: 51% | M60: 138 | N60: 60% | O60: 36% | P60: 42 | Q60: 47% | R60: 31% | S60: 44 | T60: 50% | U60: 46% | V60: 49 | W60: 78% | X60: 74% | Y60: 198
A61: 262 | B61: HAUT-RHIN | C61: 5130 | D61: COLMAR | E61: 4153 | F61: ROUFFACH | G61: 3.7 | H61: 48% | I61: 27% | J61: 52 | K61: 58% | L61: 45% | M61: 98 | N61: 68% | O61: 44% | P61: 111 | Q61: 73% | R61: 57% | S61: 243 | T61: 34% | U61: 30% | V61: 16 | W61: 66% | X61: 62% | Y61: 71
A62: 262 | B62: MEURTHE ET MOSELLE MEUSE | C62: 26 | D62: NANCY | E62: 454426 | F62: LUNEVILLE CARNOT | G62: 9.6 | H62: 48% | I62: 27% | J62: 53 | K62: 64% | L62: 51% | M62: 136 | N62: 61% | O62: 37% | P62: 48 | Q62: 58% | R62: 42% | S62: 130 | T62: 51% | U62: 47% | V62: 51 | W62: 66% | X62: 62% | Y62: 70
A63: 262 | B63: MEURTHE ET MOSELLE MEUSE | C63: 31 | D63: VERDUN | E63: 555679 | F63: VERDUN MAZEL | G63: 4.0 | H63: 48% | I63: 27% | J63: 54 | K63: 44% | L63: 31% | M63: 38 | N63: 67% | O63: 42% | P63: 97 | Q63: 55% | R63: 39% | S63: 115 | T63: 59% | U63: 55% | V63: 90 | W63: 76% | X63: 71% | Y63: 169
A64: 262 | B64: MARNE-ARDENNES | C64: 11 | D64: REIMS | E64: 451361 | F64: PIERRY LECLERC | G64: 2.0 | H64: 48% | I64: 28% | J64: 55 | K64: 24% | L64: 11% | M64: 7 | N64: 64% | O64: 40% | P64: 78 | Q64: 77% | R64: 61% | S64: 252 | T64: 57% | U64: 53% | V64: 74 | W64: 79% | X64: 74% | Y64: 206
A65: 262 | B65: MEURTHE ET MOSELLE MEUSE | C65: 31 | D65: VERDUN | E65: 455231 | F65: COMMERCY | G65: 4.4 | H65: 48% | I65: 28% | J65: 56 | K65: 68% | L65: 55% | M65: 160 | N65: 67% | O65: 43% | P65: 100 | Q65: 65% | R65: 49% | S65: 191 | T65: 45% | U65: 40% | V65: 37 | W65: 57% | X65: 52% | Y65: 24
A66: 262 | B66: BAS-RHIN | C66: 5006 | D66: STRASBOURG | E66: 4037 | F66: MUNDOLSHEIM | G66: 4.4 | H66: 48% | I66: 28% | J66: 57 | K66: 72% | L66: 58% | M66: 173 | N66: 45% | O66: 21% | P66: 10 | Q66: 52% | R66: 36% | S66: 89 | T66: 51% | U66: 47% | V66: 55 | W66: 82% | X66: 77% | Y66: 234
A67: 262 | B67: VOSGES | C67: 57 | D67: EPINAL | E67: 588206 | F67: CHARMES | G67: 2.8 | H67: 48% | I67: 28% | J67: 58 | K67: 66% | L67: 53% | M67: 148 | N67: 71% | O67: 47% | P67: 147 | Q67: 50% | R67: 34% | S67: 75 | T67: 46% | U67: 42% | V67: 40 | W67: 68% | X67: 64% | Y67: 89
A68: 262 | B68: BAS-RHIN | C68: 5101 | D68: SELESTAT | E68: 4007 | F68: ILLKIRCH CENTRE | G68: 7.0 | H68: 48% | I68: 28% | J68: 59 | K68: 67% | L68: 54% | M68: 152 | N68: 45% | O68: 20% | P68: 9 | Q68: 63% | R68: 47% | S68: 164 | T68: 50% | U68: 46% | V68: 46 | W68: 79% | X68: 74% | Y68: 201
A69: 262 | B69: BAS-RHIN | C69: 5006 | D69: STRASBOURG | E69: 4047 | F69: STRASBOURG CRONENBOURG | G69: 6.7 | H69: 48% | I69: 28% | J69: 60 | K69: 49% | L69: 36% | M69: 56 | N69: 71% | O69: 47% | P69: 145 | Q69: 55% | R69: 39% | S69: 116 | T69: 53% | U69: 49% | V69: 58 | W69: 75% | X69: 70% | Y69: 156
A70: 262 | B70: MEURTHE ET MOSELLE MEUSE | C70: 31 | D70: VERDUN | E70: 554412 | F70: LONGUYON | G70: 3.0 | H70: 48% | I70: 28% | J70: 61 | K70: 36% | L70: 23% | M70: 22 | N70: 70% | O70: 46% | P70: 132 | Q70: 67% | R70: 52% | S70: 211 | T70: 55% | U70: 51% | V70: 67 | W70: 75% | X70: 71% | Y70: 165
A71: 262 | B71: MEURTHE ET MOSELLE MEUSE | C71: 27 | D71: PONT A MOUSSON | E71: 454535 | F71: PONT A MOUSSON CENTRALE | G71: 8.1 | H71: 48% | I71: 28% | J71: 62 | K71: 75% | L71: 62% | M71: 188 | N71: 54% | O71: 30% | P71: 20 | Q71: 57% | R71: 41% | S71: 126 | T71: 49% | U71: 45% | V71: 45 | W71: 69% | X71: 64% | Y71: 91
A72: 262 | B72: BAS-RHIN | C72: 5006 | D72: STRASBOURG | E72: 4038 | F72: OBERHAUSBERGEN | G72: 5.0 | H72: 48% | I72: 28% | J72: 63 | K72: 63% | L72: 50% | M72: 125 | N72: 64% | O72: 40% | P72: 69 | Q72: 49% | R72: 34% | S72: 69 | T72: 69% | U72: 64% | V72: 145 | W72: 59% | X72: 54% | Y72: 30
A73: 262 | B73: VOSGES | C73: 55 | D73: SAINT DIE | E73: 488326 | F73: GERARDMER | G73: 5.9 | H73: 48% | I73: 28% | J73: 64 | K73: 36% | L73: 22% | M73: 20 | N73: 73% | O73: 49% | P73: 167 | Q73: 47% | R73: 32% | S73: 52 | T73: 75% | U73: 71% | V73: 189 | W73: 73% | X73: 69% | Y73: 145
A74: 262 | B74: MOSELLE | C74: 42 | D74: MOSELLE EST | E74: 557503 | F74: NEUNKIRCH | G74: 4.2 | H74: 49% | I74: 28% | J74: 65 | K74: 29% | L74: 15% | M74: 10 | N74: 71% | O74: 46% | P74: 140 | Q74: 53% | R74: 38% | S74: 100 | T74: 77% | U74: 73% | V74: 206 | W74: 75% | X74: 71% | Y74: 166
A75: 262 | B75: MARNE-ARDENNES | C75: 11 | D75: REIMS | E75: 551367 | F75: AY CHAMPAGNE | G75: 3.0 | H75: 49% | I75: 29% | J75: 66 | K75: 57% | L75: 44% | M75: 90 | N75: 44% | O75: 20% | P75: 8 | Q75: 68% | R75: 52% | S75: 214 | T75: 76% | U75: 71% | V75: 193 | W75: 62% | X75: 58% | Y75: 45
A76: 262 | B76: AUBE HAUTE MARNE | C76: 21 | D76: CHAUMONT | E76: 410566 | F76: CHAUMONT HOTEL DE VILLE | G76: 7.6 | H76: 49% | I76: 29% | J76: 67 | K76: 48% | L76: 35% | M76: 50 | N76: 66% | O76: 41% | P76: 88 | Q76: 61% | R76: 46% | S76: 155 | T76: 59% | U76: 55% | V76: 87 | W76: 73% | X76: 69% | Y76: 146
A77: 262 | B77: MARNE-ARDENNES | C77: 2 | D77: CHARLEVILLE MEZIERES | E77: 508819 | F77: MOUZON | G77: 2.0 | H77: 49% | I77: 29% | J77: 68 | K77: 51% | L77: 38% | M77: 65 | N77: 75% | O77: 51% | P77: 185 | Q77: 41% | R77: 25% | S77: 29 | T77: 84% | U77: 80% | V77: 244 | W77: 56% | X77: 51% | Y77: 21
A78: 262 | B78: MEURTHE ET MOSELLE MEUSE | C78: 27 | D78: PONT A MOUSSON | E78: 554257 | F78: DIEULOUARD | G78: 3.4 | H78: 49% | I78: 29% | J78: 69 | K78: 39% | L78: 26% | M78: 30 | N78: 75% | O78: 51% | P78: 189 | Q78: 64% | R78: 49% | S78: 188 | T78: 57% | U78: 53% | V78: 77 | W78: 71% | X78: 66% | Y78: 104
A79: 262 | B79: MEURTHE ET MOSELLE MEUSE | C79: 31 | D79: VERDUN | E79: 555624 | F79: STENAY | G79: 3.0 | H79: 49% | I79: 29% | J79: 70 | K79: 66% | L79: 53% | M79: 147 | N79: 59% | O79: 34% | P79: 31 | Q79: 54% | R79: 38% | S79: 104 | T79: 60% | U79: 56% | V79: 91 | W79: 69% | X79: 64% | Y79: 92
A80: 262 | B80: MOSELLE | C80: 42 | D80: MOSELLE EST | E80: 457308 | F80: FORBACH CENTRALE | G80: 12.0 | H80: 49% | I80: 29% | J80: 71 | K80: 63% | L80: 50% | M80: 124 | N80: 59% | O80: 35% | P80: 32 | Q80: 53% | R80: 38% | S80: 102 | T80: 65% | U80: 61% | V80: 127 | W80: 67% | X80: 62% | Y80: 79
A81: 262 | B81: AUBE HAUTE MARNE | C81: 21 | D81: CHAUMONT | E81: 451151 | F81: WASSY | G81: 2.0 | H81: 49% | I81: 29% | J81: 72 | K81: 65% | L81: 52% | M81: 143 | N81: 65% | O81: 41% | P81: 80 | Q81: 77% | R81: 62% | S81: 256 | T81: 43% | U81: 39% | V81: 33 | W81: 57% | X81: 53% | Y81: 26
A82: 262 | B82: MARNE-ARDENNES | C82: 2 | D82: CHARLEVILLE MEZIERES | E82: 408801 | F82: CHARLEVILLE JEAN JAURES | G82: 9.7 | H82: 49% | I82: 29% | J82: 73 | K82: 62% | L82: 49% | M82: 119 | N82: 62% | O82: 37% | P82: 53 | Q82: 54% | R82: 38% | S82: 105 | T82: 76% | U82: 72% | V82: 195 | W82: 55% | X82: 50% | Y82: 18
A83: 264 | B83: MOSELLE | C83: 45 | D83: METZ | E83: 557712 | F83: WOIPPY | G83: 5.1 | H83: 49% | I83: 29% | J83: 74 | K83: 70% | L83: 56% | M83: 167 | N83: 64% | O83: 40% | P83: 71 | Q83: 68% | R83: 52% | S83: 213 | T83: 36% | U83: 32% | V83: 19 | W83: 71% | X83: 67% | Y83: 114
A84: 264 | B84: MARNE-ARDENNES | C84: 11 | D84: REIMS | E84: 551314 | F84: FISMES | G84: 3.0 | H84: 49% | I84: 29% | J84: 75 | K84: 54% | L84: 41% | M84: 77 | N84: 66% | O84: 41% | P84: 87 | Q84: 56% | R84: 41% | S84: 123 | T84: 69% | U84: 65% | V84: 148 | W84: 64% | X84: 60% | Y84: 57
A85: 264 | B85: HAUT-RHIN | C85: 5130 | D85: COLMAR | E85: 4144 | F85: RIBEAUVILLE | G85: 3.0 | H85: 50% | I85: 30% | J85: 76 | K85: 71% | L85: 57% | M85: 169 | N85: 57% | O85: 33% | P85: 24 | Q85: 59% | R85: 44% | S85: 140 | T85: 42% | U85: 38% | V85: 31 | W85: 82% | X85: 78% | Y85: 236
A86: 264 | B86: VOSGES | C86: 57 | D86: EPINAL | E86: 588336 | F86: GOLBEY | G86: 3.3 | H86: 50% | I86: 30% | J86: 77 | K86: 55% | L86: 42% | M86: 82 | N86: 78% | O86: 53% | P86: 207 | Q86: 45% | R86: 29% | S86: 36 | T86: 70% | U86: 66% | V86: 158 | W86: 64% | X86: 60% | Y86: 58
A87: 264 | B87: BAS-RHIN | C87: 5006 | D87: STRASBOURG | E87: 4043 | F87: STRASBOURG HALLES | G87: 8.9 | H87: 50% | I87: 30% | J87: 78 | K87: 82% | L87: 68% | M87: 217 | N87: 60% | O87: 36% | P87: 40 | Q87: 46% | R87: 30% | S87: 39 | T87: 62% | U87: 58% | V87: 109 | W87: 62% | X87: 58% | Y87: 47
A88: 264 | B88: HAUT-RHIN | C88: 5130 | D88: COLMAR | E88: 4157 | F88: NEUF BRISACH | G88: 3.8 | H88: 50% | I88: 30% | J88: 79 | K88: 78% | L88: 65% | M88: 202 | N88: 83% | O88: 58% | P88: 243 | Q88: 43% | R88: 27% | S88: 33 | T88: 37% | U88: 33% | V88: 20 | W88: 72% | X88: 67% | Y88: 127
A89: 264 | B89: MEURTHE ET MOSELLE MEUSE | C89: 31 | D89: VERDUN | E89: 455298 | F89: ETAIN | G89: 1.7 | H89: 50% | I89: 30% | J89: 80 | K89: 57% | L89: 44% | M89: 94 | N89: 100% | O89: 76% | P89: 271 | Q89: 73% | R89: 57% | S89: 241 | T89: 16% | U89: 11% | V89: 4 | W89: 68% | X89: 63% | Y89: 85
A90: 264 | B90: MARNE-ARDENNES | C90: 11 | D90: REIMS | E90: 551365 | F90: DORMANS | G90: 2.8 | H90: 51% | I90: 30% | J90: 81 | K90: 20% | L90: 7% | M90: 4 | N90: 79% | O90: 55% | P90: 223 | Q90: 67% | R90: 51% | S90: 209 | T90: 78% | U90: 73% | V90: 210 | W90: 71% | X90: 66% | Y90: 107
A91: 264 | B91: VOSGES | C91: 57 | D91: EPINAL | E91: 488561 | F91: REMIREMONT | G91: 6.4 | H91: 51% | I91: 30% | J91: 82 | K91: 53% | L91: 40% | M91: 71 | N91: 75% | O91: 51% | P91: 190 | Q91: 53% | R91: 38% | S91: 103 | T91: 61% | U91: 57% | V91: 97 | W91: 72% | X91: 68% | Y91: 130
A92: 264 | B92: BAS-RHIN | C92: 5006 | D92: STRASBOURG | E92: 4024 | F92: STRASBOURG AUSTERLITZ | G92: 2.0 | H92: 51% | I92: 30% | J92: 83 | K92: 107% | L92: 94% | M92: 264 | N92: 53% | O92: 28% | P92: 16 | Q92: 38% | R92: 23% | S92: 20 | T92: 56% | U92: 52% | V92: 71 | W92: 61% | X92: 56% | Y92: 38
A93: 264 | B93: MEURTHE ET MOSELLE MEUSE | C93: 31 | D93: VERDUN | E93: 455456 | F93: MONTMEDY | G93: 1.8 | H93: 51% | I93: 30% | J93: 84 | K93: 52% | L93: 39% | M93: 68 | N93: 67% | O93: 43% | P93: 103 | Q93: 73% | R93: 57% | S93: 242 | T93: 56% | U93: 52% | V93: 70 | W93: 68% | X93: 63% | Y93: 84
A94: 264 | B94: BAS-RHIN | C94: 5006 | D94: STRASBOURG | E94: 4027 | F94: SCHILTIGHEIM CENTRE | G94: 3.8 | H94: 51% | I94: 31% | J94: 85 | K94: 75% | L94: 61% | M94: 183 | N94: 62% | O94: 37% | P94: 54 | Q94: 41% | R94: 25% | S94: 30 | T94: 74% | U94: 69% | V94: 182 | W94: 65% | X94: 60% | Y94: 64
A95: 264 | B95: MOSELLE | C95: 42 | D95: MOSELLE EST | E95: 457617 | F95: SARREGUEMINES | G95: 7.9 | H95: 51% | I95: 31% | J95: 86 | K95: 62% | L95: 49% | M95: 118 | N95: 62% | O95: 37% | P95: 52 | Q95: 51% | R95: 36% | S95: 87 | T95: 64% | U95: 60% | V95: 121 | W95: 77% | X95: 73% | Y95: 187
A96: 264 | B96: MOSELLE | C96: 42 | D96: MOSELLE EST | E96: 457165 | F96: BITCHE | G96: 2.1 | H96: 51% | I96: 31% | J96: 87 | K96: 62% | L96: 49% | M96: 120 | N96: 58% | O96: 34% | P96: 29 | Q96: 85% | R96: 70% | S96: 269 | T96: 40% | U96: 36% | V96: 26 | W96: 72% | X96: 67% | Y96: 119
A97: 264 | B97: MARNE-ARDENNES | C97: 6 | D97: CHALONS EN CHAMPAGNE | E97: 451101 | F97: CHALONS VIVIERS | G97: 8.6 | H97: 51% | I97: 31% | J97: 88 | K97: 45% | L97: 32% | M97: 42 | N97: 60% | O97: 35% | P97: 39 | Q97: 68% | R97: 53% | S97: 217 | T97: 80% | U97: 76% | V97: 224 | W97: 64% | X97: 59% | Y97: 54
A98: 264 | B98: VOSGES | C98: 57 | D98: EPINAL | E98: 488451 | F98: MIRECOURT | G98: 5.0 | H98: 51% | I98: 31% | J98: 89 | K98: 80% | L98: 66% | M98: 210 | N98: 70% | O98: 46% | P98: 130 | Q98: 45% | R98: 29% | S98: 35 | T98: 51% | U98: 47% | V98: 54 | W98: 72% | X98: 68% | Y98: 129
A99: 264 | B99: VOSGES | C99: 55 | D99: SAINT DIE | E99: 588551 | F99: RAMBERVILLERS | G99: 4.0 | H99: 51% | I99: 31% | J99: 90 | K99: 21% | L99: 8% | M99: 5 | N99: 86% | O99: 61% | P99: 257 | Q99: 64% | R99: 48% | S99: 182 | T99: 68% | U99: 64% | V99: 143 | W99: 79% | X99: 74% | Y99: 207
A100: 264 | B100: HAUT-RHIN | C100: 5169 | D100: MULHOUSE | E100: 4181 | F100: WITTELSHEIM | G100: 3.5 | H100: 51% | I100: 31% | J100: 91 | K100: 60% | L100: 47% | M100: 106 | N100: 81% | O100: 56% | P100: 234 | Q100: 50% | R100: 34% | S100: 73 | T100: 73% | U100: 69% | V100: 178 | W100: 56% | X100: 51% | Y100: 22
A101: 264 | B101: MOSELLE | C101: 45 | D101: METZ | E101: 557105 | F101: ARS SUR MOSELLE | G101: 4.2 | H101: 51% | I101: 31% | J101: 92 | K101: 64% | L101: 50% | M101: 132 | N101: 76% | O101: 52% | P101: 198 | Q101: 64% | R101: 49% | S101: 187 | T101: 65% | U101: 60% | V101: 123 | W101: 51% | X101: 46% | Y101: 14
A102: 264 | B102: VOSGES | C102: 55 | D102: SAINT DIE | E102: 488586 | F102: SAINT DIE | G102: 11.6 | H102: 52% | I102: 31% | J102: 93 | K102: 59% | L102: 46% | M102: 102 | N102: 72% | O102: 48% | P102: 156 | Q102: 46% | R102: 30% | S102: 42 | T102: 65% | U102: 61% | V102: 128 | W102: 78% | X102: 73% | Y102: 190
A103: 264 | B103: MOSELLE | C103: 44 | D103: MOSELLE NORD | E103: 457192 | F103: CATTENOM | G103: 2.9 | H103: 52% | I103: 31% | J103: 94 | K103: 71% | L103: 58% | M103: 171 | N103: 64% | O103: 40% | P103: 74 | Q103: 40% | R103: 25% | S103: 26 | T103: 69% | U103: 65% | V103: 147 | W103: 75% | X103: 71% | Y103: 167
A104: 264 | B104: VOSGES | C104: 57 | D104: EPINAL | E104: 588501 | F104: NEUFCHATEAU | G104: 5.0 | H104: 52% | I104: 31% | J104: 95 | K104: 55% | L104: 42% | M104: 81 | N104: 74% | O104: 49% | P104: 172 | Q104: 52% | R104: 36% | S104: 88 | T104: 72% | U104: 68% | V104: 175 | W104: 67% | X104: 62% | Y104: 76
A105: 264 | B105: BAS-RHIN | C105: 5006 | D105: STRASBOURG | E105: 4020 | F105: STRASBOURG ROBERTSAU | G105: 5.7 | H105: 52% | I105: 31% | J105: 96 | K105: 53% | L105: 40% | M105: 72 | N105: 61% | O105: 37% | P105: 47 | Q105: 56% | R105: 41% | S105: 122 | T105: 76% | U105: 72% | V105: 197 | W105: 73% | X105: 68% | Y105: 139
A106: 264 | B106: MARNE-ARDENNES | C106: 2 | D106: CHARLEVILLE MEZIERES | E106: 508802 | F106: CHARLEVILLE NEVERS | G106: 3.0 | H106: 52% | I106: 31% | J106: 97 | K106: 33% | L106: 20% | M106: 15 | N106: 77% | O106: 53% | P106: 203 | Q106: 73% | R106: 57% | S106: 239 | T106: 64% | U106: 60% | V106: 119 | W106: 73% | X106: 68% | Y106: 138
A107: 264 | B107: BAS-RHIN | C107: 5006 | D107: STRASBOURG | E107: 4054 | F107: STRASBOURG MONTAGNE VERTE | G107: 2.8 | H107: 52% | I107: 31% | J107: 98 | K107: 100% | L107: 87% | M107: 257 | N107: 66% | O107: 42% | P107: 95 | Q107: 69% | R107: 53% | S107: 220 | T107: 25% | U107: 21% | V107: 9 | W107: 59% | X107: 55% | Y107: 32
A108: 30 | B108: BAS-RHIN | C108: 5101 | D108: SELESTAT | E108: 4126 | F108: MUTZIG | G108: 3.0 | H108: 52% | I108: 31% | J108: 99 | K108: 69% | L108: 55% | M108: 161 | N108: 64% | O108: 40% | P108: 73 | Q108: 77% | R108: 62% | S108: 255 | T108: 62% | U108: 58% | V108: 103 | W108: 48% | X108: 44% | Y108: 10
A109: 30 | B109: MOSELLE | C109: 42 | D109: MOSELLE EST | E109: 557523 | F109: PHALSBOURG | G109: 2.3 | H109: 52% | I109: 31% | J109: 100 | K109: 49% | L109: 36% | M109: 55 | N109: 82% | O109: 58% | P109: 241 | Q109: 42% | R109: 27% | S109: 32 | T109: 76% | U109: 72% | V109: 201 | W109: 71% | X109: 66% | Y109: 106
A110: 30 | B110: AUBE HAUTE MARNE | C110: 21 | D110: CHAUMONT | E110: 451154 | F110: JOINVILLE | G110: 2.0 | H110: 52% | I110: 31% | J110: 101 | K110: 19% | L110: 5% | M110: 3 | N110: 79% | O110: 55% | P110: 222 | Q110: 74% | R110: 58% | S110: 244 | T110: 76% | U110: 72% | V110: 194 | W110: 73% | X110: 69% | Y110: 143
A111: 30 | B111: BAS-RHIN | C111: 5101 | D111: SELESTAT | E111: 4116 | F111: MOLSHEIM | G111: 5.1 | H111: 52% | I111: 31% | J111: 102 | K111: 82% | L111: 69% | M111: 221 | N111: 68% | O111: 44% | P111: 117 | Q111: 32% | R111: 17% | S111: 11 | T111: 69% | U111: 65% | V111: 146 | W111: 69% | X111: 65% | Y111: 95
A112: 30 | B112: MARNE-ARDENNES | C112: 11 | D112: REIMS | E112: 451350 | F112: REIMS CENTRE VILLE | G112: 7.6 | H112: 52% | I112: 31% | J112: 103 | K112: 73% | L112: 60% | M112: 178 | N112: 70% | O112: 45% | P112: 128 | Q112: 54% | R112: 38% | S112: 107 | T112: 64% | U112: 60% | V112: 118 | W112: 60% | X112: 56% | Y112: 35
A113: 30 | B113: MOSELLE | C113: 44 | D113: MOSELLE NORD | E113: 557352 | F113: HETTANGE GRANDE | G113: 4.3 | H113: 52% | I113: 31% | J113: 104 | K113: 92% | L113: 79% | M113: 244 | N113: 54% | O113: 29% | P113: 19 | Q113: 55% | R113: 39% | S113: 112 | T113: 55% | U113: 50% | V113: 64 | W113: 66% | X113: 61% | Y113: 68
A114: 30 | B114: BAS-RHIN | C114: 5101 | D114: SELESTAT | E114: 4119 | F114: OBERNAI | G114: 4.3 | H114: 52% | I114: 32% | J114: 105 | K114: 93% | L114: 80% | M114: 246 | N114: 62% | O114: 37% | P114: 49 | Q114: 51% | R114: 35% | S114: 82 | T114: 35% | U114: 31% | V114: 17 | W114: 81% | X114: 77% | Y114: 230
A115: 30 | B115: MARNE-ARDENNES | C115: 11 | D115: REIMS | E115: 551369 | F115: DAMERY | G115: 3.0 | H115: 52% | I115: 32% | J115: 106 | K115: 50% | L115: 37% | M115: 60 | N115: 83% | O115: 59% | P115: 245 | Q115: 63% | R115: 48% | S115: 173 | T115: 54% | U115: 50% | V115: 61 | W115: 72% | X115: 67% | Y115: 120
A116: 30 | B116: MARNE-ARDENNES | C116: 2 | D116: CHARLEVILLE MEZIERES | E116: 508815 | F116: CARIGNAN | G116: 3.0 | H116: 52% | I116: 32% | J116: 107 | K116: 67% | L116: 54% | M116: 154 | N116: 62% | O116: 37% | P116: 51 | Q116: 46% | R116: 31% | S116: 43 | T116: 76% | U116: 72% | V116: 196 | W116: 72% | X116: 67% | Y116: 117
A117: 30 | B117: MARNE-ARDENNES | C117: 11 | D117: REIMS | E117: 451336 | F117: TINQUEUX | G117: 5.9 | H117: 52% | I117: 32% | J117: 108 | K117: 61% | L117: 48% | M117: 114 | N117: 65% | O117: 41% | P117: 86 | Q117: 56% | R117: 40% | S117: 121 | T117: 77% | U117: 73% | V117: 209 | W117: 62% | X117: 58% | Y117: 46
A118: 30 | B118: VOSGES | C118: 57 | D118: EPINAL | E118: 488281 | F118: ELOYES | G118: 4.8 | H118: 52% | I118: 32% | J118: 109 | K118: 61% | L118: 48% | M118: 109 | N118: 76% | O118: 51% | P118: 195 | Q118: 63% | R118: 47% | S118: 163 | T118: 54% | U118: 50% | V118: 62 | W118: 70% | X118: 65% | Y118: 97
A119: 30 | B119: MARNE-ARDENNES | C119: 6 | D119: CHALONS EN CHAMPAGNE | E119: 451120 | F119: SARRY | G119: 2.5 | H119: 52% | I119: 32% | J119: 110 | K119: 44% | L119: 30% | M119: 36 | N119: 67% | O119: 43% | P119: 101 | Q119: 58% | R119: 43% | S119: 132 | T119: 78% | U119: 74% | V119: 211 | W119: 77% | X119: 72% | Y119: 178
A120: 30 | B120: MEURTHE ET MOSELLE MEUSE | C120: 31 | D120: VERDUN | E120: 554700 | F120: VILLERUPT | G120: 2.8 | H120: 52% | I120: 32% | J120: 111 | K120: 41% | L120: 28% | M120: 35 | N120: 65% | O120: 41% | P120: 85 | Q120: 60% | R120: 44% | S120: 142 | T120: 86% | U120: 82% | V120: 252 | W120: 71% | X120: 66% | Y120: 105
A121: 30 | B121: BAS-RHIN | C121: 5006 | D121: STRASBOURG | E121: 4006 | F121: STRASBOURG NEUDORF | G121: 9.0 | H121: 52% | I121: 32% | J121: 112 | K121: 72% | L121: 59% | M121: 174 | N121: 57% | O121: 33% | P121: 25 | Q121: 63% | R121: 48% | S121: 169 | T121: 54% | U121: 50% | V121: 60 | W121: 78% | X121: 73% | Y121: 196
A122: 30 | B122: AUBE HAUTE MARNE | C122: 21 | D122: CHAUMONT | E122: 410541 | F122: LANGRES | G122: 6.7 | H122: 52% | I122: 32% | J122: 113 | K122: 41% | L122: 27% | M122: 33 | N122: 77% | O122: 53% | P122: 202 | Q122: 70% | R122: 54% | S122: 226 | T122: 65% | U122: 61% | V122: 126 | W122: 72% | X122: 67% | Y122: 123
A123: 30 | B123: MEURTHE ET MOSELLE MEUSE | C123: 27 | D123: PONT A MOUSSON | E123: 554184 | F123: BRIEY | G123: 4.8 | H123: 53% | I123: 32% | J123: 114 | K123: 65% | L123: 52% | M123: 142 | N123: 74% | O123: 49% | P123: 171 | Q123: 39% | R123: 23% | S123: 22 | T123: 79% | U123: 74% | V123: 216 | W123: 69% | X123: 65% | Y123: 93
A124: 30 | B124: AUBE HAUTE MARNE | C124: 21 | D124: CHAUMONT | E124: 451156 | F124: SAINT DIZIER CENTRE | G124: 7.0 | H124: 53% | I124: 32% | J124: 115 | K124: 66% | L124: 53% | M124: 150 | N124: 72% | O124: 48% | P124: 155 | Q124: 55% | R124: 39% | S124: 111 | T124: 60% | U124: 56% | V124: 93 | W124: 72% | X124: 67% | Y124: 126
A125: 30 | B125: MARNE-ARDENNES | C125: 11 | D125: REIMS | E125: 451370 | F125: EPERNAY | G125: 11.7 | H125: 53% | I125: 32% | J125: 116 | K125: 47% | L125: 34% | M125: 47 | N125: 64% | O125: 40% | P125: 75 | Q125: 70% | R125: 55% | S125: 228 | T125: 70% | U125: 66% | V125: 161 | W125: 74% | X125: 69% | Y125: 148
A126: 30 | B126: VOSGES | C126: 55 | D126: SAINT DIE | E126: 588386 | F126: LE THILLOT | G126: 3.0 | H126: 53% | I126: 32% | J126: 117 | K126: 64% | L126: 51% | M126: 137 | N126: 77% | O126: 53% | P126: 204 | Q126: 66% | R126: 50% | S126: 197 | T126: 39% | U126: 35% | V126: 24 | W126: 80% | X126: 75% | Y126: 217
A127: 30 | B127: MOSELLE | C127: 44 | D127: MOSELLE NORD | E127: 457306 | F127: FLORANGE | G127: 3.9 | H127: 53% | I127: 32% | J127: 118 | K127: 96% | L127: 83% | M127: 248 | N127: 61% | O127: 36% | P127: 44 | Q127: 40% | R127: 24% | S127: 25 | T127: 57% | U127: 53% | V127: 76 | W127: 73% | X127: 68% | Y127: 132
A128: 30 | B128: HAUT-RHIN | C128: 5130 | D128: COLMAR | E128: 4135 | F128: COLMAR SAINTE MARIE | G128: 7.3 | H128: 53% | I128: 32% | J128: 119 | K128: 66% | L128: 53% | M128: 146 | N128: 70% | O128: 46% | P128: 135 | Q128: 50% | R128: 34% | S128: 72 | T128: 61% | U128: 56% | V128: 96 | W128: 80% | X128: 75% | Y128: 214
A129: 30 | B129: BAS-RHIN | C129: 5101 | D129: SELESTAT | E129: 4101 | F129: SELESTAT CENTRE | G129: 8.5 | H129: 53% | I129: 33% | J129: 120 | K129: 89% | L129: 76% | M129: 235 | N129: 60% | O129: 36% | P129: 41 | Q129: 49% | R129: 33% | S129: 68 | T129: 58% | U129: 54% | V129: 80 | W129: 71% | X129: 66% | Y129: 111
A130: 30 | B130: VOSGES | C130: 57 | D130: EPINAL | E130: 488291 | F130: EPINAL AVRINSART | G130: 1.8 | H130: 53% | I130: 33% | J130: 121 | K130: 51% | L130: 38% | M130: 63 | N130: 88% | O130: 63% | P130: 263 | Q130: 67% | R130: 51% | S130: 207 | T130: 55% | U130: 50% | V130: 65 | W130: 67% | X130: 63% | Y130: 80
A131: 30 | B131: MOSELLE | C131: 44 | D131: MOSELLE NORD | E131: 557660 | F131: UCKANGE | G131: 2.1 | H131: 53% | I131: 33% | J131: 122 | K131: 84% | L131: 71% | M131: 225 | N131: 75% | O131: 51% | P131: 191 | Q131: 61% | R131: 45% | S131: 150 | T131: 40% | U131: 35% | V131: 25 | W131: 68% | X131: 63% | Y131: 83
A132: 30 | B132: MEURTHE ET MOSELLE MEUSE | C132: 31 | D132: VERDUN | E132: 455151 | F132: BAR LE DUC | G132: 9.7 | H132: 53% | I132: 33% | J132: 123 | K132: 62% | L132: 48% | M132: 115 | N132: 69% | O132: 45% | P132: 125 | Q132: 65% | R132: 50% | S132: 194 | T132: 62% | U132: 58% | V132: 108 | W132: 70% | X132: 65% | Y132: 98
A133: 30 | B133: AUBE HAUTE MARNE | C133: 14 | D133: TROYES | E133: 410571 | F133: ROMILLY SUR SEINE | G133: 6.1 | H133: 53% | I133: 33% | J133: 124 | K133: 61% | L133: 48% | M133: 113 | N133: 59% | O133: 35% | P133: 34 | Q133: 70% | R133: 54% | S133: 224 | T133: 73% | U133: 69% | V133: 177 | W133: 65% | X133: 61% | Y133: 65
A134: 30 | B134: MEURTHE ET MOSELLE MEUSE | C134: 31 | D134: VERDUN | E134: 455566 | F134: REVIGNY SUR ORNAIN | G134: 3.9 | H134: 53% | I134: 33% | J134: 125 | K134: 38% | L134: 25% | M134: 25 | N134: 65% | O134: 41% | P134: 83 | Q134: 77% | R134: 62% | S134: 253 | T134: 70% | U134: 65% | V134: 157 | W134: 79% | X134: 74% | Y134: 209
A135: 30 | B135: MEURTHE ET MOSELLE MEUSE | C135: 27 | D135: PONT A MOUSSON | E135: 554376 | F135: LAXOU BOUFFLERS | G135: 2.9 | H135: 53% | I135: 33% | J135: 126 | K135: 68% | L135: 55% | M135: 158 | N135: 79% | O135: 55% | P135: 221 | Q135: 57% | R135: 41% | S135: 127 | T135: 58% | U135: 54% | V135: 82 | W135: 67% | X135: 62% | Y135: 77
A136: 30 | B136: MEURTHE ET MOSELLE MEUSE | C136: 26 | D136: NANCY | E136: 454671 | F136: VANDOEUVRE LES NANCY | G136: 4.6 | H136: 54% | I136: 33% | J136: 127 | K136: 58% | L136: 44% | M136: 95 | N136: 65% | O136: 41% | P136: 84 | Q136: 82% | R136: 66% | S136: 263 | T136: 61% | U136: 57% | V136: 100 | W136: 63% | X136: 59% | Y136: 50
A137: 30 | B137: MEURTHE ET MOSELLE MEUSE | C137: 31 | D137: VERDUN | E137: 554413 | F137: LONGWY BAS | G137: 4.1 | H137: 54% | I137: 33% | J137: 128 | K137: 33% | L137: 20% | M137: 17 | N137: 78% | O137: 54% | P137: 209 | Q137: 58% | R137: 43% | S137: 133 | T137: 86% | U137: 82% | V137: 253 | W137: 74% | X137: 69% | Y137: 147
A138: 30 | B138: MOSELLE | C138: 45 | D138: METZ | E138: 557559 | F138: REMILLY | G138: 4.0 | H138: 54% | I138: 33% | J138: 129 | K138: 76% | L138: 63% | M138: 199 | N138: 63% | O138: 39% | P138: 62 | Q138: 60% | R138: 44% | S138: 143 | T138: 59% | U138: 55% | V138: 86 | W138: 72% | X138: 67% | Y138: 118
A139: 30 | B139: HAUT-RHIN | C139: 5169 | D139: MULHOUSE | E139: 4195 | F139: CERNAY | G139: 2.5 | H139: 54% | I139: 33% | J139: 130 | K139: 63% | L139: 50% | M139: 126 | N139: 70% | O139: 45% | P139: 127 | Q139: 38% | R139: 22% | S139: 18 | T139: 79% | U139: 75% | V139: 217 | W139: 80% | X139: 75% | Y139: 218
A140: 30 | B140: VOSGES | C140: 57 | D140: EPINAL | E140: 488286 | F140: EPINAL ARISTIDE BRIAND | G140: 9.4 | H140: 54% | I140: 33% | J140: 131 | K140: 72% | L140: 58% | M140: 172 | N140: 68% | O140: 44% | P140: 114 | Q140: 59% | R140: 44% | S140: 136 | T140: 53% | U140: 49% | V140: 57 | W140: 78% | X140: 73% | Y140: 193
A141: 30 | B141: MOSELLE | C141: 42 | D141: MOSELLE EST | E141: 557305 | F141: FAULQUEMONT | G141: 2.1 | H141: 54% | I141: 33% | J141: 132 | K141: 70% | L141: 57% | M141: 168 | N141: 73% | O141: 48% | P141: 164 | Q141: 63% | R141: 47% | S141: 165 | T141: 42% | U141: 38% | V141: 30 | W141: 83% | X141: 78% | Y141: 237
A142: 30 | B142: BAS-RHIN | C142: 5060 | D142: HAGUENAU | E142: 4057 | F142: BISCHWILLER | G142: 6.8 | H142: 54% | I142: 33% | J142: 133 | K142: 75% | L142: 62% | M142: 187 | N142: 75% | O142: 51% | P142: 192 | Q142: 59% | R142: 44% | S142: 139 | T142: 44% | U142: 40% | V142: 36 | W142: 76% | X142: 72% | Y142: 175
A143: 30 | B143: AUBE HAUTE MARNE | C143: 14 | D143: TROYES | E143: 510522 | F143: TROYES CHARTREUX | G143: 3.0 | H143: 54% | I143: 33% | J143: 134 | K143: 64% | L143: 50% | M143: 130 | N143: 64% | O143: 40% | P143: 70 | Q143: 62% | R143: 46% | S143: 159 | T143: 59% | U143: 55% | V143: 88 | W143: 82% | X143: 77% | Y143: 233
